{"text_format":"1","workbook":"xlsx","n_sheets":4,"sheets":["ZARO_FOKONYV","beallitasok","RELAX_feladas","FKCSERE"],"not_rendered":{"charts":0,"images":0,"macros":1,"external_links":0,"defined_names":0,"comments":2,"pivot_tables":0},"unopened":[],"bounds":{"document_bytes":16777216,"sheet_cells":100000,"rows_first":2000,"rows_last":500,"rows_between":2000,"halvings":0,"cell_chars":16384,"cell_head_chars":4096},"cells_cut":0,"cells_raw":0,"read":"whole","date_system":"1900"}

{"sheet":"ZARO_FOKONYV","index":0,"n_rows":162,"n_cols":4,"rows_kept":162,"cut":false,"hidden":false,"merged":[]}
["FK szám","FK neve","tartozik egyenleg","követel egyenleg"]
["1","BEFEKTETETT ESZKÖZÖK",61563416,0]
["11","IMMATERIÁLIS JAVAK",0,0]
["113","Vagyoni értékű jogok",78737,0]
["114","Szellemi termékek",21000,0]
["119","Immateriális javak terv szerinti értékcsökkenése",0,99737]
["12","INGATLANOK ÉS KAPCSOLÓDÓ VAGYONI ÉRTÉKŰ JOGOK",49105108,0]
["123","Épületek, épületrészek, tulajdoni hányadok",52000012,0]
["129","Ingatlanok terv szerinti értékcsökkenése",0,2894904]
["14","EGYÉB BERENDEZÉSEK, FELSZERELÉSEK, GÉPEK, JÁRMŰVEK",8907049,0]
["1411","Üzemi berend.tárgyak",5834040,0]
["142","Egyéb járművek",12820711,0]
["143","Irodai, igazgatási berendezések és felszerelések",3460124,0]
["1431","Adatrögzítő készölékek",5820273,0]
["144","Üzemkörön kívüli berendezése, felszerelések, járművek",169900,0]
["145","Kisértékű eszközök",901146,0]
["147","Egyéb berendezések, felszerelések, járművek értékhelyesbítése",5052160,0]
["149","Egyéb berendezések, felszerelések, járművek terv szerinti értékcsökkenése",0,25151305]
["1491","Egyéb berendezési tárgyak ÉCS ",0,6020578]
["14931","Adatrögzítő kész.ÉCS ",0,5509265]
["14932","Irodai berendezések ÉCS",0,2379292]
["1494","Számítástechnikai eszközök ÉCS",0,248250]
["1495","Kisértékű eszközök ÉCS",0,901146]
["1497","Járművek ÉCS",0,10092774]
["16","BERUHÁZÁSOK, FELÚJÍTÁSOK",3551259,0]
["161","Befejezetlen beruházások",3551259,0]
["2","KÉSZLETEK",14902580,0]
["26","KERESKEDELMI ÁRUK",14902580,0]
["261","Áruk beszerzési áron",14902580,0]
["3","KÖVETELÉSEK, PÉNZÜGYI ESZKÖZÖK ÉS AKTÍV IDŐBELI ELHATÁROLÁSOK",75259587,0]
["31","KÖVETELÉSEK ÁRUSZÁLLÍTÁSBÓL ÉS SZOLGÁLTATÁSBÓL (VEVŐK)",76722709,0]
["311","Belföldi vevő követelések forintban",76722709,0]
["35","ADOTT ELŐLEGEK",73199,0]
["352","Beruházásokra adott előlegek",0,1]
[353,"Készletekre adott előlegek",73200,0]
["36","EGYÉB KÖVETELÉSEK",0,0]
["364","Rövid lejáratú kölcsönadott pénzeszközök",0,0]
["3641","Rövid lejáratú kölcsönök",0,0]
["38","PÉNZESZKÖZÖK",0,5771580]
["381","Pénztár",2043892,0]
["3811","Pénztár-számla",2043892,0]
["382","Valutapénztár",844607,0]
["3821","Valutapénztár-számla",844607,0]
["384","Bankszámlák",0,8637639]
["3841","K&H Bank",0,4914593]
["3842","Raiffeisen Bank",0,3723046]
["389","Átvezetési számla",0,22440]
["3891","Átvezetés bank és pénztár között",0,0]
["3892","Átvezetés bank és bank között",0,0]
["3899","Technikai számla",0,22440]
["39","AKTÍV IDŐBELI ELHATÁROLÁSOK",4235259,0]
["391","Bevételek aktív időbeli elhatárolások",4050000,0]
["3913","Árbevétel, egyéb bevétel elhatárolása",4050000,0]
["392","Költségek, ráfordítások időbeli elhatárolása",185259,0]
["3922","Többletkötelezettségek elhatárolása",0,0]
["3923","Költségek, egyéb fizetett kamatok, egyéb ráfordítások elhatárolása",185259,0]
["4","FORRÁSOK",0,149713245]
["41","SAJÁT TŐKE",0,29549496]
["411","Jegyzett tőke",0,3000000]
["413","Eredménytartalék",0,26549496]
["414","Lekötött tartalék",0,0]
["4142","Lekötött tartalék eredménytartalékból",0,0]
["44","HOSSZÚ LEJÁRATÚ KÖTELEZETTSÉGEK",0,62295444]
["4412","ABC-123 lízing",1293708,0]
["4416","ABC-234 lízing",0,892236]
["444","Beruházási és fejlsztési hitelek",0,59177911]
["4441","Beruházási és fejlesztési hitelek forintban",0,59177911]
["4481","lizing Smart",0,3519005]
["45","RÖVID LEJÁRATÚ KÖTELEZETTSÉGEK",0,49002940]
["452","Rövid lejáratú hitelek",0,17284774]
["4521","Rövid lejáratú hitelek forintban",0,17284774]
["454","Szállítók",0,31718166]
["4541","Belföldi anyag és áruszállítók",0,31718166]
["461","Társasági adó elszámolása",0,1053300]
["462","Személyi jövedelemadó elszámolása",0,376000]
["463","Költségvetési befizetési kötelezettségek",0,690260]
["46310","Egészségügyi hozzájárulás",0,46260]
["46311","Külön fel nem sorolt befizetési kötelezettségek",0,3000]
["46312","APEH NYBA",0,148000]
["46313","APEH EBA",0,126000]
["46316","APEH SZOCHO",0,367000]
["466","Előzetesen felszámított ÁFA",0,0]
["467","Fizetendő általános forgalmi adó",0,0]
["468","Általános forgalmi adó elszámolási számla",0,6293166]
["469","Helyi adók elszámolási számla",87635,0]
["4695","Helyi iparűzési adó elszámolási számla",87635,0]
["4696","Gépjárműadó elszámolási számla",0,0]
["471","Jövedelemadó elszámolási számla",0,131837]
["4711","Keresetelszámolási számla",0,131837]
["473","Társadalombiztosítási kötelezettség",0,190000]
["474","Elkülönített alapokkal kapcsolatos fizetési kötelezettségek",0,32000]
["4742","Szakképzési hozzájárulás",0,32000]
["48","PASSZÍV IDŐBELI ELHATÁROLÁSOK",0,186437]
["481","Bevételek passzív időbeli elhatárolása",0,0]
["4811","Befolyt, elszámolt bevételek elhatárolása",0,0]
["482","Költségek, ráfordítások passzív időbeli elhatárolása",0,186437]
["4821","Mérlegfordulónap előtti időszakot terhelő költségek, ráfordítások elhatárolása",0,186437]
["49","ÉVI MÉRLEGSZÁMLÁK",0,0]
["491","Nyitómérleg számla",0,0]
["493","Adózott eredmény elszámolása",0,0]
["5","KÖLTSÉGNEMEK",21115639,0]
["51","ANYAGKÖLTSÉGEK",7744010,0]
["5111","Üzemanyag vás.",554843,0]
["5112","Alkatrész vás.",5524925,0]
["5129","Egyéb anyag ktg.",1220633,0]
["5131","Közüzemi díjak",439491,0]
["5132","Nyomtatvány, irodaszer",4118,0]
["52","IGÉNYBE VETT SZOLGÁLTATÁSOK KÖLTSÉGEI",5667885,0]
["521","Szállítás-rakodás, raktározás költségei",9865,0]
["522","Bérleti díjak",1527114,0]
["523","Karbantartási költségek",576654,0]
["524","Hírdetés, reklám, propaganda költségei",50000,0]
["525","Oktatás és továbbképzés költségei",505000,0]
["527","Számviteli szolgáltatás",600000,0]
["52901","Posta, telefon dij",462679,0]
["52902","Autópálya, parkolási dij",110969,0]
["52910","Egyéb szolgáltatás",1825604,0]
["53","EGYÉB SZOLGÁLTATÁSOK KÖLTSÉGEI",1239728,0]
["531","Hatósági igazgatási, szolgáltatási díjak, illetékek",6000,0]
["532","Pénzügyi, befektetési szolgáltatási díjak",681179,0]
["533","Biztosítási dij",552549,0]
["54","BÉRKÖLTSÉG",2137500,0]
["541","Bérköltség",2137500,0]
["55","SZEMÉLYI JELLEGŰ EGYÉB KIFIZETÉSEK",46260,0]
["551","Munkavállalóknak, tagoknak fizetettt személyi jellegű kifizetések",46260,0]
["56","BÉRJÁRULÉKOK",346754,0]
["561","Nyugdijbiztosítási és egészségbiztosítási járulék",315336,0]
["563","Munkaadói járulék",2978,0]
["564","Szakképzési hozzájárulás",28440,0]
["57","ÉRTÉKCSÖKKENÉSI LEÍRÁS",3933502,0]
["571","Terv szerinti értékcsökkenési leírás",3234879,0]
["572","Használatbavételkor egy összegben elszámolt értékcsökkenési leírás",698623,0]
["8","ÉRTÉKESÍTÉS ELSZÁMOLT ÖNKÖLTSÉGE ÉS RÁFORDÍTÁSOK",86778355,0]
["814","ELÁBÉ",83204283,0]
["8141","ELÁBÉ",83204283,0]
["86","EGYÉB RÁFORDÍTÁSOK",2156267,0]
["863","Mérlegfordulónap előtt bekövetkezett eseményeknek az üzleti évhez kapcsolódó ráford.",217949,0]
["8632","Bírságok, kötbérek, fekbérek, késedelmi kamatok, kártéríté sek",217444,0]
["8636","Kerekítés",505,0]
["867","Adók, illetékek, hozzájárulások",715895,0]
["8672","Önkormányzatokkal elszámolt adók, illetékek, hozzájárulások",715895,0]
["869","Különféle egyéb ráfordítások",1222423,0]
["8699","Nem a vállalkozás érdekében felmerült kiadás",1222423,0]
["87","PÉNZÜGYI MŰVELETEK RÁFORDÍTÁ SAI",982805,0]
["872","Fizetendő kamatok és kamat jellegű ráfordítások",225887,0]
["8721","Kölcsönök, hitelek kapcsolt vállalkozásnak fizetendő kamata",97672,0]
["8722","Kölcsönök, hitelek egyéb fizetendő kamata",128215,0]
["876","Átváltáskori, értékeléskori árfolyamveszteség",756918,0]
["8762","Külföldi pénzértékre szóló eszk. és kötelezettségek pénzügyileg rendezett árf. veszt.",756918,0]
["89","NYERESÉGET TERHELŐ ADÓK",435000,0]
["891","Társasági adó",435000,0]
["9","ÉRTÉKESÍTÉS ÁRBEVÉTELE ÉS BEVÉTELEK",0,109906332]
["91","BELFÖLDI ÉRTÉKESÍTÉS ÁRBEVÉTELE",0,109903948]
["911","Alaptevékenység árbevétele",0,109903948]
["96","EGYÉB BEVÉTELEK",0,1740]
["963","A mérlegkészítés időpontjáig pénzügyileg rendezett, az üzleti évhez kapcsolódó egyéb bev.",0,1739]
["9636","Kerekítés",0,1739]
["969","Különféle egyéb bevételek",0,1]
["9696","Egyéb bevétel",0,1]
["97","PÉNZÜGYI MŰVELETEK BEVÉTELEI",0,644]
["974","Egyéb kapott kamatok és kamatjellegű bevételek",0,644]
["9741","Forgóeszközök között kimutatott kölcsön, váltókövetelés, pénzeszköz után kapott kamat",0,644]

{"sheet":"beallitasok","index":1,"n_rows":8,"n_cols":8,"rows_kept":8,"cut":false,"hidden":false,"merged":[[4,6,5,6],[4,7,5,7]]}
[]
["Dátum","2020-12-31",null,null,null,null,"Vevő eleje",311]
["Ellenszámla",491000,null,null,null,null,"Szállító eleje",454]
["File neve","VALAMI"]
["Sorszám",19,null,null,null,null,"Gyűjtősorok törlése","IGEN"]
["Bizonylatjel","NYITÓ"]
[]
[null,null,null,null,null,null,"Hányas osztályig?",9]

{"sheet":"RELAX_feladas","index":2,"n_rows":162,"n_cols":10,"rows_kept":162,"cut":false,"hidden":false,"merged":[]}
["Dátum","Megnevezés","Bizonylatjel","Összeg","Tartozik","Kovetel","KTGHELY","Tartozik megnevezés","Követel megnevezés","Gyűjtő?"]
[{"$f":"IFERROR(IF(OR(AND(beallitasok!$H$5=\"IGEN\",J2=\"IGEN\"),B2=\"\",VALUE(LEFT(F2,LEN(beallitasok!$H$2)))=beallitasok!$H$2,VALUE(LEFT(E2,LEN(beallitasok!$H$3)))=beallitasok!$H$3,VALUE(LEFT(F2,LEN(beallitasok!$H$2)))=beallitasok!$H$3,VALUE(LEFT(E2,LEN(beallitasok!$H$3)))=beallitasok!$H$2),\"\",IF(D2=\"\",\"\",beallitasok!$B$2)),\"\")","v":""},{"$f":"IF(VALUE(LEFT(ZARO_FOKONYV!A2,1))<=beallitasok!$H$8,ZARO_FOKONYV!B2,\"\")","v":"BEFEKTETETT ESZKÖZÖK"},{"$f":"IF(B2=\"\",\"\",IF(beallitasok!$B$6=\"\",\"\",beallitasok!$B$6))","v":"NYITÓ"},{"$f":"IF(B2=\"\",\"\",ROUND(ZARO_FOKONYV!C2+ZARO_FOKONYV!D2,0))","v":61563416},{"$f":"IF(B2=\"\",\"\",LEFT(IF(ZARO_FOKONYV!C2>0,IFERROR(VLOOKUP(ZARO_FOKONYV!$A2,FKCSERE!$A:$B,2,FALSE),ZARO_FOKONYV!$A2),beallitasok!$B$3)&\"00000\",6))","v":"100000"},{"$f":"IF(B2=\"\",\"\",LEFT(IF(ZARO_FOKONYV!D2>0,IFERROR(VLOOKUP(ZARO_FOKONYV!$A2,FKCSERE!$A:$B,2,FALSE),ZARO_FOKONYV!$A2),beallitasok!$B$3)&\"000000\",6))","v":"491000"},null,{"$f":"IF(LEFT(E2,3)=LEFT(beallitasok!$B$3,3),\"\",$B2)","v":"BEFEKTETETT ESZKÖZÖK"},{"$f":"IF(LEFT(F2,3)=LEFT(beallitasok!$B$3,3),\"\",$B2)","v":""},{"$f":"IF(AND(LEN(ZARO_FOKONYV!A2)<LEN(ZARO_FOKONYV!A3),LEFT(ZARO_FOKONYV!A3,LEN(ZARO_FOKONYV!A2))=ZARO_FOKONYV!A2),\"IGEN\",\"nem\")","v":"IGEN"}]
[{"$f":"IFERROR(IF(OR(AND(beallitasok!$H$5=\"IGEN\",J3=\"IGEN\"),B3=\"\",VALUE(LEFT(F3,LEN(beallitasok!$H$2)))=beallitasok!$H$2,VALUE(LEFT(E3,LEN(beallitasok!$H$3)))=beallitasok!$H$3,VALUE(LEFT(F3,LEN(beallitasok!$H$2)))=beallitasok!$H$3,VALUE(LEFT(E3,LEN(beallitasok!$H$3)))=beallitasok!$H$2),\"\",IF(D3=\"\",\"\",beallitasok!$B$2)),\"\")","v":""},{"$f":"IF(VALUE(LEFT(ZARO_FOKONYV!A3,1))<=beallitasok!$H$8,ZARO_FOKONYV!B3,\"\")","v":"IMMATERIÁLIS JAVAK"},{"$f":"IF(B3=\"\",\"\",IF(beallitasok!$B$6=\"\",\"\",beallitasok!$B$6))","v":"NYITÓ"},{"$f":"IF(B3=\"\",\"\",ROUND(ZARO_FOKONYV!C3+ZARO_FOKONYV!D3,0))","v":0},{"$f":"IF(B3=\"\",\"\",LEFT(IF(ZARO_FOKONYV!C3>0,IFERROR(VLOOKUP(ZARO_FOKONYV!$A3,FKCSERE!$A:$B,2,FALSE),ZARO_FOKONYV!$A3),beallitasok!$B$3)&\"00000\",6))","v":"491000"},{"$f":"IF(B3=\"\",\"\",LEFT(IF(ZARO_FOKONYV!D3>0,IFERROR(VLOOKUP(ZARO_FOKONYV!$A3,FKCSERE!$A:$B,2,FALSE),ZARO_FOKONYV!$A3),beallitasok!$B$3)&\"000000\",6))","v":"491000"},null,{"$f":"IF(LEFT(E3,3)=LEFT(beallitasok!$B$3,3),\"\",$B3)","v":""},{"$f":"IF(LEFT(F3,3)=LEFT(beallitasok!$B$3,3),\"\",$B3)","v":""},{"$f":"IF(AND(LEN(ZARO_FOKONYV!A3)<LEN(ZARO_FOKONYV!A4),LEFT(ZARO_FOKONYV!A4,LEN(ZARO_FOKONYV!A3))=ZARO_FOKONYV!A3),\"IGEN\",\"nem\")","v":"IGEN"}]
[{"$f":"IFERROR(IF(OR(AND(beallitasok!$H$5=\"IGEN\",J4=\"IGEN\"),B4=\"\",VALUE(LEFT(F4,LEN(beallitasok!$H$2)))=beallitasok!$H$2,VALUE(LEFT(E4,LEN(beallitasok!$H$3)))=beallitasok!$H$3,VALUE(LEFT(F4,LEN(beallitasok!$H$2)))=beallitasok!$H$3,VALUE(LEFT(E4,LEN(beallitasok!$H$3)))=beallitasok!$H$2),\"\",IF(D4=\"\",\"\",beallitasok!$B$2)),\"\")","v":"2020-12-31"},{"$f":"IF(VALUE(LEFT(ZARO_FOKONYV!A4,1))<=beallitasok!$H$8,ZARO_FOKONYV!B4,\"\")","v":"Vagyoni értékű jogok"},{"$f":"IF(B4=\"\",\"\",IF(beallitasok!$B$6=\"\",\"\",beallitasok!$B$6))","v":"NYITÓ"},{"$f":"IF(B4=\"\",\"\",ROUND(ZARO_FOKONYV!C4+ZARO_FOKONYV!D4,0))","v":78737},{"$f":"IF(B4=\"\",\"\",LEFT(IF(ZARO_FOKONYV!C4>0,IFERROR(VLOOKUP(ZARO_FOKONYV!$A4,FKCSERE!$A:$B,2,FALSE),ZARO_FOKONYV!$A4),beallitasok!$B$3)&\"00000\",6))","v":"113000"},{"$f":"IF(B4=\"\",\"\",LEFT(IF(ZARO_FOKONYV!D4>0,IFERROR(VLOOKUP(ZARO_FOKONYV!$A4,FKCSERE!$A:$B,2,FALSE),ZARO_FOKONYV!$A4),beallitasok!$B$3)&\"000000\",6))","v":"491000"},null,{"$f":"IF(LEFT(E4,3)=LEFT(beallitasok!$B$3,3),\"\",$B4)","v":"Vagyoni értékű jogok"},{"$f":"IF(LEFT(F4,3)=LEFT(beallitasok!$B$3,3),\"\",$B4)","v":""},{"$f":"IF(AND(LEN(ZARO_FOKONYV!A4)<LEN(ZARO_FOKONYV!A5),LEFT(ZARO_FOKONYV!A5,LEN(ZARO_FOKONYV!A4))=ZARO_FOKONYV!A4),\"IGEN\",\"nem\")","v":"nem"}]
[{"$f":"IFERROR(IF(OR(AND(beallitasok!$H$5=\"IGEN\",J5=\"IGEN\"),B5=\"\",VALUE(LEFT(F5,LEN(beallitasok!$H$2)))=beallitasok!$H$2,VALUE(LEFT(E5,LEN(beallitasok!$H$3)))=beallitasok!$H$3,VALUE(LEFT(F5,LEN(beallitasok!$H$2)))=beallitasok!$H$3,VALUE(LEFT(E5,LEN(beallitasok!$H$3)))=beallitasok!$H$2),\"\",IF(D5=\"\",\"\",beallitasok!$B$2)),\"\")","v":"2020-12-31"},{"$f":"IF(VALUE(LEFT(ZARO_FOKONYV!A5,1))<=beallitasok!$H$8,ZARO_FOKONYV!B5,\"\")","v":"Szellemi termékek"},{"$f":"IF(B5=\"\",\"\",IF(beallitasok!$B$6=\"\",\"\",beallitasok!$B$6))","v":"NYITÓ"},{"$f":"IF(B5=\"\",\"\",ROUND(ZARO_FOKONYV!C5+ZARO_FOKONYV!D5,0))","v":21000},{"$f":"IF(B5=\"\",\"\",LEFT(IF(ZARO_FOKONYV!C5>0,IFERROR(VLOOKUP(ZARO_FOKONYV!$A5,FKCSERE!$A:$B,2,FALSE),ZARO_FOKONYV!$A5),beallitasok!$B$3)&\"00000\",6))","v":"114000"},{"$f":"IF(B5=\"\",\"\",LEFT(IF(ZARO_FOKONYV!D5>0,IFERROR(VLOOKUP(ZARO_FOKONYV!$A5,FKCSERE!$A:$B,2,FALSE),ZARO_FOKONYV!$A5),beallitasok!$B$3)&\"000000\",6))","v":"491000"},null,{"$f":"IF(LEFT(E5,3)=LEFT(beallitasok!$B$3,3),\"\",$B5)","v":"Szellemi termékek"},{"$f":"IF(LEFT(F5,3)=LEFT(beallitasok!$B$3,3),\"\",$B5)","v":""},{"$f":"IF(AND(LEN(ZARO_FOKONYV!A5)<LEN(ZARO_FOKONYV!A6),LEFT(ZARO_FOKONYV!A6,LEN(ZARO_FOKONYV!A5))=ZARO_FOKONYV!A5),\"IGEN\",\"nem\")","v":"nem"}]
[{"$f":"IFERROR(IF(OR(AND(beallitasok!$H$5=\"IGEN\",J6=\"IGEN\"),B6=\"\",VALUE(LEFT(F6,LEN(beallitasok!$H$2)))=beallitasok!$H$2,VALUE(LEFT(E6,LEN(beallitasok!$H$3)))=beallitasok!$H$3,VALUE(LEFT(F6,LEN(beallitasok!$H$2)))=beallitasok!$H$3,VALUE(LEFT(E6,LEN(beallitasok!$H$3)))=beallitasok!$H$2),\"\",IF(D6=\"\",\"\",beallitasok!$B$2)),\"\")","v":"2020-12-31"},{"$f":"IF(VALUE(LEFT(ZARO_FOKONYV!A6,1))<=beallitasok!$H$8,ZARO_FOKONYV!B6,\"\")","v":"Immateriális javak terv szerinti értékcsökkenése"},{"$f":"IF(B6=\"\",\"\",IF(beallitasok!$B$6=\"\",\"\",beallitasok!$B$6))","v":"NYITÓ"},{"$f":"IF(B6=\"\",\"\",ROUND(ZARO_FOKONYV!C6+ZARO_FOKONYV!D6,0))","v":99737},{"$f":"IF(B6=\"\",\"\",LEFT(IF(ZARO_FOKONYV!C6>0,IFERROR(VLOOKUP(ZARO_FOKONYV!$A6,FKCSERE!$A:$B,2,FALSE),ZARO_FOKONYV!$A6),beallitasok!$B$3)&\"00000\",6))","v":"491000"},{"$f":"IF(B6=\"\",\"\",LEFT(IF(ZARO_FOKONYV!D6>0,IFERROR(VLOOKUP(ZARO_FOKONYV!$A6,FKCSERE!$A:$B,2,FALSE),ZARO_FOKONYV!$A6),beallitasok!$B$3)&\"000000\",6))","v":"119000"},null,{"$f":"IF(LEFT(E6,3)=LEFT(beallitasok!$B$3,3),\"\",$B6)","v":""},{"$f":"IF(LEFT(F6,3)=LEFT(beallitasok!$B$3,3),\"\",$B6)","v":"Immateriális javak terv szerinti értékcsökkenése"},{"$f":"IF(AND(LEN(ZARO_FOKONYV!A6)<LEN(ZARO_FOKONYV!A7),LEFT(ZARO_FOKONYV!A7,LEN(ZARO_FOKONYV!A6))=ZARO_FOKONYV!A6),\"IGEN\",\"nem\")","v":"nem"}]
[{"$f":"IFERROR(IF(OR(AND(beallitasok!$H$5=\"IGEN\",J7=\"IGEN\"),B7=\"\",VALUE(LEFT(F7,LEN(beallitasok!$H$2)))=beallitasok!$H$2,VALUE(LEFT(E7,LEN(beallitasok!$H$3)))=beallitasok!$H$3,VALUE(LEFT(F7,LEN(beallitasok!$H$2)))=beallitasok!$H$3,VALUE(LEFT(E7,LEN(beallitasok!$H$3)))=beallitasok!$H$2),\"\",IF(D7=\"\",\"\",beallitasok!$B$2)),\"\")","v":""},{"$f":"IF(VALUE(LEFT(ZARO_FOKONYV!A7,1))<=beallitasok!$H$8,ZARO_FOKONYV!B7,\"\")","v":"INGATLANOK ÉS KAPCSOLÓDÓ VAGYONI ÉRTÉKŰ JOGOK"},{"$f":"IF(B7=\"\",\"\",IF(beallitasok!$B$6=\"\",\"\",beallitasok!$B$6))","v":"NYITÓ"},{"$f":"IF(B7=\"\",\"\",ROUND(ZARO_FOKONYV!C7+ZARO_FOKONYV!D7,0))","v":49105108},{"$f":"IF(B7=\"\",\"\",LEFT(IF(ZARO_FOKONYV!C7>0,IFERROR(VLOOKUP(ZARO_FOKONYV!$A7,FKCSERE!$A:$B,2,FALSE),ZARO_FOKONYV!$A7),beallitasok!$B$3)&\"00000\",6))","v":"120000"},{"$f":"IF(B7=\"\",\"\",LEFT(IF(ZARO_FOKONYV!D7>0,IFERROR(VLOOKUP(ZARO_FOKONYV!$A7,FKCSERE!$A:$B,2,FALSE),ZARO_FOKONYV!$A7),beallitasok!$B$3)&\"000000\",6))","v":"491000"},null,{"$f":"IF(LEFT(E7,3)=LEFT(beallitasok!$B$3,3),\"\",$B7)","v":"INGATLANOK ÉS KAPCSOLÓDÓ VAGYONI ÉRTÉKŰ JOGOK"},{"$f":"IF(LEFT(F7,3)=LEFT(beallitasok!$B$3,3),\"\",$B7)","v":""},{"$f":"IF(AND(LEN(ZARO_FOKONYV!A7)<LEN(ZARO_FOKONYV!A8),LEFT(ZARO_FOKONYV!A8,LEN(ZARO_FOKONYV!A7))=ZARO_FOKONYV!A7),\"IGEN\",\"nem\")","v":"IGEN"}]
[{"$f":"IFERROR(IF(OR(AND(beallitasok!$H$5=\"IGEN\",J8=\"IGEN\"),B8=\"\",VALUE(LEFT(F8,LEN(beallitasok!$H$2)))=beallitasok!$H$2,VALUE(LEFT(E8,LEN(beallitasok!$H$3)))=beallitasok!$H$3,VALUE(LEFT(F8,LEN(beallitasok!$H$2)))=beallitasok!$H$3,VALUE(LEFT(E8,LEN(beallitasok!$H$3)))=beallitasok!$H$2),\"\",IF(D8=\"\",\"\",beallitasok!$B$2)),\"\")","v":"2020-12-31"},{"$f":"IF(VALUE(LEFT(ZARO_FOKONYV!A8,1))<=beallitasok!$H$8,ZARO_FOKONYV!B8,\"\")","v":"Épületek, épületrészek, tulajdoni hányadok"},{"$f":"IF(B8=\"\",\"\",IF(beallitasok!$B$6=\"\",\"\",beallitasok!$B$6))","v":"NYITÓ"},{"$f":"IF(B8=\"\",\"\",ROUND(ZARO_FOKONYV!C8+ZARO_FOKONYV!D8,0))","v":52000012},{"$f":"IF(B8=\"\",\"\",LEFT(IF(ZARO_FOKONYV!C8>0,IFERROR(VLOOKUP(ZARO_FOKONYV!$A8,FKCSERE!$A:$B,2,FALSE),ZARO_FOKONYV!$A8),beallitasok!$B$3)&\"00000\",6))","v":"123000"},{"$f":"IF(B8=\"\",\"\",LEFT(IF(ZARO_FOKONYV!D8>0,IFERROR(VLOOKUP(ZARO_FOKONYV!$A8,FKCSERE!$A:$B,2,FALSE),ZARO_FOKONYV!$A8),beallitasok!$B$3)&\"000000\",6))","v":"491000"},null,{"$f":"IF(LEFT(E8,3)=LEFT(beallitasok!$B$3,3),\"\",$B8)","v":"Épületek, épületrészek, tulajdoni hányadok"},{"$f":"IF(LEFT(F8,3)=LEFT(beallitasok!$B$3,3),\"\",$B8)","v":""},{"$f":"IF(AND(LEN(ZARO_FOKONYV!A8)<LEN(ZARO_FOKONYV!A9),LEFT(ZARO_FOKONYV!A9,LEN(ZARO_FOKONYV!A8))=ZARO_FOKONYV!A8),\"IGEN\",\"nem\")","v":"nem"}]
[{"$f":"IFERROR(IF(OR(AND(beallitasok!$H$5=\"IGEN\",J9=\"IGEN\"),B9=\"\",VALUE(LEFT(F9,LEN(beallitasok!$H$2)))=beallitasok!$H$2,VALUE(LEFT(E9,LEN(beallitasok!$H$3)))=beallitasok!$H$3,VALUE(LEFT(F9,LEN(beallitasok!$H$2)))=beallitasok!$H$3,VALUE(LEFT(E9,LEN(beallitasok!$H$3)))=beallitasok!$H$2),\"\",IF(D9=\"\",\"\",beallitasok!$B$2)),\"\")","v":"2020-12-31"},{"$f":"IF(VALUE(LEFT(ZARO_FOKONYV!A9,1))<=beallitasok!$H$8,ZARO_FOKONYV!B9,\"\")","v":"Ingatlanok terv szerinti értékcsökkenése"},{"$f":"IF(B9=\"\",\"\",IF(beallitasok!$B$6=\"\",\"\",beallitasok!$B$6))","v":"NYITÓ"},{"$f":"IF(B9=\"\",\"\",ROUND(ZARO_FOKONYV!C9+ZARO_FOKONYV!D9,0))","v":2894904},{"$f":"IF(B9=\"\",\"\",LEFT(IF(ZARO_FOKONYV!C9>0,IFERROR(VLOOKUP(ZARO_FOKONYV!$A9,FKCSERE!$A:$B,2,FALSE),ZARO_FOKONYV!$A9),beallitasok!$B$3)&\"00000\",6))","v":"491000"},{"$f":"IF(B9=\"\",\"\",LEFT(IF(ZARO_FOKONYV!D9>0,IFERROR(VLOOKUP(ZARO_FOKONYV!$A9,FKCSERE!$A:$B,2,FALSE),ZARO_FOKONYV!$A9),beallitasok!$B$3)&\"000000\",6))","v":"129000"},null,{"$f":"IF(LEFT(E9,3)=LEFT(beallitasok!$B$3,3),\"\",$B9)","v":""},{"$f":"IF(LEFT(F9,3)=LEFT(beallitasok!$B$3,3),\"\",$B9)","v":"Ingatlanok terv szerinti értékcsökkenése"},{"$f":"IF(AND(LEN(ZARO_FOKONYV!A9)<LEN(ZARO_FOKONYV!A10),LEFT(ZARO_FOKONYV!A10,LEN(ZARO_FOKONYV!A9))=ZARO_FOKONYV!A9),\"IGEN\",\"nem\")","v":"nem"}]
[{"$f":"IFERROR(IF(OR(AND(beallitasok!$H$5=\"IGEN\",J10=\"IGEN\"),B10=\"\",VALUE(LEFT(F10,LEN(beallitasok!$H$2)))=beallitasok!$H$2,VALUE(LEFT(E10,LEN(beallitasok!$H$3)))=beallitasok!$H$3,VALUE(LEFT(F10,LEN(beallitasok!$H$2)))=beallitasok!$H$3,VALUE(LEFT(E10,LEN(beallitasok!$H$3)))=beallitasok!$H$2),\"\",IF(D10=\"\",\"\",beallitasok!$B$2)),\"\")","v":""},{"$f":"IF(VALUE(LEFT(ZARO_FOKONYV!A10,1))<=beallitasok!$H$8,ZARO_FOKONYV!B10,\"\")","v":"EGYÉB BERENDEZÉSEK, FELSZERELÉSEK, GÉPEK, JÁRMŰVEK"},{"$f":"IF(B10=\"\",\"\",IF(beallitasok!$B$6=\"\",\"\",beallitasok!$B$6))","v":"NYITÓ"},{"$f":"IF(B10=\"\",\"\",ROUND(ZARO_FOKONYV!C10+ZARO_FOKONYV!D10,0))","v":8907049},{"$f":"IF(B10=\"\",\"\",LEFT(IF(ZARO_FOKONYV!C10>0,IFERROR(VLOOKUP(ZARO_FOKONYV!$A10,FKCSERE!$A:$B,2,FALSE),ZARO_FOKONYV!$A10),beallitasok!$B$3)&\"00000\",6))","v":"140000"},{"$f":"IF(B10=\"\",\"\",LEFT(IF(ZARO_FOKONYV!D10>0,IFERROR(VLOOKUP(ZARO_FOKONYV!$A10,FKCSERE!$A:$B,2,FALSE),ZARO_FOKONYV!$A10),beallitasok!$B$3)&\"000000\",6))","v":"491000"},null,{"$f":"IF(LEFT(E10,3)=LEFT(beallitasok!$B$3,3),\"\",$B10)","v":"EGYÉB BERENDEZÉSEK, FELSZERELÉSEK, GÉPEK, JÁRMŰVEK"},{"$f":"IF(LEFT(F10,3)=LEFT(beallitasok!$B$3,3),\"\",$B10)","v":""},{"$f":"IF(AND(LEN(ZARO_FOKONYV!A10)<LEN(ZARO_FOKONYV!A11),LEFT(ZARO_FOKONYV!A11,LEN(ZARO_FOKONYV!A10))=ZARO_FOKONYV!A10),\"IGEN\",\"nem\")","v":"IGEN"}]
[{"$f":"IFERROR(IF(OR(AND(beallitasok!$H$5=\"IGEN\",J11=\"IGEN\"),B11=\"\",VALUE(LEFT(F11,LEN(beallitasok!$H$2)))=beallitasok!$H$2,VALUE(LEFT(E11,LEN(beallitasok!$H$3)))=beallitasok!$H$3,VALUE(LEFT(F11,LEN(beallitasok!$H$2)))=beallitasok!$H$3,VALUE(LEFT(E11,LEN(beallitasok!$H$3)))=beallitasok!$H$2),\"\",IF(D11=\"\",\"\",beallitasok!$B$2)),\"\")","v":"2020-12-31"},{"$f":"IF(VALUE(LEFT(ZARO_FOKONYV!A11,1))<=beallitasok!$H$8,ZARO_FOKONYV!B11,\"\")","v":"Üzemi berend.tárgyak"},{"$f":"IF(B11=\"\",\"\",IF(beallitasok!$B$6=\"\",\"\",beallitasok!$B$6))","v":"NYITÓ"},{"$f":"IF(B11=\"\",\"\",ROUND(ZARO_FOKONYV!C11+ZARO_FOKONYV!D11,0))","v":5834040},{"$f":"IF(B11=\"\",\"\",LEFT(IF(ZARO_FOKONYV!C11>0,IFERROR(VLOOKUP(ZARO_FOKONYV!$A11,FKCSERE!$A:$B,2,FALSE),ZARO_FOKONYV!$A11),beallitasok!$B$3)&\"00000\",6))","v":"141100"},{"$f":"IF(B11=\"\",\"\",LEFT(IF(ZARO_FOKONYV!D11>0,IFERROR(VLOOKUP(ZARO_FOKONYV!$A11,FKCSERE!$A:$B,2,FALSE),ZARO_FOKONYV!$A11),beallitasok!$B$3)&\"000000\",6))","v":"491000"},null,{"$f":"IF(LEFT(E11,3)=LEFT(beallitasok!$B$3,3),\"\",$B11)","v":"Üzemi berend.tárgyak"},{"$f":"IF(LEFT(F11,3)=LEFT(beallitasok!$B$3,3),\"\",$B11)","v":""},{"$f":"IF(AND(LEN(ZARO_FOKONYV!A11)<LEN(ZARO_FOKONYV!A12),LEFT(ZARO_FOKONYV!A12,LEN(ZARO_FOKONYV!A11))=ZARO_FOKONYV!A11),\"IGEN\",\"nem\")","v":"nem"}]
[{"$f":"IFERROR(IF(OR(AND(beallitasok!$H$5=\"IGEN\",J12=\"IGEN\"),B12=\"\",VALUE(LEFT(F12,LEN(beallitasok!$H$2)))=beallitasok!$H$2,VALUE(LEFT(E12,LEN(beallitasok!$H$3)))=beallitasok!$H$3,VALUE(LEFT(F12,LEN(beallitasok!$H$2)))=beallitasok!$H$3,VALUE(LEFT(E12,LEN(beallitasok!$H$3)))=beallitasok!$H$2),\"\",IF(D12=\"\",\"\",beallitasok!$B$2)),\"\")","v":"2020-12-31"},{"$f":"IF(VALUE(LEFT(ZARO_FOKONYV!A12,1))<=beallitasok!$H$8,ZARO_FOKONYV!B12,\"\")","v":"Egyéb járművek"},{"$f":"IF(B12=\"\",\"\",IF(beallitasok!$B$6=\"\",\"\",beallitasok!$B$6))","v":"NYITÓ"},{"$f":"IF(B12=\"\",\"\",ROUND(ZARO_FOKONYV!C12+ZARO_FOKONYV!D12,0))","v":12820711},{"$f":"IF(B12=\"\",\"\",LEFT(IF(ZARO_FOKONYV!C12>0,IFERROR(VLOOKUP(ZARO_FOKONYV!$A12,FKCSERE!$A:$B,2,FALSE),ZARO_FOKONYV!$A12),beallitasok!$B$3)&\"00000\",6))","v":"142000"},{"$f":"IF(B12=\"\",\"\",LEFT(IF(ZARO_FOKONYV!D12>0,IFERROR(VLOOKUP(ZARO_FOKONYV!$A12,FKCSERE!$A:$B,2,FALSE),ZARO_FOKONYV!$A12),beallitasok!$B$3)&\"000000\",6))","v":"491000"},null,{"$f":"IF(LEFT(E12,3)=LEFT(beallitasok!$B$3,3),\"\",$B12)","v":"Egyéb járművek"},{"$f":"IF(LEFT(F12,3)=LEFT(beallitasok!$B$3,3),\"\",$B12)","v":""},{"$f":"IF(AND(LEN(ZARO_FOKONYV!A12)<LEN(ZARO_FOKONYV!A13),LEFT(ZARO_FOKONYV!A13,LEN(ZARO_FOKONYV!A12))=ZARO_FOKONYV!A12),\"IGEN\",\"nem\")","v":"nem"}]
[{"$f":"IFERROR(IF(OR(AND(beallitasok!$H$5=\"IGEN\",J13=\"IGEN\"),B13=\"\",VALUE(LEFT(F13,LEN(beallitasok!$H$2)))=beallitasok!$H$2,VALUE(LEFT(E13,LEN(beallitasok!$H$3)))=beallitasok!$H$3,VALUE(LEFT(F13,LEN(beallitasok!$H$2)))=beallitasok!$H$3,VALUE(LEFT(E13,LEN(beallitasok!$H$3)))=beallitasok!$H$2),\"\",IF(D13=\"\",\"\",beallitasok!$B$2)),\"\")","v":""},{"$f":"IF(VALUE(LEFT(ZARO_FOKONYV!A13,1))<=beallitasok!$H$8,ZARO_FOKONYV!B13,\"\")","v":"Irodai, igazgatási berendezések és felszerelések"},{"$f":"IF(B13=\"\",\"\",IF(beallitasok!$B$6=\"\",\"\",beallitasok!$B$6))","v":"NYITÓ"},{"$f":"IF(B13=\"\",\"\",ROUND(ZARO_FOKONYV!C13+ZARO_FOKONYV!D13,0))","v":3460124},{"$f":"IF(B13=\"\",\"\",LEFT(IF(ZARO_FOKONYV!C13>0,IFERROR(VLOOKUP(ZARO_FOKONYV!$A13,FKCSERE!$A:$B,2,FALSE),ZARO_FOKONYV!$A13),beallitasok!$B$3)&\"00000\",6))","v":"143000"},{"$f":"IF(B13=\"\",\"\",LEFT(IF(ZARO_FOKONYV!D13>0,IFERROR(VLOOKUP(ZARO_FOKONYV!$A13,FKCSERE!$A:$B,2,FALSE),ZARO_FOKONYV!$A13),beallitasok!$B$3)&\"000000\",6))","v":"491000"},null,{"$f":"IF(LEFT(E13,3)=LEFT(beallitasok!$B$3,3),\"\",$B13)","v":"Irodai, igazgatási berendezések és felszerelések"},{"$f":"IF(LEFT(F13,3)=LEFT(beallitasok!$B$3,3),\"\",$B13)","v":""},{"$f":"IF(AND(LEN(ZARO_FOKONYV!A13)<LEN(ZARO_FOKONYV!A14),LEFT(ZARO_FOKONYV!A14,LEN(ZARO_FOKONYV!A13))=ZARO_FOKONYV!A13),\"IGEN\",\"nem\")","v":"IGEN"}]
[{"$f":"IFERROR(IF(OR(AND(beallitasok!$H$5=\"IGEN\",J14=\"IGEN\"),B14=\"\",VALUE(LEFT(F14,LEN(beallitasok!$H$2)))=beallitasok!$H$2,VALUE(LEFT(E14,LEN(beallitasok!$H$3)))=beallitasok!$H$3,VALUE(LEFT(F14,LEN(beallitasok!$H$2)))=beallitasok!$H$3,VALUE(LEFT(E14,LEN(beallitasok!$H$3)))=beallitasok!$H$2),\"\",IF(D14=\"\",\"\",beallitasok!$B$2)),\"\")","v":"2020-12-31"},{"$f":"IF(VALUE(LEFT(ZARO_FOKONYV!A14,1))<=beallitasok!$H$8,ZARO_FOKONYV!B14,\"\")","v":"Adatrögzítő készölékek"},{"$f":"IF(B14=\"\",\"\",IF(beallitasok!$B$6=\"\",\"\",beallitasok!$B$6))","v":"NYITÓ"},{"$f":"IF(B14=\"\",\"\",ROUND(ZARO_FOKONYV!C14+ZARO_FOKONYV!D14,0))","v":5820273},{"$f":"IF(B14=\"\",\"\",LEFT(IF(ZARO_FOKONYV!C14>0,IFERROR(VLOOKUP(ZARO_FOKONYV!$A14,FKCSERE!$A:$B,2,FALSE),ZARO_FOKONYV!$A14),beallitasok!$B$3)&\"00000\",6))","v":"143100"},{"$f":"IF(B14=\"\",\"\",LEFT(IF(ZARO_FOKONYV!D14>0,IFERROR(VLOOKUP(ZARO_FOKONYV!$A14,FKCSERE!$A:$B,2,FALSE),ZARO_FOKONYV!$A14),beallitasok!$B$3)&\"000000\",6))","v":"491000"},null,{"$f":"IF(LEFT(E14,3)=LEFT(beallitasok!$B$3,3),\"\",$B14)","v":"Adatrögzítő készölékek"},{"$f":"IF(LEFT(F14,3)=LEFT(beallitasok!$B$3,3),\"\",$B14)","v":""},{"$f":"IF(AND(LEN(ZARO_FOKONYV!A14)<LEN(ZARO_FOKONYV!A15),LEFT(ZARO_FOKONYV!A15,LEN(ZARO_FOKONYV!A14))=ZARO_FOKONYV!A14),\"IGEN\",\"nem\")","v":"nem"}]
[{"$f":"IFERROR(IF(OR(AND(beallitasok!$H$5=\"IGEN\",J15=\"IGEN\"),B15=\"\",VALUE(LEFT(F15,LEN(beallitasok!$H$2)))=beallitasok!$H$2,VALUE(LEFT(E15,LEN(beallitasok!$H$3)))=beallitasok!$H$3,VALUE(LEFT(F15,LEN(beallitasok!$H$2)))=beallitasok!$H$3,VALUE(LEFT(E15,LEN(beallitasok!$H$3)))=beallitasok!$H$2),\"\",IF(D15=\"\",\"\",beallitasok!$B$2)),\"\")","v":"2020-12-31"},{"$f":"IF(VALUE(LEFT(ZARO_FOKONYV!A15,1))<=beallitasok!$H$8,ZARO_FOKONYV!B15,\"\")","v":"Üzemkörön kívüli berendezése, felszerelések, járművek"},{"$f":"IF(B15=\"\",\"\",IF(beallitasok!$B$6=\"\",\"\",beallitasok!$B$6))","v":"NYITÓ"},{"$f":"IF(B15=\"\",\"\",ROUND(ZARO_FOKONYV!C15+ZARO_FOKONYV!D15,0))","v":169900},{"$f":"IF(B15=\"\",\"\",LEFT(IF(ZARO_FOKONYV!C15>0,IFERROR(VLOOKUP(ZARO_FOKONYV!$A15,FKCSERE!$A:$B,2,FALSE),ZARO_FOKONYV!$A15),beallitasok!$B$3)&\"00000\",6))","v":"144000"},{"$f":"IF(B15=\"\",\"\",LEFT(IF(ZARO_FOKONYV!D15>0,IFERROR(VLOOKUP(ZARO_FOKONYV!$A15,FKCSERE!$A:$B,2,FALSE),ZARO_FOKONYV!$A15),beallitasok!$B$3)&\"000000\",6))","v":"491000"},null,{"$f":"IF(LEFT(E15,3)=LEFT(beallitasok!$B$3,3),\"\",$B15)","v":"Üzemkörön kívüli berendezése, felszerelések, járművek"},{"$f":"IF(LEFT(F15,3)=LEFT(beallitasok!$B$3,3),\"\",$B15)","v":""},{"$f":"IF(AND(LEN(ZARO_FOKONYV!A15)<LEN(ZARO_FOKONYV!A16),LEFT(ZARO_FOKONYV!A16,LEN(ZARO_FOKONYV!A15))=ZARO_FOKONYV!A15),\"IGEN\",\"nem\")","v":"nem"}]
[{"$f":"IFERROR(IF(OR(AND(beallitasok!$H$5=\"IGEN\",J16=\"IGEN\"),B16=\"\",VALUE(LEFT(F16,LEN(beallitasok!$H$2)))=beallitasok!$H$2,VALUE(LEFT(E16,LEN(beallitasok!$H$3)))=beallitasok!$H$3,VALUE(LEFT(F16,LEN(beallitasok!$H$2)))=beallitasok!$H$3,VALUE(LEFT(E16,LEN(beallitasok!$H$3)))=beallitasok!$H$2),\"\",IF(D16=\"\",\"\",beallitasok!$B$2)),\"\")","v":"2020-12-31"},{"$f":"IF(VALUE(LEFT(ZARO_FOKONYV!A16,1))<=beallitasok!$H$8,ZARO_FOKONYV!B16,\"\")","v":"Kisértékű eszközök"},{"$f":"IF(B16=\"\",\"\",IF(beallitasok!$B$6=\"\",\"\",beallitasok!$B$6))","v":"NYITÓ"},{"$f":"IF(B16=\"\",\"\",ROUND(ZARO_FOKONYV!C16+ZARO_FOKONYV!D16,0))","v":901146},{"$f":"IF(B16=\"\",\"\",LEFT(IF(ZARO_FOKONYV!C16>0,IFERROR(VLOOKUP(ZARO_FOKONYV!$A16,FKCSERE!$A:$B,2,FALSE),ZARO_FOKONYV!$A16),beallitasok!$B$3)&\"00000\",6))","v":"145000"},{"$f":"IF(B16=\"\",\"\",LEFT(IF(ZARO_FOKONYV!D16>0,IFERROR(VLOOKUP(ZARO_FOKONYV!$A16,FKCSERE!$A:$B,2,FALSE),ZARO_FOKONYV!$A16),beallitasok!$B$3)&\"000000\",6))","v":"491000"},null,{"$f":"IF(LEFT(E16,3)=LEFT(beallitasok!$B$3,3),\"\",$B16)","v":"Kisértékű eszközök"},{"$f":"IF(LEFT(F16,3)=LEFT(beallitasok!$B$3,3),\"\",$B16)","v":""},{"$f":"IF(AND(LEN(ZARO_FOKONYV!A16)<LEN(ZARO_FOKONYV!A17),LEFT(ZARO_FOKONYV!A17,LEN(ZARO_FOKONYV!A16))=ZARO_FOKONYV!A16),\"IGEN\",\"nem\")","v":"nem"}]
[{"$f":"IFERROR(IF(OR(AND(beallitasok!$H$5=\"IGEN\",J17=\"IGEN\"),B17=\"\",VALUE(LEFT(F17,LEN(beallitasok!$H$2)))=beallitasok!$H$2,VALUE(LEFT(E17,LEN(beallitasok!$H$3)))=beallitasok!$H$3,VALUE(LEFT(F17,LEN(beallitasok!$H$2)))=beallitasok!$H$3,VALUE(LEFT(E17,LEN(beallitasok!$H$3)))=beallitasok!$H$2),\"\",IF(D17=\"\",\"\",beallitasok!$B$2)),\"\")","v":"2020-12-31"},{"$f":"IF(VALUE(LEFT(ZARO_FOKONYV!A17,1))<=beallitasok!$H$8,ZARO_FOKONYV!B17,\"\")","v":"Egyéb berendezések, felszerelések, járművek értékhelyesbítése"},{"$f":"IF(B17=\"\",\"\",IF(beallitasok!$B$6=\"\",\"\",beallitasok!$B$6))","v":"NYITÓ"},{"$f":"IF(B17=\"\",\"\",ROUND(ZARO_FOKONYV!C17+ZARO_FOKONYV!D17,0))","v":5052160},{"$f":"IF(B17=\"\",\"\",LEFT(IF(ZARO_FOKONYV!C17>0,IFERROR(VLOOKUP(ZARO_FOKONYV!$A17,FKCSERE!$A:$B,2,FALSE),ZARO_FOKONYV!$A17),beallitasok!$B$3)&\"00000\",6))","v":"147000"},{"$f":"IF(B17=\"\",\"\",LEFT(IF(ZARO_FOKONYV!D17>0,IFERROR(VLOOKUP(ZARO_FOKONYV!$A17,FKCSERE!$A:$B,2,FALSE),ZARO_FOKONYV!$A17),beallitasok!$B$3)&\"000000\",6))","v":"491000"},null,{"$f":"IF(LEFT(E17,3)=LEFT(beallitasok!$B$3,3),\"\",$B17)","v":"Egyéb berendezések, felszerelések, járművek értékhelyesbítése"},{"$f":"IF(LEFT(F17,3)=LEFT(beallitasok!$B$3,3),\"\",$B17)","v":""},{"$f":"IF(AND(LEN(ZARO_FOKONYV!A17)<LEN(ZARO_FOKONYV!A18),LEFT(ZARO_FOKONYV!A18,LEN(ZARO_FOKONYV!A17))=ZARO_FOKONYV!A17),\"IGEN\",\"nem\")","v":"nem"}]
[{"$f":"IFERROR(IF(OR(AND(beallitasok!$H$5=\"IGEN\",J18=\"IGEN\"),B18=\"\",VALUE(LEFT(F18,LEN(beallitasok!$H$2)))=beallitasok!$H$2,VALUE(LEFT(E18,LEN(beallitasok!$H$3)))=beallitasok!$H$3,VALUE(LEFT(F18,LEN(beallitasok!$H$2)))=beallitasok!$H$3,VALUE(LEFT(E18,LEN(beallitasok!$H$3)))=beallitasok!$H$2),\"\",IF(D18=\"\",\"\",beallitasok!$B$2)),\"\")","v":""},{"$f":"IF(VALUE(LEFT(ZARO_FOKONYV!A18,1))<=beallitasok!$H$8,ZARO_FOKONYV!B18,\"\")","v":"Egyéb berendezések, felszerelések, járművek terv szerinti értékcsökkenése"},{"$f":"IF(B18=\"\",\"\",IF(beallitasok!$B$6=\"\",\"\",beallitasok!$B$6))","v":"NYITÓ"},{"$f":"IF(B18=\"\",\"\",ROUND(ZARO_FOKONYV!C18+ZARO_FOKONYV!D18,0))","v":25151305},{"$f":"IF(B18=\"\",\"\",LEFT(IF(ZARO_FOKONYV!C18>0,IFERROR(VLOOKUP(ZARO_FOKONYV!$A18,FKCSERE!$A:$B,2,FALSE),ZARO_FOKONYV!$A18),beallitasok!$B$3)&\"00000\",6))","v":"491000"},{"$f":"IF(B18=\"\",\"\",LEFT(IF(ZARO_FOKONYV!D18>0,IFERROR(VLOOKUP(ZARO_FOKONYV!$A18,FKCSERE!$A:$B,2,FALSE),ZARO_FOKONYV!$A18),beallitasok!$B$3)&\"000000\",6))","v":"149000"},null,{"$f":"IF(LEFT(E18,3)=LEFT(beallitasok!$B$3,3),\"\",$B18)","v":""},{"$f":"IF(LEFT(F18,3)=LEFT(beallitasok!$B$3,3),\"\",$B18)","v":"Egyéb berendezések, felszerelések, járművek terv szerinti értékcsökkenése"},{"$f":"IF(AND(LEN(ZARO_FOKONYV!A18)<LEN(ZARO_FOKONYV!A19),LEFT(ZARO_FOKONYV!A19,LEN(ZARO_FOKONYV!A18))=ZARO_FOKONYV!A18),\"IGEN\",\"nem\")","v":"IGEN"}]
[{"$f":"IFERROR(IF(OR(AND(beallitasok!$H$5=\"IGEN\",J19=\"IGEN\"),B19=\"\",VALUE(LEFT(F19,LEN(beallitasok!$H$2)))=beallitasok!$H$2,VALUE(LEFT(E19,LEN(beallitasok!$H$3)))=beallitasok!$H$3,VALUE(LEFT(F19,LEN(beallitasok!$H$2)))=beallitasok!$H$3,VALUE(LEFT(E19,LEN(beallitasok!$H$3)))=beallitasok!$H$2),\"\",IF(D19=\"\",\"\",beallitasok!$B$2)),\"\")","v":"2020-12-31"},{"$f":"IF(VALUE(LEFT(ZARO_FOKONYV!A19,1))<=beallitasok!$H$8,ZARO_FOKONYV!B19,\"\")","v":"Egyéb berendezési tárgyak ÉCS "},{"$f":"IF(B19=\"\",\"\",IF(beallitasok!$B$6=\"\",\"\",beallitasok!$B$6))","v":"NYITÓ"},{"$f":"IF(B19=\"\",\"\",ROUND(ZARO_FOKONYV!C19+ZARO_FOKONYV!D19,0))","v":6020578},{"$f":"IF(B19=\"\",\"\",LEFT(IF(ZARO_FOKONYV!C19>0,IFERROR(VLOOKUP(ZARO_FOKONYV!$A19,FKCSERE!$A:$B,2,FALSE),ZARO_FOKONYV!$A19),beallitasok!$B$3)&\"00000\",6))","v":"491000"},{"$f":"IF(B19=\"\",\"\",LEFT(IF(ZARO_FOKONYV!D19>0,IFERROR(VLOOKUP(ZARO_FOKONYV!$A19,FKCSERE!$A:$B,2,FALSE),ZARO_FOKONYV!$A19),beallitasok!$B$3)&\"000000\",6))","v":"149100"},null,{"$f":"IF(LEFT(E19,3)=LEFT(beallitasok!$B$3,3),\"\",$B19)","v":""},{"$f":"IF(LEFT(F19,3)=LEFT(beallitasok!$B$3,3),\"\",$B19)","v":"Egyéb berendezési tárgyak ÉCS "},{"$f":"IF(AND(LEN(ZARO_FOKONYV!A19)<LEN(ZARO_FOKONYV!A20),LEFT(ZARO_FOKONYV!A20,LEN(ZARO_FOKONYV!A19))=ZARO_FOKONYV!A19),\"IGEN\",\"nem\")","v":"nem"}]
[{"$f":"IFERROR(IF(OR(AND(beallitasok!$H$5=\"IGEN\",J20=\"IGEN\"),B20=\"\",VALUE(LEFT(F20,LEN(beallitasok!$H$2)))=beallitasok!$H$2,VALUE(LEFT(E20,LEN(beallitasok!$H$3)))=beallitasok!$H$3,VALUE(LEFT(F20,LEN(beallitasok!$H$2)))=beallitasok!$H$3,VALUE(LEFT(E20,LEN(beallitasok!$H$3)))=beallitasok!$H$2),\"\",IF(D20=\"\",\"\",beallitasok!$B$2)),\"\")","v":"2020-12-31"},{"$f":"IF(VALUE(LEFT(ZARO_FOKONYV!A20,1))<=beallitasok!$H$8,ZARO_FOKONYV!B20,\"\")","v":"Adatrögzítő kész.ÉCS "},{"$f":"IF(B20=\"\",\"\",IF(beallitasok!$B$6=\"\",\"\",beallitasok!$B$6))","v":"NYITÓ"},{"$f":"IF(B20=\"\",\"\",ROUND(ZARO_FOKONYV!C20+ZARO_FOKONYV!D20,0))","v":5509265},{"$f":"IF(B20=\"\",\"\",LEFT(IF(ZARO_FOKONYV!C20>0,IFERROR(VLOOKUP(ZARO_FOKONYV!$A20,FKCSERE!$A:$B,2,FALSE),ZARO_FOKONYV!$A20),beallitasok!$B$3)&\"00000\",6))","v":"491000"},{"$f":"IF(B20=\"\",\"\",LEFT(IF(ZARO_FOKONYV!D20>0,IFERROR(VLOOKUP(ZARO_FOKONYV!$A20,FKCSERE!$A:$B,2,FALSE),ZARO_FOKONYV!$A20),beallitasok!$B$3)&\"000000\",6))","v":"149310"},null,{"$f":"IF(LEFT(E20,3)=LEFT(beallitasok!$B$3,3),\"\",$B20)","v":""},{"$f":"IF(LEFT(F20,3)=LEFT(beallitasok!$B$3,3),\"\",$B20)","v":"Adatrögzítő kész.ÉCS "},{"$f":"IF(AND(LEN(ZARO_FOKONYV!A20)<LEN(ZARO_FOKONYV!A21),LEFT(ZARO_FOKONYV!A21,LEN(ZARO_FOKONYV!A20))=ZARO_FOKONYV!A20),\"IGEN\",\"nem\")","v":"nem"}]
[{"$f":"IFERROR(IF(OR(AND(beallitasok!$H$5=\"IGEN\",J21=\"IGEN\"),B21=\"\",VALUE(LEFT(F21,LEN(beallitasok!$H$2)))=beallitasok!$H$2,VALUE(LEFT(E21,LEN(beallitasok!$H$3)))=beallitasok!$H$3,VALUE(LEFT(F21,LEN(beallitasok!$H$2)))=beallitasok!$H$3,VALUE(LEFT(E21,LEN(beallitasok!$H$3)))=beallitasok!$H$2),\"\",IF(D21=\"\",\"\",beallitasok!$B$2)),\"\")","v":"2020-12-31"},{"$f":"IF(VALUE(LEFT(ZARO_FOKONYV!A21,1))<=beallitasok!$H$8,ZARO_FOKONYV!B21,\"\")","v":"Irodai berendezések ÉCS"},{"$f":"IF(B21=\"\",\"\",IF(beallitasok!$B$6=\"\",\"\",beallitasok!$B$6))","v":"NYITÓ"},{"$f":"IF(B21=\"\",\"\",ROUND(ZARO_FOKONYV!C21+ZARO_FOKONYV!D21,0))","v":2379292},{"$f":"IF(B21=\"\",\"\",LEFT(IF(ZARO_FOKONYV!C21>0,IFERROR(VLOOKUP(ZARO_FOKONYV!$A21,FKCSERE!$A:$B,2,FALSE),ZARO_FOKONYV!$A21),beallitasok!$B$3)&\"00000\",6))","v":"491000"},{"$f":"IF(B21=\"\",\"\",LEFT(IF(ZARO_FOKONYV!D21>0,IFERROR(VLOOKUP(ZARO_FOKONYV!$A21,FKCSERE!$A:$B,2,FALSE),ZARO_FOKONYV!$A21),beallitasok!$B$3)&\"000000\",6))","v":"149320"},null,{"$f":"IF(LEFT(E21,3)=LEFT(beallitasok!$B$3,3),\"\",$B21)","v":""},{"$f":"IF(LEFT(F21,3)=LEFT(beallitasok!$B$3,3),\"\",$B21)","v":"Irodai berendezések ÉCS"},{"$f":"IF(AND(LEN(ZARO_FOKONYV!A21)<LEN(ZARO_FOKONYV!A22),LEFT(ZARO_FOKONYV!A22,LEN(ZARO_FOKONYV!A21))=ZARO_FOKONYV!A21),\"IGEN\",\"nem\")","v":"nem"}]
[{"$f":"IFERROR(IF(OR(AND(beallitasok!$H$5=\"IGEN\",J22=\"IGEN\"),B22=\"\",VALUE(LEFT(F22,LEN(beallitasok!$H$2)))=beallitasok!$H$2,VALUE(LEFT(E22,LEN(beallitasok!$H$3)))=beallitasok!$H$3,VALUE(LEFT(F22,LEN(beallitasok!$H$2)))=beallitasok!$H$3,VALUE(LEFT(E22,LEN(beallitasok!$H$3)))=beallitasok!$H$2),\"\",IF(D22=\"\",\"\",beallitasok!$B$2)),\"\")","v":"2020-12-31"},{"$f":"IF(VALUE(LEFT(ZARO_FOKONYV!A22,1))<=beallitasok!$H$8,ZARO_FOKONYV!B22,\"\")","v":"Számítástechnikai eszközök ÉCS"},{"$f":"IF(B22=\"\",\"\",IF(beallitasok!$B$6=\"\",\"\",beallitasok!$B$6))","v":"NYITÓ"},{"$f":"IF(B22=\"\",\"\",ROUND(ZARO_FOKONYV!C22+ZARO_FOKONYV!D22,0))","v":248250},{"$f":"IF(B22=\"\",\"\",LEFT(IF(ZARO_FOKONYV!C22>0,IFERROR(VLOOKUP(ZARO_FOKONYV!$A22,FKCSERE!$A:$B,2,FALSE),ZARO_FOKONYV!$A22),beallitasok!$B$3)&\"00000\",6))","v":"491000"},{"$f":"IF(B22=\"\",\"\",LEFT(IF(ZARO_FOKONYV!D22>0,IFERROR(VLOOKUP(ZARO_FOKONYV!$A22,FKCSERE!$A:$B,2,FALSE),ZARO_FOKONYV!$A22),beallitasok!$B$3)&\"000000\",6))","v":"149400"},null,{"$f":"IF(LEFT(E22,3)=LEFT(beallitasok!$B$3,3),\"\",$B22)","v":""},{"$f":"IF(LEFT(F22,3)=LEFT(beallitasok!$B$3,3),\"\",$B22)","v":"Számítástechnikai eszközök ÉCS"},{"$f":"IF(AND(LEN(ZARO_FOKONYV!A22)<LEN(ZARO_FOKONYV!A23),LEFT(ZARO_FOKONYV!A23,LEN(ZARO_FOKONYV!A22))=ZARO_FOKONYV!A22),\"IGEN\",\"nem\")","v":"nem"}]
[{"$f":"IFERROR(IF(OR(AND(beallitasok!$H$5=\"IGEN\",J23=\"IGEN\"),B23=\"\",VALUE(LEFT(F23,LEN(beallitasok!$H$2)))=beallitasok!$H$2,VALUE(LEFT(E23,LEN(beallitasok!$H$3)))=beallitasok!$H$3,VALUE(LEFT(F23,LEN(beallitasok!$H$2)))=beallitasok!$H$3,VALUE(LEFT(E23,LEN(beallitasok!$H$3)))=beallitasok!$H$2),\"\",IF(D23=\"\",\"\",beallitasok!$B$2)),\"\")","v":"2020-12-31"},{"$f":"IF(VALUE(LEFT(ZARO_FOKONYV!A23,1))<=beallitasok!$H$8,ZARO_FOKONYV!B23,\"\")","v":"Kisértékű eszközök ÉCS"},{"$f":"IF(B23=\"\",\"\",IF(beallitasok!$B$6=\"\",\"\",beallitasok!$B$6))","v":"NYITÓ"},{"$f":"IF(B23=\"\",\"\",ROUND(ZARO_FOKONYV!C23+ZARO_FOKONYV!D23,0))","v":901146},{"$f":"IF(B23=\"\",\"\",LEFT(IF(ZARO_FOKONYV!C23>0,IFERROR(VLOOKUP(ZARO_FOKONYV!$A23,FKCSERE!$A:$B,2,FALSE),ZARO_FOKONYV!$A23),beallitasok!$B$3)&\"00000\",6))","v":"491000"},{"$f":"IF(B23=\"\",\"\",LEFT(IF(ZARO_FOKONYV!D23>0,IFERROR(VLOOKUP(ZARO_FOKONYV!$A23,FKCSERE!$A:$B,2,FALSE),ZARO_FOKONYV!$A23),beallitasok!$B$3)&\"000000\",6))","v":"149500"},null,{"$f":"IF(LEFT(E23,3)=LEFT(beallitasok!$B$3,3),\"\",$B23)","v":""},{"$f":"IF(LEFT(F23,3)=LEFT(beallitasok!$B$3,3),\"\",$B23)","v":"Kisértékű eszközök ÉCS"},{"$f":"IF(AND(LEN(ZARO_FOKONYV!A23)<LEN(ZARO_FOKONYV!A24),LEFT(ZARO_FOKONYV!A24,LEN(ZARO_FOKONYV!A23))=ZARO_FOKONYV!A23),\"IGEN\",\"nem\")","v":"nem"}]
[{"$f":"IFERROR(IF(OR(AND(beallitasok!$H$5=\"IGEN\",J24=\"IGEN\"),B24=\"\",VALUE(LEFT(F24,LEN(beallitasok!$H$2)))=beallitasok!$H$2,VALUE(LEFT(E24,LEN(beallitasok!$H$3)))=beallitasok!$H$3,VALUE(LEFT(F24,LEN(beallitasok!$H$2)))=beallitasok!$H$3,VALUE(LEFT(E24,LEN(beallitasok!$H$3)))=beallitasok!$H$2),\"\",IF(D24=\"\",\"\",beallitasok!$B$2)),\"\")","v":"2020-12-31"},{"$f":"IF(VALUE(LEFT(ZARO_FOKONYV!A24,1))<=beallitasok!$H$8,ZARO_FOKONYV!B24,\"\")","v":"Járművek ÉCS"},{"$f":"IF(B24=\"\",\"\",IF(beallitasok!$B$6=\"\",\"\",beallitasok!$B$6))","v":"NYITÓ"},{"$f":"IF(B24=\"\",\"\",ROUND(ZARO_FOKONYV!C24+ZARO_FOKONYV!D24,0))","v":10092774},{"$f":"IF(B24=\"\",\"\",LEFT(IF(ZARO_FOKONYV!C24>0,IFERROR(VLOOKUP(ZARO_FOKONYV!$A24,FKCSERE!$A:$B,2,FALSE),ZARO_FOKONYV!$A24),beallitasok!$B$3)&\"00000\",6))","v":"491000"},{"$f":"IF(B24=\"\",\"\",LEFT(IF(ZARO_FOKONYV!D24>0,IFERROR(VLOOKUP(ZARO_FOKONYV!$A24,FKCSERE!$A:$B,2,FALSE),ZARO_FOKONYV!$A24),beallitasok!$B$3)&\"000000\",6))","v":"149700"},null,{"$f":"IF(LEFT(E24,3)=LEFT(beallitasok!$B$3,3),\"\",$B24)","v":""},{"$f":"IF(LEFT(F24,3)=LEFT(beallitasok!$B$3,3),\"\",$B24)","v":"Járművek ÉCS"},{"$f":"IF(AND(LEN(ZARO_FOKONYV!A24)<LEN(ZARO_FOKONYV!A25),LEFT(ZARO_FOKONYV!A25,LEN(ZARO_FOKONYV!A24))=ZARO_FOKONYV!A24),\"IGEN\",\"nem\")","v":"nem"}]
[{"$f":"IFERROR(IF(OR(AND(beallitasok!$H$5=\"IGEN\",J25=\"IGEN\"),B25=\"\",VALUE(LEFT(F25,LEN(beallitasok!$H$2)))=beallitasok!$H$2,VALUE(LEFT(E25,LEN(beallitasok!$H$3)))=beallitasok!$H$3,VALUE(LEFT(F25,LEN(beallitasok!$H$2)))=beallitasok!$H$3,VALUE(LEFT(E25,LEN(beallitasok!$H$3)))=beallitasok!$H$2),\"\",IF(D25=\"\",\"\",beallitasok!$B$2)),\"\")","v":""},{"$f":"IF(VALUE(LEFT(ZARO_FOKONYV!A25,1))<=beallitasok!$H$8,ZARO_FOKONYV!B25,\"\")","v":"BERUHÁZÁSOK, FELÚJÍTÁSOK"},{"$f":"IF(B25=\"\",\"\",IF(beallitasok!$B$6=\"\",\"\",beallitasok!$B$6))","v":"NYITÓ"},{"$f":"IF(B25=\"\",\"\",ROUND(ZARO_FOKONYV!C25+ZARO_FOKONYV!D25,0))","v":3551259},{"$f":"IF(B25=\"\",\"\",LEFT(IF(ZARO_FOKONYV!C25>0,IFERROR(VLOOKUP(ZARO_FOKONYV!$A25,FKCSERE!$A:$B,2,FALSE),ZARO_FOKONYV!$A25),beallitasok!$B$3)&\"00000\",6))","v":"160000"},{"$f":"IF(B25=\"\",\"\",LEFT(IF(ZARO_FOKONYV!D25>0,IFERROR(VLOOKUP(ZARO_FOKONYV!$A25,FKCSERE!$A:$B,2,FALSE),ZARO_FOKONYV!$A25),beallitasok!$B$3)&\"000000\",6))","v":"491000"},null,{"$f":"IF(LEFT(E25,3)=LEFT(beallitasok!$B$3,3),\"\",$B25)","v":"BERUHÁZÁSOK, FELÚJÍTÁSOK"},{"$f":"IF(LEFT(F25,3)=LEFT(beallitasok!$B$3,3),\"\",$B25)","v":""},{"$f":"IF(AND(LEN(ZARO_FOKONYV!A25)<LEN(ZARO_FOKONYV!A26),LEFT(ZARO_FOKONYV!A26,LEN(ZARO_FOKONYV!A25))=ZARO_FOKONYV!A25),\"IGEN\",\"nem\")","v":"IGEN"}]
[{"$f":"IFERROR(IF(OR(AND(beallitasok!$H$5=\"IGEN\",J26=\"IGEN\"),B26=\"\",VALUE(LEFT(F26,LEN(beallitasok!$H$2)))=beallitasok!$H$2,VALUE(LEFT(E26,LEN(beallitasok!$H$3)))=beallitasok!$H$3,VALUE(LEFT(F26,LEN(beallitasok!$H$2)))=beallitasok!$H$3,VALUE(LEFT(E26,LEN(beallitasok!$H$3)))=beallitasok!$H$2),\"\",IF(D26=\"\",\"\",beallitasok!$B$2)),\"\")","v":"2020-12-31"},{"$f":"IF(VALUE(LEFT(ZARO_FOKONYV!A26,1))<=beallitasok!$H$8,ZARO_FOKONYV!B26,\"\")","v":"Befejezetlen beruházások"},{"$f":"IF(B26=\"\",\"\",IF(beallitasok!$B$6=\"\",\"\",beallitasok!$B$6))","v":"NYITÓ"},{"$f":"IF(B26=\"\",\"\",ROUND(ZARO_FOKONYV!C26+ZARO_FOKONYV!D26,0))","v":3551259},{"$f":"IF(B26=\"\",\"\",LEFT(IF(ZARO_FOKONYV!C26>0,IFERROR(VLOOKUP(ZARO_FOKONYV!$A26,FKCSERE!$A:$B,2,FALSE),ZARO_FOKONYV!$A26),beallitasok!$B$3)&\"00000\",6))","v":"161000"},{"$f":"IF(B26=\"\",\"\",LEFT(IF(ZARO_FOKONYV!D26>0,IFERROR(VLOOKUP(ZARO_FOKONYV!$A26,FKCSERE!$A:$B,2,FALSE),ZARO_FOKONYV!$A26),beallitasok!$B$3)&\"000000\",6))","v":"491000"},null,{"$f":"IF(LEFT(E26,3)=LEFT(beallitasok!$B$3,3),\"\",$B26)","v":"Befejezetlen beruházások"},{"$f":"IF(LEFT(F26,3)=LEFT(beallitasok!$B$3,3),\"\",$B26)","v":""},{"$f":"IF(AND(LEN(ZARO_FOKONYV!A26)<LEN(ZARO_FOKONYV!A27),LEFT(ZARO_FOKONYV!A27,LEN(ZARO_FOKONYV!A26))=ZARO_FOKONYV!A26),\"IGEN\",\"nem\")","v":"nem"}]
[{"$f":"IFERROR(IF(OR(AND(beallitasok!$H$5=\"IGEN\",J27=\"IGEN\"),B27=\"\",VALUE(LEFT(F27,LEN(beallitasok!$H$2)))=beallitasok!$H$2,VALUE(LEFT(E27,LEN(beallitasok!$H$3)))=beallitasok!$H$3,VALUE(LEFT(F27,LEN(beallitasok!$H$2)))=beallitasok!$H$3,VALUE(LEFT(E27,LEN(beallitasok!$H$3)))=beallitasok!$H$2),\"\",IF(D27=\"\",\"\",beallitasok!$B$2)),\"\")","v":""},{"$f":"IF(VALUE(LEFT(ZARO_FOKONYV!A27,1))<=beallitasok!$H$8,ZARO_FOKONYV!B27,\"\")","v":"KÉSZLETEK"},{"$f":"IF(B27=\"\",\"\",IF(beallitasok!$B$6=\"\",\"\",beallitasok!$B$6))","v":"NYITÓ"},{"$f":"IF(B27=\"\",\"\",ROUND(ZARO_FOKONYV!C27+ZARO_FOKONYV!D27,0))","v":14902580},{"$f":"IF(B27=\"\",\"\",LEFT(IF(ZARO_FOKONYV!C27>0,IFERROR(VLOOKUP(ZARO_FOKONYV!$A27,FKCSERE!$A:$B,2,FALSE),ZARO_FOKONYV!$A27),beallitasok!$B$3)&\"00000\",6))","v":"200000"},{"$f":"IF(B27=\"\",\"\",LEFT(IF(ZARO_FOKONYV!D27>0,IFERROR(VLOOKUP(ZARO_FOKONYV!$A27,FKCSERE!$A:$B,2,FALSE),ZARO_FOKONYV!$A27),beallitasok!$B$3)&\"000000\",6))","v":"491000"},null,{"$f":"IF(LEFT(E27,3)=LEFT(beallitasok!$B$3,3),\"\",$B27)","v":"KÉSZLETEK"},{"$f":"IF(LEFT(F27,3)=LEFT(beallitasok!$B$3,3),\"\",$B27)","v":""},{"$f":"IF(AND(LEN(ZARO_FOKONYV!A27)<LEN(ZARO_FOKONYV!A28),LEFT(ZARO_FOKONYV!A28,LEN(ZARO_FOKONYV!A27))=ZARO_FOKONYV!A27),\"IGEN\",\"nem\")","v":"IGEN"}]
[{"$f":"IFERROR(IF(OR(AND(beallitasok!$H$5=\"IGEN\",J28=\"IGEN\"),B28=\"\",VALUE(LEFT(F28,LEN(beallitasok!$H$2)))=beallitasok!$H$2,VALUE(LEFT(E28,LEN(beallitasok!$H$3)))=beallitasok!$H$3,VALUE(LEFT(F28,LEN(beallitasok!$H$2)))=beallitasok!$H$3,VALUE(LEFT(E28,LEN(beallitasok!$H$3)))=beallitasok!$H$2),\"\",IF(D28=\"\",\"\",beallitasok!$B$2)),\"\")","v":""},{"$f":"IF(VALUE(LEFT(ZARO_FOKONYV!A28,1))<=beallitasok!$H$8,ZARO_FOKONYV!B28,\"\")","v":"KERESKEDELMI ÁRUK"},{"$f":"IF(B28=\"\",\"\",IF(beallitasok!$B$6=\"\",\"\",beallitasok!$B$6))","v":"NYITÓ"},{"$f":"IF(B28=\"\",\"\",ROUND(ZARO_FOKONYV!C28+ZARO_FOKONYV!D28,0))","v":14902580},{"$f":"IF(B28=\"\",\"\",LEFT(IF(ZARO_FOKONYV!C28>0,IFERROR(VLOOKUP(ZARO_FOKONYV!$A28,FKCSERE!$A:$B,2,FALSE),ZARO_FOKONYV!$A28),beallitasok!$B$3)&\"00000\",6))","v":"260000"},{"$f":"IF(B28=\"\",\"\",LEFT(IF(ZARO_FOKONYV!D28>0,IFERROR(VLOOKUP(ZARO_FOKONYV!$A28,FKCSERE!$A:$B,2,FALSE),ZARO_FOKONYV!$A28),beallitasok!$B$3)&\"000000\",6))","v":"491000"},null,{"$f":"IF(LEFT(E28,3)=LEFT(beallitasok!$B$3,3),\"\",$B28)","v":"KERESKEDELMI ÁRUK"},{"$f":"IF(LEFT(F28,3)=LEFT(beallitasok!$B$3,3),\"\",$B28)","v":""},{"$f":"IF(AND(LEN(ZARO_FOKONYV!A28)<LEN(ZARO_FOKONYV!A29),LEFT(ZARO_FOKONYV!A29,LEN(ZARO_FOKONYV!A28))=ZARO_FOKONYV!A28),\"IGEN\",\"nem\")","v":"IGEN"}]
[{"$f":"IFERROR(IF(OR(AND(beallitasok!$H$5=\"IGEN\",J29=\"IGEN\"),B29=\"\",VALUE(LEFT(F29,LEN(beallitasok!$H$2)))=beallitasok!$H$2,VALUE(LEFT(E29,LEN(beallitasok!$H$3)))=beallitasok!$H$3,VALUE(LEFT(F29,LEN(beallitasok!$H$2)))=beallitasok!$H$3,VALUE(LEFT(E29,LEN(beallitasok!$H$3)))=beallitasok!$H$2),\"\",IF(D29=\"\",\"\",beallitasok!$B$2)),\"\")","v":"2020-12-31"},{"$f":"IF(VALUE(LEFT(ZARO_FOKONYV!A29,1))<=beallitasok!$H$8,ZARO_FOKONYV!B29,\"\")","v":"Áruk beszerzési áron"},{"$f":"IF(B29=\"\",\"\",IF(beallitasok!$B$6=\"\",\"\",beallitasok!$B$6))","v":"NYITÓ"},{"$f":"IF(B29=\"\",\"\",ROUND(ZARO_FOKONYV!C29+ZARO_FOKONYV!D29,0))","v":14902580},{"$f":"IF(B29=\"\",\"\",LEFT(IF(ZARO_FOKONYV!C29>0,IFERROR(VLOOKUP(ZARO_FOKONYV!$A29,FKCSERE!$A:$B,2,FALSE),ZARO_FOKONYV!$A29),beallitasok!$B$3)&\"00000\",6))","v":"261000"},{"$f":"IF(B29=\"\",\"\",LEFT(IF(ZARO_FOKONYV!D29>0,IFERROR(VLOOKUP(ZARO_FOKONYV!$A29,FKCSERE!$A:$B,2,FALSE),ZARO_FOKONYV!$A29),beallitasok!$B$3)&\"000000\",6))","v":"491000"},null,{"$f":"IF(LEFT(E29,3)=LEFT(beallitasok!$B$3,3),\"\",$B29)","v":"Áruk beszerzési áron"},{"$f":"IF(LEFT(F29,3)=LEFT(beallitasok!$B$3,3),\"\",$B29)","v":""},{"$f":"IF(AND(LEN(ZARO_FOKONYV!A29)<LEN(ZARO_FOKONYV!A30),LEFT(ZARO_FOKONYV!A30,LEN(ZARO_FOKONYV!A29))=ZARO_FOKONYV!A29),\"IGEN\",\"nem\")","v":"nem"}]
[{"$f":"IFERROR(IF(OR(AND(beallitasok!$H$5=\"IGEN\",J30=\"IGEN\"),B30=\"\",VALUE(LEFT(F30,LEN(beallitasok!$H$2)))=beallitasok!$H$2,VALUE(LEFT(E30,LEN(beallitasok!$H$3)))=beallitasok!$H$3,VALUE(LEFT(F30,LEN(beallitasok!$H$2)))=beallitasok!$H$3,VALUE(LEFT(E30,LEN(beallitasok!$H$3)))=beallitasok!$H$2),\"\",IF(D30=\"\",\"\",beallitasok!$B$2)),\"\")","v":""},{"$f":"IF(VALUE(LEFT(ZARO_FOKONYV!A30,1))<=beallitasok!$H$8,ZARO_FOKONYV!B30,\"\")","v":"KÖVETELÉSEK, PÉNZÜGYI ESZKÖZÖK ÉS AKTÍV IDŐBELI ELHATÁROLÁSOK"},{"$f":"IF(B30=\"\",\"\",IF(beallitasok!$B$6=\"\",\"\",beallitasok!$B$6))","v":"NYITÓ"},{"$f":"IF(B30=\"\",\"\",ROUND(ZARO_FOKONYV!C30+ZARO_FOKONYV!D30,0))","v":75259587},{"$f":"IF(B30=\"\",\"\",LEFT(IF(ZARO_FOKONYV!C30>0,IFERROR(VLOOKUP(ZARO_FOKONYV!$A30,FKCSERE!$A:$B,2,FALSE),ZARO_FOKONYV!$A30),beallitasok!$B$3)&\"00000\",6))","v":"300000"},{"$f":"IF(B30=\"\",\"\",LEFT(IF(ZARO_FOKONYV!D30>0,IFERROR(VLOOKUP(ZARO_FOKONYV!$A30,FKCSERE!$A:$B,2,FALSE),ZARO_FOKONYV!$A30),beallitasok!$B$3)&\"000000\",6))","v":"491000"},null,{"$f":"IF(LEFT(E30,3)=LEFT(beallitasok!$B$3,3),\"\",$B30)","v":"KÖVETELÉSEK, PÉNZÜGYI ESZKÖZÖK ÉS AKTÍV IDŐBELI ELHATÁROLÁSOK"},{"$f":"IF(LEFT(F30,3)=LEFT(beallitasok!$B$3,3),\"\",$B30)","v":""},{"$f":"IF(AND(LEN(ZARO_FOKONYV!A30)<LEN(ZARO_FOKONYV!A31),LEFT(ZARO_FOKONYV!A31,LEN(ZARO_FOKONYV!A30))=ZARO_FOKONYV!A30),\"IGEN\",\"nem\")","v":"IGEN"}]
[{"$f":"IFERROR(IF(OR(AND(beallitasok!$H$5=\"IGEN\",J31=\"IGEN\"),B31=\"\",VALUE(LEFT(F31,LEN(beallitasok!$H$2)))=beallitasok!$H$2,VALUE(LEFT(E31,LEN(beallitasok!$H$3)))=beallitasok!$H$3,VALUE(LEFT(F31,LEN(beallitasok!$H$2)))=beallitasok!$H$3,VALUE(LEFT(E31,LEN(beallitasok!$H$3)))=beallitasok!$H$2),\"\",IF(D31=\"\",\"\",beallitasok!$B$2)),\"\")","v":""},{"$f":"IF(VALUE(LEFT(ZARO_FOKONYV!A31,1))<=beallitasok!$H$8,ZARO_FOKONYV!B31,\"\")","v":"KÖVETELÉSEK ÁRUSZÁLLÍTÁSBÓL ÉS SZOLGÁLTATÁSBÓL (VEVŐK)"},{"$f":"IF(B31=\"\",\"\",IF(beallitasok!$B$6=\"\",\"\",beallitasok!$B$6))","v":"NYITÓ"},{"$f":"IF(B31=\"\",\"\",ROUND(ZARO_FOKONYV!C31+ZARO_FOKONYV!D31,0))","v":76722709},{"$f":"IF(B31=\"\",\"\",LEFT(IF(ZARO_FOKONYV!C31>0,IFERROR(VLOOKUP(ZARO_FOKONYV!$A31,FKCSERE!$A:$B,2,FALSE),ZARO_FOKONYV!$A31),beallitasok!$B$3)&\"00000\",6))","v":"310000"},{"$f":"IF(B31=\"\",\"\",LEFT(IF(ZARO_FOKONYV!D31>0,IFERROR(VLOOKUP(ZARO_FOKONYV!$A31,FKCSERE!$A:$B,2,FALSE),ZARO_FOKONYV!$A31),beallitasok!$B$3)&\"000000\",6))","v":"491000"},null,{"$f":"IF(LEFT(E31,3)=LEFT(beallitasok!$B$3,3),\"\",$B31)","v":"KÖVETELÉSEK ÁRUSZÁLLÍTÁSBÓL ÉS SZOLGÁLTATÁSBÓL (VEVŐK)"},{"$f":"IF(LEFT(F31,3)=LEFT(beallitasok!$B$3,3),\"\",$B31)","v":""},{"$f":"IF(AND(LEN(ZARO_FOKONYV!A31)<LEN(ZARO_FOKONYV!A32),LEFT(ZARO_FOKONYV!A32,LEN(ZARO_FOKONYV!A31))=ZARO_FOKONYV!A31),\"IGEN\",\"nem\")","v":"IGEN"}]
[{"$f":"IFERROR(IF(OR(AND(beallitasok!$H$5=\"IGEN\",J32=\"IGEN\"),B32=\"\",VALUE(LEFT(F32,LEN(beallitasok!$H$2)))=beallitasok!$H$2,VALUE(LEFT(E32,LEN(beallitasok!$H$3)))=beallitasok!$H$3,VALUE(LEFT(F32,LEN(beallitasok!$H$2)))=beallitasok!$H$3,VALUE(LEFT(E32,LEN(beallitasok!$H$3)))=beallitasok!$H$2),\"\",IF(D32=\"\",\"\",beallitasok!$B$2)),\"\")","v":""},{"$f":"IF(VALUE(LEFT(ZARO_FOKONYV!A32,1))<=beallitasok!$H$8,ZARO_FOKONYV!B32,\"\")","v":"Belföldi vevő követelések forintban"},{"$f":"IF(B32=\"\",\"\",IF(beallitasok!$B$6=\"\",\"\",beallitasok!$B$6))","v":"NYITÓ"},{"$f":"IF(B32=\"\",\"\",ROUND(ZARO_FOKONYV!C32+ZARO_FOKONYV!D32,0))","v":76722709},{"$f":"IF(B32=\"\",\"\",LEFT(IF(ZARO_FOKONYV!C32>0,IFERROR(VLOOKUP(ZARO_FOKONYV!$A32,FKCSERE!$A:$B,2,FALSE),ZARO_FOKONYV!$A32),beallitasok!$B$3)&\"00000\",6))","v":"311000"},{"$f":"IF(B32=\"\",\"\",LEFT(IF(ZARO_FOKONYV!D32>0,IFERROR(VLOOKUP(ZARO_FOKONYV!$A32,FKCSERE!$A:$B,2,FALSE),ZARO_FOKONYV!$A32),beallitasok!$B$3)&\"000000\",6))","v":"491000"},null,{"$f":"IF(LEFT(E32,3)=LEFT(beallitasok!$B$3,3),\"\",$B32)","v":"Belföldi vevő követelések forintban"},{"$f":"IF(LEFT(F32,3)=LEFT(beallitasok!$B$3,3),\"\",$B32)","v":""},{"$f":"IF(AND(LEN(ZARO_FOKONYV!A32)<LEN(ZARO_FOKONYV!A33),LEFT(ZARO_FOKONYV!A33,LEN(ZARO_FOKONYV!A32))=ZARO_FOKONYV!A32),\"IGEN\",\"nem\")","v":"nem"}]
[{"$f":"IFERROR(IF(OR(AND(beallitasok!$H$5=\"IGEN\",J33=\"IGEN\"),B33=\"\",VALUE(LEFT(F33,LEN(beallitasok!$H$2)))=beallitasok!$H$2,VALUE(LEFT(E33,LEN(beallitasok!$H$3)))=beallitasok!$H$3,VALUE(LEFT(F33,LEN(beallitasok!$H$2)))=beallitasok!$H$3,VALUE(LEFT(E33,LEN(beallitasok!$H$3)))=beallitasok!$H$2),\"\",IF(D33=\"\",\"\",beallitasok!$B$2)),\"\")","v":""},{"$f":"IF(VALUE(LEFT(ZARO_FOKONYV!A33,1))<=beallitasok!$H$8,ZARO_FOKONYV!B33,\"\")","v":"ADOTT ELŐLEGEK"},{"$f":"IF(B33=\"\",\"\",IF(beallitasok!$B$6=\"\",\"\",beallitasok!$B$6))","v":"NYITÓ"},{"$f":"IF(B33=\"\",\"\",ROUND(ZARO_FOKONYV!C33+ZARO_FOKONYV!D33,0))","v":73199},{"$f":"IF(B33=\"\",\"\",LEFT(IF(ZARO_FOKONYV!C33>0,IFERROR(VLOOKUP(ZARO_FOKONYV!$A33,FKCSERE!$A:$B,2,FALSE),ZARO_FOKONYV!$A33),beallitasok!$B$3)&\"00000\",6))","v":"350000"},{"$f":"IF(B33=\"\",\"\",LEFT(IF(ZARO_FOKONYV!D33>0,IFERROR(VLOOKUP(ZARO_FOKONYV!$A33,FKCSERE!$A:$B,2,FALSE),ZARO_FOKONYV!$A33),beallitasok!$B$3)&\"000000\",6))","v":"491000"},null,{"$f":"IF(LEFT(E33,3)=LEFT(beallitasok!$B$3,3),\"\",$B33)","v":"ADOTT ELŐLEGEK"},{"$f":"IF(LEFT(F33,3)=LEFT(beallitasok!$B$3,3),\"\",$B33)","v":""},{"$f":"IF(AND(LEN(ZARO_FOKONYV!A33)<LEN(ZARO_FOKONYV!A34),LEFT(ZARO_FOKONYV!A34,LEN(ZARO_FOKONYV!A33))=ZARO_FOKONYV!A33),\"IGEN\",\"nem\")","v":"IGEN"}]
[{"$f":"IFERROR(IF(OR(AND(beallitasok!$H$5=\"IGEN\",J34=\"IGEN\"),B34=\"\",VALUE(LEFT(F34,LEN(beallitasok!$H$2)))=beallitasok!$H$2,VALUE(LEFT(E34,LEN(beallitasok!$H$3)))=beallitasok!$H$3,VALUE(LEFT(F34,LEN(beallitasok!$H$2)))=beallitasok!$H$3,VALUE(LEFT(E34,LEN(beallitasok!$H$3)))=beallitasok!$H$2),\"\",IF(D34=\"\",\"\",beallitasok!$B$2)),\"\")","v":"2020-12-31"},{"$f":"IF(VALUE(LEFT(ZARO_FOKONYV!A34,1))<=beallitasok!$H$8,ZARO_FOKONYV!B34,\"\")","v":"Beruházásokra adott előlegek"},{"$f":"IF(B34=\"\",\"\",IF(beallitasok!$B$6=\"\",\"\",beallitasok!$B$6))","v":"NYITÓ"},{"$f":"IF(B34=\"\",\"\",ROUND(ZARO_FOKONYV!C34+ZARO_FOKONYV!D34,0))","v":1},{"$f":"IF(B34=\"\",\"\",LEFT(IF(ZARO_FOKONYV!C34>0,IFERROR(VLOOKUP(ZARO_FOKONYV!$A34,FKCSERE!$A:$B,2,FALSE),ZARO_FOKONYV!$A34),beallitasok!$B$3)&\"00000\",6))","v":"491000"},{"$f":"IF(B34=\"\",\"\",LEFT(IF(ZARO_FOKONYV!D34>0,IFERROR(VLOOKUP(ZARO_FOKONYV!$A34,FKCSERE!$A:$B,2,FALSE),ZARO_FOKONYV!$A34),beallitasok!$B$3)&\"000000\",6))","v":"352000"},null,{"$f":"IF(LEFT(E34,3)=LEFT(beallitasok!$B$3,3),\"\",$B34)","v":""},{"$f":"IF(LEFT(F34,3)=LEFT(beallitasok!$B$3,3),\"\",$B34)","v":"Beruházásokra adott előlegek"},{"$f":"IF(AND(LEN(ZARO_FOKONYV!A34)<LEN(ZARO_FOKONYV!A35),LEFT(ZARO_FOKONYV!A35,LEN(ZARO_FOKONYV!A34))=ZARO_FOKONYV!A34),\"IGEN\",\"nem\")","v":"nem"}]
[{"$f":"IFERROR(IF(OR(AND(beallitasok!$H$5=\"IGEN\",J35=\"IGEN\"),B35=\"\",VALUE(LEFT(F35,LEN(beallitasok!$H$2)))=beallitasok!$H$2,VALUE(LEFT(E35,LEN(beallitasok!$H$3)))=beallitasok!$H$3,VALUE(LEFT(F35,LEN(beallitasok!$H$2)))=beallitasok!$H$3,VALUE(LEFT(E35,LEN(beallitasok!$H$3)))=beallitasok!$H$2),\"\",IF(D35=\"\",\"\",beallitasok!$B$2)),\"\")","v":"2020-12-31"},{"$f":"IF(VALUE(LEFT(ZARO_FOKONYV!A35,1))<=beallitasok!$H$8,ZARO_FOKONYV!B35,\"\")","v":"Készletekre adott előlegek"},{"$f":"IF(B35=\"\",\"\",IF(beallitasok!$B$6=\"\",\"\",beallitasok!$B$6))","v":"NYITÓ"},{"$f":"IF(B35=\"\",\"\",ROUND(ZARO_FOKONYV!C35+ZARO_FOKONYV!D35,0))","v":73200},{"$f":"IF(B35=\"\",\"\",LEFT(IF(ZARO_FOKONYV!C35>0,IFERROR(VLOOKUP(ZARO_FOKONYV!$A35,FKCSERE!$A:$B,2,FALSE),ZARO_FOKONYV!$A35),beallitasok!$B$3)&\"00000\",6))","v":"354000"},{"$f":"IF(B35=\"\",\"\",LEFT(IF(ZARO_FOKONYV!D35>0,IFERROR(VLOOKUP(ZARO_FOKONYV!$A35,FKCSERE!$A:$B,2,FALSE),ZARO_FOKONYV!$A35),beallitasok!$B$3)&\"000000\",6))","v":"491000"},null,{"$f":"IF(LEFT(E35,3)=LEFT(beallitasok!$B$3,3),\"\",$B35)","v":"Készletekre adott előlegek"},{"$f":"IF(LEFT(F35,3)=LEFT(beallitasok!$B$3,3),\"\",$B35)","v":""},{"$f":"IF(AND(LEN(ZARO_FOKONYV!A35)<LEN(ZARO_FOKONYV!A36),LEFT(ZARO_FOKONYV!A36,LEN(ZARO_FOKONYV!A35))=ZARO_FOKONYV!A35),\"IGEN\",\"nem\")","v":"nem"}]
[{"$f":"IFERROR(IF(OR(AND(beallitasok!$H$5=\"IGEN\",J36=\"IGEN\"),B36=\"\",VALUE(LEFT(F36,LEN(beallitasok!$H$2)))=beallitasok!$H$2,VALUE(LEFT(E36,LEN(beallitasok!$H$3)))=beallitasok!$H$3,VALUE(LEFT(F36,LEN(beallitasok!$H$2)))=beallitasok!$H$3,VALUE(LEFT(E36,LEN(beallitasok!$H$3)))=beallitasok!$H$2),\"\",IF(D36=\"\",\"\",beallitasok!$B$2)),\"\")","v":""},{"$f":"IF(VALUE(LEFT(ZARO_FOKONYV!A36,1))<=beallitasok!$H$8,ZARO_FOKONYV!B36,\"\")","v":"EGYÉB KÖVETELÉSEK"},{"$f":"IF(B36=\"\",\"\",IF(beallitasok!$B$6=\"\",\"\",beallitasok!$B$6))","v":"NYITÓ"},{"$f":"IF(B36=\"\",\"\",ROUND(ZARO_FOKONYV!C36+ZARO_FOKONYV!D36,0))","v":0},{"$f":"IF(B36=\"\",\"\",LEFT(IF(ZARO_FOKONYV!C36>0,IFERROR(VLOOKUP(ZARO_FOKONYV!$A36,FKCSERE!$A:$B,2,FALSE),ZARO_FOKONYV!$A36),beallitasok!$B$3)&\"00000\",6))","v":"491000"},{"$f":"IF(B36=\"\",\"\",LEFT(IF(ZARO_FOKONYV!D36>0,IFERROR(VLOOKUP(ZARO_FOKONYV!$A36,FKCSERE!$A:$B,2,FALSE),ZARO_FOKONYV!$A36),beallitasok!$B$3)&\"000000\",6))","v":"491000"},null,{"$f":"IF(LEFT(E36,3)=LEFT(beallitasok!$B$3,3),\"\",$B36)","v":""},{"$f":"IF(LEFT(F36,3)=LEFT(beallitasok!$B$3,3),\"\",$B36)","v":""},{"$f":"IF(AND(LEN(ZARO_FOKONYV!A36)<LEN(ZARO_FOKONYV!A37),LEFT(ZARO_FOKONYV!A37,LEN(ZARO_FOKONYV!A36))=ZARO_FOKONYV!A36),\"IGEN\",\"nem\")","v":"IGEN"}]
[{"$f":"IFERROR(IF(OR(AND(beallitasok!$H$5=\"IGEN\",J37=\"IGEN\"),B37=\"\",VALUE(LEFT(F37,LEN(beallitasok!$H$2)))=beallitasok!$H$2,VALUE(LEFT(E37,LEN(beallitasok!$H$3)))=beallitasok!$H$3,VALUE(LEFT(F37,LEN(beallitasok!$H$2)))=beallitasok!$H$3,VALUE(LEFT(E37,LEN(beallitasok!$H$3)))=beallitasok!$H$2),\"\",IF(D37=\"\",\"\",beallitasok!$B$2)),\"\")","v":""},{"$f":"IF(VALUE(LEFT(ZARO_FOKONYV!A37,1))<=beallitasok!$H$8,ZARO_FOKONYV!B37,\"\")","v":"Rövid lejáratú kölcsönadott pénzeszközök"},{"$f":"IF(B37=\"\",\"\",IF(beallitasok!$B$6=\"\",\"\",beallitasok!$B$6))","v":"NYITÓ"},{"$f":"IF(B37=\"\",\"\",ROUND(ZARO_FOKONYV!C37+ZARO_FOKONYV!D37,0))","v":0},{"$f":"IF(B37=\"\",\"\",LEFT(IF(ZARO_FOKONYV!C37>0,IFERROR(VLOOKUP(ZARO_FOKONYV!$A37,FKCSERE!$A:$B,2,FALSE),ZARO_FOKONYV!$A37),beallitasok!$B$3)&\"00000\",6))","v":"491000"},{"$f":"IF(B37=\"\",\"\",LEFT(IF(ZARO_FOKONYV!D37>0,IFERROR(VLOOKUP(ZARO_FOKONYV!$A37,FKCSERE!$A:$B,2,FALSE),ZARO_FOKONYV!$A37),beallitasok!$B$3)&\"000000\",6))","v":"491000"},null,{"$f":"IF(LEFT(E37,3)=LEFT(beallitasok!$B$3,3),\"\",$B37)","v":""},{"$f":"IF(LEFT(F37,3)=LEFT(beallitasok!$B$3,3),\"\",$B37)","v":""},{"$f":"IF(AND(LEN(ZARO_FOKONYV!A37)<LEN(ZARO_FOKONYV!A38),LEFT(ZARO_FOKONYV!A38,LEN(ZARO_FOKONYV!A37))=ZARO_FOKONYV!A37),\"IGEN\",\"nem\")","v":"IGEN"}]
[{"$f":"IFERROR(IF(OR(AND(beallitasok!$H$5=\"IGEN\",J38=\"IGEN\"),B38=\"\",VALUE(LEFT(F38,LEN(beallitasok!$H$2)))=beallitasok!$H$2,VALUE(LEFT(E38,LEN(beallitasok!$H$3)))=beallitasok!$H$3,VALUE(LEFT(F38,LEN(beallitasok!$H$2)))=beallitasok!$H$3,VALUE(LEFT(E38,LEN(beallitasok!$H$3)))=beallitasok!$H$2),\"\",IF(D38=\"\",\"\",beallitasok!$B$2)),\"\")","v":"2020-12-31"},{"$f":"IF(VALUE(LEFT(ZARO_FOKONYV!A38,1))<=beallitasok!$H$8,ZARO_FOKONYV!B38,\"\")","v":"Rövid lejáratú kölcsönök"},{"$f":"IF(B38=\"\",\"\",IF(beallitasok!$B$6=\"\",\"\",beallitasok!$B$6))","v":"NYITÓ"},{"$f":"IF(B38=\"\",\"\",ROUND(ZARO_FOKONYV!C38+ZARO_FOKONYV!D38,0))","v":0},{"$f":"IF(B38=\"\",\"\",LEFT(IF(ZARO_FOKONYV!C38>0,IFERROR(VLOOKUP(ZARO_FOKONYV!$A38,FKCSERE!$A:$B,2,FALSE),ZARO_FOKONYV!$A38),beallitasok!$B$3)&\"00000\",6))","v":"491000"},{"$f":"IF(B38=\"\",\"\",LEFT(IF(ZARO_FOKONYV!D38>0,IFERROR(VLOOKUP(ZARO_FOKONYV!$A38,FKCSERE!$A:$B,2,FALSE),ZARO_FOKONYV!$A38),beallitasok!$B$3)&\"000000\",6))","v":"491000"},null,{"$f":"IF(LEFT(E38,3)=LEFT(beallitasok!$B$3,3),\"\",$B38)","v":""},{"$f":"IF(LEFT(F38,3)=LEFT(beallitasok!$B$3,3),\"\",$B38)","v":""},{"$f":"IF(AND(LEN(ZARO_FOKONYV!A38)<LEN(ZARO_FOKONYV!A39),LEFT(ZARO_FOKONYV!A39,LEN(ZARO_FOKONYV!A38))=ZARO_FOKONYV!A38),\"IGEN\",\"nem\")","v":"nem"}]
[{"$f":"IFERROR(IF(OR(AND(beallitasok!$H$5=\"IGEN\",J39=\"IGEN\"),B39=\"\",VALUE(LEFT(F39,LEN(beallitasok!$H$2)))=beallitasok!$H$2,VALUE(LEFT(E39,LEN(beallitasok!$H$3)))=beallitasok!$H$3,VALUE(LEFT(F39,LEN(beallitasok!$H$2)))=beallitasok!$H$3,VALUE(LEFT(E39,LEN(beallitasok!$H$3)))=beallitasok!$H$2),\"\",IF(D39=\"\",\"\",beallitasok!$B$2)),\"\")","v":""},{"$f":"IF(VALUE(LEFT(ZARO_FOKONYV!A39,1))<=beallitasok!$H$8,ZARO_FOKONYV!B39,\"\")","v":"PÉNZESZKÖZÖK"},{"$f":"IF(B39=\"\",\"\",IF(beallitasok!$B$6=\"\",\"\",beallitasok!$B$6))","v":"NYITÓ"},{"$f":"IF(B39=\"\",\"\",ROUND(ZARO_FOKONYV!C39+ZARO_FOKONYV!D39,0))","v":5771580},{"$f":"IF(B39=\"\",\"\",LEFT(IF(ZARO_FOKONYV!C39>0,IFERROR(VLOOKUP(ZARO_FOKONYV!$A39,FKCSERE!$A:$B,2,FALSE),ZARO_FOKONYV!$A39),beallitasok!$B$3)&\"00000\",6))","v":"491000"},{"$f":"IF(B39=\"\",\"\",LEFT(IF(ZARO_FOKONYV!D39>0,IFERROR(VLOOKUP(ZARO_FOKONYV!$A39,FKCSERE!$A:$B,2,FALSE),ZARO_FOKONYV!$A39),beallitasok!$B$3)&\"000000\",6))","v":"380000"},null,{"$f":"IF(LEFT(E39,3)=LEFT(beallitasok!$B$3,3),\"\",$B39)","v":""},{"$f":"IF(LEFT(F39,3)=LEFT(beallitasok!$B$3,3),\"\",$B39)","v":"PÉNZESZKÖZÖK"},{"$f":"IF(AND(LEN(ZARO_FOKONYV!A39)<LEN(ZARO_FOKONYV!A40),LEFT(ZARO_FOKONYV!A40,LEN(ZARO_FOKONYV!A39))=ZARO_FOKONYV!A39),\"IGEN\",\"nem\")","v":"IGEN"}]
[{"$f":"IFERROR(IF(OR(AND(beallitasok!$H$5=\"IGEN\",J40=\"IGEN\"),B40=\"\",VALUE(LEFT(F40,LEN(beallitasok!$H$2)))=beallitasok!$H$2,VALUE(LEFT(E40,LEN(beallitasok!$H$3)))=beallitasok!$H$3,VALUE(LEFT(F40,LEN(beallitasok!$H$2)))=beallitasok!$H$3,VALUE(LEFT(E40,LEN(beallitasok!$H$3)))=beallitasok!$H$2),\"\",IF(D40=\"\",\"\",beallitasok!$B$2)),\"\")","v":""},{"$f":"IF(VALUE(LEFT(ZARO_FOKONYV!A40,1))<=beallitasok!$H$8,ZARO_FOKONYV!B40,\"\")","v":"Pénztár"},{"$f":"IF(B40=\"\",\"\",IF(beallitasok!$B$6=\"\",\"\",beallitasok!$B$6))","v":"NYITÓ"},{"$f":"IF(B40=\"\",\"\",ROUND(ZARO_FOKONYV!C40+ZARO_FOKONYV!D40,0))","v":2043892},{"$f":"IF(B40=\"\",\"\",LEFT(IF(ZARO_FOKONYV!C40>0,IFERROR(VLOOKUP(ZARO_FOKONYV!$A40,FKCSERE!$A:$B,2,FALSE),ZARO_FOKONYV!$A40),beallitasok!$B$3)&\"00000\",6))","v":"381000"},{"$f":"IF(B40=\"\",\"\",LEFT(IF(ZARO_FOKONYV!D40>0,IFERROR(VLOOKUP(ZARO_FOKONYV!$A40,FKCSERE!$A:$B,2,FALSE),ZARO_FOKONYV!$A40),beallitasok!$B$3)&\"000000\",6))","v":"491000"},null,{"$f":"IF(LEFT(E40,3)=LEFT(beallitasok!$B$3,3),\"\",$B40)","v":"Pénztár"},{"$f":"IF(LEFT(F40,3)=LEFT(beallitasok!$B$3,3),\"\",$B40)","v":""},{"$f":"IF(AND(LEN(ZARO_FOKONYV!A40)<LEN(ZARO_FOKONYV!A41),LEFT(ZARO_FOKONYV!A41,LEN(ZARO_FOKONYV!A40))=ZARO_FOKONYV!A40),\"IGEN\",\"nem\")","v":"IGEN"}]
[{"$f":"IFERROR(IF(OR(AND(beallitasok!$H$5=\"IGEN\",J41=\"IGEN\"),B41=\"\",VALUE(LEFT(F41,LEN(beallitasok!$H$2)))=beallitasok!$H$2,VALUE(LEFT(E41,LEN(beallitasok!$H$3)))=beallitasok!$H$3,VALUE(LEFT(F41,LEN(beallitasok!$H$2)))=beallitasok!$H$3,VALUE(LEFT(E41,LEN(beallitasok!$H$3)))=beallitasok!$H$2),\"\",IF(D41=\"\",\"\",beallitasok!$B$2)),\"\")","v":"2020-12-31"},{"$f":"IF(VALUE(LEFT(ZARO_FOKONYV!A41,1))<=beallitasok!$H$8,ZARO_FOKONYV!B41,\"\")","v":"Pénztár-számla"},{"$f":"IF(B41=\"\",\"\",IF(beallitasok!$B$6=\"\",\"\",beallitasok!$B$6))","v":"NYITÓ"},{"$f":"IF(B41=\"\",\"\",ROUND(ZARO_FOKONYV!C41+ZARO_FOKONYV!D41,0))","v":2043892},{"$f":"IF(B41=\"\",\"\",LEFT(IF(ZARO_FOKONYV!C41>0,IFERROR(VLOOKUP(ZARO_FOKONYV!$A41,FKCSERE!$A:$B,2,FALSE),ZARO_FOKONYV!$A41),beallitasok!$B$3)&\"00000\",6))","v":"381100"},{"$f":"IF(B41=\"\",\"\",LEFT(IF(ZARO_FOKONYV!D41>0,IFERROR(VLOOKUP(ZARO_FOKONYV!$A41,FKCSERE!$A:$B,2,FALSE),ZARO_FOKONYV!$A41),beallitasok!$B$3)&\"000000\",6))","v":"491000"},null,{"$f":"IF(LEFT(E41,3)=LEFT(beallitasok!$B$3,3),\"\",$B41)","v":"Pénztár-számla"},{"$f":"IF(LEFT(F41,3)=LEFT(beallitasok!$B$3,3),\"\",$B41)","v":""},{"$f":"IF(AND(LEN(ZARO_FOKONYV!A41)<LEN(ZARO_FOKONYV!A42),LEFT(ZARO_FOKONYV!A42,LEN(ZARO_FOKONYV!A41))=ZARO_FOKONYV!A41),\"IGEN\",\"nem\")","v":"nem"}]
[{"$f":"IFERROR(IF(OR(AND(beallitasok!$H$5=\"IGEN\",J42=\"IGEN\"),B42=\"\",VALUE(LEFT(F42,LEN(beallitasok!$H$2)))=beallitasok!$H$2,VALUE(LEFT(E42,LEN(beallitasok!$H$3)))=beallitasok!$H$3,VALUE(LEFT(F42,LEN(beallitasok!$H$2)))=beallitasok!$H$3,VALUE(LEFT(E42,LEN(beallitasok!$H$3)))=beallitasok!$H$2),\"\",IF(D42=\"\",\"\",beallitasok!$B$2)),\"\")","v":""},{"$f":"IF(VALUE(LEFT(ZARO_FOKONYV!A42,1))<=beallitasok!$H$8,ZARO_FOKONYV!B42,\"\")","v":"Valutapénztár"},{"$f":"IF(B42=\"\",\"\",IF(beallitasok!$B$6=\"\",\"\",beallitasok!$B$6))","v":"NYITÓ"},{"$f":"IF(B42=\"\",\"\",ROUND(ZARO_FOKONYV!C42+ZARO_FOKONYV!D42,0))","v":844607},{"$f":"IF(B42=\"\",\"\",LEFT(IF(ZARO_FOKONYV!C42>0,IFERROR(VLOOKUP(ZARO_FOKONYV!$A42,FKCSERE!$A:$B,2,FALSE),ZARO_FOKONYV!$A42),beallitasok!$B$3)&\"00000\",6))","v":"382000"},{"$f":"IF(B42=\"\",\"\",LEFT(IF(ZARO_FOKONYV!D42>0,IFERROR(VLOOKUP(ZARO_FOKONYV!$A42,FKCSERE!$A:$B,2,FALSE),ZARO_FOKONYV!$A42),beallitasok!$B$3)&\"000000\",6))","v":"491000"},null,{"$f":"IF(LEFT(E42,3)=LEFT(beallitasok!$B$3,3),\"\",$B42)","v":"Valutapénztár"},{"$f":"IF(LEFT(F42,3)=LEFT(beallitasok!$B$3,3),\"\",$B42)","v":""},{"$f":"IF(AND(LEN(ZARO_FOKONYV!A42)<LEN(ZARO_FOKONYV!A43),LEFT(ZARO_FOKONYV!A43,LEN(ZARO_FOKONYV!A42))=ZARO_FOKONYV!A42),\"IGEN\",\"nem\")","v":"IGEN"}]
[{"$f":"IFERROR(IF(OR(AND(beallitasok!$H$5=\"IGEN\",J43=\"IGEN\"),B43=\"\",VALUE(LEFT(F43,LEN(beallitasok!$H$2)))=beallitasok!$H$2,VALUE(LEFT(E43,LEN(beallitasok!$H$3)))=beallitasok!$H$3,VALUE(LEFT(F43,LEN(beallitasok!$H$2)))=beallitasok!$H$3,VALUE(LEFT(E43,LEN(beallitasok!$H$3)))=beallitasok!$H$2),\"\",IF(D43=\"\",\"\",beallitasok!$B$2)),\"\")","v":"2020-12-31"},{"$f":"IF(VALUE(LEFT(ZARO_FOKONYV!A43,1))<=beallitasok!$H$8,ZARO_FOKONYV!B43,\"\")","v":"Valutapénztár-számla"},{"$f":"IF(B43=\"\",\"\",IF(beallitasok!$B$6=\"\",\"\",beallitasok!$B$6))","v":"NYITÓ"},{"$f":"IF(B43=\"\",\"\",ROUND(ZARO_FOKONYV!C43+ZARO_FOKONYV!D43,0))","v":844607},{"$f":"IF(B43=\"\",\"\",LEFT(IF(ZARO_FOKONYV!C43>0,IFERROR(VLOOKUP(ZARO_FOKONYV!$A43,FKCSERE!$A:$B,2,FALSE),ZARO_FOKONYV!$A43),beallitasok!$B$3)&\"00000\",6))","v":"382100"},{"$f":"IF(B43=\"\",\"\",LEFT(IF(ZARO_FOKONYV!D43>0,IFERROR(VLOOKUP(ZARO_FOKONYV!$A43,FKCSERE!$A:$B,2,FALSE),ZARO_FOKONYV!$A43),beallitasok!$B$3)&\"000000\",6))","v":"491000"},null,{"$f":"IF(LEFT(E43,3)=LEFT(beallitasok!$B$3,3),\"\",$B43)","v":"Valutapénztár-számla"},{"$f":"IF(LEFT(F43,3)=LEFT(beallitasok!$B$3,3),\"\",$B43)","v":""},{"$f":"IF(AND(LEN(ZARO_FOKONYV!A43)<LEN(ZARO_FOKONYV!A44),LEFT(ZARO_FOKONYV!A44,LEN(ZARO_FOKONYV!A43))=ZARO_FOKONYV!A43),\"IGEN\",\"nem\")","v":"nem"}]
[{"$f":"IFERROR(IF(OR(AND(beallitasok!$H$5=\"IGEN\",J44=\"IGEN\"),B44=\"\",VALUE(LEFT(F44,LEN(beallitasok!$H$2)))=beallitasok!$H$2,VALUE(LEFT(E44,LEN(beallitasok!$H$3)))=beallitasok!$H$3,VALUE(LEFT(F44,LEN(beallitasok!$H$2)))=beallitasok!$H$3,VALUE(LEFT(E44,LEN(beallitasok!$H$3)))=beallitasok!$H$2),\"\",IF(D44=\"\",\"\",beallitasok!$B$2)),\"\")","v":""},{"$f":"IF(VALUE(LEFT(ZARO_FOKONYV!A44,1))<=beallitasok!$H$8,ZARO_FOKONYV!B44,\"\")","v":"Bankszámlák"},{"$f":"IF(B44=\"\",\"\",IF(beallitasok!$B$6=\"\",\"\",beallitasok!$B$6))","v":"NYITÓ"},{"$f":"IF(B44=\"\",\"\",ROUND(ZARO_FOKONYV!C44+ZARO_FOKONYV!D44,0))","v":8637639},{"$f":"IF(B44=\"\",\"\",LEFT(IF(ZARO_FOKONYV!C44>0,IFERROR(VLOOKUP(ZARO_FOKONYV!$A44,FKCSERE!$A:$B,2,FALSE),ZARO_FOKONYV!$A44),beallitasok!$B$3)&\"00000\",6))","v":"491000"},{"$f":"IF(B44=\"\",\"\",LEFT(IF(ZARO_FOKONYV!D44>0,IFERROR(VLOOKUP(ZARO_FOKONYV!$A44,FKCSERE!$A:$B,2,FALSE),ZARO_FOKONYV!$A44),beallitasok!$B$3)&\"000000\",6))","v":"384000"},null,{"$f":"IF(LEFT(E44,3)=LEFT(beallitasok!$B$3,3),\"\",$B44)","v":""},{"$f":"IF(LEFT(F44,3)=LEFT(beallitasok!$B$3,3),\"\",$B44)","v":"Bankszámlák"},{"$f":"IF(AND(LEN(ZARO_FOKONYV!A44)<LEN(ZARO_FOKONYV!A45),LEFT(ZARO_FOKONYV!A45,LEN(ZARO_FOKONYV!A44))=ZARO_FOKONYV!A44),\"IGEN\",\"nem\")","v":"IGEN"}]
[{"$f":"IFERROR(IF(OR(AND(beallitasok!$H$5=\"IGEN\",J45=\"IGEN\"),B45=\"\",VALUE(LEFT(F45,LEN(beallitasok!$H$2)))=beallitasok!$H$2,VALUE(LEFT(E45,LEN(beallitasok!$H$3)))=beallitasok!$H$3,VALUE(LEFT(F45,LEN(beallitasok!$H$2)))=beallitasok!$H$3,VALUE(LEFT(E45,LEN(beallitasok!$H$3)))=beallitasok!$H$2),\"\",IF(D45=\"\",\"\",beallitasok!$B$2)),\"\")","v":"2020-12-31"},{"$f":"IF(VALUE(LEFT(ZARO_FOKONYV!A45,1))<=beallitasok!$H$8,ZARO_FOKONYV!B45,\"\")","v":"K&H Bank"},{"$f":"IF(B45=\"\",\"\",IF(beallitasok!$B$6=\"\",\"\",beallitasok!$B$6))","v":"NYITÓ"},{"$f":"IF(B45=\"\",\"\",ROUND(ZARO_FOKONYV!C45+ZARO_FOKONYV!D45,0))","v":4914593},{"$f":"IF(B45=\"\",\"\",LEFT(IF(ZARO_FOKONYV!C45>0,IFERROR(VLOOKUP(ZARO_FOKONYV!$A45,FKCSERE!$A:$B,2,FALSE),ZARO_FOKONYV!$A45),beallitasok!$B$3)&\"00000\",6))","v":"491000"},{"$f":"IF(B45=\"\",\"\",LEFT(IF(ZARO_FOKONYV!D45>0,IFERROR(VLOOKUP(ZARO_FOKONYV!$A45,FKCSERE!$A:$B,2,FALSE),ZARO_FOKONYV!$A45),beallitasok!$B$3)&\"000000\",6))","v":"384100"},null,{"$f":"IF(LEFT(E45,3)=LEFT(beallitasok!$B$3,3),\"\",$B45)","v":""},{"$f":"IF(LEFT(F45,3)=LEFT(beallitasok!$B$3,3),\"\",$B45)","v":"K&H Bank"},{"$f":"IF(AND(LEN(ZARO_FOKONYV!A45)<LEN(ZARO_FOKONYV!A46),LEFT(ZARO_FOKONYV!A46,LEN(ZARO_FOKONYV!A45))=ZARO_FOKONYV!A45),\"IGEN\",\"nem\")","v":"nem"}]
[{"$f":"IFERROR(IF(OR(AND(beallitasok!$H$5=\"IGEN\",J46=\"IGEN\"),B46=\"\",VALUE(LEFT(F46,LEN(beallitasok!$H$2)))=beallitasok!$H$2,VALUE(LEFT(E46,LEN(beallitasok!$H$3)))=beallitasok!$H$3,VALUE(LEFT(F46,LEN(beallitasok!$H$2)))=beallitasok!$H$3,VALUE(LEFT(E46,LEN(beallitasok!$H$3)))=beallitasok!$H$2),\"\",IF(D46=\"\",\"\",beallitasok!$B$2)),\"\")","v":"2020-12-31"},{"$f":"IF(VALUE(LEFT(ZARO_FOKONYV!A46,1))<=beallitasok!$H$8,ZARO_FOKONYV!B46,\"\")","v":"Raiffeisen Bank"},{"$f":"IF(B46=\"\",\"\",IF(beallitasok!$B$6=\"\",\"\",beallitasok!$B$6))","v":"NYITÓ"},{"$f":"IF(B46=\"\",\"\",ROUND(ZARO_FOKONYV!C46+ZARO_FOKONYV!D46,0))","v":3723046},{"$f":"IF(B46=\"\",\"\",LEFT(IF(ZARO_FOKONYV!C46>0,IFERROR(VLOOKUP(ZARO_FOKONYV!$A46,FKCSERE!$A:$B,2,FALSE),ZARO_FOKONYV!$A46),beallitasok!$B$3)&\"00000\",6))","v":"491000"},{"$f":"IF(B46=\"\",\"\",LEFT(IF(ZARO_FOKONYV!D46>0,IFERROR(VLOOKUP(ZARO_FOKONYV!$A46,FKCSERE!$A:$B,2,FALSE),ZARO_FOKONYV!$A46),beallitasok!$B$3)&\"000000\",6))","v":"384200"},null,{"$f":"IF(LEFT(E46,3)=LEFT(beallitasok!$B$3,3),\"\",$B46)","v":""},{"$f":"IF(LEFT(F46,3)=LEFT(beallitasok!$B$3,3),\"\",$B46)","v":"Raiffeisen Bank"},{"$f":"IF(AND(LEN(ZARO_FOKONYV!A46)<LEN(ZARO_FOKONYV!A47),LEFT(ZARO_FOKONYV!A47,LEN(ZARO_FOKONYV!A46))=ZARO_FOKONYV!A46),\"IGEN\",\"nem\")","v":"nem"}]
[{"$f":"IFERROR(IF(OR(AND(beallitasok!$H$5=\"IGEN\",J47=\"IGEN\"),B47=\"\",VALUE(LEFT(F47,LEN(beallitasok!$H$2)))=beallitasok!$H$2,VALUE(LEFT(E47,LEN(beallitasok!$H$3)))=beallitasok!$H$3,VALUE(LEFT(F47,LEN(beallitasok!$H$2)))=beallitasok!$H$3,VALUE(LEFT(E47,LEN(beallitasok!$H$3)))=beallitasok!$H$2),\"\",IF(D47=\"\",\"\",beallitasok!$B$2)),\"\")","v":""},{"$f":"IF(VALUE(LEFT(ZARO_FOKONYV!A47,1))<=beallitasok!$H$8,ZARO_FOKONYV!B47,\"\")","v":"Átvezetési számla"},{"$f":"IF(B47=\"\",\"\",IF(beallitasok!$B$6=\"\",\"\",beallitasok!$B$6))","v":"NYITÓ"},{"$f":"IF(B47=\"\",\"\",ROUND(ZARO_FOKONYV!C47+ZARO_FOKONYV!D47,0))","v":22440},{"$f":"IF(B47=\"\",\"\",LEFT(IF(ZARO_FOKONYV!C47>0,IFERROR(VLOOKUP(ZARO_FOKONYV!$A47,FKCSERE!$A:$B,2,FALSE),ZARO_FOKONYV!$A47),beallitasok!$B$3)&\"00000\",6))","v":"491000"},{"$f":"IF(B47=\"\",\"\",LEFT(IF(ZARO_FOKONYV!D47>0,IFERROR(VLOOKUP(ZARO_FOKONYV!$A47,FKCSERE!$A:$B,2,FALSE),ZARO_FOKONYV!$A47),beallitasok!$B$3)&\"000000\",6))","v":"389000"},null,{"$f":"IF(LEFT(E47,3)=LEFT(beallitasok!$B$3,3),\"\",$B47)","v":""},{"$f":"IF(LEFT(F47,3)=LEFT(beallitasok!$B$3,3),\"\",$B47)","v":"Átvezetési számla"},{"$f":"IF(AND(LEN(ZARO_FOKONYV!A47)<LEN(ZARO_FOKONYV!A48),LEFT(ZARO_FOKONYV!A48,LEN(ZARO_FOKONYV!A47))=ZARO_FOKONYV!A47),\"IGEN\",\"nem\")","v":"IGEN"}]
[{"$f":"IFERROR(IF(OR(AND(beallitasok!$H$5=\"IGEN\",J48=\"IGEN\"),B48=\"\",VALUE(LEFT(F48,LEN(beallitasok!$H$2)))=beallitasok!$H$2,VALUE(LEFT(E48,LEN(beallitasok!$H$3)))=beallitasok!$H$3,VALUE(LEFT(F48,LEN(beallitasok!$H$2)))=beallitasok!$H$3,VALUE(LEFT(E48,LEN(beallitasok!$H$3)))=beallitasok!$H$2),\"\",IF(D48=\"\",\"\",beallitasok!$B$2)),\"\")","v":"2020-12-31"},{"$f":"IF(VALUE(LEFT(ZARO_FOKONYV!A48,1))<=beallitasok!$H$8,ZARO_FOKONYV!B48,\"\")","v":"Átvezetés bank és pénztár között"},{"$f":"IF(B48=\"\",\"\",IF(beallitasok!$B$6=\"\",\"\",beallitasok!$B$6))","v":"NYITÓ"},{"$f":"IF(B48=\"\",\"\",ROUND(ZARO_FOKONYV!C48+ZARO_FOKONYV!D48,0))","v":0},{"$f":"IF(B48=\"\",\"\",LEFT(IF(ZARO_FOKONYV!C48>0,IFERROR(VLOOKUP(ZARO_FOKONYV!$A48,FKCSERE!$A:$B,2,FALSE),ZARO_FOKONYV!$A48),beallitasok!$B$3)&\"00000\",6))","v":"491000"},{"$f":"IF(B48=\"\",\"\",LEFT(IF(ZARO_FOKONYV!D48>0,IFERROR(VLOOKUP(ZARO_FOKONYV!$A48,FKCSERE!$A:$B,2,FALSE),ZARO_FOKONYV!$A48),beallitasok!$B$3)&\"000000\",6))","v":"491000"},null,{"$f":"IF(LEFT(E48,3)=LEFT(beallitasok!$B$3,3),\"\",$B48)","v":""},{"$f":"IF(LEFT(F48,3)=LEFT(beallitasok!$B$3,3),\"\",$B48)","v":""},{"$f":"IF(AND(LEN(ZARO_FOKONYV!A48)<LEN(ZARO_FOKONYV!A49),LEFT(ZARO_FOKONYV!A49,LEN(ZARO_FOKONYV!A48))=ZARO_FOKONYV!A48),\"IGEN\",\"nem\")","v":"nem"}]
[{"$f":"IFERROR(IF(OR(AND(beallitasok!$H$5=\"IGEN\",J49=\"IGEN\"),B49=\"\",VALUE(LEFT(F49,LEN(beallitasok!$H$2)))=beallitasok!$H$2,VALUE(LEFT(E49,LEN(beallitasok!$H$3)))=beallitasok!$H$3,VALUE(LEFT(F49,LEN(beallitasok!$H$2)))=beallitasok!$H$3,VALUE(LEFT(E49,LEN(beallitasok!$H$3)))=beallitasok!$H$2),\"\",IF(D49=\"\",\"\",beallitasok!$B$2)),\"\")","v":"2020-12-31"},{"$f":"IF(VALUE(LEFT(ZARO_FOKONYV!A49,1))<=beallitasok!$H$8,ZARO_FOKONYV!B49,\"\")","v":"Átvezetés bank és bank között"},{"$f":"IF(B49=\"\",\"\",IF(beallitasok!$B$6=\"\",\"\",beallitasok!$B$6))","v":"NYITÓ"},{"$f":"IF(B49=\"\",\"\",ROUND(ZARO_FOKONYV!C49+ZARO_FOKONYV!D49,0))","v":0},{"$f":"IF(B49=\"\",\"\",LEFT(IF(ZARO_FOKONYV!C49>0,IFERROR(VLOOKUP(ZARO_FOKONYV!$A49,FKCSERE!$A:$B,2,FALSE),ZARO_FOKONYV!$A49),beallitasok!$B$3)&\"00000\",6))","v":"491000"},{"$f":"IF(B49=\"\",\"\",LEFT(IF(ZARO_FOKONYV!D49>0,IFERROR(VLOOKUP(ZARO_FOKONYV!$A49,FKCSERE!$A:$B,2,FALSE),ZARO_FOKONYV!$A49),beallitasok!$B$3)&\"000000\",6))","v":"491000"},null,{"$f":"IF(LEFT(E49,3)=LEFT(beallitasok!$B$3,3),\"\",$B49)","v":""},{"$f":"IF(LEFT(F49,3)=LEFT(beallitasok!$B$3,3),\"\",$B49)","v":""},{"$f":"IF(AND(LEN(ZARO_FOKONYV!A49)<LEN(ZARO_FOKONYV!A50),LEFT(ZARO_FOKONYV!A50,LEN(ZARO_FOKONYV!A49))=ZARO_FOKONYV!A49),\"IGEN\",\"nem\")","v":"nem"}]
[{"$f":"IFERROR(IF(OR(AND(beallitasok!$H$5=\"IGEN\",J50=\"IGEN\"),B50=\"\",VALUE(LEFT(F50,LEN(beallitasok!$H$2)))=beallitasok!$H$2,VALUE(LEFT(E50,LEN(beallitasok!$H$3)))=beallitasok!$H$3,VALUE(LEFT(F50,LEN(beallitasok!$H$2)))=beallitasok!$H$3,VALUE(LEFT(E50,LEN(beallitasok!$H$3)))=beallitasok!$H$2),\"\",IF(D50=\"\",\"\",beallitasok!$B$2)),\"\")","v":"2020-12-31"},{"$f":"IF(VALUE(LEFT(ZARO_FOKONYV!A50,1))<=beallitasok!$H$8,ZARO_FOKONYV!B50,\"\")","v":"Technikai számla"},{"$f":"IF(B50=\"\",\"\",IF(beallitasok!$B$6=\"\",\"\",beallitasok!$B$6))","v":"NYITÓ"},{"$f":"IF(B50=\"\",\"\",ROUND(ZARO_FOKONYV!C50+ZARO_FOKONYV!D50,0))","v":22440},{"$f":"IF(B50=\"\",\"\",LEFT(IF(ZARO_FOKONYV!C50>0,IFERROR(VLOOKUP(ZARO_FOKONYV!$A50,FKCSERE!$A:$B,2,FALSE),ZARO_FOKONYV!$A50),beallitasok!$B$3)&\"00000\",6))","v":"491000"},{"$f":"IF(B50=\"\",\"\",LEFT(IF(ZARO_FOKONYV!D50>0,IFERROR(VLOOKUP(ZARO_FOKONYV!$A50,FKCSERE!$A:$B,2,FALSE),ZARO_FOKONYV!$A50),beallitasok!$B$3)&\"000000\",6))","v":"389900"},null,{"$f":"IF(LEFT(E50,3)=LEFT(beallitasok!$B$3,3),\"\",$B50)","v":""},{"$f":"IF(LEFT(F50,3)=LEFT(beallitasok!$B$3,3),\"\",$B50)","v":"Technikai számla"},{"$f":"IF(AND(LEN(ZARO_FOKONYV!A50)<LEN(ZARO_FOKONYV!A51),LEFT(ZARO_FOKONYV!A51,LEN(ZARO_FOKONYV!A50))=ZARO_FOKONYV!A50),\"IGEN\",\"nem\")","v":"nem"}]
[{"$f":"IFERROR(IF(OR(AND(beallitasok!$H$5=\"IGEN\",J51=\"IGEN\"),B51=\"\",VALUE(LEFT(F51,LEN(beallitasok!$H$2)))=beallitasok!$H$2,VALUE(LEFT(E51,LEN(beallitasok!$H$3)))=beallitasok!$H$3,VALUE(LEFT(F51,LEN(beallitasok!$H$2)))=beallitasok!$H$3,VALUE(LEFT(E51,LEN(beallitasok!$H$3)))=beallitasok!$H$2),\"\",IF(D51=\"\",\"\",beallitasok!$B$2)),\"\")","v":""},{"$f":"IF(VALUE(LEFT(ZARO_FOKONYV!A51,1))<=beallitasok!$H$8,ZARO_FOKONYV!B51,\"\")","v":"AKTÍV IDŐBELI ELHATÁROLÁSOK"},{"$f":"IF(B51=\"\",\"\",IF(beallitasok!$B$6=\"\",\"\",beallitasok!$B$6))","v":"NYITÓ"},{"$f":"IF(B51=\"\",\"\",ROUND(ZARO_FOKONYV!C51+ZARO_FOKONYV!D51,0))","v":4235259},{"$f":"IF(B51=\"\",\"\",LEFT(IF(ZARO_FOKONYV!C51>0,IFERROR(VLOOKUP(ZARO_FOKONYV!$A51,FKCSERE!$A:$B,2,FALSE),ZARO_FOKONYV!$A51),beallitasok!$B$3)&\"00000\",6))","v":"390000"},{"$f":"IF(B51=\"\",\"\",LEFT(IF(ZARO_FOKONYV!D51>0,IFERROR(VLOOKUP(ZARO_FOKONYV!$A51,FKCSERE!$A:$B,2,FALSE),ZARO_FOKONYV!$A51),beallitasok!$B$3)&\"000000\",6))","v":"491000"},null,{"$f":"IF(LEFT(E51,3)=LEFT(beallitasok!$B$3,3),\"\",$B51)","v":"AKTÍV IDŐBELI ELHATÁROLÁSOK"},{"$f":"IF(LEFT(F51,3)=LEFT(beallitasok!$B$3,3),\"\",$B51)","v":""},{"$f":"IF(AND(LEN(ZARO_FOKONYV!A51)<LEN(ZARO_FOKONYV!A52),LEFT(ZARO_FOKONYV!A52,LEN(ZARO_FOKONYV!A51))=ZARO_FOKONYV!A51),\"IGEN\",\"nem\")","v":"IGEN"}]
[{"$f":"IFERROR(IF(OR(AND(beallitasok!$H$5=\"IGEN\",J52=\"IGEN\"),B52=\"\",VALUE(LEFT(F52,LEN(beallitasok!$H$2)))=beallitasok!$H$2,VALUE(LEFT(E52,LEN(beallitasok!$H$3)))=beallitasok!$H$3,VALUE(LEFT(F52,LEN(beallitasok!$H$2)))=beallitasok!$H$3,VALUE(LEFT(E52,LEN(beallitasok!$H$3)))=beallitasok!$H$2),\"\",IF(D52=\"\",\"\",beallitasok!$B$2)),\"\")","v":""},{"$f":"IF(VALUE(LEFT(ZARO_FOKONYV!A52,1))<=beallitasok!$H$8,ZARO_FOKONYV!B52,\"\")","v":"Bevételek aktív időbeli elhatárolások"},{"$f":"IF(B52=\"\",\"\",IF(beallitasok!$B$6=\"\",\"\",beallitasok!$B$6))","v":"NYITÓ"},{"$f":"IF(B52=\"\",\"\",ROUND(ZARO_FOKONYV!C52+ZARO_FOKONYV!D52,0))","v":4050000},{"$f":"IF(B52=\"\",\"\",LEFT(IF(ZARO_FOKONYV!C52>0,IFERROR(VLOOKUP(ZARO_FOKONYV!$A52,FKCSERE!$A:$B,2,FALSE),ZARO_FOKONYV!$A52),beallitasok!$B$3)&\"00000\",6))","v":"391000"},{"$f":"IF(B52=\"\",\"\",LEFT(IF(ZARO_FOKONYV!D52>0,IFERROR(VLOOKUP(ZARO_FOKONYV!$A52,FKCSERE!$A:$B,2,FALSE),ZARO_FOKONYV!$A52),beallitasok!$B$3)&\"000000\",6))","v":"491000"},null,{"$f":"IF(LEFT(E52,3)=LEFT(beallitasok!$B$3,3),\"\",$B52)","v":"Bevételek aktív időbeli elhatárolások"},{"$f":"IF(LEFT(F52,3)=LEFT(beallitasok!$B$3,3),\"\",$B52)","v":""},{"$f":"IF(AND(LEN(ZARO_FOKONYV!A52)<LEN(ZARO_FOKONYV!A53),LEFT(ZARO_FOKONYV!A53,LEN(ZARO_FOKONYV!A52))=ZARO_FOKONYV!A52),\"IGEN\",\"nem\")","v":"IGEN"}]
[{"$f":"IFERROR(IF(OR(AND(beallitasok!$H$5=\"IGEN\",J53=\"IGEN\"),B53=\"\",VALUE(LEFT(F53,LEN(beallitasok!$H$2)))=beallitasok!$H$2,VALUE(LEFT(E53,LEN(beallitasok!$H$3)))=beallitasok!$H$3,VALUE(LEFT(F53,LEN(beallitasok!$H$2)))=beallitasok!$H$3,VALUE(LEFT(E53,LEN(beallitasok!$H$3)))=beallitasok!$H$2),\"\",IF(D53=\"\",\"\",beallitasok!$B$2)),\"\")","v":"2020-12-31"},{"$f":"IF(VALUE(LEFT(ZARO_FOKONYV!A53,1))<=beallitasok!$H$8,ZARO_FOKONYV!B53,\"\")","v":"Árbevétel, egyéb bevétel elhatárolása"},{"$f":"IF(B53=\"\",\"\",IF(beallitasok!$B$6=\"\",\"\",beallitasok!$B$6))","v":"NYITÓ"},{"$f":"IF(B53=\"\",\"\",ROUND(ZARO_FOKONYV!C53+ZARO_FOKONYV!D53,0))","v":4050000},{"$f":"IF(B53=\"\",\"\",LEFT(IF(ZARO_FOKONYV!C53>0,IFERROR(VLOOKUP(ZARO_FOKONYV!$A53,FKCSERE!$A:$B,2,FALSE),ZARO_FOKONYV!$A53),beallitasok!$B$3)&\"00000\",6))","v":"391300"},{"$f":"IF(B53=\"\",\"\",LEFT(IF(ZARO_FOKONYV!D53>0,IFERROR(VLOOKUP(ZARO_FOKONYV!$A53,FKCSERE!$A:$B,2,FALSE),ZARO_FOKONYV!$A53),beallitasok!$B$3)&\"000000\",6))","v":"491000"},null,{"$f":"IF(LEFT(E53,3)=LEFT(beallitasok!$B$3,3),\"\",$B53)","v":"Árbevétel, egyéb bevétel elhatárolása"},{"$f":"IF(LEFT(F53,3)=LEFT(beallitasok!$B$3,3),\"\",$B53)","v":""},{"$f":"IF(AND(LEN(ZARO_FOKONYV!A53)<LEN(ZARO_FOKONYV!A54),LEFT(ZARO_FOKONYV!A54,LEN(ZARO_FOKONYV!A53))=ZARO_FOKONYV!A53),\"IGEN\",\"nem\")","v":"nem"}]
[{"$f":"IFERROR(IF(OR(AND(beallitasok!$H$5=\"IGEN\",J54=\"IGEN\"),B54=\"\",VALUE(LEFT(F54,LEN(beallitasok!$H$2)))=beallitasok!$H$2,VALUE(LEFT(E54,LEN(beallitasok!$H$3)))=beallitasok!$H$3,VALUE(LEFT(F54,LEN(beallitasok!$H$2)))=beallitasok!$H$3,VALUE(LEFT(E54,LEN(beallitasok!$H$3)))=beallitasok!$H$2),\"\",IF(D54=\"\",\"\",beallitasok!$B$2)),\"\")","v":""},{"$f":"IF(VALUE(LEFT(ZARO_FOKONYV!A54,1))<=beallitasok!$H$8,ZARO_FOKONYV!B54,\"\")","v":"Költségek, ráfordítások időbeli elhatárolása"},{"$f":"IF(B54=\"\",\"\",IF(beallitasok!$B$6=\"\",\"\",beallitasok!$B$6))","v":"NYITÓ"},{"$f":"IF(B54=\"\",\"\",ROUND(ZARO_FOKONYV!C54+ZARO_FOKONYV!D54,0))","v":185259},{"$f":"IF(B54=\"\",\"\",LEFT(IF(ZARO_FOKONYV!C54>0,IFERROR(VLOOKUP(ZARO_FOKONYV!$A54,FKCSERE!$A:$B,2,FALSE),ZARO_FOKONYV!$A54),beallitasok!$B$3)&\"00000\",6))","v":"392000"},{"$f":"IF(B54=\"\",\"\",LEFT(IF(ZARO_FOKONYV!D54>0,IFERROR(VLOOKUP(ZARO_FOKONYV!$A54,FKCSERE!$A:$B,2,FALSE),ZARO_FOKONYV!$A54),beallitasok!$B$3)&\"000000\",6))","v":"491000"},null,{"$f":"IF(LEFT(E54,3)=LEFT(beallitasok!$B$3,3),\"\",$B54)","v":"Költségek, ráfordítások időbeli elhatárolása"},{"$f":"IF(LEFT(F54,3)=LEFT(beallitasok!$B$3,3),\"\",$B54)","v":""},{"$f":"IF(AND(LEN(ZARO_FOKONYV!A54)<LEN(ZARO_FOKONYV!A55),LEFT(ZARO_FOKONYV!A55,LEN(ZARO_FOKONYV!A54))=ZARO_FOKONYV!A54),\"IGEN\",\"nem\")","v":"IGEN"}]
[{"$f":"IFERROR(IF(OR(AND(beallitasok!$H$5=\"IGEN\",J55=\"IGEN\"),B55=\"\",VALUE(LEFT(F55,LEN(beallitasok!$H$2)))=beallitasok!$H$2,VALUE(LEFT(E55,LEN(beallitasok!$H$3)))=beallitasok!$H$3,VALUE(LEFT(F55,LEN(beallitasok!$H$2)))=beallitasok!$H$3,VALUE(LEFT(E55,LEN(beallitasok!$H$3)))=beallitasok!$H$2),\"\",IF(D55=\"\",\"\",beallitasok!$B$2)),\"\")","v":"2020-12-31"},{"$f":"IF(VALUE(LEFT(ZARO_FOKONYV!A55,1))<=beallitasok!$H$8,ZARO_FOKONYV!B55,\"\")","v":"Többletkötelezettségek elhatárolása"},{"$f":"IF(B55=\"\",\"\",IF(beallitasok!$B$6=\"\",\"\",beallitasok!$B$6))","v":"NYITÓ"},{"$f":"IF(B55=\"\",\"\",ROUND(ZARO_FOKONYV!C55+ZARO_FOKONYV!D55,0))","v":0},{"$f":"IF(B55=\"\",\"\",LEFT(IF(ZARO_FOKONYV!C55>0,IFERROR(VLOOKUP(ZARO_FOKONYV!$A55,FKCSERE!$A:$B,2,FALSE),ZARO_FOKONYV!$A55),beallitasok!$B$3)&\"00000\",6))","v":"491000"},{"$f":"IF(B55=\"\",\"\",LEFT(IF(ZARO_FOKONYV!D55>0,IFERROR(VLOOKUP(ZARO_FOKONYV!$A55,FKCSERE!$A:$B,2,FALSE),ZARO_FOKONYV!$A55),beallitasok!$B$3)&\"000000\",6))","v":"491000"},null,{"$f":"IF(LEFT(E55,3)=LEFT(beallitasok!$B$3,3),\"\",$B55)","v":""},{"$f":"IF(LEFT(F55,3)=LEFT(beallitasok!$B$3,3),\"\",$B55)","v":""},{"$f":"IF(AND(LEN(ZARO_FOKONYV!A55)<LEN(ZARO_FOKONYV!A56),LEFT(ZARO_FOKONYV!A56,LEN(ZARO_FOKONYV!A55))=ZARO_FOKONYV!A55),\"IGEN\",\"nem\")","v":"nem"}]
[{"$f":"IFERROR(IF(OR(AND(beallitasok!$H$5=\"IGEN\",J56=\"IGEN\"),B56=\"\",VALUE(LEFT(F56,LEN(beallitasok!$H$2)))=beallitasok!$H$2,VALUE(LEFT(E56,LEN(beallitasok!$H$3)))=beallitasok!$H$3,VALUE(LEFT(F56,LEN(beallitasok!$H$2)))=beallitasok!$H$3,VALUE(LEFT(E56,LEN(beallitasok!$H$3)))=beallitasok!$H$2),\"\",IF(D56=\"\",\"\",beallitasok!$B$2)),\"\")","v":"2020-12-31"},{"$f":"IF(VALUE(LEFT(ZARO_FOKONYV!A56,1))<=beallitasok!$H$8,ZARO_FOKONYV!B56,\"\")","v":"Költségek, egyéb fizetett kamatok, egyéb ráfordítások elhatárolása"},{"$f":"IF(B56=\"\",\"\",IF(beallitasok!$B$6=\"\",\"\",beallitasok!$B$6))","v":"NYITÓ"},{"$f":"IF(B56=\"\",\"\",ROUND(ZARO_FOKONYV!C56+ZARO_FOKONYV!D56,0))","v":185259},{"$f":"IF(B56=\"\",\"\",LEFT(IF(ZARO_FOKONYV!C56>0,IFERROR(VLOOKUP(ZARO_FOKONYV!$A56,FKCSERE!$A:$B,2,FALSE),ZARO_FOKONYV!$A56),beallitasok!$B$3)&\"00000\",6))","v":"392300"},{"$f":"IF(B56=\"\",\"\",LEFT(IF(ZARO_FOKONYV!D56>0,IFERROR(VLOOKUP(ZARO_FOKONYV!$A56,FKCSERE!$A:$B,2,FALSE),ZARO_FOKONYV!$A56),beallitasok!$B$3)&\"000000\",6))","v":"491000"},null,{"$f":"IF(LEFT(E56,3)=LEFT(beallitasok!$B$3,3),\"\",$B56)","v":"Költségek, egyéb fizetett kamatok, egyéb ráfordítások elhatárolása"},{"$f":"IF(LEFT(F56,3)=LEFT(beallitasok!$B$3,3),\"\",$B56)","v":""},{"$f":"IF(AND(LEN(ZARO_FOKONYV!A56)<LEN(ZARO_FOKONYV!A57),LEFT(ZARO_FOKONYV!A57,LEN(ZARO_FOKONYV!A56))=ZARO_FOKONYV!A56),\"IGEN\",\"nem\")","v":"nem"}]
[{"$f":"IFERROR(IF(OR(AND(beallitasok!$H$5=\"IGEN\",J57=\"IGEN\"),B57=\"\",VALUE(LEFT(F57,LEN(beallitasok!$H$2)))=beallitasok!$H$2,VALUE(LEFT(E57,LEN(beallitasok!$H$3)))=beallitasok!$H$3,VALUE(LEFT(F57,LEN(beallitasok!$H$2)))=beallitasok!$H$3,VALUE(LEFT(E57,LEN(beallitasok!$H$3)))=beallitasok!$H$2),\"\",IF(D57=\"\",\"\",beallitasok!$B$2)),\"\")","v":""},{"$f":"IF(VALUE(LEFT(ZARO_FOKONYV!A57,1))<=beallitasok!$H$8,ZARO_FOKONYV!B57,\"\")","v":"FORRÁSOK"},{"$f":"IF(B57=\"\",\"\",IF(beallitasok!$B$6=\"\",\"\",beallitasok!$B$6))","v":"NYITÓ"},{"$f":"IF(B57=\"\",\"\",ROUND(ZARO_FOKONYV!C57+ZARO_FOKONYV!D57,0))","v":149713245},{"$f":"IF(B57=\"\",\"\",LEFT(IF(ZARO_FOKONYV!C57>0,IFERROR(VLOOKUP(ZARO_FOKONYV!$A57,FKCSERE!$A:$B,2,FALSE),ZARO_FOKONYV!$A57),beallitasok!$B$3)&\"00000\",6))","v":"491000"},{"$f":"IF(B57=\"\",\"\",LEFT(IF(ZARO_FOKONYV!D57>0,IFERROR(VLOOKUP(ZARO_FOKONYV!$A57,FKCSERE!$A:$B,2,FALSE),ZARO_FOKONYV!$A57),beallitasok!$B$3)&\"000000\",6))","v":"400000"},null,{"$f":"IF(LEFT(E57,3)=LEFT(beallitasok!$B$3,3),\"\",$B57)","v":""},{"$f":"IF(LEFT(F57,3)=LEFT(beallitasok!$B$3,3),\"\",$B57)","v":"FORRÁSOK"},{"$f":"IF(AND(LEN(ZARO_FOKONYV!A57)<LEN(ZARO_FOKONYV!A58),LEFT(ZARO_FOKONYV!A58,LEN(ZARO_FOKONYV!A57))=ZARO_FOKONYV!A57),\"IGEN\",\"nem\")","v":"IGEN"}]
[{"$f":"IFERROR(IF(OR(AND(beallitasok!$H$5=\"IGEN\",J58=\"IGEN\"),B58=\"\",VALUE(LEFT(F58,LEN(beallitasok!$H$2)))=beallitasok!$H$2,VALUE(LEFT(E58,LEN(beallitasok!$H$3)))=beallitasok!$H$3,VALUE(LEFT(F58,LEN(beallitasok!$H$2)))=beallitasok!$H$3,VALUE(LEFT(E58,LEN(beallitasok!$H$3)))=beallitasok!$H$2),\"\",IF(D58=\"\",\"\",beallitasok!$B$2)),\"\")","v":""},{"$f":"IF(VALUE(LEFT(ZARO_FOKONYV!A58,1))<=beallitasok!$H$8,ZARO_FOKONYV!B58,\"\")","v":"SAJÁT TŐKE"},{"$f":"IF(B58=\"\",\"\",IF(beallitasok!$B$6=\"\",\"\",beallitasok!$B$6))","v":"NYITÓ"},{"$f":"IF(B58=\"\",\"\",ROUND(ZARO_FOKONYV!C58+ZARO_FOKONYV!D58,0))","v":29549496},{"$f":"IF(B58=\"\",\"\",LEFT(IF(ZARO_FOKONYV!C58>0,IFERROR(VLOOKUP(ZARO_FOKONYV!$A58,FKCSERE!$A:$B,2,FALSE),ZARO_FOKONYV!$A58),beallitasok!$B$3)&\"00000\",6))","v":"491000"},{"$f":"IF(B58=\"\",\"\",LEFT(IF(ZARO_FOKONYV!D58>0,IFERROR(VLOOKUP(ZARO_FOKONYV!$A58,FKCSERE!$A:$B,2,FALSE),ZARO_FOKONYV!$A58),beallitasok!$B$3)&\"000000\",6))","v":"410000"},null,{"$f":"IF(LEFT(E58,3)=LEFT(beallitasok!$B$3,3),\"\",$B58)","v":""},{"$f":"IF(LEFT(F58,3)=LEFT(beallitasok!$B$3,3),\"\",$B58)","v":"SAJÁT TŐKE"},{"$f":"IF(AND(LEN(ZARO_FOKONYV!A58)<LEN(ZARO_FOKONYV!A59),LEFT(ZARO_FOKONYV!A59,LEN(ZARO_FOKONYV!A58))=ZARO_FOKONYV!A58),\"IGEN\",\"nem\")","v":"IGEN"}]
[{"$f":"IFERROR(IF(OR(AND(beallitasok!$H$5=\"IGEN\",J59=\"IGEN\"),B59=\"\",VALUE(LEFT(F59,LEN(beallitasok!$H$2)))=beallitasok!$H$2,VALUE(LEFT(E59,LEN(beallitasok!$H$3)))=beallitasok!$H$3,VALUE(LEFT(F59,LEN(beallitasok!$H$2)))=beallitasok!$H$3,VALUE(LEFT(E59,LEN(beallitasok!$H$3)))=beallitasok!$H$2),\"\",IF(D59=\"\",\"\",beallitasok!$B$2)),\"\")","v":"2020-12-31"},{"$f":"IF(VALUE(LEFT(ZARO_FOKONYV!A59,1))<=beallitasok!$H$8,ZARO_FOKONYV!B59,\"\")","v":"Jegyzett tőke"},{"$f":"IF(B59=\"\",\"\",IF(beallitasok!$B$6=\"\",\"\",beallitasok!$B$6))","v":"NYITÓ"},{"$f":"IF(B59=\"\",\"\",ROUND(ZARO_FOKONYV!C59+ZARO_FOKONYV!D59,0))","v":3000000},{"$f":"IF(B59=\"\",\"\",LEFT(IF(ZARO_FOKONYV!C59>0,IFERROR(VLOOKUP(ZARO_FOKONYV!$A59,FKCSERE!$A:$B,2,FALSE),ZARO_FOKONYV!$A59),beallitasok!$B$3)&\"00000\",6))","v":"491000"},{"$f":"IF(B59=\"\",\"\",LEFT(IF(ZARO_FOKONYV!D59>0,IFERROR(VLOOKUP(ZARO_FOKONYV!$A59,FKCSERE!$A:$B,2,FALSE),ZARO_FOKONYV!$A59),beallitasok!$B$3)&\"000000\",6))","v":"411000"},null,{"$f":"IF(LEFT(E59,3)=LEFT(beallitasok!$B$3,3),\"\",$B59)","v":""},{"$f":"IF(LEFT(F59,3)=LEFT(beallitasok!$B$3,3),\"\",$B59)","v":"Jegyzett tőke"},{"$f":"IF(AND(LEN(ZARO_FOKONYV!A59)<LEN(ZARO_FOKONYV!A60),LEFT(ZARO_FOKONYV!A60,LEN(ZARO_FOKONYV!A59))=ZARO_FOKONYV!A59),\"IGEN\",\"nem\")","v":"nem"}]
[{"$f":"IFERROR(IF(OR(AND(beallitasok!$H$5=\"IGEN\",J60=\"IGEN\"),B60=\"\",VALUE(LEFT(F60,LEN(beallitasok!$H$2)))=beallitasok!$H$2,VALUE(LEFT(E60,LEN(beallitasok!$H$3)))=beallitasok!$H$3,VALUE(LEFT(F60,LEN(beallitasok!$H$2)))=beallitasok!$H$3,VALUE(LEFT(E60,LEN(beallitasok!$H$3)))=beallitasok!$H$2),\"\",IF(D60=\"\",\"\",beallitasok!$B$2)),\"\")","v":"2020-12-31"},{"$f":"IF(VALUE(LEFT(ZARO_FOKONYV!A60,1))<=beallitasok!$H$8,ZARO_FOKONYV!B60,\"\")","v":"Eredménytartalék"},{"$f":"IF(B60=\"\",\"\",IF(beallitasok!$B$6=\"\",\"\",beallitasok!$B$6))","v":"NYITÓ"},{"$f":"IF(B60=\"\",\"\",ROUND(ZARO_FOKONYV!C60+ZARO_FOKONYV!D60,0))","v":26549496},{"$f":"IF(B60=\"\",\"\",LEFT(IF(ZARO_FOKONYV!C60>0,IFERROR(VLOOKUP(ZARO_FOKONYV!$A60,FKCSERE!$A:$B,2,FALSE),ZARO_FOKONYV!$A60),beallitasok!$B$3)&\"00000\",6))","v":"491000"},{"$f":"IF(B60=\"\",\"\",LEFT(IF(ZARO_FOKONYV!D60>0,IFERROR(VLOOKUP(ZARO_FOKONYV!$A60,FKCSERE!$A:$B,2,FALSE),ZARO_FOKONYV!$A60),beallitasok!$B$3)&\"000000\",6))","v":"413000"},null,{"$f":"IF(LEFT(E60,3)=LEFT(beallitasok!$B$3,3),\"\",$B60)","v":""},{"$f":"IF(LEFT(F60,3)=LEFT(beallitasok!$B$3,3),\"\",$B60)","v":"Eredménytartalék"},{"$f":"IF(AND(LEN(ZARO_FOKONYV!A60)<LEN(ZARO_FOKONYV!A61),LEFT(ZARO_FOKONYV!A61,LEN(ZARO_FOKONYV!A60))=ZARO_FOKONYV!A60),\"IGEN\",\"nem\")","v":"nem"}]
[{"$f":"IFERROR(IF(OR(AND(beallitasok!$H$5=\"IGEN\",J61=\"IGEN\"),B61=\"\",VALUE(LEFT(F61,LEN(beallitasok!$H$2)))=beallitasok!$H$2,VALUE(LEFT(E61,LEN(beallitasok!$H$3)))=beallitasok!$H$3,VALUE(LEFT(F61,LEN(beallitasok!$H$2)))=beallitasok!$H$3,VALUE(LEFT(E61,LEN(beallitasok!$H$3)))=beallitasok!$H$2),\"\",IF(D61=\"\",\"\",beallitasok!$B$2)),\"\")","v":""},{"$f":"IF(VALUE(LEFT(ZARO_FOKONYV!A61,1))<=beallitasok!$H$8,ZARO_FOKONYV!B61,\"\")","v":"Lekötött tartalék"},{"$f":"IF(B61=\"\",\"\",IF(beallitasok!$B$6=\"\",\"\",beallitasok!$B$6))","v":"NYITÓ"},{"$f":"IF(B61=\"\",\"\",ROUND(ZARO_FOKONYV!C61+ZARO_FOKONYV!D61,0))","v":0},{"$f":"IF(B61=\"\",\"\",LEFT(IF(ZARO_FOKONYV!C61>0,IFERROR(VLOOKUP(ZARO_FOKONYV!$A61,FKCSERE!$A:$B,2,FALSE),ZARO_FOKONYV!$A61),beallitasok!$B$3)&\"00000\",6))","v":"491000"},{"$f":"IF(B61=\"\",\"\",LEFT(IF(ZARO_FOKONYV!D61>0,IFERROR(VLOOKUP(ZARO_FOKONYV!$A61,FKCSERE!$A:$B,2,FALSE),ZARO_FOKONYV!$A61),beallitasok!$B$3)&\"000000\",6))","v":"491000"},null,{"$f":"IF(LEFT(E61,3)=LEFT(beallitasok!$B$3,3),\"\",$B61)","v":""},{"$f":"IF(LEFT(F61,3)=LEFT(beallitasok!$B$3,3),\"\",$B61)","v":""},{"$f":"IF(AND(LEN(ZARO_FOKONYV!A61)<LEN(ZARO_FOKONYV!A62),LEFT(ZARO_FOKONYV!A62,LEN(ZARO_FOKONYV!A61))=ZARO_FOKONYV!A61),\"IGEN\",\"nem\")","v":"IGEN"}]
[{"$f":"IFERROR(IF(OR(AND(beallitasok!$H$5=\"IGEN\",J62=\"IGEN\"),B62=\"\",VALUE(LEFT(F62,LEN(beallitasok!$H$2)))=beallitasok!$H$2,VALUE(LEFT(E62,LEN(beallitasok!$H$3)))=beallitasok!$H$3,VALUE(LEFT(F62,LEN(beallitasok!$H$2)))=beallitasok!$H$3,VALUE(LEFT(E62,LEN(beallitasok!$H$3)))=beallitasok!$H$2),\"\",IF(D62=\"\",\"\",beallitasok!$B$2)),\"\")","v":"2020-12-31"},{"$f":"IF(VALUE(LEFT(ZARO_FOKONYV!A62,1))<=beallitasok!$H$8,ZARO_FOKONYV!B62,\"\")","v":"Lekötött tartalék eredménytartalékból"},{"$f":"IF(B62=\"\",\"\",IF(beallitasok!$B$6=\"\",\"\",beallitasok!$B$6))","v":"NYITÓ"},{"$f":"IF(B62=\"\",\"\",ROUND(ZARO_FOKONYV!C62+ZARO_FOKONYV!D62,0))","v":0},{"$f":"IF(B62=\"\",\"\",LEFT(IF(ZARO_FOKONYV!C62>0,IFERROR(VLOOKUP(ZARO_FOKONYV!$A62,FKCSERE!$A:$B,2,FALSE),ZARO_FOKONYV!$A62),beallitasok!$B$3)&\"00000\",6))","v":"491000"},{"$f":"IF(B62=\"\",\"\",LEFT(IF(ZARO_FOKONYV!D62>0,IFERROR(VLOOKUP(ZARO_FOKONYV!$A62,FKCSERE!$A:$B,2,FALSE),ZARO_FOKONYV!$A62),beallitasok!$B$3)&\"000000\",6))","v":"491000"},null,{"$f":"IF(LEFT(E62,3)=LEFT(beallitasok!$B$3,3),\"\",$B62)","v":""},{"$f":"IF(LEFT(F62,3)=LEFT(beallitasok!$B$3,3),\"\",$B62)","v":""},{"$f":"IF(AND(LEN(ZARO_FOKONYV!A62)<LEN(ZARO_FOKONYV!A63),LEFT(ZARO_FOKONYV!A63,LEN(ZARO_FOKONYV!A62))=ZARO_FOKONYV!A62),\"IGEN\",\"nem\")","v":"nem"}]
[{"$f":"IFERROR(IF(OR(AND(beallitasok!$H$5=\"IGEN\",J63=\"IGEN\"),B63=\"\",VALUE(LEFT(F63,LEN(beallitasok!$H$2)))=beallitasok!$H$2,VALUE(LEFT(E63,LEN(beallitasok!$H$3)))=beallitasok!$H$3,VALUE(LEFT(F63,LEN(beallitasok!$H$2)))=beallitasok!$H$3,VALUE(LEFT(E63,LEN(beallitasok!$H$3)))=beallitasok!$H$2),\"\",IF(D63=\"\",\"\",beallitasok!$B$2)),\"\")","v":""},{"$f":"IF(VALUE(LEFT(ZARO_FOKONYV!A63,1))<=beallitasok!$H$8,ZARO_FOKONYV!B63,\"\")","v":"HOSSZÚ LEJÁRATÚ KÖTELEZETTSÉGEK"},{"$f":"IF(B63=\"\",\"\",IF(beallitasok!$B$6=\"\",\"\",beallitasok!$B$6))","v":"NYITÓ"},{"$f":"IF(B63=\"\",\"\",ROUND(ZARO_FOKONYV!C63+ZARO_FOKONYV!D63,0))","v":62295444},{"$f":"IF(B63=\"\",\"\",LEFT(IF(ZARO_FOKONYV!C63>0,IFERROR(VLOOKUP(ZARO_FOKONYV!$A63,FKCSERE!$A:$B,2,FALSE),ZARO_FOKONYV!$A63),beallitasok!$B$3)&\"00000\",6))","v":"491000"},{"$f":"IF(B63=\"\",\"\",LEFT(IF(ZARO_FOKONYV!D63>0,IFERROR(VLOOKUP(ZARO_FOKONYV!$A63,FKCSERE!$A:$B,2,FALSE),ZARO_FOKONYV!$A63),beallitasok!$B$3)&\"000000\",6))","v":"440000"},null,{"$f":"IF(LEFT(E63,3)=LEFT(beallitasok!$B$3,3),\"\",$B63)","v":""},{"$f":"IF(LEFT(F63,3)=LEFT(beallitasok!$B$3,3),\"\",$B63)","v":"HOSSZÚ LEJÁRATÚ KÖTELEZETTSÉGEK"},{"$f":"IF(AND(LEN(ZARO_FOKONYV!A63)<LEN(ZARO_FOKONYV!A64),LEFT(ZARO_FOKONYV!A64,LEN(ZARO_FOKONYV!A63))=ZARO_FOKONYV!A63),\"IGEN\",\"nem\")","v":"IGEN"}]
[{"$f":"IFERROR(IF(OR(AND(beallitasok!$H$5=\"IGEN\",J64=\"IGEN\"),B64=\"\",VALUE(LEFT(F64,LEN(beallitasok!$H$2)))=beallitasok!$H$2,VALUE(LEFT(E64,LEN(beallitasok!$H$3)))=beallitasok!$H$3,VALUE(LEFT(F64,LEN(beallitasok!$H$2)))=beallitasok!$H$3,VALUE(LEFT(E64,LEN(beallitasok!$H$3)))=beallitasok!$H$2),\"\",IF(D64=\"\",\"\",beallitasok!$B$2)),\"\")","v":"2020-12-31"},{"$f":"IF(VALUE(LEFT(ZARO_FOKONYV!A64,1))<=beallitasok!$H$8,ZARO_FOKONYV!B64,\"\")","v":"ABC-123 lízing"},{"$f":"IF(B64=\"\",\"\",IF(beallitasok!$B$6=\"\",\"\",beallitasok!$B$6))","v":"NYITÓ"},{"$f":"IF(B64=\"\",\"\",ROUND(ZARO_FOKONYV!C64+ZARO_FOKONYV!D64,0))","v":1293708},{"$f":"IF(B64=\"\",\"\",LEFT(IF(ZARO_FOKONYV!C64>0,IFERROR(VLOOKUP(ZARO_FOKONYV!$A64,FKCSERE!$A:$B,2,FALSE),ZARO_FOKONYV!$A64),beallitasok!$B$3)&\"00000\",6))","v":"441200"},{"$f":"IF(B64=\"\",\"\",LEFT(IF(ZARO_FOKONYV!D64>0,IFERROR(VLOOKUP(ZARO_FOKONYV!$A64,FKCSERE!$A:$B,2,FALSE),ZARO_FOKONYV!$A64),beallitasok!$B$3)&\"000000\",6))","v":"491000"},null,{"$f":"IF(LEFT(E64,3)=LEFT(beallitasok!$B$3,3),\"\",$B64)","v":"ABC-123 lízing"},{"$f":"IF(LEFT(F64,3)=LEFT(beallitasok!$B$3,3),\"\",$B64)","v":""},{"$f":"IF(AND(LEN(ZARO_FOKONYV!A64)<LEN(ZARO_FOKONYV!A65),LEFT(ZARO_FOKONYV!A65,LEN(ZARO_FOKONYV!A64))=ZARO_FOKONYV!A64),\"IGEN\",\"nem\")","v":"nem"}]
[{"$f":"IFERROR(IF(OR(AND(beallitasok!$H$5=\"IGEN\",J65=\"IGEN\"),B65=\"\",VALUE(LEFT(F65,LEN(beallitasok!$H$2)))=beallitasok!$H$2,VALUE(LEFT(E65,LEN(beallitasok!$H$3)))=beallitasok!$H$3,VALUE(LEFT(F65,LEN(beallitasok!$H$2)))=beallitasok!$H$3,VALUE(LEFT(E65,LEN(beallitasok!$H$3)))=beallitasok!$H$2),\"\",IF(D65=\"\",\"\",beallitasok!$B$2)),\"\")","v":"2020-12-31"},{"$f":"IF(VALUE(LEFT(ZARO_FOKONYV!A65,1))<=beallitasok!$H$8,ZARO_FOKONYV!B65,\"\")","v":"ABC-234 lízing"},{"$f":"IF(B65=\"\",\"\",IF(beallitasok!$B$6=\"\",\"\",beallitasok!$B$6))","v":"NYITÓ"},{"$f":"IF(B65=\"\",\"\",ROUND(ZARO_FOKONYV!C65+ZARO_FOKONYV!D65,0))","v":892236},{"$f":"IF(B65=\"\",\"\",LEFT(IF(ZARO_FOKONYV!C65>0,IFERROR(VLOOKUP(ZARO_FOKONYV!$A65,FKCSERE!$A:$B,2,FALSE),ZARO_FOKONYV!$A65),beallitasok!$B$3)&\"00000\",6))","v":"491000"},{"$f":"IF(B65=\"\",\"\",LEFT(IF(ZARO_FOKONYV!D65>0,IFERROR(VLOOKUP(ZARO_FOKONYV!$A65,FKCSERE!$A:$B,2,FALSE),ZARO_FOKONYV!$A65),beallitasok!$B$3)&\"000000\",6))","v":"441600"},null,{"$f":"IF(LEFT(E65,3)=LEFT(beallitasok!$B$3,3),\"\",$B65)","v":""},{"$f":"IF(LEFT(F65,3)=LEFT(beallitasok!$B$3,3),\"\",$B65)","v":"ABC-234 lízing"},{"$f":"IF(AND(LEN(ZARO_FOKONYV!A65)<LEN(ZARO_FOKONYV!A66),LEFT(ZARO_FOKONYV!A66,LEN(ZARO_FOKONYV!A65))=ZARO_FOKONYV!A65),\"IGEN\",\"nem\")","v":"nem"}]
[{"$f":"IFERROR(IF(OR(AND(beallitasok!$H$5=\"IGEN\",J66=\"IGEN\"),B66=\"\",VALUE(LEFT(F66,LEN(beallitasok!$H$2)))=beallitasok!$H$2,VALUE(LEFT(E66,LEN(beallitasok!$H$3)))=beallitasok!$H$3,VALUE(LEFT(F66,LEN(beallitasok!$H$2)))=beallitasok!$H$3,VALUE(LEFT(E66,LEN(beallitasok!$H$3)))=beallitasok!$H$2),\"\",IF(D66=\"\",\"\",beallitasok!$B$2)),\"\")","v":""},{"$f":"IF(VALUE(LEFT(ZARO_FOKONYV!A66,1))<=beallitasok!$H$8,ZARO_FOKONYV!B66,\"\")","v":"Beruházási és fejlsztési hitelek"},{"$f":"IF(B66=\"\",\"\",IF(beallitasok!$B$6=\"\",\"\",beallitasok!$B$6))","v":"NYITÓ"},{"$f":"IF(B66=\"\",\"\",ROUND(ZARO_FOKONYV!C66+ZARO_FOKONYV!D66,0))","v":59177911},{"$f":"IF(B66=\"\",\"\",LEFT(IF(ZARO_FOKONYV!C66>0,IFERROR(VLOOKUP(ZARO_FOKONYV!$A66,FKCSERE!$A:$B,2,FALSE),ZARO_FOKONYV!$A66),beallitasok!$B$3)&\"00000\",6))","v":"491000"},{"$f":"IF(B66=\"\",\"\",LEFT(IF(ZARO_FOKONYV!D66>0,IFERROR(VLOOKUP(ZARO_FOKONYV!$A66,FKCSERE!$A:$B,2,FALSE),ZARO_FOKONYV!$A66),beallitasok!$B$3)&\"000000\",6))","v":"444000"},null,{"$f":"IF(LEFT(E66,3)=LEFT(beallitasok!$B$3,3),\"\",$B66)","v":""},{"$f":"IF(LEFT(F66,3)=LEFT(beallitasok!$B$3,3),\"\",$B66)","v":"Beruházási és fejlsztési hitelek"},{"$f":"IF(AND(LEN(ZARO_FOKONYV!A66)<LEN(ZARO_FOKONYV!A67),LEFT(ZARO_FOKONYV!A67,LEN(ZARO_FOKONYV!A66))=ZARO_FOKONYV!A66),\"IGEN\",\"nem\")","v":"IGEN"}]
[{"$f":"IFERROR(IF(OR(AND(beallitasok!$H$5=\"IGEN\",J67=\"IGEN\"),B67=\"\",VALUE(LEFT(F67,LEN(beallitasok!$H$2)))=beallitasok!$H$2,VALUE(LEFT(E67,LEN(beallitasok!$H$3)))=beallitasok!$H$3,VALUE(LEFT(F67,LEN(beallitasok!$H$2)))=beallitasok!$H$3,VALUE(LEFT(E67,LEN(beallitasok!$H$3)))=beallitasok!$H$2),\"\",IF(D67=\"\",\"\",beallitasok!$B$2)),\"\")","v":"2020-12-31"},{"$f":"IF(VALUE(LEFT(ZARO_FOKONYV!A67,1))<=beallitasok!$H$8,ZARO_FOKONYV!B67,\"\")","v":"Beruházási és fejlesztési hitelek forintban"},{"$f":"IF(B67=\"\",\"\",IF(beallitasok!$B$6=\"\",\"\",beallitasok!$B$6))","v":"NYITÓ"},{"$f":"IF(B67=\"\",\"\",ROUND(ZARO_FOKONYV!C67+ZARO_FOKONYV!D67,0))","v":59177911},{"$f":"IF(B67=\"\",\"\",LEFT(IF(ZARO_FOKONYV!C67>0,IFERROR(VLOOKUP(ZARO_FOKONYV!$A67,FKCSERE!$A:$B,2,FALSE),ZARO_FOKONYV!$A67),beallitasok!$B$3)&\"00000\",6))","v":"491000"},{"$f":"IF(B67=\"\",\"\",LEFT(IF(ZARO_FOKONYV!D67>0,IFERROR(VLOOKUP(ZARO_FOKONYV!$A67,FKCSERE!$A:$B,2,FALSE),ZARO_FOKONYV!$A67),beallitasok!$B$3)&\"000000\",6))","v":"444100"},null,{"$f":"IF(LEFT(E67,3)=LEFT(beallitasok!$B$3,3),\"\",$B67)","v":""},{"$f":"IF(LEFT(F67,3)=LEFT(beallitasok!$B$3,3),\"\",$B67)","v":"Beruházási és fejlesztési hitelek forintban"},{"$f":"IF(AND(LEN(ZARO_FOKONYV!A67)<LEN(ZARO_FOKONYV!A68),LEFT(ZARO_FOKONYV!A68,LEN(ZARO_FOKONYV!A67))=ZARO_FOKONYV!A67),\"IGEN\",\"nem\")","v":"nem"}]
[{"$f":"IFERROR(IF(OR(AND(beallitasok!$H$5=\"IGEN\",J68=\"IGEN\"),B68=\"\",VALUE(LEFT(F68,LEN(beallitasok!$H$2)))=beallitasok!$H$2,VALUE(LEFT(E68,LEN(beallitasok!$H$3)))=beallitasok!$H$3,VALUE(LEFT(F68,LEN(beallitasok!$H$2)))=beallitasok!$H$3,VALUE(LEFT(E68,LEN(beallitasok!$H$3)))=beallitasok!$H$2),\"\",IF(D68=\"\",\"\",beallitasok!$B$2)),\"\")","v":"2020-12-31"},{"$f":"IF(VALUE(LEFT(ZARO_FOKONYV!A68,1))<=beallitasok!$H$8,ZARO_FOKONYV!B68,\"\")","v":"lizing Smart"},{"$f":"IF(B68=\"\",\"\",IF(beallitasok!$B$6=\"\",\"\",beallitasok!$B$6))","v":"NYITÓ"},{"$f":"IF(B68=\"\",\"\",ROUND(ZARO_FOKONYV!C68+ZARO_FOKONYV!D68,0))","v":3519005},{"$f":"IF(B68=\"\",\"\",LEFT(IF(ZARO_FOKONYV!C68>0,IFERROR(VLOOKUP(ZARO_FOKONYV!$A68,FKCSERE!$A:$B,2,FALSE),ZARO_FOKONYV!$A68),beallitasok!$B$3)&\"00000\",6))","v":"491000"},{"$f":"IF(B68=\"\",\"\",LEFT(IF(ZARO_FOKONYV!D68>0,IFERROR(VLOOKUP(ZARO_FOKONYV!$A68,FKCSERE!$A:$B,2,FALSE),ZARO_FOKONYV!$A68),beallitasok!$B$3)&\"000000\",6))","v":"448100"},null,{"$f":"IF(LEFT(E68,3)=LEFT(beallitasok!$B$3,3),\"\",$B68)","v":""},{"$f":"IF(LEFT(F68,3)=LEFT(beallitasok!$B$3,3),\"\",$B68)","v":"lizing Smart"},{"$f":"IF(AND(LEN(ZARO_FOKONYV!A68)<LEN(ZARO_FOKONYV!A69),LEFT(ZARO_FOKONYV!A69,LEN(ZARO_FOKONYV!A68))=ZARO_FOKONYV!A68),\"IGEN\",\"nem\")","v":"nem"}]
[{"$f":"IFERROR(IF(OR(AND(beallitasok!$H$5=\"IGEN\",J69=\"IGEN\"),B69=\"\",VALUE(LEFT(F69,LEN(beallitasok!$H$2)))=beallitasok!$H$2,VALUE(LEFT(E69,LEN(beallitasok!$H$3)))=beallitasok!$H$3,VALUE(LEFT(F69,LEN(beallitasok!$H$2)))=beallitasok!$H$3,VALUE(LEFT(E69,LEN(beallitasok!$H$3)))=beallitasok!$H$2),\"\",IF(D69=\"\",\"\",beallitasok!$B$2)),\"\")","v":""},{"$f":"IF(VALUE(LEFT(ZARO_FOKONYV!A69,1))<=beallitasok!$H$8,ZARO_FOKONYV!B69,\"\")","v":"RÖVID LEJÁRATÚ KÖTELEZETTSÉGEK"},{"$f":"IF(B69=\"\",\"\",IF(beallitasok!$B$6=\"\",\"\",beallitasok!$B$6))","v":"NYITÓ"},{"$f":"IF(B69=\"\",\"\",ROUND(ZARO_FOKONYV!C69+ZARO_FOKONYV!D69,0))","v":49002940},{"$f":"IF(B69=\"\",\"\",LEFT(IF(ZARO_FOKONYV!C69>0,IFERROR(VLOOKUP(ZARO_FOKONYV!$A69,FKCSERE!$A:$B,2,FALSE),ZARO_FOKONYV!$A69),beallitasok!$B$3)&\"00000\",6))","v":"491000"},{"$f":"IF(B69=\"\",\"\",LEFT(IF(ZARO_FOKONYV!D69>0,IFERROR(VLOOKUP(ZARO_FOKONYV!$A69,FKCSERE!$A:$B,2,FALSE),ZARO_FOKONYV!$A69),beallitasok!$B$3)&\"000000\",6))","v":"450000"},null,{"$f":"IF(LEFT(E69,3)=LEFT(beallitasok!$B$3,3),\"\",$B69)","v":""},{"$f":"IF(LEFT(F69,3)=LEFT(beallitasok!$B$3,3),\"\",$B69)","v":"RÖVID LEJÁRATÚ KÖTELEZETTSÉGEK"},{"$f":"IF(AND(LEN(ZARO_FOKONYV!A69)<LEN(ZARO_FOKONYV!A70),LEFT(ZARO_FOKONYV!A70,LEN(ZARO_FOKONYV!A69))=ZARO_FOKONYV!A69),\"IGEN\",\"nem\")","v":"IGEN"}]
[{"$f":"IFERROR(IF(OR(AND(beallitasok!$H$5=\"IGEN\",J70=\"IGEN\"),B70=\"\",VALUE(LEFT(F70,LEN(beallitasok!$H$2)))=beallitasok!$H$2,VALUE(LEFT(E70,LEN(beallitasok!$H$3)))=beallitasok!$H$3,VALUE(LEFT(F70,LEN(beallitasok!$H$2)))=beallitasok!$H$3,VALUE(LEFT(E70,LEN(beallitasok!$H$3)))=beallitasok!$H$2),\"\",IF(D70=\"\",\"\",beallitasok!$B$2)),\"\")","v":""},{"$f":"IF(VALUE(LEFT(ZARO_FOKONYV!A70,1))<=beallitasok!$H$8,ZARO_FOKONYV!B70,\"\")","v":"Rövid lejáratú hitelek"},{"$f":"IF(B70=\"\",\"\",IF(beallitasok!$B$6=\"\",\"\",beallitasok!$B$6))","v":"NYITÓ"},{"$f":"IF(B70=\"\",\"\",ROUND(ZARO_FOKONYV!C70+ZARO_FOKONYV!D70,0))","v":17284774},{"$f":"IF(B70=\"\",\"\",LEFT(IF(ZARO_FOKONYV!C70>0,IFERROR(VLOOKUP(ZARO_FOKONYV!$A70,FKCSERE!$A:$B,2,FALSE),ZARO_FOKONYV!$A70),beallitasok!$B$3)&\"00000\",6))","v":"491000"},{"$f":"IF(B70=\"\",\"\",LEFT(IF(ZARO_FOKONYV!D70>0,IFERROR(VLOOKUP(ZARO_FOKONYV!$A70,FKCSERE!$A:$B,2,FALSE),ZARO_FOKONYV!$A70),beallitasok!$B$3)&\"000000\",6))","v":"452000"},null,{"$f":"IF(LEFT(E70,3)=LEFT(beallitasok!$B$3,3),\"\",$B70)","v":""},{"$f":"IF(LEFT(F70,3)=LEFT(beallitasok!$B$3,3),\"\",$B70)","v":"Rövid lejáratú hitelek"},{"$f":"IF(AND(LEN(ZARO_FOKONYV!A70)<LEN(ZARO_FOKONYV!A71),LEFT(ZARO_FOKONYV!A71,LEN(ZARO_FOKONYV!A70))=ZARO_FOKONYV!A70),\"IGEN\",\"nem\")","v":"IGEN"}]
[{"$f":"IFERROR(IF(OR(AND(beallitasok!$H$5=\"IGEN\",J71=\"IGEN\"),B71=\"\",VALUE(LEFT(F71,LEN(beallitasok!$H$2)))=beallitasok!$H$2,VALUE(LEFT(E71,LEN(beallitasok!$H$3)))=beallitasok!$H$3,VALUE(LEFT(F71,LEN(beallitasok!$H$2)))=beallitasok!$H$3,VALUE(LEFT(E71,LEN(beallitasok!$H$3)))=beallitasok!$H$2),\"\",IF(D71=\"\",\"\",beallitasok!$B$2)),\"\")","v":"2020-12-31"},{"$f":"IF(VALUE(LEFT(ZARO_FOKONYV!A71,1))<=beallitasok!$H$8,ZARO_FOKONYV!B71,\"\")","v":"Rövid lejáratú hitelek forintban"},{"$f":"IF(B71=\"\",\"\",IF(beallitasok!$B$6=\"\",\"\",beallitasok!$B$6))","v":"NYITÓ"},{"$f":"IF(B71=\"\",\"\",ROUND(ZARO_FOKONYV!C71+ZARO_FOKONYV!D71,0))","v":17284774},{"$f":"IF(B71=\"\",\"\",LEFT(IF(ZARO_FOKONYV!C71>0,IFERROR(VLOOKUP(ZARO_FOKONYV!$A71,FKCSERE!$A:$B,2,FALSE),ZARO_FOKONYV!$A71),beallitasok!$B$3)&\"00000\",6))","v":"491000"},{"$f":"IF(B71=\"\",\"\",LEFT(IF(ZARO_FOKONYV!D71>0,IFERROR(VLOOKUP(ZARO_FOKONYV!$A71,FKCSERE!$A:$B,2,FALSE),ZARO_FOKONYV!$A71),beallitasok!$B$3)&\"000000\",6))","v":"452100"},null,{"$f":"IF(LEFT(E71,3)=LEFT(beallitasok!$B$3,3),\"\",$B71)","v":""},{"$f":"IF(LEFT(F71,3)=LEFT(beallitasok!$B$3,3),\"\",$B71)","v":"Rövid lejáratú hitelek forintban"},{"$f":"IF(AND(LEN(ZARO_FOKONYV!A71)<LEN(ZARO_FOKONYV!A72),LEFT(ZARO_FOKONYV!A72,LEN(ZARO_FOKONYV!A71))=ZARO_FOKONYV!A71),\"IGEN\",\"nem\")","v":"nem"}]
[{"$f":"IFERROR(IF(OR(AND(beallitasok!$H$5=\"IGEN\",J72=\"IGEN\"),B72=\"\",VALUE(LEFT(F72,LEN(beallitasok!$H$2)))=beallitasok!$H$2,VALUE(LEFT(E72,LEN(beallitasok!$H$3)))=beallitasok!$H$3,VALUE(LEFT(F72,LEN(beallitasok!$H$2)))=beallitasok!$H$3,VALUE(LEFT(E72,LEN(beallitasok!$H$3)))=beallitasok!$H$2),\"\",IF(D72=\"\",\"\",beallitasok!$B$2)),\"\")","v":""},{"$f":"IF(VALUE(LEFT(ZARO_FOKONYV!A72,1))<=beallitasok!$H$8,ZARO_FOKONYV!B72,\"\")","v":"Szállítók"},{"$f":"IF(B72=\"\",\"\",IF(beallitasok!$B$6=\"\",\"\",beallitasok!$B$6))","v":"NYITÓ"},{"$f":"IF(B72=\"\",\"\",ROUND(ZARO_FOKONYV!C72+ZARO_FOKONYV!D72,0))","v":31718166},{"$f":"IF(B72=\"\",\"\",LEFT(IF(ZARO_FOKONYV!C72>0,IFERROR(VLOOKUP(ZARO_FOKONYV!$A72,FKCSERE!$A:$B,2,FALSE),ZARO_FOKONYV!$A72),beallitasok!$B$3)&\"00000\",6))","v":"491000"},{"$f":"IF(B72=\"\",\"\",LEFT(IF(ZARO_FOKONYV!D72>0,IFERROR(VLOOKUP(ZARO_FOKONYV!$A72,FKCSERE!$A:$B,2,FALSE),ZARO_FOKONYV!$A72),beallitasok!$B$3)&\"000000\",6))","v":"454000"},null,{"$f":"IF(LEFT(E72,3)=LEFT(beallitasok!$B$3,3),\"\",$B72)","v":""},{"$f":"IF(LEFT(F72,3)=LEFT(beallitasok!$B$3,3),\"\",$B72)","v":"Szállítók"},{"$f":"IF(AND(LEN(ZARO_FOKONYV!A72)<LEN(ZARO_FOKONYV!A73),LEFT(ZARO_FOKONYV!A73,LEN(ZARO_FOKONYV!A72))=ZARO_FOKONYV!A72),\"IGEN\",\"nem\")","v":"IGEN"}]
[{"$f":"IFERROR(IF(OR(AND(beallitasok!$H$5=\"IGEN\",J73=\"IGEN\"),B73=\"\",VALUE(LEFT(F73,LEN(beallitasok!$H$2)))=beallitasok!$H$2,VALUE(LEFT(E73,LEN(beallitasok!$H$3)))=beallitasok!$H$3,VALUE(LEFT(F73,LEN(beallitasok!$H$2)))=beallitasok!$H$3,VALUE(LEFT(E73,LEN(beallitasok!$H$3)))=beallitasok!$H$2),\"\",IF(D73=\"\",\"\",beallitasok!$B$2)),\"\")","v":""},{"$f":"IF(VALUE(LEFT(ZARO_FOKONYV!A73,1))<=beallitasok!$H$8,ZARO_FOKONYV!B73,\"\")","v":"Belföldi anyag és áruszállítók"},{"$f":"IF(B73=\"\",\"\",IF(beallitasok!$B$6=\"\",\"\",beallitasok!$B$6))","v":"NYITÓ"},{"$f":"IF(B73=\"\",\"\",ROUND(ZARO_FOKONYV!C73+ZARO_FOKONYV!D73,0))","v":31718166},{"$f":"IF(B73=\"\",\"\",LEFT(IF(ZARO_FOKONYV!C73>0,IFERROR(VLOOKUP(ZARO_FOKONYV!$A73,FKCSERE!$A:$B,2,FALSE),ZARO_FOKONYV!$A73),beallitasok!$B$3)&\"00000\",6))","v":"491000"},{"$f":"IF(B73=\"\",\"\",LEFT(IF(ZARO_FOKONYV!D73>0,IFERROR(VLOOKUP(ZARO_FOKONYV!$A73,FKCSERE!$A:$B,2,FALSE),ZARO_FOKONYV!$A73),beallitasok!$B$3)&\"000000\",6))","v":"454100"},null,{"$f":"IF(LEFT(E73,3)=LEFT(beallitasok!$B$3,3),\"\",$B73)","v":""},{"$f":"IF(LEFT(F73,3)=LEFT(beallitasok!$B$3,3),\"\",$B73)","v":"Belföldi anyag és áruszállítók"},{"$f":"IF(AND(LEN(ZARO_FOKONYV!A73)<LEN(ZARO_FOKONYV!A74),LEFT(ZARO_FOKONYV!A74,LEN(ZARO_FOKONYV!A73))=ZARO_FOKONYV!A73),\"IGEN\",\"nem\")","v":"nem"}]
[{"$f":"IFERROR(IF(OR(AND(beallitasok!$H$5=\"IGEN\",J74=\"IGEN\"),B74=\"\",VALUE(LEFT(F74,LEN(beallitasok!$H$2)))=beallitasok!$H$2,VALUE(LEFT(E74,LEN(beallitasok!$H$3)))=beallitasok!$H$3,VALUE(LEFT(F74,LEN(beallitasok!$H$2)))=beallitasok!$H$3,VALUE(LEFT(E74,LEN(beallitasok!$H$3)))=beallitasok!$H$2),\"\",IF(D74=\"\",\"\",beallitasok!$B$2)),\"\")","v":"2020-12-31"},{"$f":"IF(VALUE(LEFT(ZARO_FOKONYV!A74,1))<=beallitasok!$H$8,ZARO_FOKONYV!B74,\"\")","v":"Társasági adó elszámolása"},{"$f":"IF(B74=\"\",\"\",IF(beallitasok!$B$6=\"\",\"\",beallitasok!$B$6))","v":"NYITÓ"},{"$f":"IF(B74=\"\",\"\",ROUND(ZARO_FOKONYV!C74+ZARO_FOKONYV!D74,0))","v":1053300},{"$f":"IF(B74=\"\",\"\",LEFT(IF(ZARO_FOKONYV!C74>0,IFERROR(VLOOKUP(ZARO_FOKONYV!$A74,FKCSERE!$A:$B,2,FALSE),ZARO_FOKONYV!$A74),beallitasok!$B$3)&\"00000\",6))","v":"491000"},{"$f":"IF(B74=\"\",\"\",LEFT(IF(ZARO_FOKONYV!D74>0,IFERROR(VLOOKUP(ZARO_FOKONYV!$A74,FKCSERE!$A:$B,2,FALSE),ZARO_FOKONYV!$A74),beallitasok!$B$3)&\"000000\",6))","v":"461000"},null,{"$f":"IF(LEFT(E74,3)=LEFT(beallitasok!$B$3,3),\"\",$B74)","v":""},{"$f":"IF(LEFT(F74,3)=LEFT(beallitasok!$B$3,3),\"\",$B74)","v":"Társasági adó elszámolása"},{"$f":"IF(AND(LEN(ZARO_FOKONYV!A74)<LEN(ZARO_FOKONYV!A75),LEFT(ZARO_FOKONYV!A75,LEN(ZARO_FOKONYV!A74))=ZARO_FOKONYV!A74),\"IGEN\",\"nem\")","v":"nem"}]
[{"$f":"IFERROR(IF(OR(AND(beallitasok!$H$5=\"IGEN\",J75=\"IGEN\"),B75=\"\",VALUE(LEFT(F75,LEN(beallitasok!$H$2)))=beallitasok!$H$2,VALUE(LEFT(E75,LEN(beallitasok!$H$3)))=beallitasok!$H$3,VALUE(LEFT(F75,LEN(beallitasok!$H$2)))=beallitasok!$H$3,VALUE(LEFT(E75,LEN(beallitasok!$H$3)))=beallitasok!$H$2),\"\",IF(D75=\"\",\"\",beallitasok!$B$2)),\"\")","v":"2020-12-31"},{"$f":"IF(VALUE(LEFT(ZARO_FOKONYV!A75,1))<=beallitasok!$H$8,ZARO_FOKONYV!B75,\"\")","v":"Személyi jövedelemadó elszámolása"},{"$f":"IF(B75=\"\",\"\",IF(beallitasok!$B$6=\"\",\"\",beallitasok!$B$6))","v":"NYITÓ"},{"$f":"IF(B75=\"\",\"\",ROUND(ZARO_FOKONYV!C75+ZARO_FOKONYV!D75,0))","v":376000},{"$f":"IF(B75=\"\",\"\",LEFT(IF(ZARO_FOKONYV!C75>0,IFERROR(VLOOKUP(ZARO_FOKONYV!$A75,FKCSERE!$A:$B,2,FALSE),ZARO_FOKONYV!$A75),beallitasok!$B$3)&\"00000\",6))","v":"491000"},{"$f":"IF(B75=\"\",\"\",LEFT(IF(ZARO_FOKONYV!D75>0,IFERROR(VLOOKUP(ZARO_FOKONYV!$A75,FKCSERE!$A:$B,2,FALSE),ZARO_FOKONYV!$A75),beallitasok!$B$3)&\"000000\",6))","v":"462000"},null,{"$f":"IF(LEFT(E75,3)=LEFT(beallitasok!$B$3,3),\"\",$B75)","v":""},{"$f":"IF(LEFT(F75,3)=LEFT(beallitasok!$B$3,3),\"\",$B75)","v":"Személyi jövedelemadó elszámolása"},{"$f":"IF(AND(LEN(ZARO_FOKONYV!A75)<LEN(ZARO_FOKONYV!A76),LEFT(ZARO_FOKONYV!A76,LEN(ZARO_FOKONYV!A75))=ZARO_FOKONYV!A75),\"IGEN\",\"nem\")","v":"nem"}]
[{"$f":"IFERROR(IF(OR(AND(beallitasok!$H$5=\"IGEN\",J76=\"IGEN\"),B76=\"\",VALUE(LEFT(F76,LEN(beallitasok!$H$2)))=beallitasok!$H$2,VALUE(LEFT(E76,LEN(beallitasok!$H$3)))=beallitasok!$H$3,VALUE(LEFT(F76,LEN(beallitasok!$H$2)))=beallitasok!$H$3,VALUE(LEFT(E76,LEN(beallitasok!$H$3)))=beallitasok!$H$2),\"\",IF(D76=\"\",\"\",beallitasok!$B$2)),\"\")","v":""},{"$f":"IF(VALUE(LEFT(ZARO_FOKONYV!A76,1))<=beallitasok!$H$8,ZARO_FOKONYV!B76,\"\")","v":"Költségvetési befizetési kötelezettségek"},{"$f":"IF(B76=\"\",\"\",IF(beallitasok!$B$6=\"\",\"\",beallitasok!$B$6))","v":"NYITÓ"},{"$f":"IF(B76=\"\",\"\",ROUND(ZARO_FOKONYV!C76+ZARO_FOKONYV!D76,0))","v":690260},{"$f":"IF(B76=\"\",\"\",LEFT(IF(ZARO_FOKONYV!C76>0,IFERROR(VLOOKUP(ZARO_FOKONYV!$A76,FKCSERE!$A:$B,2,FALSE),ZARO_FOKONYV!$A76),beallitasok!$B$3)&\"00000\",6))","v":"491000"},{"$f":"IF(B76=\"\",\"\",LEFT(IF(ZARO_FOKONYV!D76>0,IFERROR(VLOOKUP(ZARO_FOKONYV!$A76,FKCSERE!$A:$B,2,FALSE),ZARO_FOKONYV!$A76),beallitasok!$B$3)&\"000000\",6))","v":"463000"},null,{"$f":"IF(LEFT(E76,3)=LEFT(beallitasok!$B$3,3),\"\",$B76)","v":""},{"$f":"IF(LEFT(F76,3)=LEFT(beallitasok!$B$3,3),\"\",$B76)","v":"Költségvetési befizetési kötelezettségek"},{"$f":"IF(AND(LEN(ZARO_FOKONYV!A76)<LEN(ZARO_FOKONYV!A77),LEFT(ZARO_FOKONYV!A77,LEN(ZARO_FOKONYV!A76))=ZARO_FOKONYV!A76),\"IGEN\",\"nem\")","v":"IGEN"}]
[{"$f":"IFERROR(IF(OR(AND(beallitasok!$H$5=\"IGEN\",J77=\"IGEN\"),B77=\"\",VALUE(LEFT(F77,LEN(beallitasok!$H$2)))=beallitasok!$H$2,VALUE(LEFT(E77,LEN(beallitasok!$H$3)))=beallitasok!$H$3,VALUE(LEFT(F77,LEN(beallitasok!$H$2)))=beallitasok!$H$3,VALUE(LEFT(E77,LEN(beallitasok!$H$3)))=beallitasok!$H$2),\"\",IF(D77=\"\",\"\",beallitasok!$B$2)),\"\")","v":"2020-12-31"},{"$f":"IF(VALUE(LEFT(ZARO_FOKONYV!A77,1))<=beallitasok!$H$8,ZARO_FOKONYV!B77,\"\")","v":"Egészségügyi hozzájárulás"},{"$f":"IF(B77=\"\",\"\",IF(beallitasok!$B$6=\"\",\"\",beallitasok!$B$6))","v":"NYITÓ"},{"$f":"IF(B77=\"\",\"\",ROUND(ZARO_FOKONYV!C77+ZARO_FOKONYV!D77,0))","v":46260},{"$f":"IF(B77=\"\",\"\",LEFT(IF(ZARO_FOKONYV!C77>0,IFERROR(VLOOKUP(ZARO_FOKONYV!$A77,FKCSERE!$A:$B,2,FALSE),ZARO_FOKONYV!$A77),beallitasok!$B$3)&\"00000\",6))","v":"491000"},{"$f":"IF(B77=\"\",\"\",LEFT(IF(ZARO_FOKONYV!D77>0,IFERROR(VLOOKUP(ZARO_FOKONYV!$A77,FKCSERE!$A:$B,2,FALSE),ZARO_FOKONYV!$A77),beallitasok!$B$3)&\"000000\",6))","v":"463100"},null,{"$f":"IF(LEFT(E77,3)=LEFT(beallitasok!$B$3,3),\"\",$B77)","v":""},{"$f":"IF(LEFT(F77,3)=LEFT(beallitasok!$B$3,3),\"\",$B77)","v":"Egészségügyi hozzájárulás"},{"$f":"IF(AND(LEN(ZARO_FOKONYV!A77)<LEN(ZARO_FOKONYV!A78),LEFT(ZARO_FOKONYV!A78,LEN(ZARO_FOKONYV!A77))=ZARO_FOKONYV!A77),\"IGEN\",\"nem\")","v":"nem"}]
[{"$f":"IFERROR(IF(OR(AND(beallitasok!$H$5=\"IGEN\",J78=\"IGEN\"),B78=\"\",VALUE(LEFT(F78,LEN(beallitasok!$H$2)))=beallitasok!$H$2,VALUE(LEFT(E78,LEN(beallitasok!$H$3)))=beallitasok!$H$3,VALUE(LEFT(F78,LEN(beallitasok!$H$2)))=beallitasok!$H$3,VALUE(LEFT(E78,LEN(beallitasok!$H$3)))=beallitasok!$H$2),\"\",IF(D78=\"\",\"\",beallitasok!$B$2)),\"\")","v":"2020-12-31"},{"$f":"IF(VALUE(LEFT(ZARO_FOKONYV!A78,1))<=beallitasok!$H$8,ZARO_FOKONYV!B78,\"\")","v":"Külön fel nem sorolt befizetési kötelezettségek"},{"$f":"IF(B78=\"\",\"\",IF(beallitasok!$B$6=\"\",\"\",beallitasok!$B$6))","v":"NYITÓ"},{"$f":"IF(B78=\"\",\"\",ROUND(ZARO_FOKONYV!C78+ZARO_FOKONYV!D78,0))","v":3000},{"$f":"IF(B78=\"\",\"\",LEFT(IF(ZARO_FOKONYV!C78>0,IFERROR(VLOOKUP(ZARO_FOKONYV!$A78,FKCSERE!$A:$B,2,FALSE),ZARO_FOKONYV!$A78),beallitasok!$B$3)&\"00000\",6))","v":"491000"},{"$f":"IF(B78=\"\",\"\",LEFT(IF(ZARO_FOKONYV!D78>0,IFERROR(VLOOKUP(ZARO_FOKONYV!$A78,FKCSERE!$A:$B,2,FALSE),ZARO_FOKONYV!$A78),beallitasok!$B$3)&\"000000\",6))","v":"463110"},null,{"$f":"IF(LEFT(E78,3)=LEFT(beallitasok!$B$3,3),\"\",$B78)","v":""},{"$f":"IF(LEFT(F78,3)=LEFT(beallitasok!$B$3,3),\"\",$B78)","v":"Külön fel nem sorolt befizetési kötelezettségek"},{"$f":"IF(AND(LEN(ZARO_FOKONYV!A78)<LEN(ZARO_FOKONYV!A79),LEFT(ZARO_FOKONYV!A79,LEN(ZARO_FOKONYV!A78))=ZARO_FOKONYV!A78),\"IGEN\",\"nem\")","v":"nem"}]
[{"$f":"IFERROR(IF(OR(AND(beallitasok!$H$5=\"IGEN\",J79=\"IGEN\"),B79=\"\",VALUE(LEFT(F79,LEN(beallitasok!$H$2)))=beallitasok!$H$2,VALUE(LEFT(E79,LEN(beallitasok!$H$3)))=beallitasok!$H$3,VALUE(LEFT(F79,LEN(beallitasok!$H$2)))=beallitasok!$H$3,VALUE(LEFT(E79,LEN(beallitasok!$H$3)))=beallitasok!$H$2),\"\",IF(D79=\"\",\"\",beallitasok!$B$2)),\"\")","v":"2020-12-31"},{"$f":"IF(VALUE(LEFT(ZARO_FOKONYV!A79,1))<=beallitasok!$H$8,ZARO_FOKONYV!B79,\"\")","v":"APEH NYBA"},{"$f":"IF(B79=\"\",\"\",IF(beallitasok!$B$6=\"\",\"\",beallitasok!$B$6))","v":"NYITÓ"},{"$f":"IF(B79=\"\",\"\",ROUND(ZARO_FOKONYV!C79+ZARO_FOKONYV!D79,0))","v":148000},{"$f":"IF(B79=\"\",\"\",LEFT(IF(ZARO_FOKONYV!C79>0,IFERROR(VLOOKUP(ZARO_FOKONYV!$A79,FKCSERE!$A:$B,2,FALSE),ZARO_FOKONYV!$A79),beallitasok!$B$3)&\"00000\",6))","v":"491000"},{"$f":"IF(B79=\"\",\"\",LEFT(IF(ZARO_FOKONYV!D79>0,IFERROR(VLOOKUP(ZARO_FOKONYV!$A79,FKCSERE!$A:$B,2,FALSE),ZARO_FOKONYV!$A79),beallitasok!$B$3)&\"000000\",6))","v":"463120"},null,{"$f":"IF(LEFT(E79,3)=LEFT(beallitasok!$B$3,3),\"\",$B79)","v":""},{"$f":"IF(LEFT(F79,3)=LEFT(beallitasok!$B$3,3),\"\",$B79)","v":"APEH NYBA"},{"$f":"IF(AND(LEN(ZARO_FOKONYV!A79)<LEN(ZARO_FOKONYV!A80),LEFT(ZARO_FOKONYV!A80,LEN(ZARO_FOKONYV!A79))=ZARO_FOKONYV!A79),\"IGEN\",\"nem\")","v":"nem"}]
[{"$f":"IFERROR(IF(OR(AND(beallitasok!$H$5=\"IGEN\",J80=\"IGEN\"),B80=\"\",VALUE(LEFT(F80,LEN(beallitasok!$H$2)))=beallitasok!$H$2,VALUE(LEFT(E80,LEN(beallitasok!$H$3)))=beallitasok!$H$3,VALUE(LEFT(F80,LEN(beallitasok!$H$2)))=beallitasok!$H$3,VALUE(LEFT(E80,LEN(beallitasok!$H$3)))=beallitasok!$H$2),\"\",IF(D80=\"\",\"\",beallitasok!$B$2)),\"\")","v":"2020-12-31"},{"$f":"IF(VALUE(LEFT(ZARO_FOKONYV!A80,1))<=beallitasok!$H$8,ZARO_FOKONYV!B80,\"\")","v":"APEH EBA"},{"$f":"IF(B80=\"\",\"\",IF(beallitasok!$B$6=\"\",\"\",beallitasok!$B$6))","v":"NYITÓ"},{"$f":"IF(B80=\"\",\"\",ROUND(ZARO_FOKONYV!C80+ZARO_FOKONYV!D80,0))","v":126000},{"$f":"IF(B80=\"\",\"\",LEFT(IF(ZARO_FOKONYV!C80>0,IFERROR(VLOOKUP(ZARO_FOKONYV!$A80,FKCSERE!$A:$B,2,FALSE),ZARO_FOKONYV!$A80),beallitasok!$B$3)&\"00000\",6))","v":"491000"},{"$f":"IF(B80=\"\",\"\",LEFT(IF(ZARO_FOKONYV!D80>0,IFERROR(VLOOKUP(ZARO_FOKONYV!$A80,FKCSERE!$A:$B,2,FALSE),ZARO_FOKONYV!$A80),beallitasok!$B$3)&\"000000\",6))","v":"463130"},null,{"$f":"IF(LEFT(E80,3)=LEFT(beallitasok!$B$3,3),\"\",$B80)","v":""},{"$f":"IF(LEFT(F80,3)=LEFT(beallitasok!$B$3,3),\"\",$B80)","v":"APEH EBA"},{"$f":"IF(AND(LEN(ZARO_FOKONYV!A80)<LEN(ZARO_FOKONYV!A81),LEFT(ZARO_FOKONYV!A81,LEN(ZARO_FOKONYV!A80))=ZARO_FOKONYV!A80),\"IGEN\",\"nem\")","v":"nem"}]
[{"$f":"IFERROR(IF(OR(AND(beallitasok!$H$5=\"IGEN\",J81=\"IGEN\"),B81=\"\",VALUE(LEFT(F81,LEN(beallitasok!$H$2)))=beallitasok!$H$2,VALUE(LEFT(E81,LEN(beallitasok!$H$3)))=beallitasok!$H$3,VALUE(LEFT(F81,LEN(beallitasok!$H$2)))=beallitasok!$H$3,VALUE(LEFT(E81,LEN(beallitasok!$H$3)))=beallitasok!$H$2),\"\",IF(D81=\"\",\"\",beallitasok!$B$2)),\"\")","v":"2020-12-31"},{"$f":"IF(VALUE(LEFT(ZARO_FOKONYV!A81,1))<=beallitasok!$H$8,ZARO_FOKONYV!B81,\"\")","v":"APEH SZOCHO"},{"$f":"IF(B81=\"\",\"\",IF(beallitasok!$B$6=\"\",\"\",beallitasok!$B$6))","v":"NYITÓ"},{"$f":"IF(B81=\"\",\"\",ROUND(ZARO_FOKONYV!C81+ZARO_FOKONYV!D81,0))","v":367000},{"$f":"IF(B81=\"\",\"\",LEFT(IF(ZARO_FOKONYV!C81>0,IFERROR(VLOOKUP(ZARO_FOKONYV!$A81,FKCSERE!$A:$B,2,FALSE),ZARO_FOKONYV!$A81),beallitasok!$B$3)&\"00000\",6))","v":"491000"},{"$f":"IF(B81=\"\",\"\",LEFT(IF(ZARO_FOKONYV!D81>0,IFERROR(VLOOKUP(ZARO_FOKONYV!$A81,FKCSERE!$A:$B,2,FALSE),ZARO_FOKONYV!$A81),beallitasok!$B$3)&\"000000\",6))","v":"463160"},null,{"$f":"IF(LEFT(E81,3)=LEFT(beallitasok!$B$3,3),\"\",$B81)","v":""},{"$f":"IF(LEFT(F81,3)=LEFT(beallitasok!$B$3,3),\"\",$B81)","v":"APEH SZOCHO"},{"$f":"IF(AND(LEN(ZARO_FOKONYV!A81)<LEN(ZARO_FOKONYV!A82),LEFT(ZARO_FOKONYV!A82,LEN(ZARO_FOKONYV!A81))=ZARO_FOKONYV!A81),\"IGEN\",\"nem\")","v":"nem"}]
[{"$f":"IFERROR(IF(OR(AND(beallitasok!$H$5=\"IGEN\",J82=\"IGEN\"),B82=\"\",VALUE(LEFT(F82,LEN(beallitasok!$H$2)))=beallitasok!$H$2,VALUE(LEFT(E82,LEN(beallitasok!$H$3)))=beallitasok!$H$3,VALUE(LEFT(F82,LEN(beallitasok!$H$2)))=beallitasok!$H$3,VALUE(LEFT(E82,LEN(beallitasok!$H$3)))=beallitasok!$H$2),\"\",IF(D82=\"\",\"\",beallitasok!$B$2)),\"\")","v":"2020-12-31"},{"$f":"IF(VALUE(LEFT(ZARO_FOKONYV!A82,1))<=beallitasok!$H$8,ZARO_FOKONYV!B82,\"\")","v":"Előzetesen felszámított ÁFA"},{"$f":"IF(B82=\"\",\"\",IF(beallitasok!$B$6=\"\",\"\",beallitasok!$B$6))","v":"NYITÓ"},{"$f":"IF(B82=\"\",\"\",ROUND(ZARO_FOKONYV!C82+ZARO_FOKONYV!D82,0))","v":0},{"$f":"IF(B82=\"\",\"\",LEFT(IF(ZARO_FOKONYV!C82>0,IFERROR(VLOOKUP(ZARO_FOKONYV!$A82,FKCSERE!$A:$B,2,FALSE),ZARO_FOKONYV!$A82),beallitasok!$B$3)&\"00000\",6))","v":"491000"},{"$f":"IF(B82=\"\",\"\",LEFT(IF(ZARO_FOKONYV!D82>0,IFERROR(VLOOKUP(ZARO_FOKONYV!$A82,FKCSERE!$A:$B,2,FALSE),ZARO_FOKONYV!$A82),beallitasok!$B$3)&\"000000\",6))","v":"491000"},null,{"$f":"IF(LEFT(E82,3)=LEFT(beallitasok!$B$3,3),\"\",$B82)","v":""},{"$f":"IF(LEFT(F82,3)=LEFT(beallitasok!$B$3,3),\"\",$B82)","v":""},{"$f":"IF(AND(LEN(ZARO_FOKONYV!A82)<LEN(ZARO_FOKONYV!A83),LEFT(ZARO_FOKONYV!A83,LEN(ZARO_FOKONYV!A82))=ZARO_FOKONYV!A82),\"IGEN\",\"nem\")","v":"nem"}]
[{"$f":"IFERROR(IF(OR(AND(beallitasok!$H$5=\"IGEN\",J83=\"IGEN\"),B83=\"\",VALUE(LEFT(F83,LEN(beallitasok!$H$2)))=beallitasok!$H$2,VALUE(LEFT(E83,LEN(beallitasok!$H$3)))=beallitasok!$H$3,VALUE(LEFT(F83,LEN(beallitasok!$H$2)))=beallitasok!$H$3,VALUE(LEFT(E83,LEN(beallitasok!$H$3)))=beallitasok!$H$2),\"\",IF(D83=\"\",\"\",beallitasok!$B$2)),\"\")","v":"2020-12-31"},{"$f":"IF(VALUE(LEFT(ZARO_FOKONYV!A83,1))<=beallitasok!$H$8,ZARO_FOKONYV!B83,\"\")","v":"Fizetendő általános forgalmi adó"},{"$f":"IF(B83=\"\",\"\",IF(beallitasok!$B$6=\"\",\"\",beallitasok!$B$6))","v":"NYITÓ"},{"$f":"IF(B83=\"\",\"\",ROUND(ZARO_FOKONYV!C83+ZARO_FOKONYV!D83,0))","v":0},{"$f":"IF(B83=\"\",\"\",LEFT(IF(ZARO_FOKONYV!C83>0,IFERROR(VLOOKUP(ZARO_FOKONYV!$A83,FKCSERE!$A:$B,2,FALSE),ZARO_FOKONYV!$A83),beallitasok!$B$3)&\"00000\",6))","v":"491000"},{"$f":"IF(B83=\"\",\"\",LEFT(IF(ZARO_FOKONYV!D83>0,IFERROR(VLOOKUP(ZARO_FOKONYV!$A83,FKCSERE!$A:$B,2,FALSE),ZARO_FOKONYV!$A83),beallitasok!$B$3)&\"000000\",6))","v":"491000"},null,{"$f":"IF(LEFT(E83,3)=LEFT(beallitasok!$B$3,3),\"\",$B83)","v":""},{"$f":"IF(LEFT(F83,3)=LEFT(beallitasok!$B$3,3),\"\",$B83)","v":""},{"$f":"IF(AND(LEN(ZARO_FOKONYV!A83)<LEN(ZARO_FOKONYV!A84),LEFT(ZARO_FOKONYV!A84,LEN(ZARO_FOKONYV!A83))=ZARO_FOKONYV!A83),\"IGEN\",\"nem\")","v":"nem"}]
[{"$f":"IFERROR(IF(OR(AND(beallitasok!$H$5=\"IGEN\",J84=\"IGEN\"),B84=\"\",VALUE(LEFT(F84,LEN(beallitasok!$H$2)))=beallitasok!$H$2,VALUE(LEFT(E84,LEN(beallitasok!$H$3)))=beallitasok!$H$3,VALUE(LEFT(F84,LEN(beallitasok!$H$2)))=beallitasok!$H$3,VALUE(LEFT(E84,LEN(beallitasok!$H$3)))=beallitasok!$H$2),\"\",IF(D84=\"\",\"\",beallitasok!$B$2)),\"\")","v":"2020-12-31"},{"$f":"IF(VALUE(LEFT(ZARO_FOKONYV!A84,1))<=beallitasok!$H$8,ZARO_FOKONYV!B84,\"\")","v":"Általános forgalmi adó elszámolási számla"},{"$f":"IF(B84=\"\",\"\",IF(beallitasok!$B$6=\"\",\"\",beallitasok!$B$6))","v":"NYITÓ"},{"$f":"IF(B84=\"\",\"\",ROUND(ZARO_FOKONYV!C84+ZARO_FOKONYV!D84,0))","v":6293166},{"$f":"IF(B84=\"\",\"\",LEFT(IF(ZARO_FOKONYV!C84>0,IFERROR(VLOOKUP(ZARO_FOKONYV!$A84,FKCSERE!$A:$B,2,FALSE),ZARO_FOKONYV!$A84),beallitasok!$B$3)&\"00000\",6))","v":"491000"},{"$f":"IF(B84=\"\",\"\",LEFT(IF(ZARO_FOKONYV!D84>0,IFERROR(VLOOKUP(ZARO_FOKONYV!$A84,FKCSERE!$A:$B,2,FALSE),ZARO_FOKONYV!$A84),beallitasok!$B$3)&\"000000\",6))","v":"468000"},null,{"$f":"IF(LEFT(E84,3)=LEFT(beallitasok!$B$3,3),\"\",$B84)","v":""},{"$f":"IF(LEFT(F84,3)=LEFT(beallitasok!$B$3,3),\"\",$B84)","v":"Általános forgalmi adó elszámolási számla"},{"$f":"IF(AND(LEN(ZARO_FOKONYV!A84)<LEN(ZARO_FOKONYV!A85),LEFT(ZARO_FOKONYV!A85,LEN(ZARO_FOKONYV!A84))=ZARO_FOKONYV!A84),\"IGEN\",\"nem\")","v":"nem"}]
[{"$f":"IFERROR(IF(OR(AND(beallitasok!$H$5=\"IGEN\",J85=\"IGEN\"),B85=\"\",VALUE(LEFT(F85,LEN(beallitasok!$H$2)))=beallitasok!$H$2,VALUE(LEFT(E85,LEN(beallitasok!$H$3)))=beallitasok!$H$3,VALUE(LEFT(F85,LEN(beallitasok!$H$2)))=beallitasok!$H$3,VALUE(LEFT(E85,LEN(beallitasok!$H$3)))=beallitasok!$H$2),\"\",IF(D85=\"\",\"\",beallitasok!$B$2)),\"\")","v":""},{"$f":"IF(VALUE(LEFT(ZARO_FOKONYV!A85,1))<=beallitasok!$H$8,ZARO_FOKONYV!B85,\"\")","v":"Helyi adók elszámolási számla"},{"$f":"IF(B85=\"\",\"\",IF(beallitasok!$B$6=\"\",\"\",beallitasok!$B$6))","v":"NYITÓ"},{"$f":"IF(B85=\"\",\"\",ROUND(ZARO_FOKONYV!C85+ZARO_FOKONYV!D85,0))","v":87635},{"$f":"IF(B85=\"\",\"\",LEFT(IF(ZARO_FOKONYV!C85>0,IFERROR(VLOOKUP(ZARO_FOKONYV!$A85,FKCSERE!$A:$B,2,FALSE),ZARO_FOKONYV!$A85),beallitasok!$B$3)&\"00000\",6))","v":"469000"},{"$f":"IF(B85=\"\",\"\",LEFT(IF(ZARO_FOKONYV!D85>0,IFERROR(VLOOKUP(ZARO_FOKONYV!$A85,FKCSERE!$A:$B,2,FALSE),ZARO_FOKONYV!$A85),beallitasok!$B$3)&\"000000\",6))","v":"491000"},null,{"$f":"IF(LEFT(E85,3)=LEFT(beallitasok!$B$3,3),\"\",$B85)","v":"Helyi adók elszámolási számla"},{"$f":"IF(LEFT(F85,3)=LEFT(beallitasok!$B$3,3),\"\",$B85)","v":""},{"$f":"IF(AND(LEN(ZARO_FOKONYV!A85)<LEN(ZARO_FOKONYV!A86),LEFT(ZARO_FOKONYV!A86,LEN(ZARO_FOKONYV!A85))=ZARO_FOKONYV!A85),\"IGEN\",\"nem\")","v":"IGEN"}]
[{"$f":"IFERROR(IF(OR(AND(beallitasok!$H$5=\"IGEN\",J86=\"IGEN\"),B86=\"\",VALUE(LEFT(F86,LEN(beallitasok!$H$2)))=beallitasok!$H$2,VALUE(LEFT(E86,LEN(beallitasok!$H$3)))=beallitasok!$H$3,VALUE(LEFT(F86,LEN(beallitasok!$H$2)))=beallitasok!$H$3,VALUE(LEFT(E86,LEN(beallitasok!$H$3)))=beallitasok!$H$2),\"\",IF(D86=\"\",\"\",beallitasok!$B$2)),\"\")","v":"2020-12-31"},{"$f":"IF(VALUE(LEFT(ZARO_FOKONYV!A86,1))<=beallitasok!$H$8,ZARO_FOKONYV!B86,\"\")","v":"Helyi iparűzési adó elszámolási számla"},{"$f":"IF(B86=\"\",\"\",IF(beallitasok!$B$6=\"\",\"\",beallitasok!$B$6))","v":"NYITÓ"},{"$f":"IF(B86=\"\",\"\",ROUND(ZARO_FOKONYV!C86+ZARO_FOKONYV!D86,0))","v":87635},{"$f":"IF(B86=\"\",\"\",LEFT(IF(ZARO_FOKONYV!C86>0,IFERROR(VLOOKUP(ZARO_FOKONYV!$A86,FKCSERE!$A:$B,2,FALSE),ZARO_FOKONYV!$A86),beallitasok!$B$3)&\"00000\",6))","v":"469500"},{"$f":"IF(B86=\"\",\"\",LEFT(IF(ZARO_FOKONYV!D86>0,IFERROR(VLOOKUP(ZARO_FOKONYV!$A86,FKCSERE!$A:$B,2,FALSE),ZARO_FOKONYV!$A86),beallitasok!$B$3)&\"000000\",6))","v":"491000"},null,{"$f":"IF(LEFT(E86,3)=LEFT(beallitasok!$B$3,3),\"\",$B86)","v":"Helyi iparűzési adó elszámolási számla"},{"$f":"IF(LEFT(F86,3)=LEFT(beallitasok!$B$3,3),\"\",$B86)","v":""},{"$f":"IF(AND(LEN(ZARO_FOKONYV!A86)<LEN(ZARO_FOKONYV!A87),LEFT(ZARO_FOKONYV!A87,LEN(ZARO_FOKONYV!A86))=ZARO_FOKONYV!A86),\"IGEN\",\"nem\")","v":"nem"}]
[{"$f":"IFERROR(IF(OR(AND(beallitasok!$H$5=\"IGEN\",J87=\"IGEN\"),B87=\"\",VALUE(LEFT(F87,LEN(beallitasok!$H$2)))=beallitasok!$H$2,VALUE(LEFT(E87,LEN(beallitasok!$H$3)))=beallitasok!$H$3,VALUE(LEFT(F87,LEN(beallitasok!$H$2)))=beallitasok!$H$3,VALUE(LEFT(E87,LEN(beallitasok!$H$3)))=beallitasok!$H$2),\"\",IF(D87=\"\",\"\",beallitasok!$B$2)),\"\")","v":"2020-12-31"},{"$f":"IF(VALUE(LEFT(ZARO_FOKONYV!A87,1))<=beallitasok!$H$8,ZARO_FOKONYV!B87,\"\")","v":"Gépjárműadó elszámolási számla"},{"$f":"IF(B87=\"\",\"\",IF(beallitasok!$B$6=\"\",\"\",beallitasok!$B$6))","v":"NYITÓ"},{"$f":"IF(B87=\"\",\"\",ROUND(ZARO_FOKONYV!C87+ZARO_FOKONYV!D87,0))","v":0},{"$f":"IF(B87=\"\",\"\",LEFT(IF(ZARO_FOKONYV!C87>0,IFERROR(VLOOKUP(ZARO_FOKONYV!$A87,FKCSERE!$A:$B,2,FALSE),ZARO_FOKONYV!$A87),beallitasok!$B$3)&\"00000\",6))","v":"491000"},{"$f":"IF(B87=\"\",\"\",LEFT(IF(ZARO_FOKONYV!D87>0,IFERROR(VLOOKUP(ZARO_FOKONYV!$A87,FKCSERE!$A:$B,2,FALSE),ZARO_FOKONYV!$A87),beallitasok!$B$3)&\"000000\",6))","v":"491000"},null,{"$f":"IF(LEFT(E87,3)=LEFT(beallitasok!$B$3,3),\"\",$B87)","v":""},{"$f":"IF(LEFT(F87,3)=LEFT(beallitasok!$B$3,3),\"\",$B87)","v":""},{"$f":"IF(AND(LEN(ZARO_FOKONYV!A87)<LEN(ZARO_FOKONYV!A88),LEFT(ZARO_FOKONYV!A88,LEN(ZARO_FOKONYV!A87))=ZARO_FOKONYV!A87),\"IGEN\",\"nem\")","v":"nem"}]
[{"$f":"IFERROR(IF(OR(AND(beallitasok!$H$5=\"IGEN\",J88=\"IGEN\"),B88=\"\",VALUE(LEFT(F88,LEN(beallitasok!$H$2)))=beallitasok!$H$2,VALUE(LEFT(E88,LEN(beallitasok!$H$3)))=beallitasok!$H$3,VALUE(LEFT(F88,LEN(beallitasok!$H$2)))=beallitasok!$H$3,VALUE(LEFT(E88,LEN(beallitasok!$H$3)))=beallitasok!$H$2),\"\",IF(D88=\"\",\"\",beallitasok!$B$2)),\"\")","v":""},{"$f":"IF(VALUE(LEFT(ZARO_FOKONYV!A88,1))<=beallitasok!$H$8,ZARO_FOKONYV!B88,\"\")","v":"Jövedelemadó elszámolási számla"},{"$f":"IF(B88=\"\",\"\",IF(beallitasok!$B$6=\"\",\"\",beallitasok!$B$6))","v":"NYITÓ"},{"$f":"IF(B88=\"\",\"\",ROUND(ZARO_FOKONYV!C88+ZARO_FOKONYV!D88,0))","v":131837},{"$f":"IF(B88=\"\",\"\",LEFT(IF(ZARO_FOKONYV!C88>0,IFERROR(VLOOKUP(ZARO_FOKONYV!$A88,FKCSERE!$A:$B,2,FALSE),ZARO_FOKONYV!$A88),beallitasok!$B$3)&\"00000\",6))","v":"491000"},{"$f":"IF(B88=\"\",\"\",LEFT(IF(ZARO_FOKONYV!D88>0,IFERROR(VLOOKUP(ZARO_FOKONYV!$A88,FKCSERE!$A:$B,2,FALSE),ZARO_FOKONYV!$A88),beallitasok!$B$3)&\"000000\",6))","v":"471000"},null,{"$f":"IF(LEFT(E88,3)=LEFT(beallitasok!$B$3,3),\"\",$B88)","v":""},{"$f":"IF(LEFT(F88,3)=LEFT(beallitasok!$B$3,3),\"\",$B88)","v":"Jövedelemadó elszámolási számla"},{"$f":"IF(AND(LEN(ZARO_FOKONYV!A88)<LEN(ZARO_FOKONYV!A89),LEFT(ZARO_FOKONYV!A89,LEN(ZARO_FOKONYV!A88))=ZARO_FOKONYV!A88),\"IGEN\",\"nem\")","v":"IGEN"}]
[{"$f":"IFERROR(IF(OR(AND(beallitasok!$H$5=\"IGEN\",J89=\"IGEN\"),B89=\"\",VALUE(LEFT(F89,LEN(beallitasok!$H$2)))=beallitasok!$H$2,VALUE(LEFT(E89,LEN(beallitasok!$H$3)))=beallitasok!$H$3,VALUE(LEFT(F89,LEN(beallitasok!$H$2)))=beallitasok!$H$3,VALUE(LEFT(E89,LEN(beallitasok!$H$3)))=beallitasok!$H$2),\"\",IF(D89=\"\",\"\",beallitasok!$B$2)),\"\")","v":"2020-12-31"},{"$f":"IF(VALUE(LEFT(ZARO_FOKONYV!A89,1))<=beallitasok!$H$8,ZARO_FOKONYV!B89,\"\")","v":"Keresetelszámolási számla"},{"$f":"IF(B89=\"\",\"\",IF(beallitasok!$B$6=\"\",\"\",beallitasok!$B$6))","v":"NYITÓ"},{"$f":"IF(B89=\"\",\"\",ROUND(ZARO_FOKONYV!C89+ZARO_FOKONYV!D89,0))","v":131837},{"$f":"IF(B89=\"\",\"\",LEFT(IF(ZARO_FOKONYV!C89>0,IFERROR(VLOOKUP(ZARO_FOKONYV!$A89,FKCSERE!$A:$B,2,FALSE),ZARO_FOKONYV!$A89),beallitasok!$B$3)&\"00000\",6))","v":"491000"},{"$f":"IF(B89=\"\",\"\",LEFT(IF(ZARO_FOKONYV!D89>0,IFERROR(VLOOKUP(ZARO_FOKONYV!$A89,FKCSERE!$A:$B,2,FALSE),ZARO_FOKONYV!$A89),beallitasok!$B$3)&\"000000\",6))","v":"471100"},null,{"$f":"IF(LEFT(E89,3)=LEFT(beallitasok!$B$3,3),\"\",$B89)","v":""},{"$f":"IF(LEFT(F89,3)=LEFT(beallitasok!$B$3,3),\"\",$B89)","v":"Keresetelszámolási számla"},{"$f":"IF(AND(LEN(ZARO_FOKONYV!A89)<LEN(ZARO_FOKONYV!A90),LEFT(ZARO_FOKONYV!A90,LEN(ZARO_FOKONYV!A89))=ZARO_FOKONYV!A89),\"IGEN\",\"nem\")","v":"nem"}]
[{"$f":"IFERROR(IF(OR(AND(beallitasok!$H$5=\"IGEN\",J90=\"IGEN\"),B90=\"\",VALUE(LEFT(F90,LEN(beallitasok!$H$2)))=beallitasok!$H$2,VALUE(LEFT(E90,LEN(beallitasok!$H$3)))=beallitasok!$H$3,VALUE(LEFT(F90,LEN(beallitasok!$H$2)))=beallitasok!$H$3,VALUE(LEFT(E90,LEN(beallitasok!$H$3)))=beallitasok!$H$2),\"\",IF(D90=\"\",\"\",beallitasok!$B$2)),\"\")","v":"2020-12-31"},{"$f":"IF(VALUE(LEFT(ZARO_FOKONYV!A90,1))<=beallitasok!$H$8,ZARO_FOKONYV!B90,\"\")","v":"Társadalombiztosítási kötelezettség"},{"$f":"IF(B90=\"\",\"\",IF(beallitasok!$B$6=\"\",\"\",beallitasok!$B$6))","v":"NYITÓ"},{"$f":"IF(B90=\"\",\"\",ROUND(ZARO_FOKONYV!C90+ZARO_FOKONYV!D90,0))","v":190000},{"$f":"IF(B90=\"\",\"\",LEFT(IF(ZARO_FOKONYV!C90>0,IFERROR(VLOOKUP(ZARO_FOKONYV!$A90,FKCSERE!$A:$B,2,FALSE),ZARO_FOKONYV!$A90),beallitasok!$B$3)&\"00000\",6))","v":"491000"},{"$f":"IF(B90=\"\",\"\",LEFT(IF(ZARO_FOKONYV!D90>0,IFERROR(VLOOKUP(ZARO_FOKONYV!$A90,FKCSERE!$A:$B,2,FALSE),ZARO_FOKONYV!$A90),beallitasok!$B$3)&\"000000\",6))","v":"473000"},null,{"$f":"IF(LEFT(E90,3)=LEFT(beallitasok!$B$3,3),\"\",$B90)","v":""},{"$f":"IF(LEFT(F90,3)=LEFT(beallitasok!$B$3,3),\"\",$B90)","v":"Társadalombiztosítási kötelezettség"},{"$f":"IF(AND(LEN(ZARO_FOKONYV!A90)<LEN(ZARO_FOKONYV!A91),LEFT(ZARO_FOKONYV!A91,LEN(ZARO_FOKONYV!A90))=ZARO_FOKONYV!A90),\"IGEN\",\"nem\")","v":"nem"}]
[{"$f":"IFERROR(IF(OR(AND(beallitasok!$H$5=\"IGEN\",J91=\"IGEN\"),B91=\"\",VALUE(LEFT(F91,LEN(beallitasok!$H$2)))=beallitasok!$H$2,VALUE(LEFT(E91,LEN(beallitasok!$H$3)))=beallitasok!$H$3,VALUE(LEFT(F91,LEN(beallitasok!$H$2)))=beallitasok!$H$3,VALUE(LEFT(E91,LEN(beallitasok!$H$3)))=beallitasok!$H$2),\"\",IF(D91=\"\",\"\",beallitasok!$B$2)),\"\")","v":""},{"$f":"IF(VALUE(LEFT(ZARO_FOKONYV!A91,1))<=beallitasok!$H$8,ZARO_FOKONYV!B91,\"\")","v":"Elkülönített alapokkal kapcsolatos fizetési kötelezettségek"},{"$f":"IF(B91=\"\",\"\",IF(beallitasok!$B$6=\"\",\"\",beallitasok!$B$6))","v":"NYITÓ"},{"$f":"IF(B91=\"\",\"\",ROUND(ZARO_FOKONYV!C91+ZARO_FOKONYV!D91,0))","v":32000},{"$f":"IF(B91=\"\",\"\",LEFT(IF(ZARO_FOKONYV!C91>0,IFERROR(VLOOKUP(ZARO_FOKONYV!$A91,FKCSERE!$A:$B,2,FALSE),ZARO_FOKONYV!$A91),beallitasok!$B$3)&\"00000\",6))","v":"491000"},{"$f":"IF(B91=\"\",\"\",LEFT(IF(ZARO_FOKONYV!D91>0,IFERROR(VLOOKUP(ZARO_FOKONYV!$A91,FKCSERE!$A:$B,2,FALSE),ZARO_FOKONYV!$A91),beallitasok!$B$3)&\"000000\",6))","v":"474000"},null,{"$f":"IF(LEFT(E91,3)=LEFT(beallitasok!$B$3,3),\"\",$B91)","v":""},{"$f":"IF(LEFT(F91,3)=LEFT(beallitasok!$B$3,3),\"\",$B91)","v":"Elkülönített alapokkal kapcsolatos fizetési kötelezettségek"},{"$f":"IF(AND(LEN(ZARO_FOKONYV!A91)<LEN(ZARO_FOKONYV!A92),LEFT(ZARO_FOKONYV!A92,LEN(ZARO_FOKONYV!A91))=ZARO_FOKONYV!A91),\"IGEN\",\"nem\")","v":"IGEN"}]
[{"$f":"IFERROR(IF(OR(AND(beallitasok!$H$5=\"IGEN\",J92=\"IGEN\"),B92=\"\",VALUE(LEFT(F92,LEN(beallitasok!$H$2)))=beallitasok!$H$2,VALUE(LEFT(E92,LEN(beallitasok!$H$3)))=beallitasok!$H$3,VALUE(LEFT(F92,LEN(beallitasok!$H$2)))=beallitasok!$H$3,VALUE(LEFT(E92,LEN(beallitasok!$H$3)))=beallitasok!$H$2),\"\",IF(D92=\"\",\"\",beallitasok!$B$2)),\"\")","v":"2020-12-31"},{"$f":"IF(VALUE(LEFT(ZARO_FOKONYV!A92,1))<=beallitasok!$H$8,ZARO_FOKONYV!B92,\"\")","v":"Szakképzési hozzájárulás"},{"$f":"IF(B92=\"\",\"\",IF(beallitasok!$B$6=\"\",\"\",beallitasok!$B$6))","v":"NYITÓ"},{"$f":"IF(B92=\"\",\"\",ROUND(ZARO_FOKONYV!C92+ZARO_FOKONYV!D92,0))","v":32000},{"$f":"IF(B92=\"\",\"\",LEFT(IF(ZARO_FOKONYV!C92>0,IFERROR(VLOOKUP(ZARO_FOKONYV!$A92,FKCSERE!$A:$B,2,FALSE),ZARO_FOKONYV!$A92),beallitasok!$B$3)&\"00000\",6))","v":"491000"},{"$f":"IF(B92=\"\",\"\",LEFT(IF(ZARO_FOKONYV!D92>0,IFERROR(VLOOKUP(ZARO_FOKONYV!$A92,FKCSERE!$A:$B,2,FALSE),ZARO_FOKONYV!$A92),beallitasok!$B$3)&\"000000\",6))","v":"474200"},null,{"$f":"IF(LEFT(E92,3)=LEFT(beallitasok!$B$3,3),\"\",$B92)","v":""},{"$f":"IF(LEFT(F92,3)=LEFT(beallitasok!$B$3,3),\"\",$B92)","v":"Szakképzési hozzájárulás"},{"$f":"IF(AND(LEN(ZARO_FOKONYV!A92)<LEN(ZARO_FOKONYV!A93),LEFT(ZARO_FOKONYV!A93,LEN(ZARO_FOKONYV!A92))=ZARO_FOKONYV!A92),\"IGEN\",\"nem\")","v":"nem"}]
[{"$f":"IFERROR(IF(OR(AND(beallitasok!$H$5=\"IGEN\",J93=\"IGEN\"),B93=\"\",VALUE(LEFT(F93,LEN(beallitasok!$H$2)))=beallitasok!$H$2,VALUE(LEFT(E93,LEN(beallitasok!$H$3)))=beallitasok!$H$3,VALUE(LEFT(F93,LEN(beallitasok!$H$2)))=beallitasok!$H$3,VALUE(LEFT(E93,LEN(beallitasok!$H$3)))=beallitasok!$H$2),\"\",IF(D93=\"\",\"\",beallitasok!$B$2)),\"\")","v":""},{"$f":"IF(VALUE(LEFT(ZARO_FOKONYV!A93,1))<=beallitasok!$H$8,ZARO_FOKONYV!B93,\"\")","v":"PASSZÍV IDŐBELI ELHATÁROLÁSOK"},{"$f":"IF(B93=\"\",\"\",IF(beallitasok!$B$6=\"\",\"\",beallitasok!$B$6))","v":"NYITÓ"},{"$f":"IF(B93=\"\",\"\",ROUND(ZARO_FOKONYV!C93+ZARO_FOKONYV!D93,0))","v":186437},{"$f":"IF(B93=\"\",\"\",LEFT(IF(ZARO_FOKONYV!C93>0,IFERROR(VLOOKUP(ZARO_FOKONYV!$A93,FKCSERE!$A:$B,2,FALSE),ZARO_FOKONYV!$A93),beallitasok!$B$3)&\"00000\",6))","v":"491000"},{"$f":"IF(B93=\"\",\"\",LEFT(IF(ZARO_FOKONYV!D93>0,IFERROR(VLOOKUP(ZARO_FOKONYV!$A93,FKCSERE!$A:$B,2,FALSE),ZARO_FOKONYV!$A93),beallitasok!$B$3)&\"000000\",6))","v":"480000"},null,{"$f":"IF(LEFT(E93,3)=LEFT(beallitasok!$B$3,3),\"\",$B93)","v":""},{"$f":"IF(LEFT(F93,3)=LEFT(beallitasok!$B$3,3),\"\",$B93)","v":"PASSZÍV IDŐBELI ELHATÁROLÁSOK"},{"$f":"IF(AND(LEN(ZARO_FOKONYV!A93)<LEN(ZARO_FOKONYV!A94),LEFT(ZARO_FOKONYV!A94,LEN(ZARO_FOKONYV!A93))=ZARO_FOKONYV!A93),\"IGEN\",\"nem\")","v":"IGEN"}]
[{"$f":"IFERROR(IF(OR(AND(beallitasok!$H$5=\"IGEN\",J94=\"IGEN\"),B94=\"\",VALUE(LEFT(F94,LEN(beallitasok!$H$2)))=beallitasok!$H$2,VALUE(LEFT(E94,LEN(beallitasok!$H$3)))=beallitasok!$H$3,VALUE(LEFT(F94,LEN(beallitasok!$H$2)))=beallitasok!$H$3,VALUE(LEFT(E94,LEN(beallitasok!$H$3)))=beallitasok!$H$2),\"\",IF(D94=\"\",\"\",beallitasok!$B$2)),\"\")","v":""},{"$f":"IF(VALUE(LEFT(ZARO_FOKONYV!A94,1))<=beallitasok!$H$8,ZARO_FOKONYV!B94,\"\")","v":"Bevételek passzív időbeli elhatárolása"},{"$f":"IF(B94=\"\",\"\",IF(beallitasok!$B$6=\"\",\"\",beallitasok!$B$6))","v":"NYITÓ"},{"$f":"IF(B94=\"\",\"\",ROUND(ZARO_FOKONYV!C94+ZARO_FOKONYV!D94,0))","v":0},{"$f":"IF(B94=\"\",\"\",LEFT(IF(ZARO_FOKONYV!C94>0,IFERROR(VLOOKUP(ZARO_FOKONYV!$A94,FKCSERE!$A:$B,2,FALSE),ZARO_FOKONYV!$A94),beallitasok!$B$3)&\"00000\",6))","v":"491000"},{"$f":"IF(B94=\"\",\"\",LEFT(IF(ZARO_FOKONYV!D94>0,IFERROR(VLOOKUP(ZARO_FOKONYV!$A94,FKCSERE!$A:$B,2,FALSE),ZARO_FOKONYV!$A94),beallitasok!$B$3)&\"000000\",6))","v":"491000"},null,{"$f":"IF(LEFT(E94,3)=LEFT(beallitasok!$B$3,3),\"\",$B94)","v":""},{"$f":"IF(LEFT(F94,3)=LEFT(beallitasok!$B$3,3),\"\",$B94)","v":""},{"$f":"IF(AND(LEN(ZARO_FOKONYV!A94)<LEN(ZARO_FOKONYV!A95),LEFT(ZARO_FOKONYV!A95,LEN(ZARO_FOKONYV!A94))=ZARO_FOKONYV!A94),\"IGEN\",\"nem\")","v":"IGEN"}]
[{"$f":"IFERROR(IF(OR(AND(beallitasok!$H$5=\"IGEN\",J95=\"IGEN\"),B95=\"\",VALUE(LEFT(F95,LEN(beallitasok!$H$2)))=beallitasok!$H$2,VALUE(LEFT(E95,LEN(beallitasok!$H$3)))=beallitasok!$H$3,VALUE(LEFT(F95,LEN(beallitasok!$H$2)))=beallitasok!$H$3,VALUE(LEFT(E95,LEN(beallitasok!$H$3)))=beallitasok!$H$2),\"\",IF(D95=\"\",\"\",beallitasok!$B$2)),\"\")","v":"2020-12-31"},{"$f":"IF(VALUE(LEFT(ZARO_FOKONYV!A95,1))<=beallitasok!$H$8,ZARO_FOKONYV!B95,\"\")","v":"Befolyt, elszámolt bevételek elhatárolása"},{"$f":"IF(B95=\"\",\"\",IF(beallitasok!$B$6=\"\",\"\",beallitasok!$B$6))","v":"NYITÓ"},{"$f":"IF(B95=\"\",\"\",ROUND(ZARO_FOKONYV!C95+ZARO_FOKONYV!D95,0))","v":0},{"$f":"IF(B95=\"\",\"\",LEFT(IF(ZARO_FOKONYV!C95>0,IFERROR(VLOOKUP(ZARO_FOKONYV!$A95,FKCSERE!$A:$B,2,FALSE),ZARO_FOKONYV!$A95),beallitasok!$B$3)&\"00000\",6))","v":"491000"},{"$f":"IF(B95=\"\",\"\",LEFT(IF(ZARO_FOKONYV!D95>0,IFERROR(VLOOKUP(ZARO_FOKONYV!$A95,FKCSERE!$A:$B,2,FALSE),ZARO_FOKONYV!$A95),beallitasok!$B$3)&\"000000\",6))","v":"491000"},null,{"$f":"IF(LEFT(E95,3)=LEFT(beallitasok!$B$3,3),\"\",$B95)","v":""},{"$f":"IF(LEFT(F95,3)=LEFT(beallitasok!$B$3,3),\"\",$B95)","v":""},{"$f":"IF(AND(LEN(ZARO_FOKONYV!A95)<LEN(ZARO_FOKONYV!A96),LEFT(ZARO_FOKONYV!A96,LEN(ZARO_FOKONYV!A95))=ZARO_FOKONYV!A95),\"IGEN\",\"nem\")","v":"nem"}]
[{"$f":"IFERROR(IF(OR(AND(beallitasok!$H$5=\"IGEN\",J96=\"IGEN\"),B96=\"\",VALUE(LEFT(F96,LEN(beallitasok!$H$2)))=beallitasok!$H$2,VALUE(LEFT(E96,LEN(beallitasok!$H$3)))=beallitasok!$H$3,VALUE(LEFT(F96,LEN(beallitasok!$H$2)))=beallitasok!$H$3,VALUE(LEFT(E96,LEN(beallitasok!$H$3)))=beallitasok!$H$2),\"\",IF(D96=\"\",\"\",beallitasok!$B$2)),\"\")","v":""},{"$f":"IF(VALUE(LEFT(ZARO_FOKONYV!A96,1))<=beallitasok!$H$8,ZARO_FOKONYV!B96,\"\")","v":"Költségek, ráfordítások passzív időbeli elhatárolása"},{"$f":"IF(B96=\"\",\"\",IF(beallitasok!$B$6=\"\",\"\",beallitasok!$B$6))","v":"NYITÓ"},{"$f":"IF(B96=\"\",\"\",ROUND(ZARO_FOKONYV!C96+ZARO_FOKONYV!D96,0))","v":186437},{"$f":"IF(B96=\"\",\"\",LEFT(IF(ZARO_FOKONYV!C96>0,IFERROR(VLOOKUP(ZARO_FOKONYV!$A96,FKCSERE!$A:$B,2,FALSE),ZARO_FOKONYV!$A96),beallitasok!$B$3)&\"00000\",6))","v":"491000"},{"$f":"IF(B96=\"\",\"\",LEFT(IF(ZARO_FOKONYV!D96>0,IFERROR(VLOOKUP(ZARO_FOKONYV!$A96,FKCSERE!$A:$B,2,FALSE),ZARO_FOKONYV!$A96),beallitasok!$B$3)&\"000000\",6))","v":"482000"},null,{"$f":"IF(LEFT(E96,3)=LEFT(beallitasok!$B$3,3),\"\",$B96)","v":""},{"$f":"IF(LEFT(F96,3)=LEFT(beallitasok!$B$3,3),\"\",$B96)","v":"Költségek, ráfordítások passzív időbeli elhatárolása"},{"$f":"IF(AND(LEN(ZARO_FOKONYV!A96)<LEN(ZARO_FOKONYV!A97),LEFT(ZARO_FOKONYV!A97,LEN(ZARO_FOKONYV!A96))=ZARO_FOKONYV!A96),\"IGEN\",\"nem\")","v":"IGEN"}]
[{"$f":"IFERROR(IF(OR(AND(beallitasok!$H$5=\"IGEN\",J97=\"IGEN\"),B97=\"\",VALUE(LEFT(F97,LEN(beallitasok!$H$2)))=beallitasok!$H$2,VALUE(LEFT(E97,LEN(beallitasok!$H$3)))=beallitasok!$H$3,VALUE(LEFT(F97,LEN(beallitasok!$H$2)))=beallitasok!$H$3,VALUE(LEFT(E97,LEN(beallitasok!$H$3)))=beallitasok!$H$2),\"\",IF(D97=\"\",\"\",beallitasok!$B$2)),\"\")","v":"2020-12-31"},{"$f":"IF(VALUE(LEFT(ZARO_FOKONYV!A97,1))<=beallitasok!$H$8,ZARO_FOKONYV!B97,\"\")","v":"Mérlegfordulónap előtti időszakot terhelő költségek, ráfordítások elhatárolása"},{"$f":"IF(B97=\"\",\"\",IF(beallitasok!$B$6=\"\",\"\",beallitasok!$B$6))","v":"NYITÓ"},{"$f":"IF(B97=\"\",\"\",ROUND(ZARO_FOKONYV!C97+ZARO_FOKONYV!D97,0))","v":186437},{"$f":"IF(B97=\"\",\"\",LEFT(IF(ZARO_FOKONYV!C97>0,IFERROR(VLOOKUP(ZARO_FOKONYV!$A97,FKCSERE!$A:$B,2,FALSE),ZARO_FOKONYV!$A97),beallitasok!$B$3)&\"00000\",6))","v":"491000"},{"$f":"IF(B97=\"\",\"\",LEFT(IF(ZARO_FOKONYV!D97>0,IFERROR(VLOOKUP(ZARO_FOKONYV!$A97,FKCSERE!$A:$B,2,FALSE),ZARO_FOKONYV!$A97),beallitasok!$B$3)&\"000000\",6))","v":"482100"},null,{"$f":"IF(LEFT(E97,3)=LEFT(beallitasok!$B$3,3),\"\",$B97)","v":""},{"$f":"IF(LEFT(F97,3)=LEFT(beallitasok!$B$3,3),\"\",$B97)","v":"Mérlegfordulónap előtti időszakot terhelő költségek, ráfordítások elhatárolása"},{"$f":"IF(AND(LEN(ZARO_FOKONYV!A97)<LEN(ZARO_FOKONYV!A98),LEFT(ZARO_FOKONYV!A98,LEN(ZARO_FOKONYV!A97))=ZARO_FOKONYV!A97),\"IGEN\",\"nem\")","v":"nem"}]
[{"$f":"IFERROR(IF(OR(AND(beallitasok!$H$5=\"IGEN\",J98=\"IGEN\"),B98=\"\",VALUE(LEFT(F98,LEN(beallitasok!$H$2)))=beallitasok!$H$2,VALUE(LEFT(E98,LEN(beallitasok!$H$3)))=beallitasok!$H$3,VALUE(LEFT(F98,LEN(beallitasok!$H$2)))=beallitasok!$H$3,VALUE(LEFT(E98,LEN(beallitasok!$H$3)))=beallitasok!$H$2),\"\",IF(D98=\"\",\"\",beallitasok!$B$2)),\"\")","v":""},{"$f":"IF(VALUE(LEFT(ZARO_FOKONYV!A98,1))<=beallitasok!$H$8,ZARO_FOKONYV!B98,\"\")","v":"ÉVI MÉRLEGSZÁMLÁK"},{"$f":"IF(B98=\"\",\"\",IF(beallitasok!$B$6=\"\",\"\",beallitasok!$B$6))","v":"NYITÓ"},{"$f":"IF(B98=\"\",\"\",ROUND(ZARO_FOKONYV!C98+ZARO_FOKONYV!D98,0))","v":0},{"$f":"IF(B98=\"\",\"\",LEFT(IF(ZARO_FOKONYV!C98>0,IFERROR(VLOOKUP(ZARO_FOKONYV!$A98,FKCSERE!$A:$B,2,FALSE),ZARO_FOKONYV!$A98),beallitasok!$B$3)&\"00000\",6))","v":"491000"},{"$f":"IF(B98=\"\",\"\",LEFT(IF(ZARO_FOKONYV!D98>0,IFERROR(VLOOKUP(ZARO_FOKONYV!$A98,FKCSERE!$A:$B,2,FALSE),ZARO_FOKONYV!$A98),beallitasok!$B$3)&\"000000\",6))","v":"491000"},null,{"$f":"IF(LEFT(E98,3)=LEFT(beallitasok!$B$3,3),\"\",$B98)","v":""},{"$f":"IF(LEFT(F98,3)=LEFT(beallitasok!$B$3,3),\"\",$B98)","v":""},{"$f":"IF(AND(LEN(ZARO_FOKONYV!A98)<LEN(ZARO_FOKONYV!A99),LEFT(ZARO_FOKONYV!A99,LEN(ZARO_FOKONYV!A98))=ZARO_FOKONYV!A98),\"IGEN\",\"nem\")","v":"IGEN"}]
[{"$f":"IFERROR(IF(OR(AND(beallitasok!$H$5=\"IGEN\",J99=\"IGEN\"),B99=\"\",VALUE(LEFT(F99,LEN(beallitasok!$H$2)))=beallitasok!$H$2,VALUE(LEFT(E99,LEN(beallitasok!$H$3)))=beallitasok!$H$3,VALUE(LEFT(F99,LEN(beallitasok!$H$2)))=beallitasok!$H$3,VALUE(LEFT(E99,LEN(beallitasok!$H$3)))=beallitasok!$H$2),\"\",IF(D99=\"\",\"\",beallitasok!$B$2)),\"\")","v":"2020-12-31"},{"$f":"IF(VALUE(LEFT(ZARO_FOKONYV!A99,1))<=beallitasok!$H$8,ZARO_FOKONYV!B99,\"\")","v":"Nyitómérleg számla"},{"$f":"IF(B99=\"\",\"\",IF(beallitasok!$B$6=\"\",\"\",beallitasok!$B$6))","v":"NYITÓ"},{"$f":"IF(B99=\"\",\"\",ROUND(ZARO_FOKONYV!C99+ZARO_FOKONYV!D99,0))","v":0},{"$f":"IF(B99=\"\",\"\",LEFT(IF(ZARO_FOKONYV!C99>0,IFERROR(VLOOKUP(ZARO_FOKONYV!$A99,FKCSERE!$A:$B,2,FALSE),ZARO_FOKONYV!$A99),beallitasok!$B$3)&\"00000\",6))","v":"491000"},{"$f":"IF(B99=\"\",\"\",LEFT(IF(ZARO_FOKONYV!D99>0,IFERROR(VLOOKUP(ZARO_FOKONYV!$A99,FKCSERE!$A:$B,2,FALSE),ZARO_FOKONYV!$A99),beallitasok!$B$3)&\"000000\",6))","v":"491000"},null,{"$f":"IF(LEFT(E99,3)=LEFT(beallitasok!$B$3,3),\"\",$B99)","v":""},{"$f":"IF(LEFT(F99,3)=LEFT(beallitasok!$B$3,3),\"\",$B99)","v":""},{"$f":"IF(AND(LEN(ZARO_FOKONYV!A99)<LEN(ZARO_FOKONYV!A100),LEFT(ZARO_FOKONYV!A100,LEN(ZARO_FOKONYV!A99))=ZARO_FOKONYV!A99),\"IGEN\",\"nem\")","v":"nem"}]
[{"$f":"IFERROR(IF(OR(AND(beallitasok!$H$5=\"IGEN\",J100=\"IGEN\"),B100=\"\",VALUE(LEFT(F100,LEN(beallitasok!$H$2)))=beallitasok!$H$2,VALUE(LEFT(E100,LEN(beallitasok!$H$3)))=beallitasok!$H$3,VALUE(LEFT(F100,LEN(beallitasok!$H$2)))=beallitasok!$H$3,VALUE(LEFT(E100,LEN(beallitasok!$H$3)))=beallitasok!$H$2),\"\",IF(D100=\"\",\"\",beallitasok!$B$2)),\"\")","v":"2020-12-31"},{"$f":"IF(VALUE(LEFT(ZARO_FOKONYV!A100,1))<=beallitasok!$H$8,ZARO_FOKONYV!B100,\"\")","v":"Adózott eredmény elszámolása"},{"$f":"IF(B100=\"\",\"\",IF(beallitasok!$B$6=\"\",\"\",beallitasok!$B$6))","v":"NYITÓ"},{"$f":"IF(B100=\"\",\"\",ROUND(ZARO_FOKONYV!C100+ZARO_FOKONYV!D100,0))","v":0},{"$f":"IF(B100=\"\",\"\",LEFT(IF(ZARO_FOKONYV!C100>0,IFERROR(VLOOKUP(ZARO_FOKONYV!$A100,FKCSERE!$A:$B,2,FALSE),ZARO_FOKONYV!$A100),beallitasok!$B$3)&\"00000\",6))","v":"491000"},{"$f":"IF(B100=\"\",\"\",LEFT(IF(ZARO_FOKONYV!D100>0,IFERROR(VLOOKUP(ZARO_FOKONYV!$A100,FKCSERE!$A:$B,2,FALSE),ZARO_FOKONYV!$A100),beallitasok!$B$3)&\"000000\",6))","v":"491000"},null,{"$f":"IF(LEFT(E100,3)=LEFT(beallitasok!$B$3,3),\"\",$B100)","v":""},{"$f":"IF(LEFT(F100,3)=LEFT(beallitasok!$B$3,3),\"\",$B100)","v":""},{"$f":"IF(AND(LEN(ZARO_FOKONYV!A100)<LEN(ZARO_FOKONYV!A101),LEFT(ZARO_FOKONYV!A101,LEN(ZARO_FOKONYV!A100))=ZARO_FOKONYV!A100),\"IGEN\",\"nem\")","v":"nem"}]
[{"$f":"IFERROR(IF(OR(AND(beallitasok!$H$5=\"IGEN\",J101=\"IGEN\"),B101=\"\",VALUE(LEFT(F101,LEN(beallitasok!$H$2)))=beallitasok!$H$2,VALUE(LEFT(E101,LEN(beallitasok!$H$3)))=beallitasok!$H$3,VALUE(LEFT(F101,LEN(beallitasok!$H$2)))=beallitasok!$H$3,VALUE(LEFT(E101,LEN(beallitasok!$H$3)))=beallitasok!$H$2),\"\",IF(D101=\"\",\"\",beallitasok!$B$2)),\"\")","v":""},{"$f":"IF(VALUE(LEFT(ZARO_FOKONYV!A101,1))<=beallitasok!$H$8,ZARO_FOKONYV!B101,\"\")","v":"KÖLTSÉGNEMEK"},{"$f":"IF(B101=\"\",\"\",IF(beallitasok!$B$6=\"\",\"\",beallitasok!$B$6))","v":"NYITÓ"},{"$f":"IF(B101=\"\",\"\",ROUND(ZARO_FOKONYV!C101+ZARO_FOKONYV!D101,0))","v":21115639},{"$f":"IF(B101=\"\",\"\",LEFT(IF(ZARO_FOKONYV!C101>0,IFERROR(VLOOKUP(ZARO_FOKONYV!$A101,FKCSERE!$A:$B,2,FALSE),ZARO_FOKONYV!$A101),beallitasok!$B$3)&\"00000\",6))","v":"500000"},{"$f":"IF(B101=\"\",\"\",LEFT(IF(ZARO_FOKONYV!D101>0,IFERROR(VLOOKUP(ZARO_FOKONYV!$A101,FKCSERE!$A:$B,2,FALSE),ZARO_FOKONYV!$A101),beallitasok!$B$3)&\"000000\",6))","v":"491000"},null,{"$f":"IF(LEFT(E101,3)=LEFT(beallitasok!$B$3,3),\"\",$B101)","v":"KÖLTSÉGNEMEK"},{"$f":"IF(LEFT(F101,3)=LEFT(beallitasok!$B$3,3),\"\",$B101)","v":""},{"$f":"IF(AND(LEN(ZARO_FOKONYV!A101)<LEN(ZARO_FOKONYV!A102),LEFT(ZARO_FOKONYV!A102,LEN(ZARO_FOKONYV!A101))=ZARO_FOKONYV!A101),\"IGEN\",\"nem\")","v":"IGEN"}]
[{"$f":"IFERROR(IF(OR(AND(beallitasok!$H$5=\"IGEN\",J102=\"IGEN\"),B102=\"\",VALUE(LEFT(F102,LEN(beallitasok!$H$2)))=beallitasok!$H$2,VALUE(LEFT(E102,LEN(beallitasok!$H$3)))=beallitasok!$H$3,VALUE(LEFT(F102,LEN(beallitasok!$H$2)))=beallitasok!$H$3,VALUE(LEFT(E102,LEN(beallitasok!$H$3)))=beallitasok!$H$2),\"\",IF(D102=\"\",\"\",beallitasok!$B$2)),\"\")","v":""},{"$f":"IF(VALUE(LEFT(ZARO_FOKONYV!A102,1))<=beallitasok!$H$8,ZARO_FOKONYV!B102,\"\")","v":"ANYAGKÖLTSÉGEK"},{"$f":"IF(B102=\"\",\"\",IF(beallitasok!$B$6=\"\",\"\",beallitasok!$B$6))","v":"NYITÓ"},{"$f":"IF(B102=\"\",\"\",ROUND(ZARO_FOKONYV!C102+ZARO_FOKONYV!D102,0))","v":7744010},{"$f":"IF(B102=\"\",\"\",LEFT(IF(ZARO_FOKONYV!C102>0,IFERROR(VLOOKUP(ZARO_FOKONYV!$A102,FKCSERE!$A:$B,2,FALSE),ZARO_FOKONYV!$A102),beallitasok!$B$3)&\"00000\",6))","v":"510000"},{"$f":"IF(B102=\"\",\"\",LEFT(IF(ZARO_FOKONYV!D102>0,IFERROR(VLOOKUP(ZARO_FOKONYV!$A102,FKCSERE!$A:$B,2,FALSE),ZARO_FOKONYV!$A102),beallitasok!$B$3)&\"000000\",6))","v":"491000"},null,{"$f":"IF(LEFT(E102,3)=LEFT(beallitasok!$B$3,3),\"\",$B102)","v":"ANYAGKÖLTSÉGEK"},{"$f":"IF(LEFT(F102,3)=LEFT(beallitasok!$B$3,3),\"\",$B102)","v":""},{"$f":"IF(AND(LEN(ZARO_FOKONYV!A102)<LEN(ZARO_FOKONYV!A103),LEFT(ZARO_FOKONYV!A103,LEN(ZARO_FOKONYV!A102))=ZARO_FOKONYV!A102),\"IGEN\",\"nem\")","v":"IGEN"}]
[{"$f":"IFERROR(IF(OR(AND(beallitasok!$H$5=\"IGEN\",J103=\"IGEN\"),B103=\"\",VALUE(LEFT(F103,LEN(beallitasok!$H$2)))=beallitasok!$H$2,VALUE(LEFT(E103,LEN(beallitasok!$H$3)))=beallitasok!$H$3,VALUE(LEFT(F103,LEN(beallitasok!$H$2)))=beallitasok!$H$3,VALUE(LEFT(E103,LEN(beallitasok!$H$3)))=beallitasok!$H$2),\"\",IF(D103=\"\",\"\",beallitasok!$B$2)),\"\")","v":"2020-12-31"},{"$f":"IF(VALUE(LEFT(ZARO_FOKONYV!A103,1))<=beallitasok!$H$8,ZARO_FOKONYV!B103,\"\")","v":"Üzemanyag vás."},{"$f":"IF(B103=\"\",\"\",IF(beallitasok!$B$6=\"\",\"\",beallitasok!$B$6))","v":"NYITÓ"},{"$f":"IF(B103=\"\",\"\",ROUND(ZARO_FOKONYV!C103+ZARO_FOKONYV!D103,0))","v":554843},{"$f":"IF(B103=\"\",\"\",LEFT(IF(ZARO_FOKONYV!C103>0,IFERROR(VLOOKUP(ZARO_FOKONYV!$A103,FKCSERE!$A:$B,2,FALSE),ZARO_FOKONYV!$A103),beallitasok!$B$3)&\"00000\",6))","v":"511100"},{"$f":"IF(B103=\"\",\"\",LEFT(IF(ZARO_FOKONYV!D103>0,IFERROR(VLOOKUP(ZARO_FOKONYV!$A103,FKCSERE!$A:$B,2,FALSE),ZARO_FOKONYV!$A103),beallitasok!$B$3)&\"000000\",6))","v":"491000"},null,{"$f":"IF(LEFT(E103,3)=LEFT(beallitasok!$B$3,3),\"\",$B103)","v":"Üzemanyag vás."},{"$f":"IF(LEFT(F103,3)=LEFT(beallitasok!$B$3,3),\"\",$B103)","v":""},{"$f":"IF(AND(LEN(ZARO_FOKONYV!A103)<LEN(ZARO_FOKONYV!A104),LEFT(ZARO_FOKONYV!A104,LEN(ZARO_FOKONYV!A103))=ZARO_FOKONYV!A103),\"IGEN\",\"nem\")","v":"nem"}]
[{"$f":"IFERROR(IF(OR(AND(beallitasok!$H$5=\"IGEN\",J104=\"IGEN\"),B104=\"\",VALUE(LEFT(F104,LEN(beallitasok!$H$2)))=beallitasok!$H$2,VALUE(LEFT(E104,LEN(beallitasok!$H$3)))=beallitasok!$H$3,VALUE(LEFT(F104,LEN(beallitasok!$H$2)))=beallitasok!$H$3,VALUE(LEFT(E104,LEN(beallitasok!$H$3)))=beallitasok!$H$2),\"\",IF(D104=\"\",\"\",beallitasok!$B$2)),\"\")","v":"2020-12-31"},{"$f":"IF(VALUE(LEFT(ZARO_FOKONYV!A104,1))<=beallitasok!$H$8,ZARO_FOKONYV!B104,\"\")","v":"Alkatrész vás."},{"$f":"IF(B104=\"\",\"\",IF(beallitasok!$B$6=\"\",\"\",beallitasok!$B$6))","v":"NYITÓ"},{"$f":"IF(B104=\"\",\"\",ROUND(ZARO_FOKONYV!C104+ZARO_FOKONYV!D104,0))","v":5524925},{"$f":"IF(B104=\"\",\"\",LEFT(IF(ZARO_FOKONYV!C104>0,IFERROR(VLOOKUP(ZARO_FOKONYV!$A104,FKCSERE!$A:$B,2,FALSE),ZARO_FOKONYV!$A104),beallitasok!$B$3)&\"00000\",6))","v":"511200"},{"$f":"IF(B104=\"\",\"\",LEFT(IF(ZARO_FOKONYV!D104>0,IFERROR(VLOOKUP(ZARO_FOKONYV!$A104,FKCSERE!$A:$B,2,FALSE),ZARO_FOKONYV!$A104),beallitasok!$B$3)&\"000000\",6))","v":"491000"},null,{"$f":"IF(LEFT(E104,3)=LEFT(beallitasok!$B$3,3),\"\",$B104)","v":"Alkatrész vás."},{"$f":"IF(LEFT(F104,3)=LEFT(beallitasok!$B$3,3),\"\",$B104)","v":""},{"$f":"IF(AND(LEN(ZARO_FOKONYV!A104)<LEN(ZARO_FOKONYV!A105),LEFT(ZARO_FOKONYV!A105,LEN(ZARO_FOKONYV!A104))=ZARO_FOKONYV!A104),\"IGEN\",\"nem\")","v":"nem"}]
[{"$f":"IFERROR(IF(OR(AND(beallitasok!$H$5=\"IGEN\",J105=\"IGEN\"),B105=\"\",VALUE(LEFT(F105,LEN(beallitasok!$H$2)))=beallitasok!$H$2,VALUE(LEFT(E105,LEN(beallitasok!$H$3)))=beallitasok!$H$3,VALUE(LEFT(F105,LEN(beallitasok!$H$2)))=beallitasok!$H$3,VALUE(LEFT(E105,LEN(beallitasok!$H$3)))=beallitasok!$H$2),\"\",IF(D105=\"\",\"\",beallitasok!$B$2)),\"\")","v":"2020-12-31"},{"$f":"IF(VALUE(LEFT(ZARO_FOKONYV!A105,1))<=beallitasok!$H$8,ZARO_FOKONYV!B105,\"\")","v":"Egyéb anyag ktg."},{"$f":"IF(B105=\"\",\"\",IF(beallitasok!$B$6=\"\",\"\",beallitasok!$B$6))","v":"NYITÓ"},{"$f":"IF(B105=\"\",\"\",ROUND(ZARO_FOKONYV!C105+ZARO_FOKONYV!D105,0))","v":1220633},{"$f":"IF(B105=\"\",\"\",LEFT(IF(ZARO_FOKONYV!C105>0,IFERROR(VLOOKUP(ZARO_FOKONYV!$A105,FKCSERE!$A:$B,2,FALSE),ZARO_FOKONYV!$A105),beallitasok!$B$3)&\"00000\",6))","v":"512900"},{"$f":"IF(B105=\"\",\"\",LEFT(IF(ZARO_FOKONYV!D105>0,IFERROR(VLOOKUP(ZARO_FOKONYV!$A105,FKCSERE!$A:$B,2,FALSE),ZARO_FOKONYV!$A105),beallitasok!$B$3)&\"000000\",6))","v":"491000"},null,{"$f":"IF(LEFT(E105,3)=LEFT(beallitasok!$B$3,3),\"\",$B105)","v":"Egyéb anyag ktg."},{"$f":"IF(LEFT(F105,3)=LEFT(beallitasok!$B$3,3),\"\",$B105)","v":""},{"$f":"IF(AND(LEN(ZARO_FOKONYV!A105)<LEN(ZARO_FOKONYV!A106),LEFT(ZARO_FOKONYV!A106,LEN(ZARO_FOKONYV!A105))=ZARO_FOKONYV!A105),\"IGEN\",\"nem\")","v":"nem"}]
[{"$f":"IFERROR(IF(OR(AND(beallitasok!$H$5=\"IGEN\",J106=\"IGEN\"),B106=\"\",VALUE(LEFT(F106,LEN(beallitasok!$H$2)))=beallitasok!$H$2,VALUE(LEFT(E106,LEN(beallitasok!$H$3)))=beallitasok!$H$3,VALUE(LEFT(F106,LEN(beallitasok!$H$2)))=beallitasok!$H$3,VALUE(LEFT(E106,LEN(beallitasok!$H$3)))=beallitasok!$H$2),\"\",IF(D106=\"\",\"\",beallitasok!$B$2)),\"\")","v":"2020-12-31"},{"$f":"IF(VALUE(LEFT(ZARO_FOKONYV!A106,1))<=beallitasok!$H$8,ZARO_FOKONYV!B106,\"\")","v":"Közüzemi díjak"},{"$f":"IF(B106=\"\",\"\",IF(beallitasok!$B$6=\"\",\"\",beallitasok!$B$6))","v":"NYITÓ"},{"$f":"IF(B106=\"\",\"\",ROUND(ZARO_FOKONYV!C106+ZARO_FOKONYV!D106,0))","v":439491},{"$f":"IF(B106=\"\",\"\",LEFT(IF(ZARO_FOKONYV!C106>0,IFERROR(VLOOKUP(ZARO_FOKONYV!$A106,FKCSERE!$A:$B,2,FALSE),ZARO_FOKONYV!$A106),beallitasok!$B$3)&\"00000\",6))","v":"513100"},{"$f":"IF(B106=\"\",\"\",LEFT(IF(ZARO_FOKONYV!D106>0,IFERROR(VLOOKUP(ZARO_FOKONYV!$A106,FKCSERE!$A:$B,2,FALSE),ZARO_FOKONYV!$A106),beallitasok!$B$3)&\"000000\",6))","v":"491000"},null,{"$f":"IF(LEFT(E106,3)=LEFT(beallitasok!$B$3,3),\"\",$B106)","v":"Közüzemi díjak"},{"$f":"IF(LEFT(F106,3)=LEFT(beallitasok!$B$3,3),\"\",$B106)","v":""},{"$f":"IF(AND(LEN(ZARO_FOKONYV!A106)<LEN(ZARO_FOKONYV!A107),LEFT(ZARO_FOKONYV!A107,LEN(ZARO_FOKONYV!A106))=ZARO_FOKONYV!A106),\"IGEN\",\"nem\")","v":"nem"}]
[{"$f":"IFERROR(IF(OR(AND(beallitasok!$H$5=\"IGEN\",J107=\"IGEN\"),B107=\"\",VALUE(LEFT(F107,LEN(beallitasok!$H$2)))=beallitasok!$H$2,VALUE(LEFT(E107,LEN(beallitasok!$H$3)))=beallitasok!$H$3,VALUE(LEFT(F107,LEN(beallitasok!$H$2)))=beallitasok!$H$3,VALUE(LEFT(E107,LEN(beallitasok!$H$3)))=beallitasok!$H$2),\"\",IF(D107=\"\",\"\",beallitasok!$B$2)),\"\")","v":"2020-12-31"},{"$f":"IF(VALUE(LEFT(ZARO_FOKONYV!A107,1))<=beallitasok!$H$8,ZARO_FOKONYV!B107,\"\")","v":"Nyomtatvány, irodaszer"},{"$f":"IF(B107=\"\",\"\",IF(beallitasok!$B$6=\"\",\"\",beallitasok!$B$6))","v":"NYITÓ"},{"$f":"IF(B107=\"\",\"\",ROUND(ZARO_FOKONYV!C107+ZARO_FOKONYV!D107,0))","v":4118},{"$f":"IF(B107=\"\",\"\",LEFT(IF(ZARO_FOKONYV!C107>0,IFERROR(VLOOKUP(ZARO_FOKONYV!$A107,FKCSERE!$A:$B,2,FALSE),ZARO_FOKONYV!$A107),beallitasok!$B$3)&\"00000\",6))","v":"513200"},{"$f":"IF(B107=\"\",\"\",LEFT(IF(ZARO_FOKONYV!D107>0,IFERROR(VLOOKUP(ZARO_FOKONYV!$A107,FKCSERE!$A:$B,2,FALSE),ZARO_FOKONYV!$A107),beallitasok!$B$3)&\"000000\",6))","v":"491000"},null,{"$f":"IF(LEFT(E107,3)=LEFT(beallitasok!$B$3,3),\"\",$B107)","v":"Nyomtatvány, irodaszer"},{"$f":"IF(LEFT(F107,3)=LEFT(beallitasok!$B$3,3),\"\",$B107)","v":""},{"$f":"IF(AND(LEN(ZARO_FOKONYV!A107)<LEN(ZARO_FOKONYV!A108),LEFT(ZARO_FOKONYV!A108,LEN(ZARO_FOKONYV!A107))=ZARO_FOKONYV!A107),\"IGEN\",\"nem\")","v":"nem"}]
[{"$f":"IFERROR(IF(OR(AND(beallitasok!$H$5=\"IGEN\",J108=\"IGEN\"),B108=\"\",VALUE(LEFT(F108,LEN(beallitasok!$H$2)))=beallitasok!$H$2,VALUE(LEFT(E108,LEN(beallitasok!$H$3)))=beallitasok!$H$3,VALUE(LEFT(F108,LEN(beallitasok!$H$2)))=beallitasok!$H$3,VALUE(LEFT(E108,LEN(beallitasok!$H$3)))=beallitasok!$H$2),\"\",IF(D108=\"\",\"\",beallitasok!$B$2)),\"\")","v":""},{"$f":"IF(VALUE(LEFT(ZARO_FOKONYV!A108,1))<=beallitasok!$H$8,ZARO_FOKONYV!B108,\"\")","v":"IGÉNYBE VETT SZOLGÁLTATÁSOK KÖLTSÉGEI"},{"$f":"IF(B108=\"\",\"\",IF(beallitasok!$B$6=\"\",\"\",beallitasok!$B$6))","v":"NYITÓ"},{"$f":"IF(B108=\"\",\"\",ROUND(ZARO_FOKONYV!C108+ZARO_FOKONYV!D108,0))","v":5667885},{"$f":"IF(B108=\"\",\"\",LEFT(IF(ZARO_FOKONYV!C108>0,IFERROR(VLOOKUP(ZARO_FOKONYV!$A108,FKCSERE!$A:$B,2,FALSE),ZARO_FOKONYV!$A108),beallitasok!$B$3)&\"00000\",6))","v":"520000"},{"$f":"IF(B108=\"\",\"\",LEFT(IF(ZARO_FOKONYV!D108>0,IFERROR(VLOOKUP(ZARO_FOKONYV!$A108,FKCSERE!$A:$B,2,FALSE),ZARO_FOKONYV!$A108),beallitasok!$B$3)&\"000000\",6))","v":"491000"},null,{"$f":"IF(LEFT(E108,3)=LEFT(beallitasok!$B$3,3),\"\",$B108)","v":"IGÉNYBE VETT SZOLGÁLTATÁSOK KÖLTSÉGEI"},{"$f":"IF(LEFT(F108,3)=LEFT(beallitasok!$B$3,3),\"\",$B108)","v":""},{"$f":"IF(AND(LEN(ZARO_FOKONYV!A108)<LEN(ZARO_FOKONYV!A109),LEFT(ZARO_FOKONYV!A109,LEN(ZARO_FOKONYV!A108))=ZARO_FOKONYV!A108),\"IGEN\",\"nem\")","v":"IGEN"}]
[{"$f":"IFERROR(IF(OR(AND(beallitasok!$H$5=\"IGEN\",J109=\"IGEN\"),B109=\"\",VALUE(LEFT(F109,LEN(beallitasok!$H$2)))=beallitasok!$H$2,VALUE(LEFT(E109,LEN(beallitasok!$H$3)))=beallitasok!$H$3,VALUE(LEFT(F109,LEN(beallitasok!$H$2)))=beallitasok!$H$3,VALUE(LEFT(E109,LEN(beallitasok!$H$3)))=beallitasok!$H$2),\"\",IF(D109=\"\",\"\",beallitasok!$B$2)),\"\")","v":"2020-12-31"},{"$f":"IF(VALUE(LEFT(ZARO_FOKONYV!A109,1))<=beallitasok!$H$8,ZARO_FOKONYV!B109,\"\")","v":"Szállítás-rakodás, raktározás költségei"},{"$f":"IF(B109=\"\",\"\",IF(beallitasok!$B$6=\"\",\"\",beallitasok!$B$6))","v":"NYITÓ"},{"$f":"IF(B109=\"\",\"\",ROUND(ZARO_FOKONYV!C109+ZARO_FOKONYV!D109,0))","v":9865},{"$f":"IF(B109=\"\",\"\",LEFT(IF(ZARO_FOKONYV!C109>0,IFERROR(VLOOKUP(ZARO_FOKONYV!$A109,FKCSERE!$A:$B,2,FALSE),ZARO_FOKONYV!$A109),beallitasok!$B$3)&\"00000\",6))","v":"521000"},{"$f":"IF(B109=\"\",\"\",LEFT(IF(ZARO_FOKONYV!D109>0,IFERROR(VLOOKUP(ZARO_FOKONYV!$A109,FKCSERE!$A:$B,2,FALSE),ZARO_FOKONYV!$A109),beallitasok!$B$3)&\"000000\",6))","v":"491000"},null,{"$f":"IF(LEFT(E109,3)=LEFT(beallitasok!$B$3,3),\"\",$B109)","v":"Szállítás-rakodás, raktározás költségei"},{"$f":"IF(LEFT(F109,3)=LEFT(beallitasok!$B$3,3),\"\",$B109)","v":""},{"$f":"IF(AND(LEN(ZARO_FOKONYV!A109)<LEN(ZARO_FOKONYV!A110),LEFT(ZARO_FOKONYV!A110,LEN(ZARO_FOKONYV!A109))=ZARO_FOKONYV!A109),\"IGEN\",\"nem\")","v":"nem"}]
[{"$f":"IFERROR(IF(OR(AND(beallitasok!$H$5=\"IGEN\",J110=\"IGEN\"),B110=\"\",VALUE(LEFT(F110,LEN(beallitasok!$H$2)))=beallitasok!$H$2,VALUE(LEFT(E110,LEN(beallitasok!$H$3)))=beallitasok!$H$3,VALUE(LEFT(F110,LEN(beallitasok!$H$2)))=beallitasok!$H$3,VALUE(LEFT(E110,LEN(beallitasok!$H$3)))=beallitasok!$H$2),\"\",IF(D110=\"\",\"\",beallitasok!$B$2)),\"\")","v":"2020-12-31"},{"$f":"IF(VALUE(LEFT(ZARO_FOKONYV!A110,1))<=beallitasok!$H$8,ZARO_FOKONYV!B110,\"\")","v":"Bérleti díjak"},{"$f":"IF(B110=\"\",\"\",IF(beallitasok!$B$6=\"\",\"\",beallitasok!$B$6))","v":"NYITÓ"},{"$f":"IF(B110=\"\",\"\",ROUND(ZARO_FOKONYV!C110+ZARO_FOKONYV!D110,0))","v":1527114},{"$f":"IF(B110=\"\",\"\",LEFT(IF(ZARO_FOKONYV!C110>0,IFERROR(VLOOKUP(ZARO_FOKONYV!$A110,FKCSERE!$A:$B,2,FALSE),ZARO_FOKONYV!$A110),beallitasok!$B$3)&\"00000\",6))","v":"522000"},{"$f":"IF(B110=\"\",\"\",LEFT(IF(ZARO_FOKONYV!D110>0,IFERROR(VLOOKUP(ZARO_FOKONYV!$A110,FKCSERE!$A:$B,2,FALSE),ZARO_FOKONYV!$A110),beallitasok!$B$3)&\"000000\",6))","v":"491000"},null,{"$f":"IF(LEFT(E110,3)=LEFT(beallitasok!$B$3,3),\"\",$B110)","v":"Bérleti díjak"},{"$f":"IF(LEFT(F110,3)=LEFT(beallitasok!$B$3,3),\"\",$B110)","v":""},{"$f":"IF(AND(LEN(ZARO_FOKONYV!A110)<LEN(ZARO_FOKONYV!A111),LEFT(ZARO_FOKONYV!A111,LEN(ZARO_FOKONYV!A110))=ZARO_FOKONYV!A110),\"IGEN\",\"nem\")","v":"nem"}]
[{"$f":"IFERROR(IF(OR(AND(beallitasok!$H$5=\"IGEN\",J111=\"IGEN\"),B111=\"\",VALUE(LEFT(F111,LEN(beallitasok!$H$2)))=beallitasok!$H$2,VALUE(LEFT(E111,LEN(beallitasok!$H$3)))=beallitasok!$H$3,VALUE(LEFT(F111,LEN(beallitasok!$H$2)))=beallitasok!$H$3,VALUE(LEFT(E111,LEN(beallitasok!$H$3)))=beallitasok!$H$2),\"\",IF(D111=\"\",\"\",beallitasok!$B$2)),\"\")","v":"2020-12-31"},{"$f":"IF(VALUE(LEFT(ZARO_FOKONYV!A111,1))<=beallitasok!$H$8,ZARO_FOKONYV!B111,\"\")","v":"Karbantartási költségek"},{"$f":"IF(B111=\"\",\"\",IF(beallitasok!$B$6=\"\",\"\",beallitasok!$B$6))","v":"NYITÓ"},{"$f":"IF(B111=\"\",\"\",ROUND(ZARO_FOKONYV!C111+ZARO_FOKONYV!D111,0))","v":576654},{"$f":"IF(B111=\"\",\"\",LEFT(IF(ZARO_FOKONYV!C111>0,IFERROR(VLOOKUP(ZARO_FOKONYV!$A111,FKCSERE!$A:$B,2,FALSE),ZARO_FOKONYV!$A111),beallitasok!$B$3)&\"00000\",6))","v":"523000"},{"$f":"IF(B111=\"\",\"\",LEFT(IF(ZARO_FOKONYV!D111>0,IFERROR(VLOOKUP(ZARO_FOKONYV!$A111,FKCSERE!$A:$B,2,FALSE),ZARO_FOKONYV!$A111),beallitasok!$B$3)&\"000000\",6))","v":"491000"},null,{"$f":"IF(LEFT(E111,3)=LEFT(beallitasok!$B$3,3),\"\",$B111)","v":"Karbantartási költségek"},{"$f":"IF(LEFT(F111,3)=LEFT(beallitasok!$B$3,3),\"\",$B111)","v":""},{"$f":"IF(AND(LEN(ZARO_FOKONYV!A111)<LEN(ZARO_FOKONYV!A112),LEFT(ZARO_FOKONYV!A112,LEN(ZARO_FOKONYV!A111))=ZARO_FOKONYV!A111),\"IGEN\",\"nem\")","v":"nem"}]
[{"$f":"IFERROR(IF(OR(AND(beallitasok!$H$5=\"IGEN\",J112=\"IGEN\"),B112=\"\",VALUE(LEFT(F112,LEN(beallitasok!$H$2)))=beallitasok!$H$2,VALUE(LEFT(E112,LEN(beallitasok!$H$3)))=beallitasok!$H$3,VALUE(LEFT(F112,LEN(beallitasok!$H$2)))=beallitasok!$H$3,VALUE(LEFT(E112,LEN(beallitasok!$H$3)))=beallitasok!$H$2),\"\",IF(D112=\"\",\"\",beallitasok!$B$2)),\"\")","v":"2020-12-31"},{"$f":"IF(VALUE(LEFT(ZARO_FOKONYV!A112,1))<=beallitasok!$H$8,ZARO_FOKONYV!B112,\"\")","v":"Hírdetés, reklám, propaganda költségei"},{"$f":"IF(B112=\"\",\"\",IF(beallitasok!$B$6=\"\",\"\",beallitasok!$B$6))","v":"NYITÓ"},{"$f":"IF(B112=\"\",\"\",ROUND(ZARO_FOKONYV!C112+ZARO_FOKONYV!D112,0))","v":50000},{"$f":"IF(B112=\"\",\"\",LEFT(IF(ZARO_FOKONYV!C112>0,IFERROR(VLOOKUP(ZARO_FOKONYV!$A112,FKCSERE!$A:$B,2,FALSE),ZARO_FOKONYV!$A112),beallitasok!$B$3)&\"00000\",6))","v":"524000"},{"$f":"IF(B112=\"\",\"\",LEFT(IF(ZARO_FOKONYV!D112>0,IFERROR(VLOOKUP(ZARO_FOKONYV!$A112,FKCSERE!$A:$B,2,FALSE),ZARO_FOKONYV!$A112),beallitasok!$B$3)&\"000000\",6))","v":"491000"},null,{"$f":"IF(LEFT(E112,3)=LEFT(beallitasok!$B$3,3),\"\",$B112)","v":"Hírdetés, reklám, propaganda költségei"},{"$f":"IF(LEFT(F112,3)=LEFT(beallitasok!$B$3,3),\"\",$B112)","v":""},{"$f":"IF(AND(LEN(ZARO_FOKONYV!A112)<LEN(ZARO_FOKONYV!A113),LEFT(ZARO_FOKONYV!A113,LEN(ZARO_FOKONYV!A112))=ZARO_FOKONYV!A112),\"IGEN\",\"nem\")","v":"nem"}]
[{"$f":"IFERROR(IF(OR(AND(beallitasok!$H$5=\"IGEN\",J113=\"IGEN\"),B113=\"\",VALUE(LEFT(F113,LEN(beallitasok!$H$2)))=beallitasok!$H$2,VALUE(LEFT(E113,LEN(beallitasok!$H$3)))=beallitasok!$H$3,VALUE(LEFT(F113,LEN(beallitasok!$H$2)))=beallitasok!$H$3,VALUE(LEFT(E113,LEN(beallitasok!$H$3)))=beallitasok!$H$2),\"\",IF(D113=\"\",\"\",beallitasok!$B$2)),\"\")","v":"2020-12-31"},{"$f":"IF(VALUE(LEFT(ZARO_FOKONYV!A113,1))<=beallitasok!$H$8,ZARO_FOKONYV!B113,\"\")","v":"Oktatás és továbbképzés költségei"},{"$f":"IF(B113=\"\",\"\",IF(beallitasok!$B$6=\"\",\"\",beallitasok!$B$6))","v":"NYITÓ"},{"$f":"IF(B113=\"\",\"\",ROUND(ZARO_FOKONYV!C113+ZARO_FOKONYV!D113,0))","v":505000},{"$f":"IF(B113=\"\",\"\",LEFT(IF(ZARO_FOKONYV!C113>0,IFERROR(VLOOKUP(ZARO_FOKONYV!$A113,FKCSERE!$A:$B,2,FALSE),ZARO_FOKONYV!$A113),beallitasok!$B$3)&\"00000\",6))","v":"525000"},{"$f":"IF(B113=\"\",\"\",LEFT(IF(ZARO_FOKONYV!D113>0,IFERROR(VLOOKUP(ZARO_FOKONYV!$A113,FKCSERE!$A:$B,2,FALSE),ZARO_FOKONYV!$A113),beallitasok!$B$3)&\"000000\",6))","v":"491000"},null,{"$f":"IF(LEFT(E113,3)=LEFT(beallitasok!$B$3,3),\"\",$B113)","v":"Oktatás és továbbképzés költségei"},{"$f":"IF(LEFT(F113,3)=LEFT(beallitasok!$B$3,3),\"\",$B113)","v":""},{"$f":"IF(AND(LEN(ZARO_FOKONYV!A113)<LEN(ZARO_FOKONYV!A114),LEFT(ZARO_FOKONYV!A114,LEN(ZARO_FOKONYV!A113))=ZARO_FOKONYV!A113),\"IGEN\",\"nem\")","v":"nem"}]
[{"$f":"IFERROR(IF(OR(AND(beallitasok!$H$5=\"IGEN\",J114=\"IGEN\"),B114=\"\",VALUE(LEFT(F114,LEN(beallitasok!$H$2)))=beallitasok!$H$2,VALUE(LEFT(E114,LEN(beallitasok!$H$3)))=beallitasok!$H$3,VALUE(LEFT(F114,LEN(beallitasok!$H$2)))=beallitasok!$H$3,VALUE(LEFT(E114,LEN(beallitasok!$H$3)))=beallitasok!$H$2),\"\",IF(D114=\"\",\"\",beallitasok!$B$2)),\"\")","v":"2020-12-31"},{"$f":"IF(VALUE(LEFT(ZARO_FOKONYV!A114,1))<=beallitasok!$H$8,ZARO_FOKONYV!B114,\"\")","v":"Számviteli szolgáltatás"},{"$f":"IF(B114=\"\",\"\",IF(beallitasok!$B$6=\"\",\"\",beallitasok!$B$6))","v":"NYITÓ"},{"$f":"IF(B114=\"\",\"\",ROUND(ZARO_FOKONYV!C114+ZARO_FOKONYV!D114,0))","v":600000},{"$f":"IF(B114=\"\",\"\",LEFT(IF(ZARO_FOKONYV!C114>0,IFERROR(VLOOKUP(ZARO_FOKONYV!$A114,FKCSERE!$A:$B,2,FALSE),ZARO_FOKONYV!$A114),beallitasok!$B$3)&\"00000\",6))","v":"527000"},{"$f":"IF(B114=\"\",\"\",LEFT(IF(ZARO_FOKONYV!D114>0,IFERROR(VLOOKUP(ZARO_FOKONYV!$A114,FKCSERE!$A:$B,2,FALSE),ZARO_FOKONYV!$A114),beallitasok!$B$3)&\"000000\",6))","v":"491000"},null,{"$f":"IF(LEFT(E114,3)=LEFT(beallitasok!$B$3,3),\"\",$B114)","v":"Számviteli szolgáltatás"},{"$f":"IF(LEFT(F114,3)=LEFT(beallitasok!$B$3,3),\"\",$B114)","v":""},{"$f":"IF(AND(LEN(ZARO_FOKONYV!A114)<LEN(ZARO_FOKONYV!A115),LEFT(ZARO_FOKONYV!A115,LEN(ZARO_FOKONYV!A114))=ZARO_FOKONYV!A114),\"IGEN\",\"nem\")","v":"nem"}]
[{"$f":"IFERROR(IF(OR(AND(beallitasok!$H$5=\"IGEN\",J115=\"IGEN\"),B115=\"\",VALUE(LEFT(F115,LEN(beallitasok!$H$2)))=beallitasok!$H$2,VALUE(LEFT(E115,LEN(beallitasok!$H$3)))=beallitasok!$H$3,VALUE(LEFT(F115,LEN(beallitasok!$H$2)))=beallitasok!$H$3,VALUE(LEFT(E115,LEN(beallitasok!$H$3)))=beallitasok!$H$2),\"\",IF(D115=\"\",\"\",beallitasok!$B$2)),\"\")","v":"2020-12-31"},{"$f":"IF(VALUE(LEFT(ZARO_FOKONYV!A115,1))<=beallitasok!$H$8,ZARO_FOKONYV!B115,\"\")","v":"Posta, telefon dij"},{"$f":"IF(B115=\"\",\"\",IF(beallitasok!$B$6=\"\",\"\",beallitasok!$B$6))","v":"NYITÓ"},{"$f":"IF(B115=\"\",\"\",ROUND(ZARO_FOKONYV!C115+ZARO_FOKONYV!D115,0))","v":462679},{"$f":"IF(B115=\"\",\"\",LEFT(IF(ZARO_FOKONYV!C115>0,IFERROR(VLOOKUP(ZARO_FOKONYV!$A115,FKCSERE!$A:$B,2,FALSE),ZARO_FOKONYV!$A115),beallitasok!$B$3)&\"00000\",6))","v":"529010"},{"$f":"IF(B115=\"\",\"\",LEFT(IF(ZARO_FOKONYV!D115>0,IFERROR(VLOOKUP(ZARO_FOKONYV!$A115,FKCSERE!$A:$B,2,FALSE),ZARO_FOKONYV!$A115),beallitasok!$B$3)&\"000000\",6))","v":"491000"},null,{"$f":"IF(LEFT(E115,3)=LEFT(beallitasok!$B$3,3),\"\",$B115)","v":"Posta, telefon dij"},{"$f":"IF(LEFT(F115,3)=LEFT(beallitasok!$B$3,3),\"\",$B115)","v":""},{"$f":"IF(AND(LEN(ZARO_FOKONYV!A115)<LEN(ZARO_FOKONYV!A116),LEFT(ZARO_FOKONYV!A116,LEN(ZARO_FOKONYV!A115))=ZARO_FOKONYV!A115),\"IGEN\",\"nem\")","v":"nem"}]
[{"$f":"IFERROR(IF(OR(AND(beallitasok!$H$5=\"IGEN\",J116=\"IGEN\"),B116=\"\",VALUE(LEFT(F116,LEN(beallitasok!$H$2)))=beallitasok!$H$2,VALUE(LEFT(E116,LEN(beallitasok!$H$3)))=beallitasok!$H$3,VALUE(LEFT(F116,LEN(beallitasok!$H$2)))=beallitasok!$H$3,VALUE(LEFT(E116,LEN(beallitasok!$H$3)))=beallitasok!$H$2),\"\",IF(D116=\"\",\"\",beallitasok!$B$2)),\"\")","v":"2020-12-31"},{"$f":"IF(VALUE(LEFT(ZARO_FOKONYV!A116,1))<=beallitasok!$H$8,ZARO_FOKONYV!B116,\"\")","v":"Autópálya, parkolási dij"},{"$f":"IF(B116=\"\",\"\",IF(beallitasok!$B$6=\"\",\"\",beallitasok!$B$6))","v":"NYITÓ"},{"$f":"IF(B116=\"\",\"\",ROUND(ZARO_FOKONYV!C116+ZARO_FOKONYV!D116,0))","v":110969},{"$f":"IF(B116=\"\",\"\",LEFT(IF(ZARO_FOKONYV!C116>0,IFERROR(VLOOKUP(ZARO_FOKONYV!$A116,FKCSERE!$A:$B,2,FALSE),ZARO_FOKONYV!$A116),beallitasok!$B$3)&\"00000\",6))","v":"529020"},{"$f":"IF(B116=\"\",\"\",LEFT(IF(ZARO_FOKONYV!D116>0,IFERROR(VLOOKUP(ZARO_FOKONYV!$A116,FKCSERE!$A:$B,2,FALSE),ZARO_FOKONYV!$A116),beallitasok!$B$3)&\"000000\",6))","v":"491000"},null,{"$f":"IF(LEFT(E116,3)=LEFT(beallitasok!$B$3,3),\"\",$B116)","v":"Autópálya, parkolási dij"},{"$f":"IF(LEFT(F116,3)=LEFT(beallitasok!$B$3,3),\"\",$B116)","v":""},{"$f":"IF(AND(LEN(ZARO_FOKONYV!A116)<LEN(ZARO_FOKONYV!A117),LEFT(ZARO_FOKONYV!A117,LEN(ZARO_FOKONYV!A116))=ZARO_FOKONYV!A116),\"IGEN\",\"nem\")","v":"nem"}]
[{"$f":"IFERROR(IF(OR(AND(beallitasok!$H$5=\"IGEN\",J117=\"IGEN\"),B117=\"\",VALUE(LEFT(F117,LEN(beallitasok!$H$2)))=beallitasok!$H$2,VALUE(LEFT(E117,LEN(beallitasok!$H$3)))=beallitasok!$H$3,VALUE(LEFT(F117,LEN(beallitasok!$H$2)))=beallitasok!$H$3,VALUE(LEFT(E117,LEN(beallitasok!$H$3)))=beallitasok!$H$2),\"\",IF(D117=\"\",\"\",beallitasok!$B$2)),\"\")","v":"2020-12-31"},{"$f":"IF(VALUE(LEFT(ZARO_FOKONYV!A117,1))<=beallitasok!$H$8,ZARO_FOKONYV!B117,\"\")","v":"Egyéb szolgáltatás"},{"$f":"IF(B117=\"\",\"\",IF(beallitasok!$B$6=\"\",\"\",beallitasok!$B$6))","v":"NYITÓ"},{"$f":"IF(B117=\"\",\"\",ROUND(ZARO_FOKONYV!C117+ZARO_FOKONYV!D117,0))","v":1825604},{"$f":"IF(B117=\"\",\"\",LEFT(IF(ZARO_FOKONYV!C117>0,IFERROR(VLOOKUP(ZARO_FOKONYV!$A117,FKCSERE!$A:$B,2,FALSE),ZARO_FOKONYV!$A117),beallitasok!$B$3)&\"00000\",6))","v":"529100"},{"$f":"IF(B117=\"\",\"\",LEFT(IF(ZARO_FOKONYV!D117>0,IFERROR(VLOOKUP(ZARO_FOKONYV!$A117,FKCSERE!$A:$B,2,FALSE),ZARO_FOKONYV!$A117),beallitasok!$B$3)&\"000000\",6))","v":"491000"},null,{"$f":"IF(LEFT(E117,3)=LEFT(beallitasok!$B$3,3),\"\",$B117)","v":"Egyéb szolgáltatás"},{"$f":"IF(LEFT(F117,3)=LEFT(beallitasok!$B$3,3),\"\",$B117)","v":""},{"$f":"IF(AND(LEN(ZARO_FOKONYV!A117)<LEN(ZARO_FOKONYV!A118),LEFT(ZARO_FOKONYV!A118,LEN(ZARO_FOKONYV!A117))=ZARO_FOKONYV!A117),\"IGEN\",\"nem\")","v":"nem"}]
[{"$f":"IFERROR(IF(OR(AND(beallitasok!$H$5=\"IGEN\",J118=\"IGEN\"),B118=\"\",VALUE(LEFT(F118,LEN(beallitasok!$H$2)))=beallitasok!$H$2,VALUE(LEFT(E118,LEN(beallitasok!$H$3)))=beallitasok!$H$3,VALUE(LEFT(F118,LEN(beallitasok!$H$2)))=beallitasok!$H$3,VALUE(LEFT(E118,LEN(beallitasok!$H$3)))=beallitasok!$H$2),\"\",IF(D118=\"\",\"\",beallitasok!$B$2)),\"\")","v":""},{"$f":"IF(VALUE(LEFT(ZARO_FOKONYV!A118,1))<=beallitasok!$H$8,ZARO_FOKONYV!B118,\"\")","v":"EGYÉB SZOLGÁLTATÁSOK KÖLTSÉGEI"},{"$f":"IF(B118=\"\",\"\",IF(beallitasok!$B$6=\"\",\"\",beallitasok!$B$6))","v":"NYITÓ"},{"$f":"IF(B118=\"\",\"\",ROUND(ZARO_FOKONYV!C118+ZARO_FOKONYV!D118,0))","v":1239728},{"$f":"IF(B118=\"\",\"\",LEFT(IF(ZARO_FOKONYV!C118>0,IFERROR(VLOOKUP(ZARO_FOKONYV!$A118,FKCSERE!$A:$B,2,FALSE),ZARO_FOKONYV!$A118),beallitasok!$B$3)&\"00000\",6))","v":"530000"},{"$f":"IF(B118=\"\",\"\",LEFT(IF(ZARO_FOKONYV!D118>0,IFERROR(VLOOKUP(ZARO_FOKONYV!$A118,FKCSERE!$A:$B,2,FALSE),ZARO_FOKONYV!$A118),beallitasok!$B$3)&\"000000\",6))","v":"491000"},null,{"$f":"IF(LEFT(E118,3)=LEFT(beallitasok!$B$3,3),\"\",$B118)","v":"EGYÉB SZOLGÁLTATÁSOK KÖLTSÉGEI"},{"$f":"IF(LEFT(F118,3)=LEFT(beallitasok!$B$3,3),\"\",$B118)","v":""},{"$f":"IF(AND(LEN(ZARO_FOKONYV!A118)<LEN(ZARO_FOKONYV!A119),LEFT(ZARO_FOKONYV!A119,LEN(ZARO_FOKONYV!A118))=ZARO_FOKONYV!A118),\"IGEN\",\"nem\")","v":"IGEN"}]
[{"$f":"IFERROR(IF(OR(AND(beallitasok!$H$5=\"IGEN\",J119=\"IGEN\"),B119=\"\",VALUE(LEFT(F119,LEN(beallitasok!$H$2)))=beallitasok!$H$2,VALUE(LEFT(E119,LEN(beallitasok!$H$3)))=beallitasok!$H$3,VALUE(LEFT(F119,LEN(beallitasok!$H$2)))=beallitasok!$H$3,VALUE(LEFT(E119,LEN(beallitasok!$H$3)))=beallitasok!$H$2),\"\",IF(D119=\"\",\"\",beallitasok!$B$2)),\"\")","v":"2020-12-31"},{"$f":"IF(VALUE(LEFT(ZARO_FOKONYV!A119,1))<=beallitasok!$H$8,ZARO_FOKONYV!B119,\"\")","v":"Hatósági igazgatási, szolgáltatási díjak, illetékek"},{"$f":"IF(B119=\"\",\"\",IF(beallitasok!$B$6=\"\",\"\",beallitasok!$B$6))","v":"NYITÓ"},{"$f":"IF(B119=\"\",\"\",ROUND(ZARO_FOKONYV!C119+ZARO_FOKONYV!D119,0))","v":6000},{"$f":"IF(B119=\"\",\"\",LEFT(IF(ZARO_FOKONYV!C119>0,IFERROR(VLOOKUP(ZARO_FOKONYV!$A119,FKCSERE!$A:$B,2,FALSE),ZARO_FOKONYV!$A119),beallitasok!$B$3)&\"00000\",6))","v":"531000"},{"$f":"IF(B119=\"\",\"\",LEFT(IF(ZARO_FOKONYV!D119>0,IFERROR(VLOOKUP(ZARO_FOKONYV!$A119,FKCSERE!$A:$B,2,FALSE),ZARO_FOKONYV!$A119),beallitasok!$B$3)&\"000000\",6))","v":"491000"},null,{"$f":"IF(LEFT(E119,3)=LEFT(beallitasok!$B$3,3),\"\",$B119)","v":"Hatósági igazgatási, szolgáltatási díjak, illetékek"},{"$f":"IF(LEFT(F119,3)=LEFT(beallitasok!$B$3,3),\"\",$B119)","v":""},{"$f":"IF(AND(LEN(ZARO_FOKONYV!A119)<LEN(ZARO_FOKONYV!A120),LEFT(ZARO_FOKONYV!A120,LEN(ZARO_FOKONYV!A119))=ZARO_FOKONYV!A119),\"IGEN\",\"nem\")","v":"nem"}]
[{"$f":"IFERROR(IF(OR(AND(beallitasok!$H$5=\"IGEN\",J120=\"IGEN\"),B120=\"\",VALUE(LEFT(F120,LEN(beallitasok!$H$2)))=beallitasok!$H$2,VALUE(LEFT(E120,LEN(beallitasok!$H$3)))=beallitasok!$H$3,VALUE(LEFT(F120,LEN(beallitasok!$H$2)))=beallitasok!$H$3,VALUE(LEFT(E120,LEN(beallitasok!$H$3)))=beallitasok!$H$2),\"\",IF(D120=\"\",\"\",beallitasok!$B$2)),\"\")","v":"2020-12-31"},{"$f":"IF(VALUE(LEFT(ZARO_FOKONYV!A120,1))<=beallitasok!$H$8,ZARO_FOKONYV!B120,\"\")","v":"Pénzügyi, befektetési szolgáltatási díjak"},{"$f":"IF(B120=\"\",\"\",IF(beallitasok!$B$6=\"\",\"\",beallitasok!$B$6))","v":"NYITÓ"},{"$f":"IF(B120=\"\",\"\",ROUND(ZARO_FOKONYV!C120+ZARO_FOKONYV!D120,0))","v":681179},{"$f":"IF(B120=\"\",\"\",LEFT(IF(ZARO_FOKONYV!C120>0,IFERROR(VLOOKUP(ZARO_FOKONYV!$A120,FKCSERE!$A:$B,2,FALSE),ZARO_FOKONYV!$A120),beallitasok!$B$3)&\"00000\",6))","v":"532000"},{"$f":"IF(B120=\"\",\"\",LEFT(IF(ZARO_FOKONYV!D120>0,IFERROR(VLOOKUP(ZARO_FOKONYV!$A120,FKCSERE!$A:$B,2,FALSE),ZARO_FOKONYV!$A120),beallitasok!$B$3)&\"000000\",6))","v":"491000"},null,{"$f":"IF(LEFT(E120,3)=LEFT(beallitasok!$B$3,3),\"\",$B120)","v":"Pénzügyi, befektetési szolgáltatási díjak"},{"$f":"IF(LEFT(F120,3)=LEFT(beallitasok!$B$3,3),\"\",$B120)","v":""},{"$f":"IF(AND(LEN(ZARO_FOKONYV!A120)<LEN(ZARO_FOKONYV!A121),LEFT(ZARO_FOKONYV!A121,LEN(ZARO_FOKONYV!A120))=ZARO_FOKONYV!A120),\"IGEN\",\"nem\")","v":"nem"}]
[{"$f":"IFERROR(IF(OR(AND(beallitasok!$H$5=\"IGEN\",J121=\"IGEN\"),B121=\"\",VALUE(LEFT(F121,LEN(beallitasok!$H$2)))=beallitasok!$H$2,VALUE(LEFT(E121,LEN(beallitasok!$H$3)))=beallitasok!$H$3,VALUE(LEFT(F121,LEN(beallitasok!$H$2)))=beallitasok!$H$3,VALUE(LEFT(E121,LEN(beallitasok!$H$3)))=beallitasok!$H$2),\"\",IF(D121=\"\",\"\",beallitasok!$B$2)),\"\")","v":"2020-12-31"},{"$f":"IF(VALUE(LEFT(ZARO_FOKONYV!A121,1))<=beallitasok!$H$8,ZARO_FOKONYV!B121,\"\")","v":"Biztosítási dij"},{"$f":"IF(B121=\"\",\"\",IF(beallitasok!$B$6=\"\",\"\",beallitasok!$B$6))","v":"NYITÓ"},{"$f":"IF(B121=\"\",\"\",ROUND(ZARO_FOKONYV!C121+ZARO_FOKONYV!D121,0))","v":552549},{"$f":"IF(B121=\"\",\"\",LEFT(IF(ZARO_FOKONYV!C121>0,IFERROR(VLOOKUP(ZARO_FOKONYV!$A121,FKCSERE!$A:$B,2,FALSE),ZARO_FOKONYV!$A121),beallitasok!$B$3)&\"00000\",6))","v":"533000"},{"$f":"IF(B121=\"\",\"\",LEFT(IF(ZARO_FOKONYV!D121>0,IFERROR(VLOOKUP(ZARO_FOKONYV!$A121,FKCSERE!$A:$B,2,FALSE),ZARO_FOKONYV!$A121),beallitasok!$B$3)&\"000000\",6))","v":"491000"},null,{"$f":"IF(LEFT(E121,3)=LEFT(beallitasok!$B$3,3),\"\",$B121)","v":"Biztosítási dij"},{"$f":"IF(LEFT(F121,3)=LEFT(beallitasok!$B$3,3),\"\",$B121)","v":""},{"$f":"IF(AND(LEN(ZARO_FOKONYV!A121)<LEN(ZARO_FOKONYV!A122),LEFT(ZARO_FOKONYV!A122,LEN(ZARO_FOKONYV!A121))=ZARO_FOKONYV!A121),\"IGEN\",\"nem\")","v":"nem"}]
[{"$f":"IFERROR(IF(OR(AND(beallitasok!$H$5=\"IGEN\",J122=\"IGEN\"),B122=\"\",VALUE(LEFT(F122,LEN(beallitasok!$H$2)))=beallitasok!$H$2,VALUE(LEFT(E122,LEN(beallitasok!$H$3)))=beallitasok!$H$3,VALUE(LEFT(F122,LEN(beallitasok!$H$2)))=beallitasok!$H$3,VALUE(LEFT(E122,LEN(beallitasok!$H$3)))=beallitasok!$H$2),\"\",IF(D122=\"\",\"\",beallitasok!$B$2)),\"\")","v":""},{"$f":"IF(VALUE(LEFT(ZARO_FOKONYV!A122,1))<=beallitasok!$H$8,ZARO_FOKONYV!B122,\"\")","v":"BÉRKÖLTSÉG"},{"$f":"IF(B122=\"\",\"\",IF(beallitasok!$B$6=\"\",\"\",beallitasok!$B$6))","v":"NYITÓ"},{"$f":"IF(B122=\"\",\"\",ROUND(ZARO_FOKONYV!C122+ZARO_FOKONYV!D122,0))","v":2137500},{"$f":"IF(B122=\"\",\"\",LEFT(IF(ZARO_FOKONYV!C122>0,IFERROR(VLOOKUP(ZARO_FOKONYV!$A122,FKCSERE!$A:$B,2,FALSE),ZARO_FOKONYV!$A122),beallitasok!$B$3)&\"00000\",6))","v":"540000"},{"$f":"IF(B122=\"\",\"\",LEFT(IF(ZARO_FOKONYV!D122>0,IFERROR(VLOOKUP(ZARO_FOKONYV!$A122,FKCSERE!$A:$B,2,FALSE),ZARO_FOKONYV!$A122),beallitasok!$B$3)&\"000000\",6))","v":"491000"},null,{"$f":"IF(LEFT(E122,3)=LEFT(beallitasok!$B$3,3),\"\",$B122)","v":"BÉRKÖLTSÉG"},{"$f":"IF(LEFT(F122,3)=LEFT(beallitasok!$B$3,3),\"\",$B122)","v":""},{"$f":"IF(AND(LEN(ZARO_FOKONYV!A122)<LEN(ZARO_FOKONYV!A123),LEFT(ZARO_FOKONYV!A123,LEN(ZARO_FOKONYV!A122))=ZARO_FOKONYV!A122),\"IGEN\",\"nem\")","v":"IGEN"}]
[{"$f":"IFERROR(IF(OR(AND(beallitasok!$H$5=\"IGEN\",J123=\"IGEN\"),B123=\"\",VALUE(LEFT(F123,LEN(beallitasok!$H$2)))=beallitasok!$H$2,VALUE(LEFT(E123,LEN(beallitasok!$H$3)))=beallitasok!$H$3,VALUE(LEFT(F123,LEN(beallitasok!$H$2)))=beallitasok!$H$3,VALUE(LEFT(E123,LEN(beallitasok!$H$3)))=beallitasok!$H$2),\"\",IF(D123=\"\",\"\",beallitasok!$B$2)),\"\")","v":"2020-12-31"},{"$f":"IF(VALUE(LEFT(ZARO_FOKONYV!A123,1))<=beallitasok!$H$8,ZARO_FOKONYV!B123,\"\")","v":"Bérköltség"},{"$f":"IF(B123=\"\",\"\",IF(beallitasok!$B$6=\"\",\"\",beallitasok!$B$6))","v":"NYITÓ"},{"$f":"IF(B123=\"\",\"\",ROUND(ZARO_FOKONYV!C123+ZARO_FOKONYV!D123,0))","v":2137500},{"$f":"IF(B123=\"\",\"\",LEFT(IF(ZARO_FOKONYV!C123>0,IFERROR(VLOOKUP(ZARO_FOKONYV!$A123,FKCSERE!$A:$B,2,FALSE),ZARO_FOKONYV!$A123),beallitasok!$B$3)&\"00000\",6))","v":"541000"},{"$f":"IF(B123=\"\",\"\",LEFT(IF(ZARO_FOKONYV!D123>0,IFERROR(VLOOKUP(ZARO_FOKONYV!$A123,FKCSERE!$A:$B,2,FALSE),ZARO_FOKONYV!$A123),beallitasok!$B$3)&\"000000\",6))","v":"491000"},null,{"$f":"IF(LEFT(E123,3)=LEFT(beallitasok!$B$3,3),\"\",$B123)","v":"Bérköltség"},{"$f":"IF(LEFT(F123,3)=LEFT(beallitasok!$B$3,3),\"\",$B123)","v":""},{"$f":"IF(AND(LEN(ZARO_FOKONYV!A123)<LEN(ZARO_FOKONYV!A124),LEFT(ZARO_FOKONYV!A124,LEN(ZARO_FOKONYV!A123))=ZARO_FOKONYV!A123),\"IGEN\",\"nem\")","v":"nem"}]
[{"$f":"IFERROR(IF(OR(AND(beallitasok!$H$5=\"IGEN\",J124=\"IGEN\"),B124=\"\",VALUE(LEFT(F124,LEN(beallitasok!$H$2)))=beallitasok!$H$2,VALUE(LEFT(E124,LEN(beallitasok!$H$3)))=beallitasok!$H$3,VALUE(LEFT(F124,LEN(beallitasok!$H$2)))=beallitasok!$H$3,VALUE(LEFT(E124,LEN(beallitasok!$H$3)))=beallitasok!$H$2),\"\",IF(D124=\"\",\"\",beallitasok!$B$2)),\"\")","v":""},{"$f":"IF(VALUE(LEFT(ZARO_FOKONYV!A124,1))<=beallitasok!$H$8,ZARO_FOKONYV!B124,\"\")","v":"SZEMÉLYI JELLEGŰ EGYÉB KIFIZETÉSEK"},{"$f":"IF(B124=\"\",\"\",IF(beallitasok!$B$6=\"\",\"\",beallitasok!$B$6))","v":"NYITÓ"},{"$f":"IF(B124=\"\",\"\",ROUND(ZARO_FOKONYV!C124+ZARO_FOKONYV!D124,0))","v":46260},{"$f":"IF(B124=\"\",\"\",LEFT(IF(ZARO_FOKONYV!C124>0,IFERROR(VLOOKUP(ZARO_FOKONYV!$A124,FKCSERE!$A:$B,2,FALSE),ZARO_FOKONYV!$A124),beallitasok!$B$3)&\"00000\",6))","v":"550000"},{"$f":"IF(B124=\"\",\"\",LEFT(IF(ZARO_FOKONYV!D124>0,IFERROR(VLOOKUP(ZARO_FOKONYV!$A124,FKCSERE!$A:$B,2,FALSE),ZARO_FOKONYV!$A124),beallitasok!$B$3)&\"000000\",6))","v":"491000"},null,{"$f":"IF(LEFT(E124,3)=LEFT(beallitasok!$B$3,3),\"\",$B124)","v":"SZEMÉLYI JELLEGŰ EGYÉB KIFIZETÉSEK"},{"$f":"IF(LEFT(F124,3)=LEFT(beallitasok!$B$3,3),\"\",$B124)","v":""},{"$f":"IF(AND(LEN(ZARO_FOKONYV!A124)<LEN(ZARO_FOKONYV!A125),LEFT(ZARO_FOKONYV!A125,LEN(ZARO_FOKONYV!A124))=ZARO_FOKONYV!A124),\"IGEN\",\"nem\")","v":"IGEN"}]
[{"$f":"IFERROR(IF(OR(AND(beallitasok!$H$5=\"IGEN\",J125=\"IGEN\"),B125=\"\",VALUE(LEFT(F125,LEN(beallitasok!$H$2)))=beallitasok!$H$2,VALUE(LEFT(E125,LEN(beallitasok!$H$3)))=beallitasok!$H$3,VALUE(LEFT(F125,LEN(beallitasok!$H$2)))=beallitasok!$H$3,VALUE(LEFT(E125,LEN(beallitasok!$H$3)))=beallitasok!$H$2),\"\",IF(D125=\"\",\"\",beallitasok!$B$2)),\"\")","v":"2020-12-31"},{"$f":"IF(VALUE(LEFT(ZARO_FOKONYV!A125,1))<=beallitasok!$H$8,ZARO_FOKONYV!B125,\"\")","v":"Munkavállalóknak, tagoknak fizetettt személyi jellegű kifizetések"},{"$f":"IF(B125=\"\",\"\",IF(beallitasok!$B$6=\"\",\"\",beallitasok!$B$6))","v":"NYITÓ"},{"$f":"IF(B125=\"\",\"\",ROUND(ZARO_FOKONYV!C125+ZARO_FOKONYV!D125,0))","v":46260},{"$f":"IF(B125=\"\",\"\",LEFT(IF(ZARO_FOKONYV!C125>0,IFERROR(VLOOKUP(ZARO_FOKONYV!$A125,FKCSERE!$A:$B,2,FALSE),ZARO_FOKONYV!$A125),beallitasok!$B$3)&\"00000\",6))","v":"551000"},{"$f":"IF(B125=\"\",\"\",LEFT(IF(ZARO_FOKONYV!D125>0,IFERROR(VLOOKUP(ZARO_FOKONYV!$A125,FKCSERE!$A:$B,2,FALSE),ZARO_FOKONYV!$A125),beallitasok!$B$3)&\"000000\",6))","v":"491000"},null,{"$f":"IF(LEFT(E125,3)=LEFT(beallitasok!$B$3,3),\"\",$B125)","v":"Munkavállalóknak, tagoknak fizetettt személyi jellegű kifizetések"},{"$f":"IF(LEFT(F125,3)=LEFT(beallitasok!$B$3,3),\"\",$B125)","v":""},{"$f":"IF(AND(LEN(ZARO_FOKONYV!A125)<LEN(ZARO_FOKONYV!A126),LEFT(ZARO_FOKONYV!A126,LEN(ZARO_FOKONYV!A125))=ZARO_FOKONYV!A125),\"IGEN\",\"nem\")","v":"nem"}]
[{"$f":"IFERROR(IF(OR(AND(beallitasok!$H$5=\"IGEN\",J126=\"IGEN\"),B126=\"\",VALUE(LEFT(F126,LEN(beallitasok!$H$2)))=beallitasok!$H$2,VALUE(LEFT(E126,LEN(beallitasok!$H$3)))=beallitasok!$H$3,VALUE(LEFT(F126,LEN(beallitasok!$H$2)))=beallitasok!$H$3,VALUE(LEFT(E126,LEN(beallitasok!$H$3)))=beallitasok!$H$2),\"\",IF(D126=\"\",\"\",beallitasok!$B$2)),\"\")","v":""},{"$f":"IF(VALUE(LEFT(ZARO_FOKONYV!A126,1))<=beallitasok!$H$8,ZARO_FOKONYV!B126,\"\")","v":"BÉRJÁRULÉKOK"},{"$f":"IF(B126=\"\",\"\",IF(beallitasok!$B$6=\"\",\"\",beallitasok!$B$6))","v":"NYITÓ"},{"$f":"IF(B126=\"\",\"\",ROUND(ZARO_FOKONYV!C126+ZARO_FOKONYV!D126,0))","v":346754},{"$f":"IF(B126=\"\",\"\",LEFT(IF(ZARO_FOKONYV!C126>0,IFERROR(VLOOKUP(ZARO_FOKONYV!$A126,FKCSERE!$A:$B,2,FALSE),ZARO_FOKONYV!$A126),beallitasok!$B$3)&\"00000\",6))","v":"560000"},{"$f":"IF(B126=\"\",\"\",LEFT(IF(ZARO_FOKONYV!D126>0,IFERROR(VLOOKUP(ZARO_FOKONYV!$A126,FKCSERE!$A:$B,2,FALSE),ZARO_FOKONYV!$A126),beallitasok!$B$3)&\"000000\",6))","v":"491000"},null,{"$f":"IF(LEFT(E126,3)=LEFT(beallitasok!$B$3,3),\"\",$B126)","v":"BÉRJÁRULÉKOK"},{"$f":"IF(LEFT(F126,3)=LEFT(beallitasok!$B$3,3),\"\",$B126)","v":""},{"$f":"IF(AND(LEN(ZARO_FOKONYV!A126)<LEN(ZARO_FOKONYV!A127),LEFT(ZARO_FOKONYV!A127,LEN(ZARO_FOKONYV!A126))=ZARO_FOKONYV!A126),\"IGEN\",\"nem\")","v":"IGEN"}]
[{"$f":"IFERROR(IF(OR(AND(beallitasok!$H$5=\"IGEN\",J127=\"IGEN\"),B127=\"\",VALUE(LEFT(F127,LEN(beallitasok!$H$2)))=beallitasok!$H$2,VALUE(LEFT(E127,LEN(beallitasok!$H$3)))=beallitasok!$H$3,VALUE(LEFT(F127,LEN(beallitasok!$H$2)))=beallitasok!$H$3,VALUE(LEFT(E127,LEN(beallitasok!$H$3)))=beallitasok!$H$2),\"\",IF(D127=\"\",\"\",beallitasok!$B$2)),\"\")","v":"2020-12-31"},{"$f":"IF(VALUE(LEFT(ZARO_FOKONYV!A127,1))<=beallitasok!$H$8,ZARO_FOKONYV!B127,\"\")","v":"Nyugdijbiztosítási és egészségbiztosítási járulék"},{"$f":"IF(B127=\"\",\"\",IF(beallitasok!$B$6=\"\",\"\",beallitasok!$B$6))","v":"NYITÓ"},{"$f":"IF(B127=\"\",\"\",ROUND(ZARO_FOKONYV!C127+ZARO_FOKONYV!D127,0))","v":315336},{"$f":"IF(B127=\"\",\"\",LEFT(IF(ZARO_FOKONYV!C127>0,IFERROR(VLOOKUP(ZARO_FOKONYV!$A127,FKCSERE!$A:$B,2,FALSE),ZARO_FOKONYV!$A127),beallitasok!$B$3)&\"00000\",6))","v":"561000"},{"$f":"IF(B127=\"\",\"\",LEFT(IF(ZARO_FOKONYV!D127>0,IFERROR(VLOOKUP(ZARO_FOKONYV!$A127,FKCSERE!$A:$B,2,FALSE),ZARO_FOKONYV!$A127),beallitasok!$B$3)&\"000000\",6))","v":"491000"},null,{"$f":"IF(LEFT(E127,3)=LEFT(beallitasok!$B$3,3),\"\",$B127)","v":"Nyugdijbiztosítási és egészségbiztosítási járulék"},{"$f":"IF(LEFT(F127,3)=LEFT(beallitasok!$B$3,3),\"\",$B127)","v":""},{"$f":"IF(AND(LEN(ZARO_FOKONYV!A127)<LEN(ZARO_FOKONYV!A128),LEFT(ZARO_FOKONYV!A128,LEN(ZARO_FOKONYV!A127))=ZARO_FOKONYV!A127),\"IGEN\",\"nem\")","v":"nem"}]
[{"$f":"IFERROR(IF(OR(AND(beallitasok!$H$5=\"IGEN\",J128=\"IGEN\"),B128=\"\",VALUE(LEFT(F128,LEN(beallitasok!$H$2)))=beallitasok!$H$2,VALUE(LEFT(E128,LEN(beallitasok!$H$3)))=beallitasok!$H$3,VALUE(LEFT(F128,LEN(beallitasok!$H$2)))=beallitasok!$H$3,VALUE(LEFT(E128,LEN(beallitasok!$H$3)))=beallitasok!$H$2),\"\",IF(D128=\"\",\"\",beallitasok!$B$2)),\"\")","v":"2020-12-31"},{"$f":"IF(VALUE(LEFT(ZARO_FOKONYV!A128,1))<=beallitasok!$H$8,ZARO_FOKONYV!B128,\"\")","v":"Munkaadói járulék"},{"$f":"IF(B128=\"\",\"\",IF(beallitasok!$B$6=\"\",\"\",beallitasok!$B$6))","v":"NYITÓ"},{"$f":"IF(B128=\"\",\"\",ROUND(ZARO_FOKONYV!C128+ZARO_FOKONYV!D128,0))","v":2978},{"$f":"IF(B128=\"\",\"\",LEFT(IF(ZARO_FOKONYV!C128>0,IFERROR(VLOOKUP(ZARO_FOKONYV!$A128,FKCSERE!$A:$B,2,FALSE),ZARO_FOKONYV!$A128),beallitasok!$B$3)&\"00000\",6))","v":"563000"},{"$f":"IF(B128=\"\",\"\",LEFT(IF(ZARO_FOKONYV!D128>0,IFERROR(VLOOKUP(ZARO_FOKONYV!$A128,FKCSERE!$A:$B,2,FALSE),ZARO_FOKONYV!$A128),beallitasok!$B$3)&\"000000\",6))","v":"491000"},null,{"$f":"IF(LEFT(E128,3)=LEFT(beallitasok!$B$3,3),\"\",$B128)","v":"Munkaadói járulék"},{"$f":"IF(LEFT(F128,3)=LEFT(beallitasok!$B$3,3),\"\",$B128)","v":""},{"$f":"IF(AND(LEN(ZARO_FOKONYV!A128)<LEN(ZARO_FOKONYV!A129),LEFT(ZARO_FOKONYV!A129,LEN(ZARO_FOKONYV!A128))=ZARO_FOKONYV!A128),\"IGEN\",\"nem\")","v":"nem"}]
[{"$f":"IFERROR(IF(OR(AND(beallitasok!$H$5=\"IGEN\",J129=\"IGEN\"),B129=\"\",VALUE(LEFT(F129,LEN(beallitasok!$H$2)))=beallitasok!$H$2,VALUE(LEFT(E129,LEN(beallitasok!$H$3)))=beallitasok!$H$3,VALUE(LEFT(F129,LEN(beallitasok!$H$2)))=beallitasok!$H$3,VALUE(LEFT(E129,LEN(beallitasok!$H$3)))=beallitasok!$H$2),\"\",IF(D129=\"\",\"\",beallitasok!$B$2)),\"\")","v":"2020-12-31"},{"$f":"IF(VALUE(LEFT(ZARO_FOKONYV!A129,1))<=beallitasok!$H$8,ZARO_FOKONYV!B129,\"\")","v":"Szakképzési hozzájárulás"},{"$f":"IF(B129=\"\",\"\",IF(beallitasok!$B$6=\"\",\"\",beallitasok!$B$6))","v":"NYITÓ"},{"$f":"IF(B129=\"\",\"\",ROUND(ZARO_FOKONYV!C129+ZARO_FOKONYV!D129,0))","v":28440},{"$f":"IF(B129=\"\",\"\",LEFT(IF(ZARO_FOKONYV!C129>0,IFERROR(VLOOKUP(ZARO_FOKONYV!$A129,FKCSERE!$A:$B,2,FALSE),ZARO_FOKONYV!$A129),beallitasok!$B$3)&\"00000\",6))","v":"564000"},{"$f":"IF(B129=\"\",\"\",LEFT(IF(ZARO_FOKONYV!D129>0,IFERROR(VLOOKUP(ZARO_FOKONYV!$A129,FKCSERE!$A:$B,2,FALSE),ZARO_FOKONYV!$A129),beallitasok!$B$3)&\"000000\",6))","v":"491000"},null,{"$f":"IF(LEFT(E129,3)=LEFT(beallitasok!$B$3,3),\"\",$B129)","v":"Szakképzési hozzájárulás"},{"$f":"IF(LEFT(F129,3)=LEFT(beallitasok!$B$3,3),\"\",$B129)","v":""},{"$f":"IF(AND(LEN(ZARO_FOKONYV!A129)<LEN(ZARO_FOKONYV!A130),LEFT(ZARO_FOKONYV!A130,LEN(ZARO_FOKONYV!A129))=ZARO_FOKONYV!A129),\"IGEN\",\"nem\")","v":"nem"}]
[{"$f":"IFERROR(IF(OR(AND(beallitasok!$H$5=\"IGEN\",J130=\"IGEN\"),B130=\"\",VALUE(LEFT(F130,LEN(beallitasok!$H$2)))=beallitasok!$H$2,VALUE(LEFT(E130,LEN(beallitasok!$H$3)))=beallitasok!$H$3,VALUE(LEFT(F130,LEN(beallitasok!$H$2)))=beallitasok!$H$3,VALUE(LEFT(E130,LEN(beallitasok!$H$3)))=beallitasok!$H$2),\"\",IF(D130=\"\",\"\",beallitasok!$B$2)),\"\")","v":""},{"$f":"IF(VALUE(LEFT(ZARO_FOKONYV!A130,1))<=beallitasok!$H$8,ZARO_FOKONYV!B130,\"\")","v":"ÉRTÉKCSÖKKENÉSI LEÍRÁS"},{"$f":"IF(B130=\"\",\"\",IF(beallitasok!$B$6=\"\",\"\",beallitasok!$B$6))","v":"NYITÓ"},{"$f":"IF(B130=\"\",\"\",ROUND(ZARO_FOKONYV!C130+ZARO_FOKONYV!D130,0))","v":3933502},{"$f":"IF(B130=\"\",\"\",LEFT(IF(ZARO_FOKONYV!C130>0,IFERROR(VLOOKUP(ZARO_FOKONYV!$A130,FKCSERE!$A:$B,2,FALSE),ZARO_FOKONYV!$A130),beallitasok!$B$3)&\"00000\",6))","v":"570000"},{"$f":"IF(B130=\"\",\"\",LEFT(IF(ZARO_FOKONYV!D130>0,IFERROR(VLOOKUP(ZARO_FOKONYV!$A130,FKCSERE!$A:$B,2,FALSE),ZARO_FOKONYV!$A130),beallitasok!$B$3)&\"000000\",6))","v":"491000"},null,{"$f":"IF(LEFT(E130,3)=LEFT(beallitasok!$B$3,3),\"\",$B130)","v":"ÉRTÉKCSÖKKENÉSI LEÍRÁS"},{"$f":"IF(LEFT(F130,3)=LEFT(beallitasok!$B$3,3),\"\",$B130)","v":""},{"$f":"IF(AND(LEN(ZARO_FOKONYV!A130)<LEN(ZARO_FOKONYV!A131),LEFT(ZARO_FOKONYV!A131,LEN(ZARO_FOKONYV!A130))=ZARO_FOKONYV!A130),\"IGEN\",\"nem\")","v":"IGEN"}]
[{"$f":"IFERROR(IF(OR(AND(beallitasok!$H$5=\"IGEN\",J131=\"IGEN\"),B131=\"\",VALUE(LEFT(F131,LEN(beallitasok!$H$2)))=beallitasok!$H$2,VALUE(LEFT(E131,LEN(beallitasok!$H$3)))=beallitasok!$H$3,VALUE(LEFT(F131,LEN(beallitasok!$H$2)))=beallitasok!$H$3,VALUE(LEFT(E131,LEN(beallitasok!$H$3)))=beallitasok!$H$2),\"\",IF(D131=\"\",\"\",beallitasok!$B$2)),\"\")","v":"2020-12-31"},{"$f":"IF(VALUE(LEFT(ZARO_FOKONYV!A131,1))<=beallitasok!$H$8,ZARO_FOKONYV!B131,\"\")","v":"Terv szerinti értékcsökkenési leírás"},{"$f":"IF(B131=\"\",\"\",IF(beallitasok!$B$6=\"\",\"\",beallitasok!$B$6))","v":"NYITÓ"},{"$f":"IF(B131=\"\",\"\",ROUND(ZARO_FOKONYV!C131+ZARO_FOKONYV!D131,0))","v":3234879},{"$f":"IF(B131=\"\",\"\",LEFT(IF(ZARO_FOKONYV!C131>0,IFERROR(VLOOKUP(ZARO_FOKONYV!$A131,FKCSERE!$A:$B,2,FALSE),ZARO_FOKONYV!$A131),beallitasok!$B$3)&\"00000\",6))","v":"571000"},{"$f":"IF(B131=\"\",\"\",LEFT(IF(ZARO_FOKONYV!D131>0,IFERROR(VLOOKUP(ZARO_FOKONYV!$A131,FKCSERE!$A:$B,2,FALSE),ZARO_FOKONYV!$A131),beallitasok!$B$3)&\"000000\",6))","v":"491000"},null,{"$f":"IF(LEFT(E131,3)=LEFT(beallitasok!$B$3,3),\"\",$B131)","v":"Terv szerinti értékcsökkenési leírás"},{"$f":"IF(LEFT(F131,3)=LEFT(beallitasok!$B$3,3),\"\",$B131)","v":""},{"$f":"IF(AND(LEN(ZARO_FOKONYV!A131)<LEN(ZARO_FOKONYV!A132),LEFT(ZARO_FOKONYV!A132,LEN(ZARO_FOKONYV!A131))=ZARO_FOKONYV!A131),\"IGEN\",\"nem\")","v":"nem"}]
[{"$f":"IFERROR(IF(OR(AND(beallitasok!$H$5=\"IGEN\",J132=\"IGEN\"),B132=\"\",VALUE(LEFT(F132,LEN(beallitasok!$H$2)))=beallitasok!$H$2,VALUE(LEFT(E132,LEN(beallitasok!$H$3)))=beallitasok!$H$3,VALUE(LEFT(F132,LEN(beallitasok!$H$2)))=beallitasok!$H$3,VALUE(LEFT(E132,LEN(beallitasok!$H$3)))=beallitasok!$H$2),\"\",IF(D132=\"\",\"\",beallitasok!$B$2)),\"\")","v":"2020-12-31"},{"$f":"IF(VALUE(LEFT(ZARO_FOKONYV!A132,1))<=beallitasok!$H$8,ZARO_FOKONYV!B132,\"\")","v":"Használatbavételkor egy összegben elszámolt értékcsökkenési leírás"},{"$f":"IF(B132=\"\",\"\",IF(beallitasok!$B$6=\"\",\"\",beallitasok!$B$6))","v":"NYITÓ"},{"$f":"IF(B132=\"\",\"\",ROUND(ZARO_FOKONYV!C132+ZARO_FOKONYV!D132,0))","v":698623},{"$f":"IF(B132=\"\",\"\",LEFT(IF(ZARO_FOKONYV!C132>0,IFERROR(VLOOKUP(ZARO_FOKONYV!$A132,FKCSERE!$A:$B,2,FALSE),ZARO_FOKONYV!$A132),beallitasok!$B$3)&\"00000\",6))","v":"572000"},{"$f":"IF(B132=\"\",\"\",LEFT(IF(ZARO_FOKONYV!D132>0,IFERROR(VLOOKUP(ZARO_FOKONYV!$A132,FKCSERE!$A:$B,2,FALSE),ZARO_FOKONYV!$A132),beallitasok!$B$3)&\"000000\",6))","v":"491000"},null,{"$f":"IF(LEFT(E132,3)=LEFT(beallitasok!$B$3,3),\"\",$B132)","v":"Használatbavételkor egy összegben elszámolt értékcsökkenési leírás"},{"$f":"IF(LEFT(F132,3)=LEFT(beallitasok!$B$3,3),\"\",$B132)","v":""},{"$f":"IF(AND(LEN(ZARO_FOKONYV!A132)<LEN(ZARO_FOKONYV!A133),LEFT(ZARO_FOKONYV!A133,LEN(ZARO_FOKONYV!A132))=ZARO_FOKONYV!A132),\"IGEN\",\"nem\")","v":"nem"}]
[{"$f":"IFERROR(IF(OR(AND(beallitasok!$H$5=\"IGEN\",J133=\"IGEN\"),B133=\"\",VALUE(LEFT(F133,LEN(beallitasok!$H$2)))=beallitasok!$H$2,VALUE(LEFT(E133,LEN(beallitasok!$H$3)))=beallitasok!$H$3,VALUE(LEFT(F133,LEN(beallitasok!$H$2)))=beallitasok!$H$3,VALUE(LEFT(E133,LEN(beallitasok!$H$3)))=beallitasok!$H$2),\"\",IF(D133=\"\",\"\",beallitasok!$B$2)),\"\")","v":""},{"$f":"IF(VALUE(LEFT(ZARO_FOKONYV!A133,1))<=beallitasok!$H$8,ZARO_FOKONYV!B133,\"\")","v":"ÉRTÉKESÍTÉS ELSZÁMOLT ÖNKÖLTSÉGE ÉS RÁFORDÍTÁSOK"},{"$f":"IF(B133=\"\",\"\",IF(beallitasok!$B$6=\"\",\"\",beallitasok!$B$6))","v":"NYITÓ"},{"$f":"IF(B133=\"\",\"\",ROUND(ZARO_FOKONYV!C133+ZARO_FOKONYV!D133,0))","v":86778355},{"$f":"IF(B133=\"\",\"\",LEFT(IF(ZARO_FOKONYV!C133>0,IFERROR(VLOOKUP(ZARO_FOKONYV!$A133,FKCSERE!$A:$B,2,FALSE),ZARO_FOKONYV!$A133),beallitasok!$B$3)&\"00000\",6))","v":"800000"},{"$f":"IF(B133=\"\",\"\",LEFT(IF(ZARO_FOKONYV!D133>0,IFERROR(VLOOKUP(ZARO_FOKONYV!$A133,FKCSERE!$A:$B,2,FALSE),ZARO_FOKONYV!$A133),beallitasok!$B$3)&\"000000\",6))","v":"491000"},null,{"$f":"IF(LEFT(E133,3)=LEFT(beallitasok!$B$3,3),\"\",$B133)","v":"ÉRTÉKESÍTÉS ELSZÁMOLT ÖNKÖLTSÉGE ÉS RÁFORDÍTÁSOK"},{"$f":"IF(LEFT(F133,3)=LEFT(beallitasok!$B$3,3),\"\",$B133)","v":""},{"$f":"IF(AND(LEN(ZARO_FOKONYV!A133)<LEN(ZARO_FOKONYV!A134),LEFT(ZARO_FOKONYV!A134,LEN(ZARO_FOKONYV!A133))=ZARO_FOKONYV!A133),\"IGEN\",\"nem\")","v":"IGEN"}]
[{"$f":"IFERROR(IF(OR(AND(beallitasok!$H$5=\"IGEN\",J134=\"IGEN\"),B134=\"\",VALUE(LEFT(F134,LEN(beallitasok!$H$2)))=beallitasok!$H$2,VALUE(LEFT(E134,LEN(beallitasok!$H$3)))=beallitasok!$H$3,VALUE(LEFT(F134,LEN(beallitasok!$H$2)))=beallitasok!$H$3,VALUE(LEFT(E134,LEN(beallitasok!$H$3)))=beallitasok!$H$2),\"\",IF(D134=\"\",\"\",beallitasok!$B$2)),\"\")","v":""},{"$f":"IF(VALUE(LEFT(ZARO_FOKONYV!A134,1))<=beallitasok!$H$8,ZARO_FOKONYV!B134,\"\")","v":"ELÁBÉ"},{"$f":"IF(B134=\"\",\"\",IF(beallitasok!$B$6=\"\",\"\",beallitasok!$B$6))","v":"NYITÓ"},{"$f":"IF(B134=\"\",\"\",ROUND(ZARO_FOKONYV!C134+ZARO_FOKONYV!D134,0))","v":83204283},{"$f":"IF(B134=\"\",\"\",LEFT(IF(ZARO_FOKONYV!C134>0,IFERROR(VLOOKUP(ZARO_FOKONYV!$A134,FKCSERE!$A:$B,2,FALSE),ZARO_FOKONYV!$A134),beallitasok!$B$3)&\"00000\",6))","v":"814000"},{"$f":"IF(B134=\"\",\"\",LEFT(IF(ZARO_FOKONYV!D134>0,IFERROR(VLOOKUP(ZARO_FOKONYV!$A134,FKCSERE!$A:$B,2,FALSE),ZARO_FOKONYV!$A134),beallitasok!$B$3)&\"000000\",6))","v":"491000"},null,{"$f":"IF(LEFT(E134,3)=LEFT(beallitasok!$B$3,3),\"\",$B134)","v":"ELÁBÉ"},{"$f":"IF(LEFT(F134,3)=LEFT(beallitasok!$B$3,3),\"\",$B134)","v":""},{"$f":"IF(AND(LEN(ZARO_FOKONYV!A134)<LEN(ZARO_FOKONYV!A135),LEFT(ZARO_FOKONYV!A135,LEN(ZARO_FOKONYV!A134))=ZARO_FOKONYV!A134),\"IGEN\",\"nem\")","v":"IGEN"}]
[{"$f":"IFERROR(IF(OR(AND(beallitasok!$H$5=\"IGEN\",J135=\"IGEN\"),B135=\"\",VALUE(LEFT(F135,LEN(beallitasok!$H$2)))=beallitasok!$H$2,VALUE(LEFT(E135,LEN(beallitasok!$H$3)))=beallitasok!$H$3,VALUE(LEFT(F135,LEN(beallitasok!$H$2)))=beallitasok!$H$3,VALUE(LEFT(E135,LEN(beallitasok!$H$3)))=beallitasok!$H$2),\"\",IF(D135=\"\",\"\",beallitasok!$B$2)),\"\")","v":"2020-12-31"},{"$f":"IF(VALUE(LEFT(ZARO_FOKONYV!A135,1))<=beallitasok!$H$8,ZARO_FOKONYV!B135,\"\")","v":"ELÁBÉ"},{"$f":"IF(B135=\"\",\"\",IF(beallitasok!$B$6=\"\",\"\",beallitasok!$B$6))","v":"NYITÓ"},{"$f":"IF(B135=\"\",\"\",ROUND(ZARO_FOKONYV!C135+ZARO_FOKONYV!D135,0))","v":83204283},{"$f":"IF(B135=\"\",\"\",LEFT(IF(ZARO_FOKONYV!C135>0,IFERROR(VLOOKUP(ZARO_FOKONYV!$A135,FKCSERE!$A:$B,2,FALSE),ZARO_FOKONYV!$A135),beallitasok!$B$3)&\"00000\",6))","v":"814100"},{"$f":"IF(B135=\"\",\"\",LEFT(IF(ZARO_FOKONYV!D135>0,IFERROR(VLOOKUP(ZARO_FOKONYV!$A135,FKCSERE!$A:$B,2,FALSE),ZARO_FOKONYV!$A135),beallitasok!$B$3)&\"000000\",6))","v":"491000"},null,{"$f":"IF(LEFT(E135,3)=LEFT(beallitasok!$B$3,3),\"\",$B135)","v":"ELÁBÉ"},{"$f":"IF(LEFT(F135,3)=LEFT(beallitasok!$B$3,3),\"\",$B135)","v":""},{"$f":"IF(AND(LEN(ZARO_FOKONYV!A135)<LEN(ZARO_FOKONYV!A136),LEFT(ZARO_FOKONYV!A136,LEN(ZARO_FOKONYV!A135))=ZARO_FOKONYV!A135),\"IGEN\",\"nem\")","v":"nem"}]
[{"$f":"IFERROR(IF(OR(AND(beallitasok!$H$5=\"IGEN\",J136=\"IGEN\"),B136=\"\",VALUE(LEFT(F136,LEN(beallitasok!$H$2)))=beallitasok!$H$2,VALUE(LEFT(E136,LEN(beallitasok!$H$3)))=beallitasok!$H$3,VALUE(LEFT(F136,LEN(beallitasok!$H$2)))=beallitasok!$H$3,VALUE(LEFT(E136,LEN(beallitasok!$H$3)))=beallitasok!$H$2),\"\",IF(D136=\"\",\"\",beallitasok!$B$2)),\"\")","v":""},{"$f":"IF(VALUE(LEFT(ZARO_FOKONYV!A136,1))<=beallitasok!$H$8,ZARO_FOKONYV!B136,\"\")","v":"EGYÉB RÁFORDÍTÁSOK"},{"$f":"IF(B136=\"\",\"\",IF(beallitasok!$B$6=\"\",\"\",beallitasok!$B$6))","v":"NYITÓ"},{"$f":"IF(B136=\"\",\"\",ROUND(ZARO_FOKONYV!C136+ZARO_FOKONYV!D136,0))","v":2156267},{"$f":"IF(B136=\"\",\"\",LEFT(IF(ZARO_FOKONYV!C136>0,IFERROR(VLOOKUP(ZARO_FOKONYV!$A136,FKCSERE!$A:$B,2,FALSE),ZARO_FOKONYV!$A136),beallitasok!$B$3)&\"00000\",6))","v":"860000"},{"$f":"IF(B136=\"\",\"\",LEFT(IF(ZARO_FOKONYV!D136>0,IFERROR(VLOOKUP(ZARO_FOKONYV!$A136,FKCSERE!$A:$B,2,FALSE),ZARO_FOKONYV!$A136),beallitasok!$B$3)&\"000000\",6))","v":"491000"},null,{"$f":"IF(LEFT(E136,3)=LEFT(beallitasok!$B$3,3),\"\",$B136)","v":"EGYÉB RÁFORDÍTÁSOK"},{"$f":"IF(LEFT(F136,3)=LEFT(beallitasok!$B$3,3),\"\",$B136)","v":""},{"$f":"IF(AND(LEN(ZARO_FOKONYV!A136)<LEN(ZARO_FOKONYV!A137),LEFT(ZARO_FOKONYV!A137,LEN(ZARO_FOKONYV!A136))=ZARO_FOKONYV!A136),\"IGEN\",\"nem\")","v":"IGEN"}]
[{"$f":"IFERROR(IF(OR(AND(beallitasok!$H$5=\"IGEN\",J137=\"IGEN\"),B137=\"\",VALUE(LEFT(F137,LEN(beallitasok!$H$2)))=beallitasok!$H$2,VALUE(LEFT(E137,LEN(beallitasok!$H$3)))=beallitasok!$H$3,VALUE(LEFT(F137,LEN(beallitasok!$H$2)))=beallitasok!$H$3,VALUE(LEFT(E137,LEN(beallitasok!$H$3)))=beallitasok!$H$2),\"\",IF(D137=\"\",\"\",beallitasok!$B$2)),\"\")","v":""},{"$f":"IF(VALUE(LEFT(ZARO_FOKONYV!A137,1))<=beallitasok!$H$8,ZARO_FOKONYV!B137,\"\")","v":"Mérlegfordulónap előtt bekövetkezett eseményeknek az üzleti évhez kapcsolódó ráford."},{"$f":"IF(B137=\"\",\"\",IF(beallitasok!$B$6=\"\",\"\",beallitasok!$B$6))","v":"NYITÓ"},{"$f":"IF(B137=\"\",\"\",ROUND(ZARO_FOKONYV!C137+ZARO_FOKONYV!D137,0))","v":217949},{"$f":"IF(B137=\"\",\"\",LEFT(IF(ZARO_FOKONYV!C137>0,IFERROR(VLOOKUP(ZARO_FOKONYV!$A137,FKCSERE!$A:$B,2,FALSE),ZARO_FOKONYV!$A137),beallitasok!$B$3)&\"00000\",6))","v":"863000"},{"$f":"IF(B137=\"\",\"\",LEFT(IF(ZARO_FOKONYV!D137>0,IFERROR(VLOOKUP(ZARO_FOKONYV!$A137,FKCSERE!$A:$B,2,FALSE),ZARO_FOKONYV!$A137),beallitasok!$B$3)&\"000000\",6))","v":"491000"},null,{"$f":"IF(LEFT(E137,3)=LEFT(beallitasok!$B$3,3),\"\",$B137)","v":"Mérlegfordulónap előtt bekövetkezett eseményeknek az üzleti évhez kapcsolódó ráford."},{"$f":"IF(LEFT(F137,3)=LEFT(beallitasok!$B$3,3),\"\",$B137)","v":""},{"$f":"IF(AND(LEN(ZARO_FOKONYV!A137)<LEN(ZARO_FOKONYV!A138),LEFT(ZARO_FOKONYV!A138,LEN(ZARO_FOKONYV!A137))=ZARO_FOKONYV!A137),\"IGEN\",\"nem\")","v":"IGEN"}]
[{"$f":"IFERROR(IF(OR(AND(beallitasok!$H$5=\"IGEN\",J138=\"IGEN\"),B138=\"\",VALUE(LEFT(F138,LEN(beallitasok!$H$2)))=beallitasok!$H$2,VALUE(LEFT(E138,LEN(beallitasok!$H$3)))=beallitasok!$H$3,VALUE(LEFT(F138,LEN(beallitasok!$H$2)))=beallitasok!$H$3,VALUE(LEFT(E138,LEN(beallitasok!$H$3)))=beallitasok!$H$2),\"\",IF(D138=\"\",\"\",beallitasok!$B$2)),\"\")","v":"2020-12-31"},{"$f":"IF(VALUE(LEFT(ZARO_FOKONYV!A138,1))<=beallitasok!$H$8,ZARO_FOKONYV!B138,\"\")","v":"Bírságok, kötbérek, fekbérek, késedelmi kamatok, kártéríté sek"},{"$f":"IF(B138=\"\",\"\",IF(beallitasok!$B$6=\"\",\"\",beallitasok!$B$6))","v":"NYITÓ"},{"$f":"IF(B138=\"\",\"\",ROUND(ZARO_FOKONYV!C138+ZARO_FOKONYV!D138,0))","v":217444},{"$f":"IF(B138=\"\",\"\",LEFT(IF(ZARO_FOKONYV!C138>0,IFERROR(VLOOKUP(ZARO_FOKONYV!$A138,FKCSERE!$A:$B,2,FALSE),ZARO_FOKONYV!$A138),beallitasok!$B$3)&\"00000\",6))","v":"863200"},{"$f":"IF(B138=\"\",\"\",LEFT(IF(ZARO_FOKONYV!D138>0,IFERROR(VLOOKUP(ZARO_FOKONYV!$A138,FKCSERE!$A:$B,2,FALSE),ZARO_FOKONYV!$A138),beallitasok!$B$3)&\"000000\",6))","v":"491000"},null,{"$f":"IF(LEFT(E138,3)=LEFT(beallitasok!$B$3,3),\"\",$B138)","v":"Bírságok, kötbérek, fekbérek, késedelmi kamatok, kártéríté sek"},{"$f":"IF(LEFT(F138,3)=LEFT(beallitasok!$B$3,3),\"\",$B138)","v":""},{"$f":"IF(AND(LEN(ZARO_FOKONYV!A138)<LEN(ZARO_FOKONYV!A139),LEFT(ZARO_FOKONYV!A139,LEN(ZARO_FOKONYV!A138))=ZARO_FOKONYV!A138),\"IGEN\",\"nem\")","v":"nem"}]
[{"$f":"IFERROR(IF(OR(AND(beallitasok!$H$5=\"IGEN\",J139=\"IGEN\"),B139=\"\",VALUE(LEFT(F139,LEN(beallitasok!$H$2)))=beallitasok!$H$2,VALUE(LEFT(E139,LEN(beallitasok!$H$3)))=beallitasok!$H$3,VALUE(LEFT(F139,LEN(beallitasok!$H$2)))=beallitasok!$H$3,VALUE(LEFT(E139,LEN(beallitasok!$H$3)))=beallitasok!$H$2),\"\",IF(D139=\"\",\"\",beallitasok!$B$2)),\"\")","v":"2020-12-31"},{"$f":"IF(VALUE(LEFT(ZARO_FOKONYV!A139,1))<=beallitasok!$H$8,ZARO_FOKONYV!B139,\"\")","v":"Kerekítés"},{"$f":"IF(B139=\"\",\"\",IF(beallitasok!$B$6=\"\",\"\",beallitasok!$B$6))","v":"NYITÓ"},{"$f":"IF(B139=\"\",\"\",ROUND(ZARO_FOKONYV!C139+ZARO_FOKONYV!D139,0))","v":505},{"$f":"IF(B139=\"\",\"\",LEFT(IF(ZARO_FOKONYV!C139>0,IFERROR(VLOOKUP(ZARO_FOKONYV!$A139,FKCSERE!$A:$B,2,FALSE),ZARO_FOKONYV!$A139),beallitasok!$B$3)&\"00000\",6))","v":"863600"},{"$f":"IF(B139=\"\",\"\",LEFT(IF(ZARO_FOKONYV!D139>0,IFERROR(VLOOKUP(ZARO_FOKONYV!$A139,FKCSERE!$A:$B,2,FALSE),ZARO_FOKONYV!$A139),beallitasok!$B$3)&\"000000\",6))","v":"491000"},null,{"$f":"IF(LEFT(E139,3)=LEFT(beallitasok!$B$3,3),\"\",$B139)","v":"Kerekítés"},{"$f":"IF(LEFT(F139,3)=LEFT(beallitasok!$B$3,3),\"\",$B139)","v":""},{"$f":"IF(AND(LEN(ZARO_FOKONYV!A139)<LEN(ZARO_FOKONYV!A140),LEFT(ZARO_FOKONYV!A140,LEN(ZARO_FOKONYV!A139))=ZARO_FOKONYV!A139),\"IGEN\",\"nem\")","v":"nem"}]
[{"$f":"IFERROR(IF(OR(AND(beallitasok!$H$5=\"IGEN\",J140=\"IGEN\"),B140=\"\",VALUE(LEFT(F140,LEN(beallitasok!$H$2)))=beallitasok!$H$2,VALUE(LEFT(E140,LEN(beallitasok!$H$3)))=beallitasok!$H$3,VALUE(LEFT(F140,LEN(beallitasok!$H$2)))=beallitasok!$H$3,VALUE(LEFT(E140,LEN(beallitasok!$H$3)))=beallitasok!$H$2),\"\",IF(D140=\"\",\"\",beallitasok!$B$2)),\"\")","v":""},{"$f":"IF(VALUE(LEFT(ZARO_FOKONYV!A140,1))<=beallitasok!$H$8,ZARO_FOKONYV!B140,\"\")","v":"Adók, illetékek, hozzájárulások"},{"$f":"IF(B140=\"\",\"\",IF(beallitasok!$B$6=\"\",\"\",beallitasok!$B$6))","v":"NYITÓ"},{"$f":"IF(B140=\"\",\"\",ROUND(ZARO_FOKONYV!C140+ZARO_FOKONYV!D140,0))","v":715895},{"$f":"IF(B140=\"\",\"\",LEFT(IF(ZARO_FOKONYV!C140>0,IFERROR(VLOOKUP(ZARO_FOKONYV!$A140,FKCSERE!$A:$B,2,FALSE),ZARO_FOKONYV!$A140),beallitasok!$B$3)&\"00000\",6))","v":"867000"},{"$f":"IF(B140=\"\",\"\",LEFT(IF(ZARO_FOKONYV!D140>0,IFERROR(VLOOKUP(ZARO_FOKONYV!$A140,FKCSERE!$A:$B,2,FALSE),ZARO_FOKONYV!$A140),beallitasok!$B$3)&\"000000\",6))","v":"491000"},null,{"$f":"IF(LEFT(E140,3)=LEFT(beallitasok!$B$3,3),\"\",$B140)","v":"Adók, illetékek, hozzájárulások"},{"$f":"IF(LEFT(F140,3)=LEFT(beallitasok!$B$3,3),\"\",$B140)","v":""},{"$f":"IF(AND(LEN(ZARO_FOKONYV!A140)<LEN(ZARO_FOKONYV!A141),LEFT(ZARO_FOKONYV!A141,LEN(ZARO_FOKONYV!A140))=ZARO_FOKONYV!A140),\"IGEN\",\"nem\")","v":"IGEN"}]
[{"$f":"IFERROR(IF(OR(AND(beallitasok!$H$5=\"IGEN\",J141=\"IGEN\"),B141=\"\",VALUE(LEFT(F141,LEN(beallitasok!$H$2)))=beallitasok!$H$2,VALUE(LEFT(E141,LEN(beallitasok!$H$3)))=beallitasok!$H$3,VALUE(LEFT(F141,LEN(beallitasok!$H$2)))=beallitasok!$H$3,VALUE(LEFT(E141,LEN(beallitasok!$H$3)))=beallitasok!$H$2),\"\",IF(D141=\"\",\"\",beallitasok!$B$2)),\"\")","v":"2020-12-31"},{"$f":"IF(VALUE(LEFT(ZARO_FOKONYV!A141,1))<=beallitasok!$H$8,ZARO_FOKONYV!B141,\"\")","v":"Önkormányzatokkal elszámolt adók, illetékek, hozzájárulások"},{"$f":"IF(B141=\"\",\"\",IF(beallitasok!$B$6=\"\",\"\",beallitasok!$B$6))","v":"NYITÓ"},{"$f":"IF(B141=\"\",\"\",ROUND(ZARO_FOKONYV!C141+ZARO_FOKONYV!D141,0))","v":715895},{"$f":"IF(B141=\"\",\"\",LEFT(IF(ZARO_FOKONYV!C141>0,IFERROR(VLOOKUP(ZARO_FOKONYV!$A141,FKCSERE!$A:$B,2,FALSE),ZARO_FOKONYV!$A141),beallitasok!$B$3)&\"00000\",6))","v":"867200"},{"$f":"IF(B141=\"\",\"\",LEFT(IF(ZARO_FOKONYV!D141>0,IFERROR(VLOOKUP(ZARO_FOKONYV!$A141,FKCSERE!$A:$B,2,FALSE),ZARO_FOKONYV!$A141),beallitasok!$B$3)&\"000000\",6))","v":"491000"},null,{"$f":"IF(LEFT(E141,3)=LEFT(beallitasok!$B$3,3),\"\",$B141)","v":"Önkormányzatokkal elszámolt adók, illetékek, hozzájárulások"},{"$f":"IF(LEFT(F141,3)=LEFT(beallitasok!$B$3,3),\"\",$B141)","v":""},{"$f":"IF(AND(LEN(ZARO_FOKONYV!A141)<LEN(ZARO_FOKONYV!A142),LEFT(ZARO_FOKONYV!A142,LEN(ZARO_FOKONYV!A141))=ZARO_FOKONYV!A141),\"IGEN\",\"nem\")","v":"nem"}]
[{"$f":"IFERROR(IF(OR(AND(beallitasok!$H$5=\"IGEN\",J142=\"IGEN\"),B142=\"\",VALUE(LEFT(F142,LEN(beallitasok!$H$2)))=beallitasok!$H$2,VALUE(LEFT(E142,LEN(beallitasok!$H$3)))=beallitasok!$H$3,VALUE(LEFT(F142,LEN(beallitasok!$H$2)))=beallitasok!$H$3,VALUE(LEFT(E142,LEN(beallitasok!$H$3)))=beallitasok!$H$2),\"\",IF(D142=\"\",\"\",beallitasok!$B$2)),\"\")","v":""},{"$f":"IF(VALUE(LEFT(ZARO_FOKONYV!A142,1))<=beallitasok!$H$8,ZARO_FOKONYV!B142,\"\")","v":"Különféle egyéb ráfordítások"},{"$f":"IF(B142=\"\",\"\",IF(beallitasok!$B$6=\"\",\"\",beallitasok!$B$6))","v":"NYITÓ"},{"$f":"IF(B142=\"\",\"\",ROUND(ZARO_FOKONYV!C142+ZARO_FOKONYV!D142,0))","v":1222423},{"$f":"IF(B142=\"\",\"\",LEFT(IF(ZARO_FOKONYV!C142>0,IFERROR(VLOOKUP(ZARO_FOKONYV!$A142,FKCSERE!$A:$B,2,FALSE),ZARO_FOKONYV!$A142),beallitasok!$B$3)&\"00000\",6))","v":"869000"},{"$f":"IF(B142=\"\",\"\",LEFT(IF(ZARO_FOKONYV!D142>0,IFERROR(VLOOKUP(ZARO_FOKONYV!$A142,FKCSERE!$A:$B,2,FALSE),ZARO_FOKONYV!$A142),beallitasok!$B$3)&\"000000\",6))","v":"491000"},null,{"$f":"IF(LEFT(E142,3)=LEFT(beallitasok!$B$3,3),\"\",$B142)","v":"Különféle egyéb ráfordítások"},{"$f":"IF(LEFT(F142,3)=LEFT(beallitasok!$B$3,3),\"\",$B142)","v":""},{"$f":"IF(AND(LEN(ZARO_FOKONYV!A142)<LEN(ZARO_FOKONYV!A143),LEFT(ZARO_FOKONYV!A143,LEN(ZARO_FOKONYV!A142))=ZARO_FOKONYV!A142),\"IGEN\",\"nem\")","v":"IGEN"}]
[{"$f":"IFERROR(IF(OR(AND(beallitasok!$H$5=\"IGEN\",J143=\"IGEN\"),B143=\"\",VALUE(LEFT(F143,LEN(beallitasok!$H$2)))=beallitasok!$H$2,VALUE(LEFT(E143,LEN(beallitasok!$H$3)))=beallitasok!$H$3,VALUE(LEFT(F143,LEN(beallitasok!$H$2)))=beallitasok!$H$3,VALUE(LEFT(E143,LEN(beallitasok!$H$3)))=beallitasok!$H$2),\"\",IF(D143=\"\",\"\",beallitasok!$B$2)),\"\")","v":"2020-12-31"},{"$f":"IF(VALUE(LEFT(ZARO_FOKONYV!A143,1))<=beallitasok!$H$8,ZARO_FOKONYV!B143,\"\")","v":"Nem a vállalkozás érdekében felmerült kiadás"},{"$f":"IF(B143=\"\",\"\",IF(beallitasok!$B$6=\"\",\"\",beallitasok!$B$6))","v":"NYITÓ"},{"$f":"IF(B143=\"\",\"\",ROUND(ZARO_FOKONYV!C143+ZARO_FOKONYV!D143,0))","v":1222423},{"$f":"IF(B143=\"\",\"\",LEFT(IF(ZARO_FOKONYV!C143>0,IFERROR(VLOOKUP(ZARO_FOKONYV!$A143,FKCSERE!$A:$B,2,FALSE),ZARO_FOKONYV!$A143),beallitasok!$B$3)&\"00000\",6))","v":"869900"},{"$f":"IF(B143=\"\",\"\",LEFT(IF(ZARO_FOKONYV!D143>0,IFERROR(VLOOKUP(ZARO_FOKONYV!$A143,FKCSERE!$A:$B,2,FALSE),ZARO_FOKONYV!$A143),beallitasok!$B$3)&\"000000\",6))","v":"491000"},null,{"$f":"IF(LEFT(E143,3)=LEFT(beallitasok!$B$3,3),\"\",$B143)","v":"Nem a vállalkozás érdekében felmerült kiadás"},{"$f":"IF(LEFT(F143,3)=LEFT(beallitasok!$B$3,3),\"\",$B143)","v":""},{"$f":"IF(AND(LEN(ZARO_FOKONYV!A143)<LEN(ZARO_FOKONYV!A144),LEFT(ZARO_FOKONYV!A144,LEN(ZARO_FOKONYV!A143))=ZARO_FOKONYV!A143),\"IGEN\",\"nem\")","v":"nem"}]
[{"$f":"IFERROR(IF(OR(AND(beallitasok!$H$5=\"IGEN\",J144=\"IGEN\"),B144=\"\",VALUE(LEFT(F144,LEN(beallitasok!$H$2)))=beallitasok!$H$2,VALUE(LEFT(E144,LEN(beallitasok!$H$3)))=beallitasok!$H$3,VALUE(LEFT(F144,LEN(beallitasok!$H$2)))=beallitasok!$H$3,VALUE(LEFT(E144,LEN(beallitasok!$H$3)))=beallitasok!$H$2),\"\",IF(D144=\"\",\"\",beallitasok!$B$2)),\"\")","v":""},{"$f":"IF(VALUE(LEFT(ZARO_FOKONYV!A144,1))<=beallitasok!$H$8,ZARO_FOKONYV!B144,\"\")","v":"PÉNZÜGYI MŰVELETEK RÁFORDÍTÁ SAI"},{"$f":"IF(B144=\"\",\"\",IF(beallitasok!$B$6=\"\",\"\",beallitasok!$B$6))","v":"NYITÓ"},{"$f":"IF(B144=\"\",\"\",ROUND(ZARO_FOKONYV!C144+ZARO_FOKONYV!D144,0))","v":982805},{"$f":"IF(B144=\"\",\"\",LEFT(IF(ZARO_FOKONYV!C144>0,IFERROR(VLOOKUP(ZARO_FOKONYV!$A144,FKCSERE!$A:$B,2,FALSE),ZARO_FOKONYV!$A144),beallitasok!$B$3)&\"00000\",6))","v":"870000"},{"$f":"IF(B144=\"\",\"\",LEFT(IF(ZARO_FOKONYV!D144>0,IFERROR(VLOOKUP(ZARO_FOKONYV!$A144,FKCSERE!$A:$B,2,FALSE),ZARO_FOKONYV!$A144),beallitasok!$B$3)&\"000000\",6))","v":"491000"},null,{"$f":"IF(LEFT(E144,3)=LEFT(beallitasok!$B$3,3),\"\",$B144)","v":"PÉNZÜGYI MŰVELETEK RÁFORDÍTÁ SAI"},{"$f":"IF(LEFT(F144,3)=LEFT(beallitasok!$B$3,3),\"\",$B144)","v":""},{"$f":"IF(AND(LEN(ZARO_FOKONYV!A144)<LEN(ZARO_FOKONYV!A145),LEFT(ZARO_FOKONYV!A145,LEN(ZARO_FOKONYV!A144))=ZARO_FOKONYV!A144),\"IGEN\",\"nem\")","v":"IGEN"}]
[{"$f":"IFERROR(IF(OR(AND(beallitasok!$H$5=\"IGEN\",J145=\"IGEN\"),B145=\"\",VALUE(LEFT(F145,LEN(beallitasok!$H$2)))=beallitasok!$H$2,VALUE(LEFT(E145,LEN(beallitasok!$H$3)))=beallitasok!$H$3,VALUE(LEFT(F145,LEN(beallitasok!$H$2)))=beallitasok!$H$3,VALUE(LEFT(E145,LEN(beallitasok!$H$3)))=beallitasok!$H$2),\"\",IF(D145=\"\",\"\",beallitasok!$B$2)),\"\")","v":""},{"$f":"IF(VALUE(LEFT(ZARO_FOKONYV!A145,1))<=beallitasok!$H$8,ZARO_FOKONYV!B145,\"\")","v":"Fizetendő kamatok és kamat jellegű ráfordítások"},{"$f":"IF(B145=\"\",\"\",IF(beallitasok!$B$6=\"\",\"\",beallitasok!$B$6))","v":"NYITÓ"},{"$f":"IF(B145=\"\",\"\",ROUND(ZARO_FOKONYV!C145+ZARO_FOKONYV!D145,0))","v":225887},{"$f":"IF(B145=\"\",\"\",LEFT(IF(ZARO_FOKONYV!C145>0,IFERROR(VLOOKUP(ZARO_FOKONYV!$A145,FKCSERE!$A:$B,2,FALSE),ZARO_FOKONYV!$A145),beallitasok!$B$3)&\"00000\",6))","v":"872000"},{"$f":"IF(B145=\"\",\"\",LEFT(IF(ZARO_FOKONYV!D145>0,IFERROR(VLOOKUP(ZARO_FOKONYV!$A145,FKCSERE!$A:$B,2,FALSE),ZARO_FOKONYV!$A145),beallitasok!$B$3)&\"000000\",6))","v":"491000"},null,{"$f":"IF(LEFT(E145,3)=LEFT(beallitasok!$B$3,3),\"\",$B145)","v":"Fizetendő kamatok és kamat jellegű ráfordítások"},{"$f":"IF(LEFT(F145,3)=LEFT(beallitasok!$B$3,3),\"\",$B145)","v":""},{"$f":"IF(AND(LEN(ZARO_FOKONYV!A145)<LEN(ZARO_FOKONYV!A146),LEFT(ZARO_FOKONYV!A146,LEN(ZARO_FOKONYV!A145))=ZARO_FOKONYV!A145),\"IGEN\",\"nem\")","v":"IGEN"}]
[{"$f":"IFERROR(IF(OR(AND(beallitasok!$H$5=\"IGEN\",J146=\"IGEN\"),B146=\"\",VALUE(LEFT(F146,LEN(beallitasok!$H$2)))=beallitasok!$H$2,VALUE(LEFT(E146,LEN(beallitasok!$H$3)))=beallitasok!$H$3,VALUE(LEFT(F146,LEN(beallitasok!$H$2)))=beallitasok!$H$3,VALUE(LEFT(E146,LEN(beallitasok!$H$3)))=beallitasok!$H$2),\"\",IF(D146=\"\",\"\",beallitasok!$B$2)),\"\")","v":"2020-12-31"},{"$f":"IF(VALUE(LEFT(ZARO_FOKONYV!A146,1))<=beallitasok!$H$8,ZARO_FOKONYV!B146,\"\")","v":"Kölcsönök, hitelek kapcsolt vállalkozásnak fizetendő kamata"},{"$f":"IF(B146=\"\",\"\",IF(beallitasok!$B$6=\"\",\"\",beallitasok!$B$6))","v":"NYITÓ"},{"$f":"IF(B146=\"\",\"\",ROUND(ZARO_FOKONYV!C146+ZARO_FOKONYV!D146,0))","v":97672},{"$f":"IF(B146=\"\",\"\",LEFT(IF(ZARO_FOKONYV!C146>0,IFERROR(VLOOKUP(ZARO_FOKONYV!$A146,FKCSERE!$A:$B,2,FALSE),ZARO_FOKONYV!$A146),beallitasok!$B$3)&\"00000\",6))","v":"872100"},{"$f":"IF(B146=\"\",\"\",LEFT(IF(ZARO_FOKONYV!D146>0,IFERROR(VLOOKUP(ZARO_FOKONYV!$A146,FKCSERE!$A:$B,2,FALSE),ZARO_FOKONYV!$A146),beallitasok!$B$3)&\"000000\",6))","v":"491000"},null,{"$f":"IF(LEFT(E146,3)=LEFT(beallitasok!$B$3,3),\"\",$B146)","v":"Kölcsönök, hitelek kapcsolt vállalkozásnak fizetendő kamata"},{"$f":"IF(LEFT(F146,3)=LEFT(beallitasok!$B$3,3),\"\",$B146)","v":""},{"$f":"IF(AND(LEN(ZARO_FOKONYV!A146)<LEN(ZARO_FOKONYV!A147),LEFT(ZARO_FOKONYV!A147,LEN(ZARO_FOKONYV!A146))=ZARO_FOKONYV!A146),\"IGEN\",\"nem\")","v":"nem"}]
[{"$f":"IFERROR(IF(OR(AND(beallitasok!$H$5=\"IGEN\",J147=\"IGEN\"),B147=\"\",VALUE(LEFT(F147,LEN(beallitasok!$H$2)))=beallitasok!$H$2,VALUE(LEFT(E147,LEN(beallitasok!$H$3)))=beallitasok!$H$3,VALUE(LEFT(F147,LEN(beallitasok!$H$2)))=beallitasok!$H$3,VALUE(LEFT(E147,LEN(beallitasok!$H$3)))=beallitasok!$H$2),\"\",IF(D147=\"\",\"\",beallitasok!$B$2)),\"\")","v":"2020-12-31"},{"$f":"IF(VALUE(LEFT(ZARO_FOKONYV!A147,1))<=beallitasok!$H$8,ZARO_FOKONYV!B147,\"\")","v":"Kölcsönök, hitelek egyéb fizetendő kamata"},{"$f":"IF(B147=\"\",\"\",IF(beallitasok!$B$6=\"\",\"\",beallitasok!$B$6))","v":"NYITÓ"},{"$f":"IF(B147=\"\",\"\",ROUND(ZARO_FOKONYV!C147+ZARO_FOKONYV!D147,0))","v":128215},{"$f":"IF(B147=\"\",\"\",LEFT(IF(ZARO_FOKONYV!C147>0,IFERROR(VLOOKUP(ZARO_FOKONYV!$A147,FKCSERE!$A:$B,2,FALSE),ZARO_FOKONYV!$A147),beallitasok!$B$3)&\"00000\",6))","v":"872200"},{"$f":"IF(B147=\"\",\"\",LEFT(IF(ZARO_FOKONYV!D147>0,IFERROR(VLOOKUP(ZARO_FOKONYV!$A147,FKCSERE!$A:$B,2,FALSE),ZARO_FOKONYV!$A147),beallitasok!$B$3)&\"000000\",6))","v":"491000"},null,{"$f":"IF(LEFT(E147,3)=LEFT(beallitasok!$B$3,3),\"\",$B147)","v":"Kölcsönök, hitelek egyéb fizetendő kamata"},{"$f":"IF(LEFT(F147,3)=LEFT(beallitasok!$B$3,3),\"\",$B147)","v":""},{"$f":"IF(AND(LEN(ZARO_FOKONYV!A147)<LEN(ZARO_FOKONYV!A148),LEFT(ZARO_FOKONYV!A148,LEN(ZARO_FOKONYV!A147))=ZARO_FOKONYV!A147),\"IGEN\",\"nem\")","v":"nem"}]
[{"$f":"IFERROR(IF(OR(AND(beallitasok!$H$5=\"IGEN\",J148=\"IGEN\"),B148=\"\",VALUE(LEFT(F148,LEN(beallitasok!$H$2)))=beallitasok!$H$2,VALUE(LEFT(E148,LEN(beallitasok!$H$3)))=beallitasok!$H$3,VALUE(LEFT(F148,LEN(beallitasok!$H$2)))=beallitasok!$H$3,VALUE(LEFT(E148,LEN(beallitasok!$H$3)))=beallitasok!$H$2),\"\",IF(D148=\"\",\"\",beallitasok!$B$2)),\"\")","v":""},{"$f":"IF(VALUE(LEFT(ZARO_FOKONYV!A148,1))<=beallitasok!$H$8,ZARO_FOKONYV!B148,\"\")","v":"Átváltáskori, értékeléskori árfolyamveszteség"},{"$f":"IF(B148=\"\",\"\",IF(beallitasok!$B$6=\"\",\"\",beallitasok!$B$6))","v":"NYITÓ"},{"$f":"IF(B148=\"\",\"\",ROUND(ZARO_FOKONYV!C148+ZARO_FOKONYV!D148,0))","v":756918},{"$f":"IF(B148=\"\",\"\",LEFT(IF(ZARO_FOKONYV!C148>0,IFERROR(VLOOKUP(ZARO_FOKONYV!$A148,FKCSERE!$A:$B,2,FALSE),ZARO_FOKONYV!$A148),beallitasok!$B$3)&\"00000\",6))","v":"876000"},{"$f":"IF(B148=\"\",\"\",LEFT(IF(ZARO_FOKONYV!D148>0,IFERROR(VLOOKUP(ZARO_FOKONYV!$A148,FKCSERE!$A:$B,2,FALSE),ZARO_FOKONYV!$A148),beallitasok!$B$3)&\"000000\",6))","v":"491000"},null,{"$f":"IF(LEFT(E148,3)=LEFT(beallitasok!$B$3,3),\"\",$B148)","v":"Átváltáskori, értékeléskori árfolyamveszteség"},{"$f":"IF(LEFT(F148,3)=LEFT(beallitasok!$B$3,3),\"\",$B148)","v":""},{"$f":"IF(AND(LEN(ZARO_FOKONYV!A148)<LEN(ZARO_FOKONYV!A149),LEFT(ZARO_FOKONYV!A149,LEN(ZARO_FOKONYV!A148))=ZARO_FOKONYV!A148),\"IGEN\",\"nem\")","v":"IGEN"}]
[{"$f":"IFERROR(IF(OR(AND(beallitasok!$H$5=\"IGEN\",J149=\"IGEN\"),B149=\"\",VALUE(LEFT(F149,LEN(beallitasok!$H$2)))=beallitasok!$H$2,VALUE(LEFT(E149,LEN(beallitasok!$H$3)))=beallitasok!$H$3,VALUE(LEFT(F149,LEN(beallitasok!$H$2)))=beallitasok!$H$3,VALUE(LEFT(E149,LEN(beallitasok!$H$3)))=beallitasok!$H$2),\"\",IF(D149=\"\",\"\",beallitasok!$B$2)),\"\")","v":"2020-12-31"},{"$f":"IF(VALUE(LEFT(ZARO_FOKONYV!A149,1))<=beallitasok!$H$8,ZARO_FOKONYV!B149,\"\")","v":"Külföldi pénzértékre szóló eszk. és kötelezettségek pénzügyileg rendezett árf. veszt."},{"$f":"IF(B149=\"\",\"\",IF(beallitasok!$B$6=\"\",\"\",beallitasok!$B$6))","v":"NYITÓ"},{"$f":"IF(B149=\"\",\"\",ROUND(ZARO_FOKONYV!C149+ZARO_FOKONYV!D149,0))","v":756918},{"$f":"IF(B149=\"\",\"\",LEFT(IF(ZARO_FOKONYV!C149>0,IFERROR(VLOOKUP(ZARO_FOKONYV!$A149,FKCSERE!$A:$B,2,FALSE),ZARO_FOKONYV!$A149),beallitasok!$B$3)&\"00000\",6))","v":"876200"},{"$f":"IF(B149=\"\",\"\",LEFT(IF(ZARO_FOKONYV!D149>0,IFERROR(VLOOKUP(ZARO_FOKONYV!$A149,FKCSERE!$A:$B,2,FALSE),ZARO_FOKONYV!$A149),beallitasok!$B$3)&\"000000\",6))","v":"491000"},null,{"$f":"IF(LEFT(E149,3)=LEFT(beallitasok!$B$3,3),\"\",$B149)","v":"Külföldi pénzértékre szóló eszk. és kötelezettségek pénzügyileg rendezett árf. veszt."},{"$f":"IF(LEFT(F149,3)=LEFT(beallitasok!$B$3,3),\"\",$B149)","v":""},{"$f":"IF(AND(LEN(ZARO_FOKONYV!A149)<LEN(ZARO_FOKONYV!A150),LEFT(ZARO_FOKONYV!A150,LEN(ZARO_FOKONYV!A149))=ZARO_FOKONYV!A149),\"IGEN\",\"nem\")","v":"nem"}]
[{"$f":"IFERROR(IF(OR(AND(beallitasok!$H$5=\"IGEN\",J150=\"IGEN\"),B150=\"\",VALUE(LEFT(F150,LEN(beallitasok!$H$2)))=beallitasok!$H$2,VALUE(LEFT(E150,LEN(beallitasok!$H$3)))=beallitasok!$H$3,VALUE(LEFT(F150,LEN(beallitasok!$H$2)))=beallitasok!$H$3,VALUE(LEFT(E150,LEN(beallitasok!$H$3)))=beallitasok!$H$2),\"\",IF(D150=\"\",\"\",beallitasok!$B$2)),\"\")","v":""},{"$f":"IF(VALUE(LEFT(ZARO_FOKONYV!A150,1))<=beallitasok!$H$8,ZARO_FOKONYV!B150,\"\")","v":"NYERESÉGET TERHELŐ ADÓK"},{"$f":"IF(B150=\"\",\"\",IF(beallitasok!$B$6=\"\",\"\",beallitasok!$B$6))","v":"NYITÓ"},{"$f":"IF(B150=\"\",\"\",ROUND(ZARO_FOKONYV!C150+ZARO_FOKONYV!D150,0))","v":435000},{"$f":"IF(B150=\"\",\"\",LEFT(IF(ZARO_FOKONYV!C150>0,IFERROR(VLOOKUP(ZARO_FOKONYV!$A150,FKCSERE!$A:$B,2,FALSE),ZARO_FOKONYV!$A150),beallitasok!$B$3)&\"00000\",6))","v":"890000"},{"$f":"IF(B150=\"\",\"\",LEFT(IF(ZARO_FOKONYV!D150>0,IFERROR(VLOOKUP(ZARO_FOKONYV!$A150,FKCSERE!$A:$B,2,FALSE),ZARO_FOKONYV!$A150),beallitasok!$B$3)&\"000000\",6))","v":"491000"},null,{"$f":"IF(LEFT(E150,3)=LEFT(beallitasok!$B$3,3),\"\",$B150)","v":"NYERESÉGET TERHELŐ ADÓK"},{"$f":"IF(LEFT(F150,3)=LEFT(beallitasok!$B$3,3),\"\",$B150)","v":""},{"$f":"IF(AND(LEN(ZARO_FOKONYV!A150)<LEN(ZARO_FOKONYV!A151),LEFT(ZARO_FOKONYV!A151,LEN(ZARO_FOKONYV!A150))=ZARO_FOKONYV!A150),\"IGEN\",\"nem\")","v":"IGEN"}]
[{"$f":"IFERROR(IF(OR(AND(beallitasok!$H$5=\"IGEN\",J151=\"IGEN\"),B151=\"\",VALUE(LEFT(F151,LEN(beallitasok!$H$2)))=beallitasok!$H$2,VALUE(LEFT(E151,LEN(beallitasok!$H$3)))=beallitasok!$H$3,VALUE(LEFT(F151,LEN(beallitasok!$H$2)))=beallitasok!$H$3,VALUE(LEFT(E151,LEN(beallitasok!$H$3)))=beallitasok!$H$2),\"\",IF(D151=\"\",\"\",beallitasok!$B$2)),\"\")","v":"2020-12-31"},{"$f":"IF(VALUE(LEFT(ZARO_FOKONYV!A151,1))<=beallitasok!$H$8,ZARO_FOKONYV!B151,\"\")","v":"Társasági adó"},{"$f":"IF(B151=\"\",\"\",IF(beallitasok!$B$6=\"\",\"\",beallitasok!$B$6))","v":"NYITÓ"},{"$f":"IF(B151=\"\",\"\",ROUND(ZARO_FOKONYV!C151+ZARO_FOKONYV!D151,0))","v":435000},{"$f":"IF(B151=\"\",\"\",LEFT(IF(ZARO_FOKONYV!C151>0,IFERROR(VLOOKUP(ZARO_FOKONYV!$A151,FKCSERE!$A:$B,2,FALSE),ZARO_FOKONYV!$A151),beallitasok!$B$3)&\"00000\",6))","v":"891000"},{"$f":"IF(B151=\"\",\"\",LEFT(IF(ZARO_FOKONYV!D151>0,IFERROR(VLOOKUP(ZARO_FOKONYV!$A151,FKCSERE!$A:$B,2,FALSE),ZARO_FOKONYV!$A151),beallitasok!$B$3)&\"000000\",6))","v":"491000"},null,{"$f":"IF(LEFT(E151,3)=LEFT(beallitasok!$B$3,3),\"\",$B151)","v":"Társasági adó"},{"$f":"IF(LEFT(F151,3)=LEFT(beallitasok!$B$3,3),\"\",$B151)","v":""},{"$f":"IF(AND(LEN(ZARO_FOKONYV!A151)<LEN(ZARO_FOKONYV!A152),LEFT(ZARO_FOKONYV!A152,LEN(ZARO_FOKONYV!A151))=ZARO_FOKONYV!A151),\"IGEN\",\"nem\")","v":"nem"}]
[{"$f":"IFERROR(IF(OR(AND(beallitasok!$H$5=\"IGEN\",J152=\"IGEN\"),B152=\"\",VALUE(LEFT(F152,LEN(beallitasok!$H$2)))=beallitasok!$H$2,VALUE(LEFT(E152,LEN(beallitasok!$H$3)))=beallitasok!$H$3,VALUE(LEFT(F152,LEN(beallitasok!$H$2)))=beallitasok!$H$3,VALUE(LEFT(E152,LEN(beallitasok!$H$3)))=beallitasok!$H$2),\"\",IF(D152=\"\",\"\",beallitasok!$B$2)),\"\")","v":""},{"$f":"IF(VALUE(LEFT(ZARO_FOKONYV!A152,1))<=beallitasok!$H$8,ZARO_FOKONYV!B152,\"\")","v":"ÉRTÉKESÍTÉS ÁRBEVÉTELE ÉS BEVÉTELEK"},{"$f":"IF(B152=\"\",\"\",IF(beallitasok!$B$6=\"\",\"\",beallitasok!$B$6))","v":"NYITÓ"},{"$f":"IF(B152=\"\",\"\",ROUND(ZARO_FOKONYV!C152+ZARO_FOKONYV!D152,0))","v":109906332},{"$f":"IF(B152=\"\",\"\",LEFT(IF(ZARO_FOKONYV!C152>0,IFERROR(VLOOKUP(ZARO_FOKONYV!$A152,FKCSERE!$A:$B,2,FALSE),ZARO_FOKONYV!$A152),beallitasok!$B$3)&\"00000\",6))","v":"491000"},{"$f":"IF(B152=\"\",\"\",LEFT(IF(ZARO_FOKONYV!D152>0,IFERROR(VLOOKUP(ZARO_FOKONYV!$A152,FKCSERE!$A:$B,2,FALSE),ZARO_FOKONYV!$A152),beallitasok!$B$3)&\"000000\",6))","v":"900000"},null,{"$f":"IF(LEFT(E152,3)=LEFT(beallitasok!$B$3,3),\"\",$B152)","v":""},{"$f":"IF(LEFT(F152,3)=LEFT(beallitasok!$B$3,3),\"\",$B152)","v":"ÉRTÉKESÍTÉS ÁRBEVÉTELE ÉS BEVÉTELEK"},{"$f":"IF(AND(LEN(ZARO_FOKONYV!A152)<LEN(ZARO_FOKONYV!A153),LEFT(ZARO_FOKONYV!A153,LEN(ZARO_FOKONYV!A152))=ZARO_FOKONYV!A152),\"IGEN\",\"nem\")","v":"IGEN"}]
[{"$f":"IFERROR(IF(OR(AND(beallitasok!$H$5=\"IGEN\",J153=\"IGEN\"),B153=\"\",VALUE(LEFT(F153,LEN(beallitasok!$H$2)))=beallitasok!$H$2,VALUE(LEFT(E153,LEN(beallitasok!$H$3)))=beallitasok!$H$3,VALUE(LEFT(F153,LEN(beallitasok!$H$2)))=beallitasok!$H$3,VALUE(LEFT(E153,LEN(beallitasok!$H$3)))=beallitasok!$H$2),\"\",IF(D153=\"\",\"\",beallitasok!$B$2)),\"\")","v":""},{"$f":"IF(VALUE(LEFT(ZARO_FOKONYV!A153,1))<=beallitasok!$H$8,ZARO_FOKONYV!B153,\"\")","v":"BELFÖLDI ÉRTÉKESÍTÉS ÁRBEVÉTELE"},{"$f":"IF(B153=\"\",\"\",IF(beallitasok!$B$6=\"\",\"\",beallitasok!$B$6))","v":"NYITÓ"},{"$f":"IF(B153=\"\",\"\",ROUND(ZARO_FOKONYV!C153+ZARO_FOKONYV!D153,0))","v":109903948},{"$f":"IF(B153=\"\",\"\",LEFT(IF(ZARO_FOKONYV!C153>0,IFERROR(VLOOKUP(ZARO_FOKONYV!$A153,FKCSERE!$A:$B,2,FALSE),ZARO_FOKONYV!$A153),beallitasok!$B$3)&\"00000\",6))","v":"491000"},{"$f":"IF(B153=\"\",\"\",LEFT(IF(ZARO_FOKONYV!D153>0,IFERROR(VLOOKUP(ZARO_FOKONYV!$A153,FKCSERE!$A:$B,2,FALSE),ZARO_FOKONYV!$A153),beallitasok!$B$3)&\"000000\",6))","v":"910000"},null,{"$f":"IF(LEFT(E153,3)=LEFT(beallitasok!$B$3,3),\"\",$B153)","v":""},{"$f":"IF(LEFT(F153,3)=LEFT(beallitasok!$B$3,3),\"\",$B153)","v":"BELFÖLDI ÉRTÉKESÍTÉS ÁRBEVÉTELE"},{"$f":"IF(AND(LEN(ZARO_FOKONYV!A153)<LEN(ZARO_FOKONYV!A154),LEFT(ZARO_FOKONYV!A154,LEN(ZARO_FOKONYV!A153))=ZARO_FOKONYV!A153),\"IGEN\",\"nem\")","v":"IGEN"}]
[{"$f":"IFERROR(IF(OR(AND(beallitasok!$H$5=\"IGEN\",J154=\"IGEN\"),B154=\"\",VALUE(LEFT(F154,LEN(beallitasok!$H$2)))=beallitasok!$H$2,VALUE(LEFT(E154,LEN(beallitasok!$H$3)))=beallitasok!$H$3,VALUE(LEFT(F154,LEN(beallitasok!$H$2)))=beallitasok!$H$3,VALUE(LEFT(E154,LEN(beallitasok!$H$3)))=beallitasok!$H$2),\"\",IF(D154=\"\",\"\",beallitasok!$B$2)),\"\")","v":"2020-12-31"},{"$f":"IF(VALUE(LEFT(ZARO_FOKONYV!A154,1))<=beallitasok!$H$8,ZARO_FOKONYV!B154,\"\")","v":"Alaptevékenység árbevétele"},{"$f":"IF(B154=\"\",\"\",IF(beallitasok!$B$6=\"\",\"\",beallitasok!$B$6))","v":"NYITÓ"},{"$f":"IF(B154=\"\",\"\",ROUND(ZARO_FOKONYV!C154+ZARO_FOKONYV!D154,0))","v":109903948},{"$f":"IF(B154=\"\",\"\",LEFT(IF(ZARO_FOKONYV!C154>0,IFERROR(VLOOKUP(ZARO_FOKONYV!$A154,FKCSERE!$A:$B,2,FALSE),ZARO_FOKONYV!$A154),beallitasok!$B$3)&\"00000\",6))","v":"491000"},{"$f":"IF(B154=\"\",\"\",LEFT(IF(ZARO_FOKONYV!D154>0,IFERROR(VLOOKUP(ZARO_FOKONYV!$A154,FKCSERE!$A:$B,2,FALSE),ZARO_FOKONYV!$A154),beallitasok!$B$3)&\"000000\",6))","v":"911000"},null,{"$f":"IF(LEFT(E154,3)=LEFT(beallitasok!$B$3,3),\"\",$B154)","v":""},{"$f":"IF(LEFT(F154,3)=LEFT(beallitasok!$B$3,3),\"\",$B154)","v":"Alaptevékenység árbevétele"},{"$f":"IF(AND(LEN(ZARO_FOKONYV!A154)<LEN(ZARO_FOKONYV!A155),LEFT(ZARO_FOKONYV!A155,LEN(ZARO_FOKONYV!A154))=ZARO_FOKONYV!A154),\"IGEN\",\"nem\")","v":"nem"}]
[{"$f":"IFERROR(IF(OR(AND(beallitasok!$H$5=\"IGEN\",J155=\"IGEN\"),B155=\"\",VALUE(LEFT(F155,LEN(beallitasok!$H$2)))=beallitasok!$H$2,VALUE(LEFT(E155,LEN(beallitasok!$H$3)))=beallitasok!$H$3,VALUE(LEFT(F155,LEN(beallitasok!$H$2)))=beallitasok!$H$3,VALUE(LEFT(E155,LEN(beallitasok!$H$3)))=beallitasok!$H$2),\"\",IF(D155=\"\",\"\",beallitasok!$B$2)),\"\")","v":""},{"$f":"IF(VALUE(LEFT(ZARO_FOKONYV!A155,1))<=beallitasok!$H$8,ZARO_FOKONYV!B155,\"\")","v":"EGYÉB BEVÉTELEK"},{"$f":"IF(B155=\"\",\"\",IF(beallitasok!$B$6=\"\",\"\",beallitasok!$B$6))","v":"NYITÓ"},{"$f":"IF(B155=\"\",\"\",ROUND(ZARO_FOKONYV!C155+ZARO_FOKONYV!D155,0))","v":1740},{"$f":"IF(B155=\"\",\"\",LEFT(IF(ZARO_FOKONYV!C155>0,IFERROR(VLOOKUP(ZARO_FOKONYV!$A155,FKCSERE!$A:$B,2,FALSE),ZARO_FOKONYV!$A155),beallitasok!$B$3)&\"00000\",6))","v":"491000"},{"$f":"IF(B155=\"\",\"\",LEFT(IF(ZARO_FOKONYV!D155>0,IFERROR(VLOOKUP(ZARO_FOKONYV!$A155,FKCSERE!$A:$B,2,FALSE),ZARO_FOKONYV!$A155),beallitasok!$B$3)&\"000000\",6))","v":"960000"},null,{"$f":"IF(LEFT(E155,3)=LEFT(beallitasok!$B$3,3),\"\",$B155)","v":""},{"$f":"IF(LEFT(F155,3)=LEFT(beallitasok!$B$3,3),\"\",$B155)","v":"EGYÉB BEVÉTELEK"},{"$f":"IF(AND(LEN(ZARO_FOKONYV!A155)<LEN(ZARO_FOKONYV!A156),LEFT(ZARO_FOKONYV!A156,LEN(ZARO_FOKONYV!A155))=ZARO_FOKONYV!A155),\"IGEN\",\"nem\")","v":"IGEN"}]
[{"$f":"IFERROR(IF(OR(AND(beallitasok!$H$5=\"IGEN\",J156=\"IGEN\"),B156=\"\",VALUE(LEFT(F156,LEN(beallitasok!$H$2)))=beallitasok!$H$2,VALUE(LEFT(E156,LEN(beallitasok!$H$3)))=beallitasok!$H$3,VALUE(LEFT(F156,LEN(beallitasok!$H$2)))=beallitasok!$H$3,VALUE(LEFT(E156,LEN(beallitasok!$H$3)))=beallitasok!$H$2),\"\",IF(D156=\"\",\"\",beallitasok!$B$2)),\"\")","v":""},{"$f":"IF(VALUE(LEFT(ZARO_FOKONYV!A156,1))<=beallitasok!$H$8,ZARO_FOKONYV!B156,\"\")","v":"A mérlegkészítés időpontjáig pénzügyileg rendezett, az üzleti évhez kapcsolódó egyéb bev."},{"$f":"IF(B156=\"\",\"\",IF(beallitasok!$B$6=\"\",\"\",beallitasok!$B$6))","v":"NYITÓ"},{"$f":"IF(B156=\"\",\"\",ROUND(ZARO_FOKONYV!C156+ZARO_FOKONYV!D156,0))","v":1739},{"$f":"IF(B156=\"\",\"\",LEFT(IF(ZARO_FOKONYV!C156>0,IFERROR(VLOOKUP(ZARO_FOKONYV!$A156,FKCSERE!$A:$B,2,FALSE),ZARO_FOKONYV!$A156),beallitasok!$B$3)&\"00000\",6))","v":"491000"},{"$f":"IF(B156=\"\",\"\",LEFT(IF(ZARO_FOKONYV!D156>0,IFERROR(VLOOKUP(ZARO_FOKONYV!$A156,FKCSERE!$A:$B,2,FALSE),ZARO_FOKONYV!$A156),beallitasok!$B$3)&\"000000\",6))","v":"963000"},null,{"$f":"IF(LEFT(E156,3)=LEFT(beallitasok!$B$3,3),\"\",$B156)","v":""},{"$f":"IF(LEFT(F156,3)=LEFT(beallitasok!$B$3,3),\"\",$B156)","v":"A mérlegkészítés időpontjáig pénzügyileg rendezett, az üzleti évhez kapcsolódó egyéb bev."},{"$f":"IF(AND(LEN(ZARO_FOKONYV!A156)<LEN(ZARO_FOKONYV!A157),LEFT(ZARO_FOKONYV!A157,LEN(ZARO_FOKONYV!A156))=ZARO_FOKONYV!A156),\"IGEN\",\"nem\")","v":"IGEN"}]
[{"$f":"IFERROR(IF(OR(AND(beallitasok!$H$5=\"IGEN\",J157=\"IGEN\"),B157=\"\",VALUE(LEFT(F157,LEN(beallitasok!$H$2)))=beallitasok!$H$2,VALUE(LEFT(E157,LEN(beallitasok!$H$3)))=beallitasok!$H$3,VALUE(LEFT(F157,LEN(beallitasok!$H$2)))=beallitasok!$H$3,VALUE(LEFT(E157,LEN(beallitasok!$H$3)))=beallitasok!$H$2),\"\",IF(D157=\"\",\"\",beallitasok!$B$2)),\"\")","v":"2020-12-31"},{"$f":"IF(VALUE(LEFT(ZARO_FOKONYV!A157,1))<=beallitasok!$H$8,ZARO_FOKONYV!B157,\"\")","v":"Kerekítés"},{"$f":"IF(B157=\"\",\"\",IF(beallitasok!$B$6=\"\",\"\",beallitasok!$B$6))","v":"NYITÓ"},{"$f":"IF(B157=\"\",\"\",ROUND(ZARO_FOKONYV!C157+ZARO_FOKONYV!D157,0))","v":1739},{"$f":"IF(B157=\"\",\"\",LEFT(IF(ZARO_FOKONYV!C157>0,IFERROR(VLOOKUP(ZARO_FOKONYV!$A157,FKCSERE!$A:$B,2,FALSE),ZARO_FOKONYV!$A157),beallitasok!$B$3)&\"00000\",6))","v":"491000"},{"$f":"IF(B157=\"\",\"\",LEFT(IF(ZARO_FOKONYV!D157>0,IFERROR(VLOOKUP(ZARO_FOKONYV!$A157,FKCSERE!$A:$B,2,FALSE),ZARO_FOKONYV!$A157),beallitasok!$B$3)&\"000000\",6))","v":"963600"},null,{"$f":"IF(LEFT(E157,3)=LEFT(beallitasok!$B$3,3),\"\",$B157)","v":""},{"$f":"IF(LEFT(F157,3)=LEFT(beallitasok!$B$3,3),\"\",$B157)","v":"Kerekítés"},{"$f":"IF(AND(LEN(ZARO_FOKONYV!A157)<LEN(ZARO_FOKONYV!A158),LEFT(ZARO_FOKONYV!A158,LEN(ZARO_FOKONYV!A157))=ZARO_FOKONYV!A157),\"IGEN\",\"nem\")","v":"nem"}]
[{"$f":"IFERROR(IF(OR(AND(beallitasok!$H$5=\"IGEN\",J158=\"IGEN\"),B158=\"\",VALUE(LEFT(F158,LEN(beallitasok!$H$2)))=beallitasok!$H$2,VALUE(LEFT(E158,LEN(beallitasok!$H$3)))=beallitasok!$H$3,VALUE(LEFT(F158,LEN(beallitasok!$H$2)))=beallitasok!$H$3,VALUE(LEFT(E158,LEN(beallitasok!$H$3)))=beallitasok!$H$2),\"\",IF(D158=\"\",\"\",beallitasok!$B$2)),\"\")","v":""},{"$f":"IF(VALUE(LEFT(ZARO_FOKONYV!A158,1))<=beallitasok!$H$8,ZARO_FOKONYV!B158,\"\")","v":"Különféle egyéb bevételek"},{"$f":"IF(B158=\"\",\"\",IF(beallitasok!$B$6=\"\",\"\",beallitasok!$B$6))","v":"NYITÓ"},{"$f":"IF(B158=\"\",\"\",ROUND(ZARO_FOKONYV!C158+ZARO_FOKONYV!D158,0))","v":1},{"$f":"IF(B158=\"\",\"\",LEFT(IF(ZARO_FOKONYV!C158>0,IFERROR(VLOOKUP(ZARO_FOKONYV!$A158,FKCSERE!$A:$B,2,FALSE),ZARO_FOKONYV!$A158),beallitasok!$B$3)&\"00000\",6))","v":"491000"},{"$f":"IF(B158=\"\",\"\",LEFT(IF(ZARO_FOKONYV!D158>0,IFERROR(VLOOKUP(ZARO_FOKONYV!$A158,FKCSERE!$A:$B,2,FALSE),ZARO_FOKONYV!$A158),beallitasok!$B$3)&\"000000\",6))","v":"969000"},null,{"$f":"IF(LEFT(E158,3)=LEFT(beallitasok!$B$3,3),\"\",$B158)","v":""},{"$f":"IF(LEFT(F158,3)=LEFT(beallitasok!$B$3,3),\"\",$B158)","v":"Különféle egyéb bevételek"},{"$f":"IF(AND(LEN(ZARO_FOKONYV!A158)<LEN(ZARO_FOKONYV!A159),LEFT(ZARO_FOKONYV!A159,LEN(ZARO_FOKONYV!A158))=ZARO_FOKONYV!A158),\"IGEN\",\"nem\")","v":"IGEN"}]
[{"$f":"IFERROR(IF(OR(AND(beallitasok!$H$5=\"IGEN\",J159=\"IGEN\"),B159=\"\",VALUE(LEFT(F159,LEN(beallitasok!$H$2)))=beallitasok!$H$2,VALUE(LEFT(E159,LEN(beallitasok!$H$3)))=beallitasok!$H$3,VALUE(LEFT(F159,LEN(beallitasok!$H$2)))=beallitasok!$H$3,VALUE(LEFT(E159,LEN(beallitasok!$H$3)))=beallitasok!$H$2),\"\",IF(D159=\"\",\"\",beallitasok!$B$2)),\"\")","v":"2020-12-31"},{"$f":"IF(VALUE(LEFT(ZARO_FOKONYV!A159,1))<=beallitasok!$H$8,ZARO_FOKONYV!B159,\"\")","v":"Egyéb bevétel"},{"$f":"IF(B159=\"\",\"\",IF(beallitasok!$B$6=\"\",\"\",beallitasok!$B$6))","v":"NYITÓ"},{"$f":"IF(B159=\"\",\"\",ROUND(ZARO_FOKONYV!C159+ZARO_FOKONYV!D159,0))","v":1},{"$f":"IF(B159=\"\",\"\",LEFT(IF(ZARO_FOKONYV!C159>0,IFERROR(VLOOKUP(ZARO_FOKONYV!$A159,FKCSERE!$A:$B,2,FALSE),ZARO_FOKONYV!$A159),beallitasok!$B$3)&\"00000\",6))","v":"491000"},{"$f":"IF(B159=\"\",\"\",LEFT(IF(ZARO_FOKONYV!D159>0,IFERROR(VLOOKUP(ZARO_FOKONYV!$A159,FKCSERE!$A:$B,2,FALSE),ZARO_FOKONYV!$A159),beallitasok!$B$3)&\"000000\",6))","v":"969600"},null,{"$f":"IF(LEFT(E159,3)=LEFT(beallitasok!$B$3,3),\"\",$B159)","v":""},{"$f":"IF(LEFT(F159,3)=LEFT(beallitasok!$B$3,3),\"\",$B159)","v":"Egyéb bevétel"},{"$f":"IF(AND(LEN(ZARO_FOKONYV!A159)<LEN(ZARO_FOKONYV!A160),LEFT(ZARO_FOKONYV!A160,LEN(ZARO_FOKONYV!A159))=ZARO_FOKONYV!A159),\"IGEN\",\"nem\")","v":"nem"}]
[{"$f":"IFERROR(IF(OR(AND(beallitasok!$H$5=\"IGEN\",J160=\"IGEN\"),B160=\"\",VALUE(LEFT(F160,LEN(beallitasok!$H$2)))=beallitasok!$H$2,VALUE(LEFT(E160,LEN(beallitasok!$H$3)))=beallitasok!$H$3,VALUE(LEFT(F160,LEN(beallitasok!$H$2)))=beallitasok!$H$3,VALUE(LEFT(E160,LEN(beallitasok!$H$3)))=beallitasok!$H$2),\"\",IF(D160=\"\",\"\",beallitasok!$B$2)),\"\")","v":""},{"$f":"IF(VALUE(LEFT(ZARO_FOKONYV!A160,1))<=beallitasok!$H$8,ZARO_FOKONYV!B160,\"\")","v":"PÉNZÜGYI MŰVELETEK BEVÉTELEI"},{"$f":"IF(B160=\"\",\"\",IF(beallitasok!$B$6=\"\",\"\",beallitasok!$B$6))","v":"NYITÓ"},{"$f":"IF(B160=\"\",\"\",ROUND(ZARO_FOKONYV!C160+ZARO_FOKONYV!D160,0))","v":644},{"$f":"IF(B160=\"\",\"\",LEFT(IF(ZARO_FOKONYV!C160>0,IFERROR(VLOOKUP(ZARO_FOKONYV!$A160,FKCSERE!$A:$B,2,FALSE),ZARO_FOKONYV!$A160),beallitasok!$B$3)&\"00000\",6))","v":"491000"},{"$f":"IF(B160=\"\",\"\",LEFT(IF(ZARO_FOKONYV!D160>0,IFERROR(VLOOKUP(ZARO_FOKONYV!$A160,FKCSERE!$A:$B,2,FALSE),ZARO_FOKONYV!$A160),beallitasok!$B$3)&\"000000\",6))","v":"970000"},null,{"$f":"IF(LEFT(E160,3)=LEFT(beallitasok!$B$3,3),\"\",$B160)","v":""},{"$f":"IF(LEFT(F160,3)=LEFT(beallitasok!$B$3,3),\"\",$B160)","v":"PÉNZÜGYI MŰVELETEK BEVÉTELEI"},{"$f":"IF(AND(LEN(ZARO_FOKONYV!A160)<LEN(ZARO_FOKONYV!A161),LEFT(ZARO_FOKONYV!A161,LEN(ZARO_FOKONYV!A160))=ZARO_FOKONYV!A160),\"IGEN\",\"nem\")","v":"IGEN"}]
[{"$f":"IFERROR(IF(OR(AND(beallitasok!$H$5=\"IGEN\",J161=\"IGEN\"),B161=\"\",VALUE(LEFT(F161,LEN(beallitasok!$H$2)))=beallitasok!$H$2,VALUE(LEFT(E161,LEN(beallitasok!$H$3)))=beallitasok!$H$3,VALUE(LEFT(F161,LEN(beallitasok!$H$2)))=beallitasok!$H$3,VALUE(LEFT(E161,LEN(beallitasok!$H$3)))=beallitasok!$H$2),\"\",IF(D161=\"\",\"\",beallitasok!$B$2)),\"\")","v":""},{"$f":"IF(VALUE(LEFT(ZARO_FOKONYV!A161,1))<=beallitasok!$H$8,ZARO_FOKONYV!B161,\"\")","v":"Egyéb kapott kamatok és kamatjellegű bevételek"},{"$f":"IF(B161=\"\",\"\",IF(beallitasok!$B$6=\"\",\"\",beallitasok!$B$6))","v":"NYITÓ"},{"$f":"IF(B161=\"\",\"\",ROUND(ZARO_FOKONYV!C161+ZARO_FOKONYV!D161,0))","v":644},{"$f":"IF(B161=\"\",\"\",LEFT(IF(ZARO_FOKONYV!C161>0,IFERROR(VLOOKUP(ZARO_FOKONYV!$A161,FKCSERE!$A:$B,2,FALSE),ZARO_FOKONYV!$A161),beallitasok!$B$3)&\"00000\",6))","v":"491000"},{"$f":"IF(B161=\"\",\"\",LEFT(IF(ZARO_FOKONYV!D161>0,IFERROR(VLOOKUP(ZARO_FOKONYV!$A161,FKCSERE!$A:$B,2,FALSE),ZARO_FOKONYV!$A161),beallitasok!$B$3)&\"000000\",6))","v":"974000"},null,{"$f":"IF(LEFT(E161,3)=LEFT(beallitasok!$B$3,3),\"\",$B161)","v":""},{"$f":"IF(LEFT(F161,3)=LEFT(beallitasok!$B$3,3),\"\",$B161)","v":"Egyéb kapott kamatok és kamatjellegű bevételek"},{"$f":"IF(AND(LEN(ZARO_FOKONYV!A161)<LEN(ZARO_FOKONYV!A162),LEFT(ZARO_FOKONYV!A162,LEN(ZARO_FOKONYV!A161))=ZARO_FOKONYV!A161),\"IGEN\",\"nem\")","v":"IGEN"}]
[{"$f":"IFERROR(IF(OR(AND(beallitasok!$H$5=\"IGEN\",J162=\"IGEN\"),B162=\"\",VALUE(LEFT(F162,LEN(beallitasok!$H$2)))=beallitasok!$H$2,VALUE(LEFT(E162,LEN(beallitasok!$H$3)))=beallitasok!$H$3,VALUE(LEFT(F162,LEN(beallitasok!$H$2)))=beallitasok!$H$3,VALUE(LEFT(E162,LEN(beallitasok!$H$3)))=beallitasok!$H$2),\"\",IF(D162=\"\",\"\",beallitasok!$B$2)),\"\")","v":"2020-12-31"},{"$f":"IF(VALUE(LEFT(ZARO_FOKONYV!A162,1))<=beallitasok!$H$8,ZARO_FOKONYV!B162,\"\")","v":"Forgóeszközök között kimutatott kölcsön, váltókövetelés, pénzeszköz után kapott kamat"},{"$f":"IF(B162=\"\",\"\",IF(beallitasok!$B$6=\"\",\"\",beallitasok!$B$6))","v":"NYITÓ"},{"$f":"IF(B162=\"\",\"\",ROUND(ZARO_FOKONYV!C162+ZARO_FOKONYV!D162,0))","v":644},{"$f":"IF(B162=\"\",\"\",LEFT(IF(ZARO_FOKONYV!C162>0,IFERROR(VLOOKUP(ZARO_FOKONYV!$A162,FKCSERE!$A:$B,2,FALSE),ZARO_FOKONYV!$A162),beallitasok!$B$3)&\"00000\",6))","v":"491000"},{"$f":"IF(B162=\"\",\"\",LEFT(IF(ZARO_FOKONYV!D162>0,IFERROR(VLOOKUP(ZARO_FOKONYV!$A162,FKCSERE!$A:$B,2,FALSE),ZARO_FOKONYV!$A162),beallitasok!$B$3)&\"000000\",6))","v":"974100"},null,{"$f":"IF(LEFT(E162,3)=LEFT(beallitasok!$B$3,3),\"\",$B162)","v":""},{"$f":"IF(LEFT(F162,3)=LEFT(beallitasok!$B$3,3),\"\",$B162)","v":"Forgóeszközök között kimutatott kölcsön, váltókövetelés, pénzeszköz után kapott kamat"},{"$f":"IF(AND(LEN(ZARO_FOKONYV!A162)<LEN(ZARO_FOKONYV!A163),LEFT(ZARO_FOKONYV!A163,LEN(ZARO_FOKONYV!A162))=ZARO_FOKONYV!A162),\"IGEN\",\"nem\")","v":"nem"}]

{"sheet":"FKCSERE","index":3,"n_rows":2,"n_cols":2,"rows_kept":2,"cut":false,"hidden":false,"merged":[]}
["RÉGI PROGI","RELAX"]
[353,354]